Workbook

Sheet 1) Summary
C3: ='2) Order Form'!D4 -> ORDER FORM SUMMER 2023 - BIKE
C4: ='2) Order Form'!D5 -> Updated October 10th - 2023
C6: CUSTOMER INFO: | F6: SHIP TO: (IF DIFFERENT!) | I6: DELIVERY WEEK *
B7: NAME: *
B8: ADDRESS: * | I8: PAYMENT TERM *
B9: ZIP/CITY/COUNTRY: *
B10: PHONE: * | I10: CUSTOMER #
B11: E-MAIL: *
B12: INVOICE E-MAIL:
B13: ORG/VAT NR: *
B14: CONTACT PERSON: *
B15: *mandatory information
C16: NOTE / COMMENTS:
B17: *IF new Cusomer, please
B18: add estimatet yearly
B19: sales in Note/Comment
C24: ORDER SUMMARY | M24: *hide if not applicable
C25: Category | E25: PCS | F25: ="Order "&"("&'2) Order Form'!$P$3&")" -> Order (EUR) | G25: ="Discount "&"("&'2) Order Form'!$P$3&")" -> Discount (EUR) | H25: ="Discount %" -> Discount % | I25: ="Sum "&"("&'2) Order Form'!$P$3&")" -> Sum (EUR) | J25: Markup | M25: Last year purchase | N25: Change | O25: Change %
C26: Helmets & Helmet Acc. | E26: =SUMIF('2) Order Form'!$B$9:$B$1048576,'1) Summary'!$C26,'2) Order Form'!$I$9:$I$1048576) -> 0 | F26: =SUMIF('2) Order Form'!$B$9:$B$1048576,'1) Summary'!$C26,'2) Order Form'!$R$9:$R$1048576) ->  | G26: =IFERROR(SUMIF('2) Order Form'!$B$9:$B$1048576,'1) Summary'!$C26,'2) Order Form'!$S$9:$S$1048576),0) -> 0.00 | H26: =IFERROR(G26/F26,0) -> 0.0 % | I26: =F26-G26 ->  | J26: =IFERROR(SUMIF('2) Order Form'!$B$9:$B$1048576,'1) Summary'!$C26,'2) Order Form'!$Y$9:$Y$1048576)/I26,0) -> 0.0 | M26: 0.00 | N26: =I26-M26 ->  | O26: =IFERROR(N26/M26,"") -> 
C27: Protection | E27: =SUMIF('2) Order Form'!$B$9:$B$1048576,'1) Summary'!$C27,'2) Order Form'!$I$9:$I$1048576) -> 0 | F27: =SUMIF('2) Order Form'!$B$9:$B$1048576,'1) Summary'!$C27,'2) Order Form'!$R$9:$R$1048576) -> 0.00 | G27: =IFERROR(SUMIF('2) Order Form'!$B$9:$B$1048576,'1) Summary'!$C27,'2) Order Form'!$S$9:$S$1048576),0) -> 0.00 | H27: =IFERROR(G27/F27,0) -> 0.0 % | I27: =F27-G27 -> 0.00 | J27: =IFERROR(SUMIF('2) Order Form'!$B$9:$B$1048576,'1) Summary'!$C27,'2) Order Form'!$Y$9:$Y$1048576)/I27,0) -> 0.0 | M27: 0.00 | N27: =I27-M27 -> 0.00 | O27: =IFERROR(N27/M27,"") -> 
C28: Eyewear | E28: =SUMIF('2) Order Form'!$B$9:$B$1048576,'1) Summary'!$C28,'2) Order Form'!$I$9:$I$1048576) -> 0 | F28: =SUMIF('2) Order Form'!$B$9:$B$1048576,'1) Summary'!$C28,'2) Order Form'!$R$9:$R$1048576) -> 0.00 | G28: =IFERROR(SUMIF('2) Order Form'!$B$9:$B$1048576,'1) Summary'!$C28,'2) Order Form'!$S$9:$S$1048576),0) -> 0.00 | H28: 0.0 % | I28: 0.00 | J28: =IFERROR(SUMIF('2) Order Form'!$B$9:$B$1048576,'1) Summary'!$C28,'2) Order Form'!$Y$9:$Y$1048576)/I28,0) -> 0.0 | M28: 0.00 | N28: =I28-M28 -> 0.00 | O28: =IFERROR(N28/M28,"") -> 
C29: Technical Apparel | E29: =SUMIF('2) Order Form'!$B$9:$B$1048576,'1) Summary'!$C29,'2) Order Form'!$I$9:$I$1048576) -> 0 | F29: =SUMIF('2) Order Form'!$B$9:$B$1048576,'1) Summary'!$C29,'2) Order Form'!$R$9:$R$1048576) -> 0.00 | G29: =IFERROR(SUMIF('2) Order Form'!$B$9:$B$1048576,'1) Summary'!$C29,'2) Order Form'!$S$9:$S$1048576),0) -> 0.00 | H29: 0.0 % | I29: 0.00 | J29: =IFERROR(SUMIF('2) Order Form'!$B$9:$B$1048576,'1) Summary'!$C29,'2) Order Form'!$Y$9:$Y$1048576)/I29,0) -> 0.0 | M29: 0.00 | N29: =I29-M29 -> 0.00 | O29: =IFERROR(N29/M29,"") -> 
C30: Apparel & Headwear | E30: =SUMIF('2) Order Form'!$B$9:$B$1048576,'1) Summary'!$C30,'2) Order Form'!$I$9:$I$1048576) -> 0 | F30: =SUMIF('2) Order Form'!$B$9:$B$1048576,'1) Summary'!$C30,'2) Order Form'!$R$9:$R$1048576) -> 0.00 | G30: =IFERROR(SUMIF('2) Order Form'!$B$9:$B$1048576,'1) Summary'!$C30,'2) Order Form'!$S$9:$S$1048576),0) -> 0.00 | H30: 0.0 % | I30: 0.00 | J30: =IFERROR(SUMIF('2) Order Form'!$B$9:$B$1048576,'1) Summary'!$C30,'2) Order Form'!$Y$9:$Y$1048576)/I30,0) -> 0.0 | M30: 0.00 | N30: =I30-M30 -> 0.00 | O30: =IFERROR(N30/M30,"") -> 
C32: TOTALS | E32: =SUM(E26:E30) -> 0 | F32: =SUM(F26:F30) ->  | G32: =SUM(G26:G30) -> 0.00 | H32: =IFERROR(G32/F32,0) -> 0.0 % | I32: =SUM(I26:I30) ->  | J32: =IFERROR(SUM('2) Order Form'!Y9:Y1048576)/I32,0) -> 0.0 | M32: =SUM(M26:M30) -> 0.00 | N32: =I32-M32 ->  | O32: =IFERROR(N32/M32,"") -> 
C34: ="ORDER TOTALS "&"("&'2) Order Form'!$P$3&")" -> ORDER TOTALS (EUR)
C36: Total after discount | D36: ='2) Order Form'!S6 -> 
C37: Markup | D37: =J32 -> 0.0 | E37: Enter VAT %
C38: Customer margin % | D38: =IFERROR((SUM('2) Order Form'!$Y$9:$Y$1048576)/(1+E38)-D36)/(SUM('2) Order Form'!$Y$9:$Y$1048576)/(1+E38)),0) -> 0.0 % | E38: 20% | F38: < < <

Sheet 2) Order Form
P2: CHOOSE CURRENCY: | R2: Total PCS | S2: =SUM(I9:I918) -> 0
O3: > > > | P3: EUR | R3: Markup: | S3: =IFERROR(SUMPRODUCT(Q9:Q897,I9:I918)/SUM(T9:T918),0) -> 0.00
D4: ORDER FORM SUMMER 2023 - BIKE | P4: MAIN DISCOUNT: | R4: Total before %: | S4: =SUM(R9:R918) -> 
D5: Updated October 10th - 2023 | O5: > > > | P5: 0% | R5: Discount: | S5: =SUM(S9:S918) -> 
R6: Net total: | S6: =SUM(S4-S5) -> 
A8: CAT.NR | B8: CATEGORY | C8: STYLENR. | D8: PRODUCT NAME | E8: Variant | F8: COLOR [Eyewear: Lens/Frame/Strap] | G8: SIZE | H8: PCS per Pack | I8: ORDER QTY | J8: ATS I | K8: ="ATS W"&(ATS!P4-202300) -> ATS W41 | L8: ATS I | M8: ="ATS W"&(ATS!Q4-202300) -> ATS W45 | N8: Discount Specific | O8: Discount FINAL | P8: ="WHS"&$P$3 -> WHSEUR | Q8: ="RETAIL"&$P$3 -> RETAILEUR | R8: Order | S8: Discount | T8: Net Total | V8: EAN-code | Y8: Retail value | Z8: Category | AA8: Style II | AB8: Style | AC8: Color | AD8: CCTN1 | AE8: CCTN2 | AF8: CCTN2
A9: 1 | B9: Helmets & Helmet Acc. | C9: =INDEX(ATS!$A:$P,MATCH('2) Order Form'!$V9,ATS!$O:$O,0),1) -> 845073 | D9: =INDEX(ATS!$A:$P,MATCH('2) Order Form'!$V9,ATS!$O:$O,0),2) -> Arbitrator Mips Helmet | E9: =INDEX(ATS!$A:$P,MATCH('2) Order Form'!$V9,ATS!$O:$O,0),4) -> DUSK-SM | F9: =INDEX(ATS!$A:$P,MATCH('2) Order Form'!$V9,ATS!$O:$O,0),5) -> Dusk | G9: =INDEX(ATS!$A:$P,MATCH('2) Order Form'!$V9,ATS!$O:$O,0),6) -> SM | H9: 1 | I9: q | J9: =IFERROR(VLOOKUP(V9,ATS!$O:$P,2,FALSE),0) -> 49 | K9: =IF(J9=99999,"OPEN",IF(J9>50,"50+",IF(J9<=0,"0",J9))) -> 49 | L9: =IFERROR(VLOOKUP(V9,ATS!$O:$Q,3,FALSE),0) -> 49 | M9: =IF(L9=99999,"OPEN",IF(L9>50,"50+",IF(L9<=0,"0",L9))) -> 49 | N9: 0% | O9: =IF(N9<>0,N9,$P$5) -> 0% | P9: =VLOOKUP($C9,Prices!$A$3:$T$1996,MATCH('2) Order Form'!P$8,Prices!$A$2:$T$2,0),FALSE) -> 175.00 | Q9: =VLOOKUP($C9,Prices!$A$3:$T$1996,MATCH('2) Order Form'!Q$8,Prices!$A$2:$T$2,0),FALSE) -> 349.00 | R9: =I9*P9 ->  | S9: =R9*O9 ->  | T9: =R9-S9 ->  | V9: 7048652893505 | X9: =IF(ISNA(VLOOKUP(V9,$AG$9:$AG$1000,1,FALSE)),"*** EOL ***","") -> *** EOL *** | Y9: =I9*Q9 ->  | Z9: =IF(A9=OFFSET(A9,-1,0),0,1) -> 1 | AA9: 0 | AB9: =IF(C9=OFFSET(C9,-1,0),0,1) -> 1 | AC9: =IF(F9=OFFSET(F9,-1,0),0,1) -> 1 | AD9: =CONCATENATE(C9,F9) -> 845073Dusk | AE9: =IFERROR(IF(B9="EYEWEAR",CONCATENATE(C9,"-",G9),C9),C9) -> 845073 | AF9: =INDEX(ATS!$A:$P,MATCH('2) Order Form'!$V9,ATS!$O:$O,0),7) -> Stock | AG9: 7048652273154
A10: 1 | B10: Helmets & Helmet Acc. | C10: =INDEX(ATS!$A:$P,MATCH('2) Order Form'!$V10,ATS!$O:$O,0),1) -> 845073 | D10: =INDEX(ATS!$A:$P,MATCH('2) Order Form'!$V10,ATS!$O:$O,0),2) -> Arbitrator Mips Helmet | E10: =INDEX(ATS!$A:$P,MATCH('2) Order Form'!$V10,ATS!$O:$O,0),4) -> DUSK-ML | F10: =INDEX(ATS!$A:$P,MATCH('2) Order Form'!$V10,ATS!$O:$O,0),5) -> Dusk | G10: =INDEX(ATS!$A:$P,MATCH('2) Order Form'!$V10,ATS!$O:$O,0),6) -> ML | H10: 1 | I10: 0 | J10: =IFERROR(VLOOKUP(V10,ATS!$O:$P,2,FALSE),0) -> 81 | K10: 50+ | L10: =IFERROR(VLOOKUP(V10,ATS!$O:$Q,3,FALSE),0) -> 81 | M10: 50+ | N10: 0% | O10: 0% | P10: =VLOOKUP($C10,Prices!$A$3:$T$1996,MATCH('2) Order Form'!P$8,Prices!$A$2:$T$2,0),FALSE) -> 175.00 | Q10: =VLOOKUP($C10,Prices!$A$3:$T$1996,MATCH('2) Order Form'!Q$8,Prices!$A$2:$T$2,0),FALSE) -> 349.00 | R10: 0 | S10: 0 | T10: 0 | V10: 7048652893499 | X10: =IF(ISNA(VLOOKUP(V10,$AG$9:$AG$1000,1,FALSE)),"*** EOL ***","") -> *** EOL *** | Y10: 0 | Z10: =IF(A10=OFFSET(A10,-1,0),0,1) -> 0 | AA10: =IF(C10=OFFSET(C10,-1,0),OFFSET(AA10,-1,0),OFFSET(AA10,-1,0)+1) -> 0 | AB10: =IF(C10=OFFSET(C10,-1,0),0,1) -> 0 | AC10: =IF(F10=OFFSET(F10,-1,0),0,1) -> 0 | AD10: =CONCATENATE(C10,F10) -> 845073Dusk | AE10: =IFERROR(IF(B10="EYEWEAR",CONCATENATE(C10,"-",G10),C10),C10) -> 845073 | AF10: =INDEX(ATS!$A:$P,MATCH('2) Order Form'!$V10,ATS!$O:$O,0),7) -> Stock | AG10: 7048652273147
A11: 1 | B11: Helmets & Helmet Acc. | C11: =INDEX(ATS!$A:$P,MATCH('2) Order Form'!$V11,ATS!$O:$O,0),1) -> 845073 | D11: =INDEX(ATS!$A:$P,MATCH('2) Order Form'!$V11,ATS!$O:$O,0),2) -> Arbitrator Mips Helmet | E11: =INDEX(ATS!$A:$P,MATCH('2) Order Form'!$V11,ATS!$O:$O,0),4) -> LAVA-SM | F11: =INDEX(ATS!$A:$P,MATCH('2) Order Form'!$V11,ATS!$O:$O,0),5) -> Lava | G11: =INDEX(ATS!$A:$P,MATCH('2) Order Form'!$V11,ATS!$O:$O,0),6) -> SM | H11: 1 | I11: 0 | J11: =IFERROR(VLOOKUP(V11,ATS!$O:$P,2,FALSE),0) -> 9 | K11: 9 | L11: =IFERROR(VLOOKUP(V11,ATS!$O:$Q,3,FALSE),0) -> 9 | M11: 9 | N11: 0% | O11: 0% | P11: =VLOOKUP($C11,Prices!$A$3:$T$1996,MATCH('2) Order Form'!P$8,Prices!$A$2:$T$2,0),FALSE) -> 175.00 | Q11: =VLOOKUP($C11,Prices!$A$3:$T$1996,MATCH('2) Order Form'!Q$8,Prices!$A$2:$T$2,0),FALSE) -> 349.00 | R11: 0 | S11: 0 | T11: 0 | V11: 7048652893529 | Y11: 0 | Z11: =IF(A11=OFFSET(A11,-1,0),0,1) -> 0 | AA11: =IF(C11=OFFSET(C11,-1,0),OFFSET(AA11,-1,0),OFFSET(AA11,-1,0)+1) -> 0 | AB11: 0 | AC11: 1 | AD11: 845073Lava | AE11: 845073 | AF11: =INDEX(ATS!$A:$P,MATCH('2) Order Form'!$V11,ATS!$O:$O,0),7) -> Active | AG11: 7048653025042
A12: 1 | B12: Helmets & Helmet Acc. | C12: =INDEX(ATS!$A:$P,MATCH('2) Order Form'!$V12,ATS!$O:$O,0),1) -> 845073 | D12: =INDEX(ATS!$A:$P,MATCH('2) Order Form'!$V12,ATS!$O:$O,0),2) -> Arbitrator Mips Helmet | E12: =INDEX(ATS!$A:$P,MATCH('2) Order Form'!$V12,ATS!$O:$O,0),4) -> LAVA-ML | F12: =INDEX(ATS!$A:$P,MATCH('2) Order Form'!$V12,ATS!$O:$O,0),5) -> Lava | G12: =INDEX(ATS!$A:$P,MATCH('2) Order Form'!$V12,ATS!$O:$O,0),6) -> ML | H12: 1 | I12: 0 | J12: =IFERROR(VLOOKUP(V12,ATS!$O:$P,2,FALSE),0) -> 17 | K12: 17 | L12: =IFERROR(VLOOKUP(V12,ATS!$O:$Q,3,FALSE),0) -> 17 | M12: 17 | N12: 0% | O12: 0% | P12: =VLOOKUP($C12,Prices!$A$3:$T$1996,MATCH('2) Order Form'!P$8,Prices!$A$2:$T$2,0),FALSE) -> 175.00 | Q12: =VLOOKUP($C12,Prices!$A$3:$T$1996,MATCH('2) Order Form'!Q$8,Prices!$A$2:$T$2,0),FALSE) -> 349.00 | R12: 0 | S12: 0 | T12: 0 | V12: 7048652893512 | Y12: 0 | Z12: 0 | AA12: 0 | AB12: 0 | AC12: 0 | AD12: 845073Lava | AE12: 845073 | AF12: =INDEX(ATS!$A:$P,MATCH('2) Order Form'!$V12,ATS!$O:$O,0),7) -> Active | AG12: 7048653025059
A13: 1 | B13: Helmets & Helmet Acc. | C13: =INDEX(ATS!$A:$P,MATCH('2) Order Form'!$V13,ATS!$O:$O,0),1) -> 845073 | D13: =INDEX(ATS!$A:$P,MATCH('2) Order Form'!$V13,ATS!$O:$O,0),2) -> Arbitrator Mips Helmet | E13: =INDEX(ATS!$A:$P,MATCH('2) Order Form'!$V13,ATS!$O:$O,0),4) -> MBKNC-SM | F13: =INDEX(ATS!$A:$P,MATCH('2) Order Form'!$V13,ATS!$O:$O,0),5) -> Matte Black/Natural Carbon | G13: =INDEX(ATS!$A:$P,MATCH('2) Order Form'!$V13,ATS!$O:$O,0),6) -> SM | H13: 1 | I13: 0 | J13: =IFERROR(VLOOKUP(V13,ATS!$O:$P,2,FALSE),0) -> 222 | K13: 50+ | L13: =IFERROR(VLOOKUP(V13,ATS!$O:$Q,3,FALSE),0) -> 222 | M13: 50+ | N13: 0% | O13: 0% | P13: =VLOOKUP($C13,Prices!$A$3:$T$1996,MATCH('2) Order Form'!P$8,Prices!$A$2:$T$2,0),FALSE) -> 175.00 | Q13: =VLOOKUP($C13,Prices!$A$3:$T$1996,MATCH('2) Order Form'!Q$8,Prices!$A$2:$T$2,0),FALSE) -> 349.00 | R13: 0 | S13: 0 | T13: 0 | V13: 7048652273154 | Y13: 0 | Z13: 0 | AA13: 0 | AB13: 0 | AC13: 1 | AD13: 845073Matte Black/Natural Carbon | AE13: 845073 | AF13: =INDEX(ATS!$A:$P,MATCH('2) Order Form'!$V13,ATS!$O:$O,0),7) -> Active | AG13: 7048652893567
A14: 1 | B14: Helmets & Helmet Acc. | C14: =INDEX(ATS!$A:$P,MATCH('2) Order Form'!$V14,ATS!$O:$O,0),1) -> 845073 | D14: =INDEX(ATS!$A:$P,MATCH('2) Order Form'!$V14,ATS!$O:$O,0),2) -> Arbitrator Mips Helmet | E14: =INDEX(ATS!$A:$P,MATCH('2) Order Form'!$V14,ATS!$O:$O,0),4) -> MBKNC-ML | F14: =INDEX(ATS!$A:$P,MATCH('2) Order Form'!$V14,ATS!$O:$O,0),5) -> Matte Black/Natural Carbon | G14: =INDEX(ATS!$A:$P,MATCH('2) Order Form'!$V14,ATS!$O:$O,0),6) -> ML | H14: 1 | I14: 0 | J14: =IFERROR(VLOOKUP(V14,ATS!$O:$P,2,FALSE),0) -> 424 | K14: 50+ | L14: =IFERROR(VLOOKUP(V14,ATS!$O:$Q,3,FALSE),0) -> 424 | M14: 50+ | N14: 0% | O14: 0% | P14: =VLOOKUP($C14,Prices!$A$3:$T$1996,MATCH('2) Order Form'!P$8,Prices!$A$2:$T$2,0),FALSE) -> 175.00 | Q14: =VLOOKUP($C14,Prices!$A$3:$T$1996,MATCH('2) Order Form'!Q$8,Prices!$A$2:$T$2,0),FALSE) -> 349.00 | R14: 0 | S14: 0 | T14: 0 | V14: 7048652273147 | Y14: 0 | Z14: 0 | AA14: 0 | AB14: 0 | AC14: 0 | AD14: 845073Matte Black/Natural Carbon | AE14: 845073 | AF14: =INDEX(ATS!$A:$P,MATCH('2) Order Form'!$V14,ATS!$O:$O,0),7) -> Active | AG14: 7048652893550
A15: 1 | B15: Helmets & Helmet Acc. | C15: =INDEX(ATS!$A:$P,MATCH('2) Order Form'!$V15,ATS!$O:$O,0),1) -> 845073 | D15: =INDEX(ATS!$A:$P,MATCH('2) Order Form'!$V15,ATS!$O:$O,0),2) -> Arbitrator Mips Helmet | E15: =INDEX(ATS!$A:$P,MATCH('2) Order Form'!$V15,ATS!$O:$O,0),4) -> WOLND-SM | F15: =INDEX(ATS!$A:$P,MATCH('2) Order Form'!$V15,ATS!$O:$O,0),5) -> Woodland | G15: =INDEX(ATS!$A:$P,MATCH('2) Order Form'!$V15,ATS!$O:$O,0),6) -> SM | H15: 1 | I15: 0 | J15: =IFERROR(VLOOKUP(V15,ATS!$O:$P,2,FALSE),0) -> 67 | K15: =IF(J15=99999,"OPEN",IF(J15>50,"50+",IF(J15<=0,"0",J15))) -> 50+ | L15: =IFERROR(VLOOKUP(V15,ATS!$O:$Q,3,FALSE),0) -> 67 | M15: =IF(L15=99999,"OPEN",IF(L15>50,"50+",IF(L15<=0,"0",L15))) -> 50+ | N15: 0% | O15: =IF(N15<>0,N15,$P$5) -> 0% | P15: =VLOOKUP($C15,Prices!$A$3:$T$1996,MATCH('2) Order Form'!P$8,Prices!$A$2:$T$2,0),FALSE) -> 175.00 | Q15: =VLOOKUP($C15,Prices!$A$3:$T$1996,MATCH('2) Order Form'!Q$8,Prices!$A$2:$T$2,0),FALSE) -> 349.00 | R15: =I15*P15 -> 0 | S15: =R15*O15 -> 0 | T15: =R15-S15 -> 0 | V15: 7048652893567 | Y15: =I15*Q15 -> 0 | Z15: 0 | AA15: 0 | AB15: 0 | AC15: 1 | AD15: 845073Woodland | AE15: 845073 | AF15: =INDEX(ATS!$A:$P,MATCH('2) Order Form'!$V15,ATS!$O:$O,0),7) -> Active | AG15: 7048652893529
A16: 1 | B16: Helmets & Helmet Acc. | C16: =INDEX(ATS!$A:$P,MATCH('2) Order Form'!$V16,ATS!$O:$O,0),1) -> 845073 | D16: =INDEX(ATS!$A:$P,MATCH('2) Order Form'!$V16,ATS!$O:$O,0),2) -> Arbitrator Mips Helmet | E16: =INDEX(ATS!$A:$P,MATCH('2) Order Form'!$V16,ATS!$O:$O,0),4) -> WOLND-ML | F16: =INDEX(ATS!$A:$P,MATCH('2) Order Form'!$V16,ATS!$O:$O,0),5) -> Woodland | G16: =INDEX(ATS!$A:$P,MATCH('2) Order Form'!$V16,ATS!$O:$O,0),6) -> ML | H16: 1 | I16: 0 | J16: =IFERROR(VLOOKUP(V16,ATS!$O:$P,2,FALSE),0) -> 120 | K16: 50+ | L16: =IFERROR(VLOOKUP(V16,ATS!$O:$Q,3,FALSE),0) -> 120 | M16: 50+ | N16: 0% | O16: 0% | P16: =VLOOKUP($C16,Prices!$A$3:$T$1996,MATCH('2) Order Form'!P$8,Prices!$A$2:$T$2,0),FALSE) -> 175.00 | Q16: =VLOOKUP($C16,Prices!$A$3:$T$1996,MATCH('2) Order Form'!Q$8,Prices!$A$2:$T$2,0),FALSE) -> 349.00 | R16: 0 | S16: 0 | T16: 0 | V16: 7048652893550 | Y16: 0 | Z16: 0 | AA16: 0 | AB16: 0 | AC16: 0 | AD16: 845073Woodland | AE16: 845073 | AF16: =INDEX(ATS!$A:$P,MATCH('2) Order Form'!$V16,ATS!$O:$O,0),7) -> Active | AG16: 7048652893512
A17: 1 | B17: Helmets & Helmet Acc. | C17: =INDEX(ATS!$A:$P,MATCH('2) Order Form'!$V17,ATS!$O:$O,0),1) -> 845144 | D17: =INDEX(ATS!$A:$P,MATCH('2) Order Form'!$V17,ATS!$O:$O,0),2) -> Bushwhacker 2Vi Mips Helmet | E17: =INDEX(ATS!$A:$P,MATCH('2) Order Form'!$V17,ATS!$O:$O,0),4) -> DUSK-SM | F17: =INDEX(ATS!$A:$P,MATCH('2) Order Form'!$V17,ATS!$O:$O,0),5) -> Dusk | G17: =INDEX(ATS!$A:$P,MATCH('2) Order Form'!$V17,ATS!$O:$O,0),6) -> SM | H17: 1 | I17: 0 | J17: =IFERROR(VLOOKUP(V17,ATS!$O:$P,2,FALSE),0) -> 64 | K17: 50+ | L17: =IFERROR(VLOOKUP(V17,ATS!$O:$Q,3,FALSE),0) -> 64 | M17: 50+ | N17: 0% | O17: 0% | P17: =VLOOKUP($C17,Prices!$A$3:$T$1996,MATCH('2) Order Form'!P$8,Prices!$A$2:$T$2,0),FALSE) -> 125.00 | Q17: =VLOOKUP($C17,Prices!$A$3:$T$1996,MATCH('2) Order Form'!Q$8,Prices!$A$2:$T$2,0),FALSE) -> 249.00 | R17: 0 | S17: 0 | T17: 0 | V17: 7048652892850 | X17: *** EOL *** | Y17: 0 | Z17: 0 | AA17: 1 | AB17: =IF(C17=OFFSET(C17,-1,0),0,1) -> 1 | AC17: =IF(F17=OFFSET(F17,-1,0),0,1) -> 1 | AD17: =CONCATENATE(C17,F17) -> 845144Dusk | AE17: =IFERROR(IF(B17="EYEWEAR",CONCATENATE(C17,"-",G17),C17),C17) -> 845144 | AF17: =INDEX(ATS!$A:$P,MATCH('2) Order Form'!$V17,ATS!$O:$O,0),7) -> Stock | AG17: 7048652895592
A18: 1 | B18: Helmets & Helmet Acc. | C18: =INDEX(ATS!$A:$P,MATCH('2) Order Form'!$V18,ATS!$O:$O,0),1) -> 845144 | D18: =INDEX(ATS!$A:$P,MATCH('2) Order Form'!$V18,ATS!$O:$O,0),2) -> Bushwhacker 2Vi Mips Helmet | E18: =INDEX(ATS!$A:$P,MATCH('2) Order Form'!$V18,ATS!$O:$O,0),4) -> DUSK-ML | F18: =INDEX(ATS!$A:$P,MATCH('2) Order Form'!$V18,ATS!$O:$O,0),5) -> Dusk | G18: =INDEX(ATS!$A:$P,MATCH('2) Order Form'!$V18,ATS!$O:$O,0),6) -> ML | H18: 1 | I18: 0 | J18: =IFERROR(VLOOKUP(V18,ATS!$O:$P,2,FALSE),0) -> 129 | K18: 50+ | L18: =IFERROR(VLOOKUP(V18,ATS!$O:$Q,3,FALSE),0) -> 129 | M18: 50+ | N18: 0% | O18: 0% | P18: =VLOOKUP($C18,Prices!$A$3:$T$1996,MATCH('2) Order Form'!P$8,Prices!$A$2:$T$2,0),FALSE) -> 125.00 | Q18: =VLOOKUP($C18,Prices!$A$3:$T$1996,MATCH('2) Order Form'!Q$8,Prices!$A$2:$T$2,0),FALSE) -> 249.00 | R18: 0 | S18: 0 | T18: 0 | V18: 7048652892843 | X18: *** EOL *** | Y18: 0 | Z18: 0 | AA18: 1 | AB18: 0 | AC18: 0 | AD18: 845144Dusk | AE18: 845144 | AF18: =INDEX(ATS!$A:$P,MATCH('2) Order Form'!$V18,ATS!$O:$O,0),7) -> Stock | AG18: 7048652895585
A19: 1 | B19: Helmets & Helmet Acc. | C19: =INDEX(ATS!$A:$P,MATCH('2) Order Form'!$V19,ATS!$O:$O,0),1) -> 845144 | D19: =INDEX(ATS!$A:$P,MATCH('2) Order Form'!$V19,ATS!$O:$O,0),2) -> Bushwhacker 2Vi Mips Helmet | E19: =INDEX(ATS!$A:$P,MATCH('2) Order Form'!$V19,ATS!$O:$O,0),4) -> DUSK-LXL | F19: =INDEX(ATS!$A:$P,MATCH('2) Order Form'!$V19,ATS!$O:$O,0),5) -> Dusk | G19: =INDEX(ATS!$A:$P,MATCH('2) Order Form'!$V19,ATS!$O:$O,0),6) -> LXL | H19: 1 | I19: 0 | J19: =IFERROR(VLOOKUP(V19,ATS!$O:$P,2,FALSE),0) -> 101 | K19: 50+ | L19: =IFERROR(VLOOKUP(V19,ATS!$O:$Q,3,FALSE),0) -> 101 | M19: 50+ | N19: 0% | O19: 0% | P19: =VLOOKUP($C19,Prices!$A$3:$T$1996,MATCH('2) Order Form'!P$8,Prices!$A$2:$T$2,0),FALSE) -> 125.00 | Q19: =VLOOKUP($C19,Prices!$A$3:$T$1996,MATCH('2) Order Form'!Q$8,Prices!$A$2:$T$2,0),FALSE) -> 249.00 | R19: 0 | S19: 0 | T19: 0 | V19: 7048652892836 | X19: *** EOL *** | Y19: 0 | Z19: 0 | AA19: 1 | AB19: 0 | AC19: 0 | AD19: 845144Dusk | AE19: 845144 | AF19: =INDEX(ATS!$A:$P,MATCH('2) Order Form'!$V19,ATS!$O:$O,0),7) -> Stock | AG19: 7048652895578
A20: 1 | B20: Helmets & Helmet Acc. | C20: =INDEX(ATS!$A:$P,MATCH('2) Order Form'!$V20,ATS!$O:$O,0),1) -> 845144 | D20: =INDEX(ATS!$A:$P,MATCH('2) Order Form'!$V20,ATS!$O:$O,0),2) -> Bushwhacker 2Vi Mips Helmet | E20: =INDEX(ATS!$A:$P,MATCH('2) Order Form'!$V20,ATS!$O:$O,0),4) -> MBLCK-SM | F20: =INDEX(ATS!$A:$P,MATCH('2) Order Form'!$V20,ATS!$O:$O,0),5) -> Matte Black | G20: =INDEX(ATS!$A:$P,MATCH('2) Order Form'!$V20,ATS!$O:$O,0),6) -> SM | H20: 1 | I20: 0 | J20: =IFERROR(VLOOKUP(V20,ATS!$O:$P,2,FALSE),0) -> 127 | K20: 50+ | L20: =IFERROR(VLOOKUP(V20,ATS!$O:$Q,3,FALSE),0) -> 127 | M20: 50+ | N20: 0% | O20: 0% | P20: =VLOOKUP($C20,Prices!$A$3:$T$1996,MATCH('2) Order Form'!P$8,Prices!$A$2:$T$2,0),FALSE) -> 125.00 | Q20: =VLOOKUP($C20,Prices!$A$3:$T$1996,MATCH('2) Order Form'!Q$8,Prices!$A$2:$T$2,0),FALSE) -> 249.00 | R20: 0 | S20: 0 | T20: 0 | V20: 7048652895592 | Y20: 0 | Z20: 0 | AA20: 1 | AB20: 0 | AC20: 1 | AD20: 845144Matte Black | AE20: 845144 | AF20: =INDEX(ATS!$A:$P,MATCH('2) Order Form'!$V20,ATS!$O:$O,0),7) -> Active | AG20: 7048652892911
A21: 1 | B21: Helmets & Helmet Acc. | C21: =INDEX(ATS!$A:$P,MATCH('2) Order Form'!$V21,ATS!$O:$O,0),1) -> 845144 | D21: =INDEX(ATS!$A:$P,MATCH('2) Order Form'!$V21,ATS!$O:$O,0),2) -> Bushwhacker 2Vi Mips Helmet | E21: =INDEX(ATS!$A:$P,MATCH('2) Order Form'!$V21,ATS!$O:$O,0),4) -> MBLCK-ML | F21: =INDEX(ATS!$A:$P,MATCH('2) Order Form'!$V21,ATS!$O:$O,0),5) -> Matte Black | G21: =INDEX(ATS!$A:$P,MATCH('2) Order Form'!$V21,ATS!$O:$O,0),6) -> ML | H21: 1 | I21: 0 | J21: =IFERROR(VLOOKUP(V21,ATS!$O:$P,2,FALSE),0) -> 344 | K21: 50+ | L21: =IFERROR(VLOOKUP(V21,ATS!$O:$Q,3,FALSE),0) -> 344 | M21: 50+ | N21: 0% | O21: 0% | P21: =VLOOKUP($C21,Prices!$A$3:$T$1996,MATCH('2) Order Form'!P$8,Prices!$A$2:$T$2,0),FALSE) -> 125.00 | Q21: =VLOOKUP($C21,Prices!$A$3:$T$1996,MATCH('2) Order Form'!Q$8,Prices!$A$2:$T$2,0),FALSE) -> 249.00 | R21: 0 | S21: 0 | T21: 0 | V21: 7048652895585 | Y21: 0 | Z21: 0 | AA21: 1 | AB21: 0 | AC21: 0 | AD21: 845144Matte Black | AE21: 845144 | AF21: =INDEX(ATS!$A:$P,MATCH('2) Order Form'!$V21,ATS!$O:$O,0),7) -> Active | AG21: 7048652892904
A22: 1 | B22: Helmets & Helmet Acc. | C22: =INDEX(ATS!$A:$P,MATCH('2) Order Form'!$V22,ATS!$O:$O,0),1) -> 845144 | D22: =INDEX(ATS!$A:$P,MATCH('2) Order Form'!$V22,ATS!$O:$O,0),2) -> Bushwhacker 2Vi Mips Helmet | E22: =INDEX(ATS!$A:$P,MATCH('2) Order Form'!$V22,ATS!$O:$O,0),4) -> MBLCK-LXL | F22: =INDEX(ATS!$A:$P,MATCH('2) Order Form'!$V22,ATS!$O:$O,0),5) -> Matte Black | G22: =INDEX(ATS!$A:$P,MATCH('2) Order Form'!$V22,ATS!$O:$O,0),6) -> LXL | H22: 1 | I22: 0 | J22: =IFERROR(VLOOKUP(V22,ATS!$O:$P,2,FALSE),0) -> 219 | K22: 50+ | L22: =IFERROR(VLOOKUP(V22,ATS!$O:$Q,3,FALSE),0) -> 219 | M22: 50+ | N22: 0% | O22: 0% | P22: =VLOOKUP($C22,Prices!$A$3:$T$1996,MATCH('2) Order Form'!P$8,Prices!$A$2:$T$2,0),FALSE) -> 125.00 | Q22: =VLOOKUP($C22,Prices!$A$3:$T$1996,MATCH('2) Order Form'!Q$8,Prices!$A$2:$T$2,0),FALSE) -> 249.00 | R22: 0 | S22: 0 | T22: 0 | V22: 7048652895578 | Y22: 0 | Z22: 0 | AA22: 1 | AB22: 0 | AC22: 0 | AD22: 845144Matte Black | AE22: 845144 | AF22: =INDEX(ATS!$A:$P,MATCH('2) Order Form'!$V22,ATS!$O:$O,0),7) -> Active | AG22: 7048652892898
A23: 1 | B23: Helmets & Helmet Acc. | C23: =INDEX(ATS!$A:$P,MATCH('2) Order Form'!$V23,ATS!$O:$O,0),1) -> 845144 | D23: =INDEX(ATS!$A:$P,MATCH('2) Order Form'!$V23,ATS!$O:$O,0),2) -> Bushwhacker 2Vi Mips Helmet | E23: =INDEX(ATS!$A:$P,MATCH('2) Order Form'!$V23,ATS!$O:$O,0),4) -> MWHTE-SM | F23: =INDEX(ATS!$A:$P,MATCH('2) Order Form'!$V23,ATS!$O:$O,0),5) -> Matte White | G23: =INDEX(ATS!$A:$P,MATCH('2) Order Form'!$V23,ATS!$O:$O,0),6) -> SM | H23: 1 | I23: 0 | J23: =IFERROR(VLOOKUP(V23,ATS!$O:$P,2,FALSE),0) -> 36 | K23: 36 | L23: =IFERROR(VLOOKUP(V23,ATS!$O:$Q,3,FALSE),0) -> 36 | M23: 36 | N23: 0% | O23: 0% | P23: =VLOOKUP($C23,Prices!$A$3:$T$1996,MATCH('2) Order Form'!P$8,Prices!$A$2:$T$2,0),FALSE) -> 125.00 | Q23: =VLOOKUP($C23,Prices!$A$3:$T$1996,MATCH('2) Order Form'!Q$8,Prices!$A$2:$T$2,0),FALSE) -> 249.00 | R23: 0 | S23: 0 | T23: 0 | V23: 7048652892911 | Y23: 0 | Z23: 0 | AA23: 1 | AB23: 0 | AC23: 1 | AD23: 845144Matte White | AE23: 845144 | AF23: =INDEX(ATS!$A:$P,MATCH('2) Order Form'!$V23,ATS!$O:$O,0),7) -> Active | AG23: 7048653024724
A24: 1 | B24: Helmets & Helmet Acc. | C24: =INDEX(ATS!$A:$P,MATCH('2) Order Form'!$V24,ATS!$O:$O,0),1) -> 845144 | D24: =INDEX(ATS!$A:$P,MATCH('2) Order Form'!$V24,ATS!$O:$O,0),2) -> Bushwhacker 2Vi Mips Helmet | E24: =INDEX(ATS!$A:$P,MATCH('2) Order Form'!$V24,ATS!$O:$O,0),4) -> MWHTE-ML | F24: =INDEX(ATS!$A:$P,MATCH('2) Order Form'!$V24,ATS!$O:$O,0),5) -> Matte White | G24: =INDEX(ATS!$A:$P,MATCH('2) Order Form'!$V24,ATS!$O:$O,0),6) -> ML | H24: 1 | I24: 0 | J24: =IFERROR(VLOOKUP(V24,ATS!$O:$P,2,FALSE),0) -> 67 | K24: 50+ | L24: =IFERROR(VLOOKUP(V24,ATS!$O:$Q,3,FALSE),0) -> 67 | M24: 50+ | N24: 0% | O24: 0% | P24: =VLOOKUP($C24,Prices!$A$3:$T$1996,MATCH('2) Order Form'!P$8,Prices!$A$2:$T$2,0),FALSE) -> 125.00 | Q24: =VLOOKUP($C24,Prices!$A$3:$T$1996,MATCH('2) Order Form'!Q$8,Prices!$A$2:$T$2,0),FALSE) -> 249.00 | R24: 0 | S24: 0 | T24: 0 | V24: 7048652892904 | Y24: 0 | Z24: 0 | AA24: 1 | AB24: 0 | AC24: 0 | AD24: 845144Matte White | AE24: 845144 | AF24: =INDEX(ATS!$A:$P,MATCH('2) Order Form'!$V24,ATS!$O:$O,0),7) -> Active | AG24: 7048653024731
A25: 1 | B25: Helmets & Helmet Acc. | C25: =INDEX(ATS!$A:$P,MATCH('2) Order Form'!$V25,ATS!$O:$O,0),1) -> 845144 | D25: =INDEX(ATS!$A:$P,MATCH('2) Order Form'!$V25,ATS!$O:$O,0),2) -> Bushwhacker 2Vi Mips Helmet | E25: =INDEX(ATS!$A:$P,MATCH('2) Order Form'!$V25,ATS!$O:$O,0),4) -> MWHTE-LXL | F25: =INDEX(ATS!$A:$P,MATCH('2) Order Form'!$V25,ATS!$O:$O,0),5) -> Matte White | G25: =INDEX(ATS!$A:$P,MATCH('2) Order Form'!$V25,ATS!$O:$O,0),6) -> LXL | H25: 1 | I25: 0 | J25: =IFERROR(VLOOKUP(V25,ATS!$O:$P,2,FALSE),0) -> 91 | K25: 50+ | L25: =IFERROR(VLOOKUP(V25,ATS!$O:$Q,3,FALSE),0) -> 91 | M25: 50+ | N25: 0% | O25: 0% | P25: =VLOOKUP($C25,Prices!$A$3:$T$1996,MATCH('2) Order Form'!P$8,Prices!$A$2:$T$2,0),FALSE) -> 125.00 | Q25: =VLOOKUP($C25,Prices!$A$3:$T$1996,MATCH('2) Order Form'!Q$8,Prices!$A$2:$T$2,0),FALSE) -> 249.00 | R25: 0 | S25: 0 | T25: 0 | V25: 7048652892898 | Y25: 0 | Z25: 0 | AA25: 1 | AB25: 0 | AC25: 0 | AD25: 845144Matte White | AE25: 845144 | AF25: =INDEX(ATS!$A:$P,MATCH('2) Order Form'!$V25,ATS!$O:$O,0),7) -> Active | AG25: 7048653024748
A26: 1 | B26: Helmets & Helmet Acc. | C26: =INDEX(ATS!$A:$P,MATCH('2) Order Form'!$V26,ATS!$O:$O,0),1) -> 845144 | D26: =INDEX(ATS!$A:$P,MATCH('2) Order Form'!$V26,ATS!$O:$O,0),2) -> Bushwhacker 2Vi Mips Helmet | E26: =INDEX(ATS!$A:$P,MATCH('2) Order Form'!$V26,ATS!$O:$O,0),4) -> NANI-SM | F26: =INDEX(ATS!$A:$P,MATCH('2) Order Form'!$V26,ATS!$O:$O,0),5) -> Nani | G26: =INDEX(ATS!$A:$P,MATCH('2) Order Form'!$V26,ATS!$O:$O,0),6) -> SM | H26: 1 | I26: 0 | J26: =IFERROR(VLOOKUP(V26,ATS!$O:$P,2,FALSE),0) -> 18 | K26: 18 | L26: =IFERROR(VLOOKUP(V26,ATS!$O:$Q,3,FALSE),0) -> 18 | M26: 18 | N26: 0% | O26: 0% | P26: =VLOOKUP($C26,Prices!$A$3:$T$1996,MATCH('2) Order Form'!P$8,Prices!$A$2:$T$2,0),FALSE) -> 125.00 | Q26: =VLOOKUP($C26,Prices!$A$3:$T$1996,MATCH('2) Order Form'!Q$8,Prices!$A$2:$T$2,0),FALSE) -> 249.00 | R26: 0 | S26: 0 | T26: 0 | V26: 7048652892942 | X26: *** EOL *** | Y26: 0 | Z26: 0 | AA26: 1 | AB26: 0 | AC26: 1 | AD26: 845144Nani | AE26: 845144 | AF26: =INDEX(ATS!$A:$P,MATCH('2) Order Form'!$V26,ATS!$O:$O,0),7) -> Stock | AG26: 7048653024694
A27: 1 | B27: Helmets & Helmet Acc. | C27: =INDEX(ATS!$A:$P,MATCH('2) Order Form'!$V27,ATS!$O:$O,0),1) -> 845144 | D27: =INDEX(ATS!$A:$P,MATCH('2) Order Form'!$V27,ATS!$O:$O,0),2) -> Bushwhacker 2Vi Mips Helmet | E27: =INDEX(ATS!$A:$P,MATCH('2) Order Form'!$V27,ATS!$O:$O,0),4) -> NANI-ML | F27: =INDEX(ATS!$A:$P,MATCH('2) Order Form'!$V27,ATS!$O:$O,0),5) -> Nani | G27: =INDEX(ATS!$A:$P,MATCH('2) Order Form'!$V27,ATS!$O:$O,0),6) -> ML | H27: 1 | I27: 0 | J27: =IFERROR(VLOOKUP(V27,ATS!$O:$P,2,FALSE),0) -> 42 | K27: 42 | L27: =IFERROR(VLOOKUP(V27,ATS!$O:$Q,3,FALSE),0) -> 42 | M27: 42 | N27: 0% | O27: 0% | P27: =VLOOKUP($C27,Prices!$A$3:$T$1996,MATCH('2) Order Form'!P$8,Prices!$A$2:$T$2,0),FALSE) -> 125.00 | Q27: =VLOOKUP($C27,Prices!$A$3:$T$1996,MATCH('2) Order Form'!Q$8,Prices!$A$2:$T$2,0),FALSE) -> 249.00 | R27: 0 | S27: 0 | T27: 0 | V27: 7048652892935 | X27: *** EOL *** | Y27: 0 | Z27: 0 | AA27: 1 | AB27: 0 | AC27: 0 | AD27: 845144Nani | AE27: 845144 | AF27: =INDEX(ATS!$A:$P,MATCH('2) Order Form'!$V27,ATS!$O:$O,0),7) -> Stock | AG27: 7048653024700
A28: 1 | B28: Helmets & Helmet Acc. | C28: =INDEX(ATS!$A:$P,MATCH('2) Order Form'!$V28,ATS!$O:$O,0),1) -> 845144 | D28: =INDEX(ATS!$A:$P,MATCH('2) Order Form'!$V28,ATS!$O:$O,0),2) -> Bushwhacker 2Vi Mips Helmet | E28: =INDEX(ATS!$A:$P,MATCH('2) Order Form'!$V28,ATS!$O:$O,0),4) -> NANI-LXL | F28: =INDEX(ATS!$A:$P,MATCH('2) Order Form'!$V28,ATS!$O:$O,0),5) -> Nani | G28: =INDEX(ATS!$A:$P,MATCH('2) Order Form'!$V28,ATS!$O:$O,0),6) -> LXL | H28: 1 | I28: 0 | J28: =IFERROR(VLOOKUP(V28,ATS!$O:$P,2,FALSE),0) -> 59 | K28: 50+ | L28: =IFERROR(VLOOKUP(V28,ATS!$O:$Q,3,FALSE),0) -> 59 | M28: 50+ | N28: 0% | O28: 0% | P28: =VLOOKUP($C28,Prices!$A$3:$T$1996,MATCH('2) Order Form'!P$8,Prices!$A$2:$T$2,0),FALSE) -> 125.00 | Q28: =VLOOKUP($C28,Prices!$A$3:$T$1996,MATCH('2) Order Form'!Q$8,Prices!$A$2:$T$2,0),FALSE) -> 249.00 | R28: 0 | S28: 0 | T28: 0 | V28: 7048652892928 | X28: *** EOL *** | Y28: 0 | Z28: 0 | AA28: 1 | AB28: 0 | AC28: 0 | AD28: 845144Nani | AE28: 845144 | AF28: =INDEX(ATS!$A:$P,MATCH('2) Order Form'!$V28,ATS!$O:$O,0),7) -> Stock | AG28: 7048653024717
A29: 1 | B29: Helmets & Helmet Acc. | C29: =INDEX(ATS!$A:$P,MATCH('2) Order Form'!$V29,ATS!$O:$O,0),1) -> 845144 | D29: =INDEX(ATS!$A:$P,MATCH('2) Order Form'!$V29,ATS!$O:$O,0),2) -> Bushwhacker 2Vi Mips Helmet | E29: =INDEX(ATS!$A:$P,MATCH('2) Order Form'!$V29,ATS!$O:$O,0),4) -> WOLND-SM | F29: =INDEX(ATS!$A:$P,MATCH('2) Order Form'!$V29,ATS!$O:$O,0),5) -> Woodland | G29: =INDEX(ATS!$A:$P,MATCH('2) Order Form'!$V29,ATS!$O:$O,0),6) -> SM | H29: 1 | I29: 0 | J29: =IFERROR(VLOOKUP(V29,ATS!$O:$P,2,FALSE),0) -> 23 | K29: 23 | L29: =IFERROR(VLOOKUP(V29,ATS!$O:$Q,3,FALSE),0) -> 23 | M29: 23 | N29: 0% | O29: 0% | P29: =VLOOKUP($C29,Prices!$A$3:$T$1996,MATCH('2) Order Form'!P$8,Prices!$A$2:$T$2,0),FALSE) -> 125.00 | Q29: =VLOOKUP($C29,Prices!$A$3:$T$1996,MATCH('2) Order Form'!Q$8,Prices!$A$2:$T$2,0),FALSE) -> 249.00 | R29: 0 | S29: 0 | T29: 0 | V29: 7048652893000 | Y29: 0 | Z29: =IF(A29=OFFSET(A29,-1,0),0,1) -> 0 | AA29: =IF(C29=OFFSET(C29,-1,0),OFFSET(AA29,-1,0),OFFSET(AA29,-1,0)+1) -> 1 | AB29: 0 | AC29: 1 | AD29: 845144Woodland | AE29: 845144 | AF29: =INDEX(ATS!$A:$P,MATCH('2) Order Form'!$V29,ATS!$O:$O,0),7) -> Active | AG29: 7048652893000
A30: 1 | B30: Helmets & Helmet Acc. | C30: =INDEX(ATS!$A:$P,MATCH('2) Order Form'!$V30,ATS!$O:$O,0),1) -> 845144 | D30: =INDEX(ATS!$A:$P,MATCH('2) Order Form'!$V30,ATS!$O:$O,0),2) -> Bushwhacker 2Vi Mips Helmet | E30: =INDEX(ATS!$A:$P,MATCH('2) Order Form'!$V30,ATS!$O:$O,0),4) -> WOLND-ML | F30: =INDEX(ATS!$A:$P,MATCH('2) Order Form'!$V30,ATS!$O:$O,0),5) -> Woodland | G30: =INDEX(ATS!$A:$P,MATCH('2) Order Form'!$V30,ATS!$O:$O,0),6) -> ML | H30: 1 | I30: 0 | J30: =IFERROR(VLOOKUP(V30,ATS!$O:$P,2,FALSE),0) -> 13 | K30: 13 | L30: =IFERROR(VLOOKUP(V30,ATS!$O:$Q,3,FALSE),0) -> 13 | M30: 13 | N30: 0% | O30: 0% | P30: =VLOOKUP($C30,Prices!$A$3:$T$1996,MATCH('2) Order Form'!P$8,Prices!$A$2:$T$2,0),FALSE) -> 125.00 | Q30: =VLOOKUP($C30,Prices!$A$3:$T$1996,MATCH('2) Order Form'!Q$8,Prices!$A$2:$T$2,0),FALSE) -> 249.00 | R30: 0 | S30: 0 | T30: 0 | V30: 7048652892997 | Y30: 0 | Z30: 0 | AA30: 1 | AB30: 0 | AC30: 0 | AD30: 845144Woodland | AE30: 845144 | AF30: =INDEX(ATS!$A:$P,MATCH('2) Order Form'!$V30,ATS!$O:$O,0),7) -> Active | AG30: 7048652892997
A31: 1 | B31: Helmets & Helmet Acc. | C31: =INDEX(ATS!$A:$P,MATCH('2) Order Form'!$V31,ATS!$O:$O,0),1) -> 845144 | D31: =INDEX(ATS!$A:$P,MATCH('2) Order Form'!$V31,ATS!$O:$O,0),2) -> Bushwhacker 2Vi Mips Helmet | E31: =INDEX(ATS!$A:$P,MATCH('2) Order Form'!$V31,ATS!$O:$O,0),4) -> WOLND-LXL | F31: =INDEX(ATS!$A:$P,MATCH('2) Order Form'!$V31,ATS!$O:$O,0),5) -> Woodland | G31: =INDEX(ATS!$A:$P,MATCH('2) Order Form'!$V31,ATS!$O:$O,0),6) -> LXL | H31: 1 | I31: 0 | J31: =IFERROR(VLOOKUP(V31,ATS!$O:$P,2,FALSE),0) -> 37 | K31: 37 | L31: =IFERROR(VLOOKUP(V31,ATS!$O:$Q,3,FALSE),0) -> 37 | M31: 37 | N31: 0% | O31: 0% | P31: =VLOOKUP($C31,Prices!$A$3:$T$1996,MATCH('2) Order Form'!P$8,Prices!$A$2:$T$2,0),FALSE) -> 125.00 | Q31: =VLOOKUP($C31,Prices!$A$3:$T$1996,MATCH('2) Order Form'!Q$8,Prices!$A$2:$T$2,0),FALSE) -> 249.00 | R31: 0 | S31: 0 | T31: 0 | V31: 7048652892980 | Y31: 0 | Z31: 0 | AA31: 1 | AB31: 0 | AC31: 0 | AD31: 845144Woodland | AE31: 845144 | AF31: =INDEX(ATS!$A:$P,MATCH('2) Order Form'!$V31,ATS!$O:$O,0),7) -> Active | AG31: 7048652892980
A32: 1 | B32: Helmets & Helmet Acc. | C32: =INDEX(ATS!$A:$P,MATCH('2) Order Form'!$V32,ATS!$O:$O,0),1) -> 845103 | D32: =INDEX(ATS!$A:$P,MATCH('2) Order Form'!$V32,ATS!$O:$O,0),2) -> Trailblazer Helmet | E32: =INDEX(ATS!$A:$P,MATCH('2) Order Form'!$V32,ATS!$O:$O,0),4) -> DUSK-SM | F32: =INDEX(ATS!$A:$P,MATCH('2) Order Form'!$V32,ATS!$O:$O,0),5) -> Dusk | G32: =INDEX(ATS!$A:$P,MATCH('2) Order Form'!$V32,ATS!$O:$O,0),6) -> SM | H32: 1 | I32: 0 | J32: =IFERROR(VLOOKUP(V32,ATS!$O:$P,2,FALSE),0) -> 44 | K32: =IF(J32=99999,"OPEN",IF(J32>50,"50+",IF(J32<=0,"0",J32))) -> 44 | L32: =IFERROR(VLOOKUP(V32,ATS!$O:$Q,3,FALSE),0) -> 44 | M32: =IF(L32=99999,"OPEN",IF(L32>50,"50+",IF(L32<=0,"0",L32))) -> 44 | N32: 0% | O32: =IF(N32<>0,N32,$P$5) -> 0% | P32: =VLOOKUP($C32,Prices!$A$3:$T$1996,MATCH('2) Order Form'!P$8,Prices!$A$2:$T$2,0),FALSE) -> 85.00 | Q32: =VLOOKUP($C32,Prices!$A$3:$T$1996,MATCH('2) Order Form'!Q$8,Prices!$A$2:$T$2,0),FALSE) -> 169.00 | R32: =I32*P32 -> 0 | S32: =R32*O32 -> 0 | T32: =R32-S32 -> 0 | V32: 7048652892676 | X32: *** EOL *** | Y32: =I32*Q32 -> 0 | Z32: 0 | AA32: 2 | AB32: 1 | AC32: 1 | AD32: 845103Dusk | AE32: 845103 | AF32: =INDEX(ATS!$A:$P,MATCH('2) Order Form'!$V32,ATS!$O:$O,0),7) -> Stock | AG32: 7048653025783
A33: 1 | B33: Helmets & Helmet Acc. | C33: =INDEX(ATS!$A:$P,MATCH('2) Order Form'!$V33,ATS!$O:$O,0),1) -> 845103 | D33: =INDEX(ATS!$A:$P,MATCH('2) Order Form'!$V33,ATS!$O:$O,0),2) -> Trailblazer Helmet | E33: =INDEX(ATS!$A:$P,MATCH('2) Order Form'!$V33,ATS!$O:$O,0),4) -> DUSK-ML | F33: =INDEX(ATS!$A:$P,MATCH('2) Order Form'!$V33,ATS!$O:$O,0),5) -> Dusk | G33: =INDEX(ATS!$A:$P,MATCH('2) Order Form'!$V33,ATS!$O:$O,0),6) -> ML | H33: 1 | I33: 0 | J33: =IFERROR(VLOOKUP(V33,ATS!$O:$P,2,FALSE),0) -> 32 | K33: 32 | L33: =IFERROR(VLOOKUP(V33,ATS!$O:$Q,3,FALSE),0) -> 32 | M33: 32 | N33: 0% | O33: 0% | P33: =VLOOKUP($C33,Prices!$A$3:$T$1996,MATCH('2) Order Form'!P$8,Prices!$A$2:$T$2,0),FALSE) -> 85.00 | Q33: =VLOOKUP($C33,Prices!$A$3:$T$1996,MATCH('2) Order Form'!Q$8,Prices!$A$2:$T$2,0),FALSE) -> 169.00 | R33: 0 | S33: 0 | T33: 0 | V33: 7048652892669 | X33: *** EOL *** | Y33: 0 | Z33: 0 | AA33: 2 | AB33: 0 | AC33: 0 | AD33: 845103Dusk | AE33: 845103 | AF33: =INDEX(ATS!$A:$P,MATCH('2) Order Form'!$V33,ATS!$O:$O,0),7) -> Stock | AG33: 7048653025776
A34: 1 | B34: Helmets & Helmet Acc. | C34: =INDEX(ATS!$A:$P,MATCH('2) Order Form'!$V34,ATS!$O:$O,0),1) -> 845103 | D34: =INDEX(ATS!$A:$P,MATCH('2) Order Form'!$V34,ATS!$O:$O,0),2) -> Trailblazer Helmet | E34: =INDEX(ATS!$A:$P,MATCH('2) Order Form'!$V34,ATS!$O:$O,0),4) -> DUSK-LXL | F34: =INDEX(ATS!$A:$P,MATCH('2) Order Form'!$V34,ATS!$O:$O,0),5) -> Dusk | G34: =INDEX(ATS!$A:$P,MATCH('2) Order Form'!$V34,ATS!$O:$O,0),6) -> LXL | H34: 1 | I34: 0 | J34: =IFERROR(VLOOKUP(V34,ATS!$O:$P,2,FALSE),0) -> 35 | K34: 35 | L34: =IFERROR(VLOOKUP(V34,ATS!$O:$Q,3,FALSE),0) -> 35 | M34: 35 | N34: 0% | O34: 0% | P34: =VLOOKUP($C34,Prices!$A$3:$T$1996,MATCH('2) Order Form'!P$8,Prices!$A$2:$T$2,0),FALSE) -> 85.00 | Q34: =VLOOKUP($C34,Prices!$A$3:$T$1996,MATCH('2) Order Form'!Q$8,Prices!$A$2:$T$2,0),FALSE) -> 169.00 | R34: 0 | S34: 0 | T34: 0 | V34: 7048652892652 | X34: *** EOL *** | Y34: 0 | Z34: 0 | AA34: 2 | AB34: 0 | AC34: 0 | AD34: 845103Dusk | AE34: 845103 | AF34: =INDEX(ATS!$A:$P,MATCH('2) Order Form'!$V34,ATS!$O:$O,0),7) -> Stock | AG34: 7048653025769
A35: 1 | B35: Helmets & Helmet Acc. | C35: =INDEX(ATS!$A:$P,MATCH('2) Order Form'!$V35,ATS!$O:$O,0),1) -> 845103 | D35: =INDEX(ATS!$A:$P,MATCH('2) Order Form'!$V35,ATS!$O:$O,0),2) -> Trailblazer Helmet | E35: =INDEX(ATS!$A:$P,MATCH('2) Order Form'!$V35,ATS!$O:$O,0),4) -> LAVA-SM | F35: =INDEX(ATS!$A:$P,MATCH('2) Order Form'!$V35,ATS!$O:$O,0),5) -> Lava | G35: =INDEX(ATS!$A:$P,MATCH('2) Order Form'!$V35,ATS!$O:$O,0),6) -> SM | H35: 1 | I35: 0 | J35: =IFERROR(VLOOKUP(V35,ATS!$O:$P,2,FALSE),0) -> 50 | K35: 50 | L35: =IFERROR(VLOOKUP(V35,ATS!$O:$Q,3,FALSE),0) -> 50 | M35: 50 | N35: 0% | O35: 0% | P35: =VLOOKUP($C35,Prices!$A$3:$T$1996,MATCH('2) Order Form'!P$8,Prices!$A$2:$T$2,0),FALSE) -> 85.00 | Q35: =VLOOKUP($C35,Prices!$A$3:$T$1996,MATCH('2) Order Form'!Q$8,Prices!$A$2:$T$2,0),FALSE) -> 169.00 | R35: 0 | S35: 0 | T35: 0 | V35: 7048652892706 | X35: *** EOL *** | Y35: 0 | Z35: 0 | AA35: 2 | AB35: 0 | AC35: 1 | AD35: 845103Lava | AE35: 845103 | AF35: =INDEX(ATS!$A:$P,MATCH('2) Order Form'!$V35,ATS!$O:$O,0),7) -> Stock | AG35: 7048652540409
A36: 1 | B36: Helmets & Helmet Acc. | C36: =INDEX(ATS!$A:$P,MATCH('2) Order Form'!$V36,ATS!$O:$O,0),1) -> 845103 | D36: =INDEX(ATS!$A:$P,MATCH('2) Order Form'!$V36,ATS!$O:$O,0),2) -> Trailblazer Helmet | E36: =INDEX(ATS!$A:$P,MATCH('2) Order Form'!$V36,ATS!$O:$O,0),4) -> LAVA-ML | F36: =INDEX(ATS!$A:$P,MATCH('2) Order Form'!$V36,ATS!$O:$O,0),5) -> Lava | G36: =INDEX(ATS!$A:$P,MATCH('2) Order Form'!$V36,ATS!$O:$O,0),6) -> ML | H36: 1 | I36: 0 | J36: =IFERROR(VLOOKUP(V36,ATS!$O:$P,2,FALSE),0) -> 52 | K36: 50+ | L36: =IFERROR(VLOOKUP(V36,ATS!$O:$Q,3,FALSE),0) -> 52 | M36: 50+ | N36: 0% | O36: 0% | P36: =VLOOKUP($C36,Prices!$A$3:$T$1996,MATCH('2) Order Form'!P$8,Prices!$A$2:$T$2,0),FALSE) -> 85.00 | Q36: =VLOOKUP($C36,Prices!$A$3:$T$1996,MATCH('2) Order Form'!Q$8,Prices!$A$2:$T$2,0),FALSE) -> 169.00 | R36: 0 | S36: 0 | T36: 0 | V36: 7048652892690 | X36: *** EOL *** | Y36: 0 | Z36: 0 | AA36: 2 | AB36: 0 | AC36: 0 | AD36: 845103Lava | AE36: 845103 | AF36: =INDEX(ATS!$A:$P,MATCH('2) Order Form'!$V36,ATS!$O:$O,0),7) -> Stock | AG36: 7048652540393
A37: 1 | B37: Helmets & Helmet Acc. | C37: =INDEX(ATS!$A:$P,MATCH('2) Order Form'!$V37,ATS!$O:$O,0),1) -> 845103 | D37: =INDEX(ATS!$A:$P,MATCH('2) Order Form'!$V37,ATS!$O:$O,0),2) -> Trailblazer Helmet | E37: =INDEX(ATS!$A:$P,MATCH('2) Order Form'!$V37,ATS!$O:$O,0),4) -> LAVA-LXL | F37: =INDEX(ATS!$A:$P,MATCH('2) Order Form'!$V37,ATS!$O:$O,0),5) -> Lava | G37: =INDEX(ATS!$A:$P,MATCH('2) Order Form'!$V37,ATS!$O:$O,0),6) -> LXL | H37: 1 | I37: 0 | J37: =IFERROR(VLOOKUP(V37,ATS!$O:$P,2,FALSE),0) -> 50 | K37: =IF(J37=99999,"OPEN",IF(J37>50,"50+",IF(J37<=0,"0",J37))) -> 50 | L37: =IFERROR(VLOOKUP(V37,ATS!$O:$Q,3,FALSE),0) -> 50 | M37: =IF(L37=99999,"OPEN",IF(L37>50,"50+",IF(L37<=0,"0",L37))) -> 50 | N37: 0% | O37: =IF(N37<>0,N37,$P$5) -> 0% | P37: =VLOOKUP($C37,Prices!$A$3:$T$1996,MATCH('2) Order Form'!P$8,Prices!$A$2:$T$2,0),FALSE) -> 85.00 | Q37: =VLOOKUP($C37,Prices!$A$3:$T$1996,MATCH('2) Order Form'!Q$8,Prices!$A$2:$T$2,0),FALSE) -> 169.00 | R37: =I37*P37 -> 0 | S37: =R37*O37 -> 0 | T37: =R37-S37 -> 0 | V37: 7048652892683 | X37: *** EOL *** | Y37: =I37*Q37 -> 0 | Z37: 0 | AA37: 2 | AB37: 0 | AC37: 0 | AD37: 845103Lava | AE37: 845103 | AF37: =INDEX(ATS!$A:$P,MATCH('2) Order Form'!$V37,ATS!$O:$O,0),7) -> Stock | AG37: 7048652540386
A38: 1 | B38: Helmets & Helmet Acc. | C38: =INDEX(ATS!$A:$P,MATCH('2) Order Form'!$V38,ATS!$O:$O,0),1) -> 845103 | D38: =INDEX(ATS!$A:$P,MATCH('2) Order Form'!$V38,ATS!$O:$O,0),2) -> Trailblazer Helmet | E38: =INDEX(ATS!$A:$P,MATCH('2) Order Form'!$V38,ATS!$O:$O,0),4) -> MBLCK-SM | F38: =INDEX(ATS!$A:$P,MATCH('2) Order Form'!$V38,ATS!$O:$O,0),5) -> Matte Black | G38: =INDEX(ATS!$A:$P,MATCH('2) Order Form'!$V38,ATS!$O:$O,0),6) -> SM | H38: 1 | I38: 0 | J38: =IFERROR(VLOOKUP(V38,ATS!$O:$P,2,FALSE),0) -> 71 | K38: 50+ | L38: =IFERROR(VLOOKUP(V38,ATS!$O:$Q,3,FALSE),0) -> 71 | M38: 50+ | N38: 0% | O38: 0% | P38: =VLOOKUP($C38,Prices!$A$3:$T$1996,MATCH('2) Order Form'!P$8,Prices!$A$2:$T$2,0),FALSE) -> 85.00 | Q38: =VLOOKUP($C38,Prices!$A$3:$T$1996,MATCH('2) Order Form'!Q$8,Prices!$A$2:$T$2,0),FALSE) -> 169.00 | R38: 0 | S38: 0 | T38: 0 | V38: 7048652540225 | X38: *** EOL *** | Y38: 0 | Z38: 0 | AA38: 2 | AB38: 0 | AC38: 1 | AD38: 845103Matte Black | AE38: 845103 | AF38: =INDEX(ATS!$A:$P,MATCH('2) Order Form'!$V38,ATS!$O:$O,0),7) -> Stock | AG38: 7048653024786
A39: 1 | B39: Helmets & Helmet Acc. | C39: =INDEX(ATS!$A:$P,MATCH('2) Order Form'!$V39,ATS!$O:$O,0),1) -> 845103 | D39: =INDEX(ATS!$A:$P,MATCH('2) Order Form'!$V39,ATS!$O:$O,0),2) -> Trailblazer Helmet | E39: =INDEX(ATS!$A:$P,MATCH('2) Order Form'!$V39,ATS!$O:$O,0),4) -> MBLCK-ML | F39: =INDEX(ATS!$A:$P,MATCH('2) Order Form'!$V39,ATS!$O:$O,0),5) -> Matte Black | G39: =INDEX(ATS!$A:$P,MATCH('2) Order Form'!$V39,ATS!$O:$O,0),6) -> ML | H39: 1 | I39: 0 | J39: =IFERROR(VLOOKUP(V39,ATS!$O:$P,2,FALSE),0) -> 179 | K39: 50+ | L39: =IFERROR(VLOOKUP(V39,ATS!$O:$Q,3,FALSE),0) -> 179 | M39: 50+ | N39: 0% | O39: 0% | P39: =VLOOKUP($C39,Prices!$A$3:$T$1996,MATCH('2) Order Form'!P$8,Prices!$A$2:$T$2,0),FALSE) -> 85.00 | Q39: =VLOOKUP($C39,Prices!$A$3:$T$1996,MATCH('2) Order Form'!Q$8,Prices!$A$2:$T$2,0),FALSE) -> 169.00 | R39: 0 | S39: 0 | T39: 0 | V39: 7048652540218 | X39: *** EOL *** | Y39: 0 | Z39: 0 | AA39: 2 | AB39: 0 | AC39: 0 | AD39: 845103Matte Black | AE39: 845103 | AF39: =INDEX(ATS!$A:$P,MATCH('2) Order Form'!$V39,ATS!$O:$O,0),7) -> Stock | AG39: 7048653024793
A40: 1 | B40: Helmets & Helmet Acc. | C40: =INDEX(ATS!$A:$P,MATCH('2) Order Form'!$V40,ATS!$O:$O,0),1) -> 845103 | D40: =INDEX(ATS!$A:$P,MATCH('2) Order Form'!$V40,ATS!$O:$O,0),2) -> Trailblazer Helmet | E40: =INDEX(ATS!$A:$P,MATCH('2) Order Form'!$V40,ATS!$O:$O,0),4) -> MBLCK-LXL | F40: =INDEX(ATS!$A:$P,MATCH('2) Order Form'!$V40,ATS!$O:$O,0),5) -> Matte Black | G40: =INDEX(ATS!$A:$P,MATCH('2) Order Form'!$V40,ATS!$O:$O,0),6) -> LXL | H40: 1 | I40: 0 | J40: =IFERROR(VLOOKUP(V40,ATS!$O:$P,2,FALSE),0) -> 126 | K40: 50+ | L40: =IFERROR(VLOOKUP(V40,ATS!$O:$Q,3,FALSE),0) -> 126 | M40: 50+ | N40: 0% | O40: 0% | P40: =VLOOKUP($C40,Prices!$A$3:$T$1996,MATCH('2) Order Form'!P$8,Prices!$A$2:$T$2,0),FALSE) -> 85.00 | Q40: =VLOOKUP($C40,Prices!$A$3:$T$1996,MATCH('2) Order Form'!Q$8,Prices!$A$2:$T$2,0),FALSE) -> 169.00 | R40: 0 | S40: 0 | T40: 0 | V40: 7048652540201 | X40: *** EOL *** | Y40: 0 | Z40: 0 | AA40: 2 | AB40: 0 | AC40: 0 | AD40: 845103Matte Black | AE40: 845103 | AF40: =INDEX(ATS!$A:$P,MATCH('2) Order Form'!$V40,ATS!$O:$O,0),7) -> Stock | AG40: 7048653024809
A41: 1 | B41: Helmets & Helmet Acc. | C41: =INDEX(ATS!$A:$P,MATCH('2) Order Form'!$V41,ATS!$O:$O,0),1) -> 845103 | D41: =INDEX(ATS!$A:$P,MATCH('2) Order Form'!$V41,ATS!$O:$O,0),2) -> Trailblazer Helmet | E41: =INDEX(ATS!$A:$P,MATCH('2) Order Form'!$V41,ATS!$O:$O,0),4) -> MWHTE-SM | F41: =INDEX(ATS!$A:$P,MATCH('2) Order Form'!$V41,ATS!$O:$O,0),5) -> Matte White | G41: =INDEX(ATS!$A:$P,MATCH('2) Order Form'!$V41,ATS!$O:$O,0),6) -> SM | H41: 1 | I41: 0 | J41: =IFERROR(VLOOKUP(V41,ATS!$O:$P,2,FALSE),0) -> 22 | K41: 22 | L41: =IFERROR(VLOOKUP(V41,ATS!$O:$Q,3,FALSE),0) -> 22 | M41: 22 | N41: 0% | O41: 0% | P41: =VLOOKUP($C41,Prices!$A$3:$T$1996,MATCH('2) Order Form'!P$8,Prices!$A$2:$T$2,0),FALSE) -> 85.00 | Q41: =VLOOKUP($C41,Prices!$A$3:$T$1996,MATCH('2) Order Form'!Q$8,Prices!$A$2:$T$2,0),FALSE) -> 169.00 | R41: 0 | S41: 0 | T41: 0 | V41: 7048652540348 | X41: *** EOL *** | Y41: 0 | Z41: 0 | AA41: 2 | AB41: 0 | AC41: 1 | AD41: 845103Matte White | AE41: 845103 | AF41: =INDEX(ATS!$A:$P,MATCH('2) Order Form'!$V41,ATS!$O:$O,0),7) -> Stock | AG41: 7048652540522
A42: 1 | B42: Helmets & Helmet Acc. | C42: =INDEX(ATS!$A:$P,MATCH('2) Order Form'!$V42,ATS!$O:$O,0),1) -> 845103 | D42: =INDEX(ATS!$A:$P,MATCH('2) Order Form'!$V42,ATS!$O:$O,0),2) -> Trailblazer Helmet | E42: =INDEX(ATS!$A:$P,MATCH('2) Order Form'!$V42,ATS!$O:$O,0),4) -> MWHTE-ML | F42: =INDEX(ATS!$A:$P,MATCH('2) Order Form'!$V42,ATS!$O:$O,0),5) -> Matte White | G42: =INDEX(ATS!$A:$P,MATCH('2) Order Form'!$V42,ATS!$O:$O,0),6) -> ML | H42: 1 | I42: 0 | J42: =IFERROR(VLOOKUP(V42,ATS!$O:$P,2,FALSE),0) -> 41 | K42: 41 | L42: =IFERROR(VLOOKUP(V42,ATS!$O:$Q,3,FALSE),0) -> 41 | M42: 41 | N42: 0% | O42: 0% | P42: =VLOOKUP($C42,Prices!$A$3:$T$1996,MATCH('2) Order Form'!P$8,Prices!$A$2:$T$2,0),FALSE) -> 85.00 | Q42: =VLOOKUP($C42,Prices!$A$3:$T$1996,MATCH('2) Order Form'!Q$8,Prices!$A$2:$T$2,0),FALSE) -> 169.00 | R42: 0 | S42: 0 | T42: 0 | V42: 7048652540331 | X42: *** EOL *** | Y42: 0 | Z42: 0 | AA42: 2 | AB42: 0 | AC42: 0 | AD42: 845103Matte White | AE42: 845103 | AF42: =INDEX(ATS!$A:$P,MATCH('2) Order Form'!$V42,ATS!$O:$O,0),7) -> Stock | AG42: 7048652540515
A43: 1 | B43: Helmets & Helmet Acc. | C43: =INDEX(ATS!$A:$P,MATCH('2) Order Form'!$V43,ATS!$O:$O,0),1) -> 845103 | D43: =INDEX(ATS!$A:$P,MATCH('2) Order Form'!$V43,ATS!$O:$O,0),2) -> Trailblazer Helmet | E43: =INDEX(ATS!$A:$P,MATCH('2) Order Form'!$V43,ATS!$O:$O,0),4) -> MWHTE-LXL | F43: =INDEX(ATS!$A:$P,MATCH('2) Order Form'!$V43,ATS!$O:$O,0),5) -> Matte White | G43: =INDEX(ATS!$A:$P,MATCH('2) Order Form'!$V43,ATS!$O:$O,0),6) -> LXL | H43: 1 | I43: 0 | J43: =IFERROR(VLOOKUP(V43,ATS!$O:$P,2,FALSE),0) -> 39 | K43: 39 | L43: =IFERROR(VLOOKUP(V43,ATS!$O:$Q,3,FALSE),0) -> 39 | M43: 39 | N43: 0% | O43: 0% | P43: =VLOOKUP($C43,Prices!$A$3:$T$1996,MATCH('2) Order Form'!P$8,Prices!$A$2:$T$2,0),FALSE) -> 85.00 | Q43: =VLOOKUP($C43,Prices!$A$3:$T$1996,MATCH('2) Order Form'!Q$8,Prices!$A$2:$T$2,0),FALSE) -> 169.00 | R43: 0 | S43: 0 | T43: 0 | V43: 7048652540324 | X43: *** EOL *** | Y43: 0 | Z43: 0 | AA43: 2 | AB43: =IF(C43=OFFSET(C43,-1,0),0,1) -> 0 | AC43: =IF(F43=OFFSET(F43,-1,0),0,1) -> 0 | AD43: =CONCATENATE(C43,F43) -> 845103Matte White | AE43: =IFERROR(IF(B43="EYEWEAR",CONCATENATE(C43,"-",G43),C43),C43) -> 845103 | AF43: =INDEX(ATS!$A:$P,MATCH('2) Order Form'!$V43,ATS!$O:$O,0),7) -> Stock | AG43: 7048652540508
A44: 1 | B44: Helmets & Helmet Acc. | C44: =INDEX(ATS!$A:$P,MATCH('2) Order Form'!$V44,ATS!$O:$O,0),1) -> 845103 | D44: =INDEX(ATS!$A:$P,MATCH('2) Order Form'!$V44,ATS!$O:$O,0),2) -> Trailblazer Helmet | E44: =INDEX(ATS!$A:$P,MATCH('2) Order Form'!$V44,ATS!$O:$O,0),4) -> NANI-SM | F44: =INDEX(ATS!$A:$P,MATCH('2) Order Form'!$V44,ATS!$O:$O,0),5) -> Nani | G44: =INDEX(ATS!$A:$P,MATCH('2) Order Form'!$V44,ATS!$O:$O,0),6) -> SM | H44: 1 | I44: 0 | J44: =IFERROR(VLOOKUP(V44,ATS!$O:$P,2,FALSE),0) -> 41 | K44: 41 | L44: =IFERROR(VLOOKUP(V44,ATS!$O:$Q,3,FALSE),0) -> 41 | M44: 41 | N44: 0% | O44: 0% | P44: =VLOOKUP($C44,Prices!$A$3:$T$1996,MATCH('2) Order Form'!P$8,Prices!$A$2:$T$2,0),FALSE) -> 85.00 | Q44: =VLOOKUP($C44,Prices!$A$3:$T$1996,MATCH('2) Order Form'!Q$8,Prices!$A$2:$T$2,0),FALSE) -> 169.00 | R44: 0 | S44: 0 | T44: 0 | V44: 7048652892768 | X44: *** EOL *** | Y44: 0 | Z44: 0 | AA44: 2 | AB44: 0 | AC44: 1 | AD44: 845103Nani | AE44: 845103 | AF44: =INDEX(ATS!$A:$P,MATCH('2) Order Form'!$V44,ATS!$O:$O,0),7) -> Stock | AG44: 7048653024755
A45: 1 | B45: Helmets & Helmet Acc. | C45: =INDEX(ATS!$A:$P,MATCH('2) Order Form'!$V45,ATS!$O:$O,0),1) -> 845103 | D45: =INDEX(ATS!$A:$P,MATCH('2) Order Form'!$V45,ATS!$O:$O,0),2) -> Trailblazer Helmet | E45: =INDEX(ATS!$A:$P,MATCH('2) Order Form'!$V45,ATS!$O:$O,0),4) -> NANI-ML | F45: =INDEX(ATS!$A:$P,MATCH('2) Order Form'!$V45,ATS!$O:$O,0),5) -> Nani | G45: =INDEX(ATS!$A:$P,MATCH('2) Order Form'!$V45,ATS!$O:$O,0),6) -> ML | H45: 1 | I45: 0 | J45: =IFERROR(VLOOKUP(V45,ATS!$O:$P,2,FALSE),0) -> 34 | K45: 34 | L45: =IFERROR(VLOOKUP(V45,ATS!$O:$Q,3,FALSE),0) -> 34 | M45: 34 | N45: 0% | O45: 0% | P45: =VLOOKUP($C45,Prices!$A$3:$T$1996,MATCH('2) Order Form'!P$8,Prices!$A$2:$T$2,0),FALSE) -> 85.00 | Q45: =VLOOKUP($C45,Prices!$A$3:$T$1996,MATCH('2) Order Form'!Q$8,Prices!$A$2:$T$2,0),FALSE) -> 169.00 | R45: 0 | S45: 0 | T45: 0 | V45: 7048652892751 | X45: *** EOL *** | Y45: 0 | Z45: 0 | AA45: 2 | AB45: 0 | AC45: 0 | AD45: 845103Nani | AE45: 845103 | AF45: =INDEX(ATS!$A:$P,MATCH('2) Order Form'!$V45,ATS!$O:$O,0),7) -> Stock | AG45: 7048653024762
A46: 1 | B46: Helmets & Helmet Acc. | C46: =INDEX(ATS!$A:$P,MATCH('2) Order Form'!$V46,ATS!$O:$O,0),1) -> 845103 | D46: =INDEX(ATS!$A:$P,MATCH('2) Order Form'!$V46,ATS!$O:$O,0),2) -> Trailblazer Helmet | E46: =INDEX(ATS!$A:$P,MATCH('2) Order Form'!$V46,ATS!$O:$O,0),4) -> NANI-LXL | F46: =INDEX(ATS!$A:$P,MATCH('2) Order Form'!$V46,ATS!$O:$O,0),5) -> Nani | G46: =INDEX(ATS!$A:$P,MATCH('2) Order Form'!$V46,ATS!$O:$O,0),6) -> LXL | H46: 1 | I46: 0 | J46: =IFERROR(VLOOKUP(V46,ATS!$O:$P,2,FALSE),0) -> 33 | K46: =IF(J46=99999,"OPEN",IF(J46>50,"50+",IF(J46<=0,"0",J46))) -> 33 | L46: =IFERROR(VLOOKUP(V46,ATS!$O:$Q,3,FALSE),0) -> 33 | M46: =IF(L46=99999,"OPEN",IF(L46>50,"50+",IF(L46<=0,"0",L46))) -> 33 | N46: 0% | O46: =IF(N46<>0,N46,$P$5) -> 0% | P46: =VLOOKUP($C46,Prices!$A$3:$T$1996,MATCH('2) Order Form'!P$8,Prices!$A$2:$T$2,0),FALSE) -> 85.00 | Q46: =VLOOKUP($C46,Prices!$A$3:$T$1996,MATCH('2) Order Form'!Q$8,Prices!$A$2:$T$2,0),FALSE) -> 169.00 | R46: =I46*P46 -> 0 | S46: =R46*O46 -> 0 | T46: =R46-S46 -> 0 | V46: 7048652892744 | X46: *** EOL *** | Y46: 0 | Z46: 0 | AA46: 2 | AB46: 0 | AC46: 0 | AD46: 845103Nani | AE46: 845103 | AF46: =INDEX(ATS!$A:$P,MATCH('2) Order Form'!$V46,ATS!$O:$O,0),7) -> Stock | AG46: 7048653024779
A47: 1 | B47: Helmets & Helmet Acc. | C47: =INDEX(ATS!$A:$P,MATCH('2) Order Form'!$V47,ATS!$O:$O,0),1) -> 845103 | D47: =INDEX(ATS!$A:$P,MATCH('2) Order Form'!$V47,ATS!$O:$O,0),2) -> Trailblazer Helmet | E47: =INDEX(ATS!$A:$P,MATCH('2) Order Form'!$V47,ATS!$O:$O,0),4) -> WOLND-SM | F47: =INDEX(ATS!$A:$P,MATCH('2) Order Form'!$V47,ATS!$O:$O,0),5) -> Woodland | G47: =INDEX(ATS!$A:$P,MATCH('2) Order Form'!$V47,ATS!$O:$O,0),6) -> SM | H47: 1 | I47: 0 | J47: =IFERROR(VLOOKUP(V47,ATS!$O:$P,2,FALSE),0) -> 47 | K47: 47 | L47: =IFERROR(VLOOKUP(V47,ATS!$O:$Q,3,FALSE),0) -> 47 | M47: 47 | N47: 0% | O47: 0% | P47: =VLOOKUP($C47,Prices!$A$3:$T$1996,MATCH('2) Order Form'!P$8,Prices!$A$2:$T$2,0),FALSE) -> 85.00 | Q47: =VLOOKUP($C47,Prices!$A$3:$T$1996,MATCH('2) Order Form'!Q$8,Prices!$A$2:$T$2,0),FALSE) -> 169.00 | R47: 0 | S47: 0 | T47: 0 | V47: 7048652892829 | X47: *** EOL *** | Y47: 0 | Z47: =IF(A47=OFFSET(A47,-1,0),0,1) -> 0 | AA47: 2 | AB47: 0 | AC47: 1 | AD47: 845103Woodland | AE47: 845103 | AF47: =INDEX(ATS!$A:$P,MATCH('2) Order Form'!$V47,ATS!$O:$O,0),7) -> Stock | AG47: 7048652892645
A48: 1 | B48: Helmets & Helmet Acc. | C48: =INDEX(ATS!$A:$P,MATCH('2) Order Form'!$V48,ATS!$O:$O,0),1) -> 845103 | D48: =INDEX(ATS!$A:$P,MATCH('2) Order Form'!$V48,ATS!$O:$O,0),2) -> Trailblazer Helmet | E48: =INDEX(ATS!$A:$P,MATCH('2) Order Form'!$V48,ATS!$O:$O,0),4) -> WOLND-ML | F48: =INDEX(ATS!$A:$P,MATCH('2) Order Form'!$V48,ATS!$O:$O,0),5) -> Woodland | G48: =INDEX(ATS!$A:$P,MATCH('2) Order Form'!$V48,ATS!$O:$O,0),6) -> ML | H48: 1 | I48: 0 | J48: =IFERROR(VLOOKUP(V48,ATS!$O:$P,2,FALSE),0) -> 41 | K48: 41 | L48: =IFERROR(VLOOKUP(V48,ATS!$O:$Q,3,FALSE),0) -> 41 | M48: 41 | N48: 0% | O48: 0% | P48: =VLOOKUP($C48,Prices!$A$3:$T$1996,MATCH('2) Order Form'!P$8,Prices!$A$2:$T$2,0),FALSE) -> 85.00 | Q48: =VLOOKUP($C48,Prices!$A$3:$T$1996,MATCH('2) Order Form'!Q$8,Prices!$A$2:$T$2,0),FALSE) -> 169.00 | R48: 0 | S48: 0 | T48: 0 | V48: 7048652892812 | X48: *** EOL *** | Y48: 0 | Z48: 0 | AA48: 2 | AB48: 0 | AC48: 0 | AD48: 845103Woodland | AE48: 845103 | AF48: =INDEX(ATS!$A:$P,MATCH('2) Order Form'!$V48,ATS!$O:$O,0),7) -> Stock | AG48: 7048652892638
A49: 1 | B49: Helmets & Helmet Acc. | C49: =INDEX(ATS!$A:$P,MATCH('2) Order Form'!$V49,ATS!$O:$O,0),1) -> 845103 | D49: =INDEX(ATS!$A:$P,MATCH('2) Order Form'!$V49,ATS!$O:$O,0),2) -> Trailblazer Helmet | E49: =INDEX(ATS!$A:$P,MATCH('2) Order Form'!$V49,ATS!$O:$O,0),4) -> WOLND-LXL | F49: =INDEX(ATS!$A:$P,MATCH('2) Order Form'!$V49,ATS!$O:$O,0),5) -> Woodland | G49: =INDEX(ATS!$A:$P,MATCH('2) Order Form'!$V49,ATS!$O:$O,0),6) -> LXL | H49: 1 | I49: 0 | J49: =IFERROR(VLOOKUP(V49,ATS!$O:$P,2,FALSE),0) -> 34 | K49: 34 | L49: =IFERROR(VLOOKUP(V49,ATS!$O:$Q,3,FALSE),0) -> 34 | M49: 34 | N49: 0% | O49: 0% | P49: =VLOOKUP($C49,Prices!$A$3:$T$1996,MATCH('2) Order Form'!P$8,Prices!$A$2:$T$2,0),FALSE) -> 85.00 | Q49: =VLOOKUP($C49,Prices!$A$3:$T$1996,MATCH('2) Order Form'!Q$8,Prices!$A$2:$T$2,0),FALSE) -> 169.00 | R49: 0 | S49: 0 | T49: 0 | V49: 7048652892805 | X49: *** EOL *** | Y49: 0 | Z49: 0 | AA49: 2 | AB49: 0 | AC49: 0 | AD49: 845103Woodland | AE49: 845103 | AF49: =INDEX(ATS!$A:$P,MATCH('2) Order Form'!$V49,ATS!$O:$O,0),7) -> Stock | AG49: 7048652892621
A50: 1 | B50: Helmets & Helmet Acc. | C50: =INDEX(ATS!$A:$P,MATCH('2) Order Form'!$V50,ATS!$O:$O,0),1) -> 845104 | D50: =INDEX(ATS!$A:$P,MATCH('2) Order Form'!$V50,ATS!$O:$O,0),2) -> Trailblazer Mips Helmet | E50: =INDEX(ATS!$A:$P,MATCH('2) Order Form'!$V50,ATS!$O:$O,0),4) -> DUSK-SM | F50: =INDEX(ATS!$A:$P,MATCH('2) Order Form'!$V50,ATS!$O:$O,0),5) -> Dusk | G50: =INDEX(ATS!$A:$P,MATCH('2) Order Form'!$V50,ATS!$O:$O,0),6) -> SM | H50: 1 | I50: 0 | J50: =IFERROR(VLOOKUP(V50,ATS!$O:$P,2,FALSE),0) -> 103 | K50: =IF(J50=99999,"OPEN",IF(J50>50,"50+",IF(J50<=0,"0",J50))) -> 50+ | L50: =IFERROR(VLOOKUP(V50,ATS!$O:$Q,3,FALSE),0) -> 103 | M50: =IF(L50=99999,"OPEN",IF(L50>50,"50+",IF(L50<=0,"0",L50))) -> 50+ | N50: 0% | O50: =IF(N50<>0,N50,$P$5) -> 0% | P50: =VLOOKUP($C50,Prices!$A$3:$T$1996,MATCH('2) Order Form'!P$8,Prices!$A$2:$T$2,0),FALSE) -> 100.00 | Q50: =VLOOKUP($C50,Prices!$A$3:$T$1996,MATCH('2) Order Form'!Q$8,Prices!$A$2:$T$2,0),FALSE) -> 199.00 | R50: =I50*P50 -> 0 | S50: =R50*O50 -> 0 | T50: =R50-S50 -> 0 | V50: 7048652892492 | X50: *** EOL *** | Y50: =I50*Q50 -> 0 | Z50: 0 | AA50: 3 | AB50: 1 | AC50: 1 | AD50: 845104Dusk | AE50: 845104 | AF50: =INDEX(ATS!$A:$P,MATCH('2) Order Form'!$V50,ATS!$O:$O,0),7) -> Stock | AG50: 7048652892522
A51: 1 | B51: Helmets & Helmet Acc. | C51: =INDEX(ATS!$A:$P,MATCH('2) Order Form'!$V51,ATS!$O:$O,0),1) -> 845104 | D51: =INDEX(ATS!$A:$P,MATCH('2) Order Form'!$V51,ATS!$O:$O,0),2) -> Trailblazer Mips Helmet | E51: =INDEX(ATS!$A:$P,MATCH('2) Order Form'!$V51,ATS!$O:$O,0),4) -> DUSK-ML | F51: =INDEX(ATS!$A:$P,MATCH('2) Order Form'!$V51,ATS!$O:$O,0),5) -> Dusk | G51: =INDEX(ATS!$A:$P,MATCH('2) Order Form'!$V51,ATS!$O:$O,0),6) -> ML | H51: 1 | I51: 0 | J51: =IFERROR(VLOOKUP(V51,ATS!$O:$P,2,FALSE),0) -> 276 | K51: =IF(J51=99999,"OPEN",IF(J51>50,"50+",IF(J51<=0,"0",J51))) -> 50+ | L51: =IFERROR(VLOOKUP(V51,ATS!$O:$Q,3,FALSE),0) -> 276 | M51: =IF(L51=99999,"OPEN",IF(L51>50,"50+",IF(L51<=0,"0",L51))) -> 50+ | N51: 0% | O51: =IF(N51<>0,N51,$P$5) -> 0% | P51: =VLOOKUP($C51,Prices!$A$3:$T$1996,MATCH('2) Order Form'!P$8,Prices!$A$2:$T$2,0),FALSE) -> 100.00 | Q51: =VLOOKUP($C51,Prices!$A$3:$T$1996,MATCH('2) Order Form'!Q$8,Prices!$A$2:$T$2,0),FALSE) -> 199.00 | R51: =I51*P51 -> 0 | S51: =R51*O51 -> 0 | T51: =R51-S51 -> 0 | V51: 7048652892485 | X51: *** EOL *** | Y51: =I51*Q51 -> 0 | Z51: 0 | AA51: 3 | AB51: 0 | AC51: 0 | AD51: 845104Dusk | AE51: 845104 | AF51: =INDEX(ATS!$A:$P,MATCH('2) Order Form'!$V51,ATS!$O:$O,0),7) -> Stock | AG51: 7048652892515
A52: 1 | B52: Helmets & Helmet Acc. | C52: =INDEX(ATS!$A:$P,MATCH('2) Order Form'!$V52,ATS!$O:$O,0),1) -> 845104 | D52: =INDEX(ATS!$A:$P,MATCH('2) Order Form'!$V52,ATS!$O:$O,0),2) -> Trailblazer Mips Helmet | E52: =INDEX(ATS!$A:$P,MATCH('2) Order Form'!$V52,ATS!$O:$O,0),4) -> DUSK-LXL | F52: =INDEX(ATS!$A:$P,MATCH('2) Order Form'!$V52,ATS!$O:$O,0),5) -> Dusk | G52: =INDEX(ATS!$A:$P,MATCH('2) Order Form'!$V52,ATS!$O:$O,0),6) -> LXL | H52: 1 | I52: 0 | J52: =IFERROR(VLOOKUP(V52,ATS!$O:$P,2,FALSE),0) -> 189 | K52: =IF(J52=99999,"OPEN",IF(J52>50,"50+",IF(J52<=0,"0",J52))) -> 50+ | L52: =IFERROR(VLOOKUP(V52,ATS!$O:$Q,3,FALSE),0) -> 189 | M52: =IF(L52=99999,"OPEN",IF(L52>50,"50+",IF(L52<=0,"0",L52))) -> 50+ | N52: 0% | O52: =IF(N52<>0,N52,$P$5) -> 0% | P52: =VLOOKUP($C52,Prices!$A$3:$T$1996,MATCH('2) Order Form'!P$8,Prices!$A$2:$T$2,0),FALSE) -> 100.00 | Q52: =VLOOKUP($C52,Prices!$A$3:$T$1996,MATCH('2) Order Form'!Q$8,Prices!$A$2:$T$2,0),FALSE) -> 199.00 | R52: =I52*P52 -> 0 | S52: =R52*O52 -> 0 | T52: =R52-S52 -> 0 | V52: 7048652892478 | X52: *** EOL *** | Y52: =I52*Q52 -> 0 | Z52: 0 | AA52: 3 | AB52: 0 | AC52: 0 | AD52: 845104Dusk | AE52: 845104 | AF52: =INDEX(ATS!$A:$P,MATCH('2) Order Form'!$V52,ATS!$O:$O,0),7) -> Stock | AG52: 7048652892508
A53: 1 | B53: Helmets & Helmet Acc. | C53: =INDEX(ATS!$A:$P,MATCH('2) Order Form'!$V53,ATS!$O:$O,0),1) -> 845104 | D53: =INDEX(ATS!$A:$P,MATCH('2) Order Form'!$V53,ATS!$O:$O,0),2) -> Trailblazer Mips Helmet | E53: =INDEX(ATS!$A:$P,MATCH('2) Order Form'!$V53,ATS!$O:$O,0),4) -> LAVA-SM | F53: =INDEX(ATS!$A:$P,MATCH('2) Order Form'!$V53,ATS!$O:$O,0),5) -> Lava | G53: =INDEX(ATS!$A:$P,MATCH('2) Order Form'!$V53,ATS!$O:$O,0),6) -> SM | H53: 1 | I53: 0 | J53: =IFERROR(VLOOKUP(V53,ATS!$O:$P,2,FALSE),0) -> 38 | K53: =IF(J53=99999,"OPEN",IF(J53>50,"50+",IF(J53<=0,"0",J53))) -> 38 | L53: =IFERROR(VLOOKUP(V53,ATS!$O:$Q,3,FALSE),0) -> 38 | M53: =IF(L53=99999,"OPEN",IF(L53>50,"50+",IF(L53<=0,"0",L53))) -> 38 | N53: 0% | O53: =IF(N53<>0,N53,$P$5) -> 0% | P53: =VLOOKUP($C53,Prices!$A$3:$T$1996,MATCH('2) Order Form'!P$8,Prices!$A$2:$T$2,0),FALSE) -> 100.00 | Q53: =VLOOKUP($C53,Prices!$A$3:$T$1996,MATCH('2) Order Form'!Q$8,Prices!$A$2:$T$2,0),FALSE) -> 199.00 | R53: =I53*P53 -> 0 | S53: =R53*O53 -> 0 | T53: =R53-S53 -> 0 | V53: 7048652892522 | Y53: =I53*Q53 -> 0 | Z53: 0 | AA53: 3 | AB53: 0 | AC53: 1 | AD53: 845104Lava | AE53: 845104 | AF53: =INDEX(ATS!$A:$P,MATCH('2) Order Form'!$V53,ATS!$O:$O,0),7) -> Active | AG53: 7048653025547
A54: 1 | B54: Helmets & Helmet Acc. | C54: =INDEX(ATS!$A:$P,MATCH('2) Order Form'!$V54,ATS!$O:$O,0),1) -> 845104 | D54: =INDEX(ATS!$A:$P,MATCH('2) Order Form'!$V54,ATS!$O:$O,0),2) -> Trailblazer Mips Helmet | E54: =INDEX(ATS!$A:$P,MATCH('2) Order Form'!$V54,ATS!$O:$O,0),4) -> LAVA-ML | F54: =INDEX(ATS!$A:$P,MATCH('2) Order Form'!$V54,ATS!$O:$O,0),5) -> Lava | G54: =INDEX(ATS!$A:$P,MATCH('2) Order Form'!$V54,ATS!$O:$O,0),6) -> ML | H54: 1 | I54: 0 | J54: =IFERROR(VLOOKUP(V54,ATS!$O:$P,2,FALSE),0) -> 111 | K54: =IF(J54=99999,"OPEN",IF(J54>50,"50+",IF(J54<=0,"0",J54))) -> 50+ | L54: =IFERROR(VLOOKUP(V54,ATS!$O:$Q,3,FALSE),0) -> 111 | M54: =IF(L54=99999,"OPEN",IF(L54>50,"50+",IF(L54<=0,"0",L54))) -> 50+ | N54: 0% | O54: =IF(N54<>0,N54,$P$5) -> 0% | P54: =VLOOKUP($C54,Prices!$A$3:$T$1996,MATCH('2) Order Form'!P$8,Prices!$A$2:$T$2,0),FALSE) -> 100.00 | Q54: =VLOOKUP($C54,Prices!$A$3:$T$1996,MATCH('2) Order Form'!Q$8,Prices!$A$2:$T$2,0),FALSE) -> 199.00 | R54: =I54*P54 -> 0 | S54: =R54*O54 -> 0 | T54: =R54-S54 -> 0 | V54: 7048652892515 | Y54: =I54*Q54 -> 0 | Z54: 0 | AA54: 3 | AB54: 0 | AC54: 0 | AD54: 845104Lava | AE54: 845104 | AF54: =INDEX(ATS!$A:$P,MATCH('2) Order Form'!$V54,ATS!$O:$O,0),7) -> Active | AG54: 7048653025530
A55: 1 | B55: Helmets & Helmet Acc. | C55: =INDEX(ATS!$A:$P,MATCH('2) Order Form'!$V55,ATS!$O:$O,0),1) -> 845104 | D55: =INDEX(ATS!$A:$P,MATCH('2) Order Form'!$V55,ATS!$O:$O,0),2) -> Trailblazer Mips Helmet | E55: =INDEX(ATS!$A:$P,MATCH('2) Order Form'!$V55,ATS!$O:$O,0),4) -> LAVA-LXL | F55: =INDEX(ATS!$A:$P,MATCH('2) Order Form'!$V55,ATS!$O:$O,0),5) -> Lava | G55: =INDEX(ATS!$A:$P,MATCH('2) Order Form'!$V55,ATS!$O:$O,0),6) -> LXL | H55: 1 | I55: 0 | J55: =IFERROR(VLOOKUP(V55,ATS!$O:$P,2,FALSE),0) -> 73 | K55: 50+ | L55: =IFERROR(VLOOKUP(V55,ATS!$O:$Q,3,FALSE),0) -> 73 | M55: 50+ | N55: 0% | O55: 0% | P55: =VLOOKUP($C55,Prices!$A$3:$T$1996,MATCH('2) Order Form'!P$8,Prices!$A$2:$T$2,0),FALSE) -> 100.00 | Q55: =VLOOKUP($C55,Prices!$A$3:$T$1996,MATCH('2) Order Form'!Q$8,Prices!$A$2:$T$2,0),FALSE) -> 199.00 | R55: 0 | S55: 0 | T55: 0 | V55: 7048652892508 | Y55: 0 | Z55: 0 | AA55: 3 | AB55: 0 | AC55: 0 | AD55: 845104Lava | AE55: 845104 | AF55: =INDEX(ATS!$A:$P,MATCH('2) Order Form'!$V55,ATS!$O:$O,0),7) -> Active | AG55: 7048653025523
A56: 1 | B56: Helmets & Helmet Acc. | C56: =INDEX(ATS!$A:$P,MATCH('2) Order Form'!$V56,ATS!$O:$O,0),1) -> 845104 | D56: =INDEX(ATS!$A:$P,MATCH('2) Order Form'!$V56,ATS!$O:$O,0),2) -> Trailblazer Mips Helmet | E56: =INDEX(ATS!$A:$P,MATCH('2) Order Form'!$V56,ATS!$O:$O,0),4) -> MBLCK-SM | F56: =INDEX(ATS!$A:$P,MATCH('2) Order Form'!$V56,ATS!$O:$O,0),5) -> Matte Black | G56: =INDEX(ATS!$A:$P,MATCH('2) Order Form'!$V56,ATS!$O:$O,0),6) -> SM | H56: 1 | I56: 0 | J56: =IFERROR(VLOOKUP(V56,ATS!$O:$P,2,FALSE),0) -> 644 | K56: 50+ | L56: =IFERROR(VLOOKUP(V56,ATS!$O:$Q,3,FALSE),0) -> 644 | M56: 50+ | N56: 0% | O56: 0% | P56: =VLOOKUP($C56,Prices!$A$3:$T$1996,MATCH('2) Order Form'!P$8,Prices!$A$2:$T$2,0),FALSE) -> 100.00 | Q56: =VLOOKUP($C56,Prices!$A$3:$T$1996,MATCH('2) Order Form'!Q$8,Prices!$A$2:$T$2,0),FALSE) -> 199.00 | R56: 0 | S56: 0 | T56: 0 | V56: 7048652540409 | Y56: 0 | Z56: 0 | AA56: 3 | AB56: 0 | AC56: 1 | AD56: 845104Matte Black | AE56: 845104 | AF56: =INDEX(ATS!$A:$P,MATCH('2) Order Form'!$V56,ATS!$O:$O,0),7) -> Active | AG56: 7048653025554
A57: 1 | B57: Helmets & Helmet Acc. | C57: =INDEX(ATS!$A:$P,MATCH('2) Order Form'!$V57,ATS!$O:$O,0),1) -> 845104 | D57: =INDEX(ATS!$A:$P,MATCH('2) Order Form'!$V57,ATS!$O:$O,0),2) -> Trailblazer Mips Helmet | E57: =INDEX(ATS!$A:$P,MATCH('2) Order Form'!$V57,ATS!$O:$O,0),4) -> MBLCK-ML | F57: =INDEX(ATS!$A:$P,MATCH('2) Order Form'!$V57,ATS!$O:$O,0),5) -> Matte Black | G57: =INDEX(ATS!$A:$P,MATCH('2) Order Form'!$V57,ATS!$O:$O,0),6) -> ML | H57: 1 | I57: 0 | J57: =IFERROR(VLOOKUP(V57,ATS!$O:$P,2,FALSE),0) -> 1543 | K57: 50+ | L57: =IFERROR(VLOOKUP(V57,ATS!$O:$Q,3,FALSE),0) -> 1543 | M57: 50+ | N57: 0% | O57: 0% | P57: =VLOOKUP($C57,Prices!$A$3:$T$1996,MATCH('2) Order Form'!P$8,Prices!$A$2:$T$2,0),FALSE) -> 100.00 | Q57: =VLOOKUP($C57,Prices!$A$3:$T$1996,MATCH('2) Order Form'!Q$8,Prices!$A$2:$T$2,0),FALSE) -> 199.00 | R57: 0 | S57: 0 | T57: 0 | V57: 7048652540393 | Y57: 0 | Z57: 0 | AA57: 3 | AB57: 0 | AC57: 0 | AD57: 845104Matte Black | AE57: 845104 | AF57: =INDEX(ATS!$A:$P,MATCH('2) Order Form'!$V57,ATS!$O:$O,0),7) -> Active | AG57: 7048653025561
A58: 1 | B58: Helmets & Helmet Acc. | C58: =INDEX(ATS!$A:$P,MATCH('2) Order Form'!$V58,ATS!$O:$O,0),1) -> 845104 | D58: =INDEX(ATS!$A:$P,MATCH('2) Order Form'!$V58,ATS!$O:$O,0),2) -> Trailblazer Mips Helmet | E58: =INDEX(ATS!$A:$P,MATCH('2) Order Form'!$V58,ATS!$O:$O,0),4) -> MBLCK-LXL | F58: =INDEX(ATS!$A:$P,MATCH('2) Order Form'!$V58,ATS!$O:$O,0),5) -> Matte Black | G58: =INDEX(ATS!$A:$P,MATCH('2) Order Form'!$V58,ATS!$O:$O,0),6) -> LXL | H58: 1 | I58: 0 | J58: =IFERROR(VLOOKUP(V58,ATS!$O:$P,2,FALSE),0) -> 996 | K58: 50+ | L58: =IFERROR(VLOOKUP(V58,ATS!$O:$Q,3,FALSE),0) -> 996 | M58: 50+ | N58: 0% | O58: 0% | P58: =VLOOKUP($C58,Prices!$A$3:$T$1996,MATCH('2) Order Form'!P$8,Prices!$A$2:$T$2,0),FALSE) -> 100.00 | Q58: =VLOOKUP($C58,Prices!$A$3:$T$1996,MATCH('2) Order Form'!Q$8,Prices!$A$2:$T$2,0),FALSE) -> 199.00 | R58: 0 | S58: 0 | T58: 0 | V58: 7048652540386 | Y58: 0 | Z58: 0 | AA58: 3 | AB58: 0 | AC58: 0 | AD58: 845104Matte Black | AE58: 845104 | AF58: =INDEX(ATS!$A:$P,MATCH('2) Order Form'!$V58,ATS!$O:$O,0),7) -> Active | AG58: 7048653025578
A59: 1 | B59: Helmets & Helmet Acc. | C59: =INDEX(ATS!$A:$P,MATCH('2) Order Form'!$V59,ATS!$O:$O,0),1) -> 845104 | D59: =INDEX(ATS!$A:$P,MATCH('2) Order Form'!$V59,ATS!$O:$O,0),2) -> Trailblazer Mips Helmet | E59: =INDEX(ATS!$A:$P,MATCH('2) Order Form'!$V59,ATS!$O:$O,0),4) -> MWHTE-SM | F59: =INDEX(ATS!$A:$P,MATCH('2) Order Form'!$V59,ATS!$O:$O,0),5) -> Matte White | G59: =INDEX(ATS!$A:$P,MATCH('2) Order Form'!$V59,ATS!$O:$O,0),6) -> SM | H59: 1 | I59: 0 | J59: =IFERROR(VLOOKUP(V59,ATS!$O:$P,2,FALSE),0) -> 131 | K59: =IF(J59=99999,"OPEN",IF(J59>50,"50+",IF(J59<=0,"0",J59))) -> 50+ | L59: =IFERROR(VLOOKUP(V59,ATS!$O:$Q,3,FALSE),0) -> 131 | M59: =IF(L59=99999,"OPEN",IF(L59>50,"50+",IF(L59<=0,"0",L59))) -> 50+ | N59: 0% | O59: =IF(N59<>0,N59,$P$5) -> 0% | P59: =VLOOKUP($C59,Prices!$A$3:$T$1996,MATCH('2) Order Form'!P$8,Prices!$A$2:$T$2,0),FALSE) -> 100.00 | Q59: =VLOOKUP($C59,Prices!$A$3:$T$1996,MATCH('2) Order Form'!Q$8,Prices!$A$2:$T$2,0),FALSE) -> 199.00 | R59: =I59*P59 -> 0 | S59: =R59*O59 -> 0 | T59: =R59-S59 -> 0 | V59: 7048652540522 | Y59: =I59*Q59 -> 0 | Z59: 0 | AA59: 3 | AB59: 0 | AC59: 1 | AD59: 845104Matte White | AE59: 845104 | AF59: =INDEX(ATS!$A:$P,MATCH('2) Order Form'!$V59,ATS!$O:$O,0),7) -> Active | AG59: 7048653025585
A60: 1 | B60: Helmets & Helmet Acc. | C60: =INDEX(ATS!$A:$P,MATCH('2) Order Form'!$V60,ATS!$O:$O,0),1) -> 845104 | D60: =INDEX(ATS!$A:$P,MATCH('2) Order Form'!$V60,ATS!$O:$O,0),2) -> Trailblazer Mips Helmet | E60: =INDEX(ATS!$A:$P,MATCH('2) Order Form'!$V60,ATS!$O:$O,0),4) -> MWHTE-ML | F60: =INDEX(ATS!$A:$P,MATCH('2) Order Form'!$V60,ATS!$O:$O,0),5) -> Matte White | G60: =INDEX(ATS!$A:$P,MATCH('2) Order Form'!$V60,ATS!$O:$O,0),6) -> ML | H60: 1 | I60: 0 | J60: =IFERROR(VLOOKUP(V60,ATS!$O:$P,2,FALSE),0) -> 583 | K60: 50+ | L60: =IFERROR(VLOOKUP(V60,ATS!$O:$Q,3,FALSE),0) -> 583 | M60: 50+ | N60: 0% | O60: 0% | P60: =VLOOKUP($C60,Prices!$A$3:$T$1996,MATCH('2) Order Form'!P$8,Prices!$A$2:$T$2,0),FALSE) -> 100.00 | Q60: =VLOOKUP($C60,Prices!$A$3:$T$1996,MATCH('2) Order Form'!Q$8,Prices!$A$2:$T$2,0),FALSE) -> 199.00 | R60: 0 | S60: 0 | T60: 0 | V60: 7048652540515 | Y60: 0 | Z60: 0 | AA60: 3 | AB60: 0 | AC60: 0 | AD60: 845104Matte White | AE60: 845104 | AF60: =INDEX(ATS!$A:$P,MATCH('2) Order Form'!$V60,ATS!$O:$O,0),7) -> Active | AG60: 7048653025592
A61: 1 | B61: Helmets & Helmet Acc. | C61: =INDEX(ATS!$A:$P,MATCH('2) Order Form'!$V61,ATS!$O:$O,0),1) -> 845104 | D61: =INDEX(ATS!$A:$P,MATCH('2) Order Form'!$V61,ATS!$O:$O,0),2) -> Trailblazer Mips Helmet | E61: =INDEX(ATS!$A:$P,MATCH('2) Order Form'!$V61,ATS!$O:$O,0),4) -> MWHTE-LXL | F61: =INDEX(ATS!$A:$P,MATCH('2) Order Form'!$V61,ATS!$O:$O,0),5) -> Matte White | G61: =INDEX(ATS!$A:$P,MATCH('2) Order Form'!$V61,ATS!$O:$O,0),6) -> LXL | H61: 1 | I61: 0 | J61: =IFERROR(VLOOKUP(V61,ATS!$O:$P,2,FALSE),0) -> 343 | K61: 50+ | L61: =IFERROR(VLOOKUP(V61,ATS!$O:$Q,3,FALSE),0) -> 343 | M61: 50+ | N61: 0% | O61: 0% | P61: =VLOOKUP($C61,Prices!$A$3:$T$1996,MATCH('2) Order Form'!P$8,Prices!$A$2:$T$2,0),FALSE) -> 100.00 | Q61: =VLOOKUP($C61,Prices!$A$3:$T$1996,MATCH('2) Order Form'!Q$8,Prices!$A$2:$T$2,0),FALSE) -> 199.00 | R61: 0 | S61: 0 | T61: 0 | V61: 7048652540508 | Y61: 0 | Z61: 0 | AA61: 3 | AB61: 0 | AC61: 0 | AD61: 845104Matte White | AE61: 845104 | AF61: =INDEX(ATS!$A:$P,MATCH('2) Order Form'!$V61,ATS!$O:$O,0),7) -> Active | AG61: 7048653025608
A62: 1 | B62: Helmets & Helmet Acc. | C62: =INDEX(ATS!$A:$P,MATCH('2) Order Form'!$V62,ATS!$O:$O,0),1) -> 845104 | D62: =INDEX(ATS!$A:$P,MATCH('2) Order Form'!$V62,ATS!$O:$O,0),2) -> Trailblazer Mips Helmet | E62: =INDEX(ATS!$A:$P,MATCH('2) Order Form'!$V62,ATS!$O:$O,0),4) -> NANI-SM | F62: =INDEX(ATS!$A:$P,MATCH('2) Order Form'!$V62,ATS!$O:$O,0),5) -> Nani | G62: =INDEX(ATS!$A:$P,MATCH('2) Order Form'!$V62,ATS!$O:$O,0),6) -> SM | H62: 1 | I62: 0 | J62: =IFERROR(VLOOKUP(V62,ATS!$O:$P,2,FALSE),0) -> 14 | K62: =IF(J62=99999,"OPEN",IF(J62>50,"50+",IF(J62<=0,"0",J62))) -> 14 | L62: =IFERROR(VLOOKUP(V62,ATS!$O:$Q,3,FALSE),0) -> 14 | M62: =IF(L62=99999,"OPEN",IF(L62>50,"50+",IF(L62<=0,"0",L62))) -> 14 | N62: 0% | O62: =IF(N62<>0,N62,$P$5) -> 0% | P62: =VLOOKUP($C62,Prices!$A$3:$T$1996,MATCH('2) Order Form'!P$8,Prices!$A$2:$T$2,0),FALSE) -> 100.00 | Q62: =VLOOKUP($C62,Prices!$A$3:$T$1996,MATCH('2) Order Form'!Q$8,Prices!$A$2:$T$2,0),FALSE) -> 199.00 | R62: =I62*P62 -> 0 | S62: =R62*O62 -> 0 | T62: =R62-S62 -> 0 | V62: 7048652892584 | X62: *** EOL *** | Y62: =I62*Q62 -> 0 | Z62: 0 | AA62: 3 | AB62: 0 | AC62: 1 | AD62: 845104Nani | AE62: 845104 | AF62: =INDEX(ATS!$A:$P,MATCH('2) Order Form'!$V62,ATS!$O:$O,0),7) -> Stock | AG62: 7048653025639
A63: 1 | B63: Helmets & Helmet Acc. | C63: =INDEX(ATS!$A:$P,MATCH('2) Order Form'!$V63,ATS!$O:$O,0),1) -> 845104 | D63: =INDEX(ATS!$A:$P,MATCH('2) Order Form'!$V63,ATS!$O:$O,0),2) -> Trailblazer Mips Helmet | E63: =INDEX(ATS!$A:$P,MATCH('2) Order Form'!$V63,ATS!$O:$O,0),4) -> NANI-ML | F63: =INDEX(ATS!$A:$P,MATCH('2) Order Form'!$V63,ATS!$O:$O,0),5) -> Nani | G63: =INDEX(ATS!$A:$P,MATCH('2) Order Form'!$V63,ATS!$O:$O,0),6) -> ML | H63: 1 | I63: 0 | J63: =IFERROR(VLOOKUP(V63,ATS!$O:$P,2,FALSE),0) -> 71 | K63: =IF(J63=99999,"OPEN",IF(J63>50,"50+",IF(J63<=0,"0",J63))) -> 50+ | L63: =IFERROR(VLOOKUP(V63,ATS!$O:$Q,3,FALSE),0) -> 71 | M63: =IF(L63=99999,"OPEN",IF(L63>50,"50+",IF(L63<=0,"0",L63))) -> 50+ | N63: 0% | O63: =IF(N63<>0,N63,$P$5) -> 0% | P63: =VLOOKUP($C63,Prices!$A$3:$T$1996,MATCH('2) Order Form'!P$8,Prices!$A$2:$T$2,0),FALSE) -> 100.00 | Q63: =VLOOKUP($C63,Prices!$A$3:$T$1996,MATCH('2) Order Form'!Q$8,Prices!$A$2:$T$2,0),FALSE) -> 199.00 | R63: =I63*P63 -> 0 | S63: =R63*O63 -> 0 | T63: =R63-S63 -> 0 | V63: 7048652892577 | X63: *** EOL *** | Y63: =I63*Q63 -> 0 | Z63: 0 | AA63: =IF(C63=OFFSET(C63,-1,0),OFFSET(AA63,-1,0),OFFSET(AA63,-1,0)+1) -> 3 | AB63: 0 | AC63: 0 | AD63: 845104Nani | AE63: 845104 | AF63: =INDEX(ATS!$A:$P,MATCH('2) Order Form'!$V63,ATS!$O:$O,0),7) -> Stock | AG63: 7048653025622
A64: 1 | B64: Helmets & Helmet Acc. | C64: =INDEX(ATS!$A:$P,MATCH('2) Order Form'!$V64,ATS!$O:$O,0),1) -> 845104 | D64: =INDEX(ATS!$A:$P,MATCH('2) Order Form'!$V64,ATS!$O:$O,0),2) -> Trailblazer Mips Helmet | E64: =INDEX(ATS!$A:$P,MATCH('2) Order Form'!$V64,ATS!$O:$O,0),4) -> NANI-LXL | F64: =INDEX(ATS!$A:$P,MATCH('2) Order Form'!$V64,ATS!$O:$O,0),5) -> Nani | G64: =INDEX(ATS!$A:$P,MATCH('2) Order Form'!$V64,ATS!$O:$O,0),6) -> LXL | H64: 1 | I64: 0 | J64: =IFERROR(VLOOKUP(V64,ATS!$O:$P,2,FALSE),0) -> 48 | K64: =IF(J64=99999,"OPEN",IF(J64>50,"50+",IF(J64<=0,"0",J64))) -> 48 | L64: =IFERROR(VLOOKUP(V64,ATS!$O:$Q,3,FALSE),0) -> 48 | M64: =IF(L64=99999,"OPEN",IF(L64>50,"50+",IF(L64<=0,"0",L64))) -> 48 | N64: 0% | O64: =IF(N64<>0,N64,$P$5) -> 0% | P64: =VLOOKUP($C64,Prices!$A$3:$T$1996,MATCH('2) Order Form'!P$8,Prices!$A$2:$T$2,0),FALSE) -> 100.00 | Q64: =VLOOKUP($C64,Prices!$A$3:$T$1996,MATCH('2) Order Form'!Q$8,Prices!$A$2:$T$2,0),FALSE) -> 199.00 | R64: =I64*P64 -> 0 | S64: =R64*O64 -> 0 | T64: =R64-S64 -> 0 | V64: 7048652892560 | X64: *** EOL *** | Y64: =I64*Q64 -> 0 | Z64: 0 | AA64: 3 | AB64: 0 | AC64: 0 | AD64: 845104Nani | AE64: 845104 | AF64: =INDEX(ATS!$A:$P,MATCH('2) Order Form'!$V64,ATS!$O:$O,0),7) -> Stock | AG64: 7048653025615
A65: 1 | B65: Helmets & Helmet Acc. | C65: =INDEX(ATS!$A:$P,MATCH('2) Order Form'!$V65,ATS!$O:$O,0),1) -> 845104 | D65: =INDEX(ATS!$A:$P,MATCH('2) Order Form'!$V65,ATS!$O:$O,0),2) -> Trailblazer Mips Helmet | E65: =INDEX(ATS!$A:$P,MATCH('2) Order Form'!$V65,ATS!$O:$O,0),4) -> WOLND-SM | F65: =INDEX(ATS!$A:$P,MATCH('2) Order Form'!$V65,ATS!$O:$O,0),5) -> Woodland | G65: =INDEX(ATS!$A:$P,MATCH('2) Order Form'!$V65,ATS!$O:$O,0),6) -> SM | H65: 1 | I65: 0 | J65: =IFERROR(VLOOKUP(V65,ATS!$O:$P,2,FALSE),0) -> 8 | K65: =IF(J65=99999,"OPEN",IF(J65>50,"50+",IF(J65<=0,"0",J65))) -> 8 | L65: =IFERROR(VLOOKUP(V65,ATS!$O:$Q,3,FALSE),0) -> 8 | M65: =IF(L65=99999,"OPEN",IF(L65>50,"50+",IF(L65<=0,"0",L65))) -> 8 | N65: 0% | O65: =IF(N65<>0,N65,$P$5) -> 0% | P65: =VLOOKUP($C65,Prices!$A$3:$T$1996,MATCH('2) Order Form'!P$8,Prices!$A$2:$T$2,0),FALSE) -> 100.00 | Q65: =VLOOKUP($C65,Prices!$A$3:$T$1996,MATCH('2) Order Form'!Q$8,Prices!$A$2:$T$2,0),FALSE) -> 199.00 | R65: =I65*P65 -> 0 | S65: =R65*O65 -> 0 | T65: =R65-S65 -> 0 | V65: 7048652892645 | Y65: =I65*Q65 -> 0 | Z65: 0 | AA65: =IF(C65=OFFSET(C65,-1,0),OFFSET(AA65,-1,0),OFFSET(AA65,-1,0)+1) -> 3 | AB65: 0 | AC65: 1 | AD65: 845104Woodland | AE65: 845104 | AF65: =INDEX(ATS!$A:$P,MATCH('2) Order Form'!$V65,ATS!$O:$O,0),7) -> Active | AG65: 7048653025646
A66: 1 | B66: Helmets & Helmet Acc. | C66: =INDEX(ATS!$A:$P,MATCH('2) Order Form'!$V66,ATS!$O:$O,0),1) -> 845104 | D66: =INDEX(ATS!$A:$P,MATCH('2) Order Form'!$V66,ATS!$O:$O,0),2) -> Trailblazer Mips Helmet | E66: =INDEX(ATS!$A:$P,MATCH('2) Order Form'!$V66,ATS!$O:$O,0),4) -> WOLND-ML | F66: =INDEX(ATS!$A:$P,MATCH('2) Order Form'!$V66,ATS!$O:$O,0),5) -> Woodland | G66: =INDEX(ATS!$A:$P,MATCH('2) Order Form'!$V66,ATS!$O:$O,0),6) -> ML | H66: 1 | I66: 0 | J66: =IFERROR(VLOOKUP(V66,ATS!$O:$P,2,FALSE),0) -> 24 | K66: 24 | L66: =IFERROR(VLOOKUP(V66,ATS!$O:$Q,3,FALSE),0) -> 24 | M66: 24 | N66: 0% | O66: 0% | P66: =VLOOKUP($C66,Prices!$A$3:$T$1996,MATCH('2) Order Form'!P$8,Prices!$A$2:$T$2,0),FALSE) -> 100.00 | Q66: =VLOOKUP($C66,Prices!$A$3:$T$1996,MATCH('2) Order Form'!Q$8,Prices!$A$2:$T$2,0),FALSE) -> 199.00 | R66: 0 | S66: 0 | T66: 0 | V66: 7048652892638 | Y66: 0 | Z66: 0 | AA66: 3 | AB66: 0 | AC66: 0 | AD66: 845104Woodland | AE66: 845104 | AF66: =INDEX(ATS!$A:$P,MATCH('2) Order Form'!$V66,ATS!$O:$O,0),7) -> Active | AG66: 7048653025653
A67: 1 | B67: Helmets & Helmet Acc. | C67: =INDEX(ATS!$A:$P,MATCH('2) Order Form'!$V67,ATS!$O:$O,0),1) -> 845104 | D67: =INDEX(ATS!$A:$P,MATCH('2) Order Form'!$V67,ATS!$O:$O,0),2) -> Trailblazer Mips Helmet | E67: =INDEX(ATS!$A:$P,MATCH('2) Order Form'!$V67,ATS!$O:$O,0),4) -> WOLND-LXL | F67: =INDEX(ATS!$A:$P,MATCH('2) Order Form'!$V67,ATS!$O:$O,0),5) -> Woodland | G67: =INDEX(ATS!$A:$P,MATCH('2) Order Form'!$V67,ATS!$O:$O,0),6) -> LXL | H67: 1 | I67: 0 | J67: =IFERROR(VLOOKUP(V67,ATS!$O:$P,2,FALSE),0) -> 22 | K67: 22 | L67: =IFERROR(VLOOKUP(V67,ATS!$O:$Q,3,FALSE),0) -> 22 | M67: 22 | N67: 0% | O67: 0% | P67: =VLOOKUP($C67,Prices!$A$3:$T$1996,MATCH('2) Order Form'!P$8,Prices!$A$2:$T$2,0),FALSE) -> 100.00 | Q67: =VLOOKUP($C67,Prices!$A$3:$T$1996,MATCH('2) Order Form'!Q$8,Prices!$A$2:$T$2,0),FALSE) -> 199.00 | R67: 0 | S67: 0 | T67: 0 | V67: 7048652892621 | Y67: 0 | Z67: 0 | AA67: 3 | AB67: 0 | AC67: 0 | AD67: 845104Woodland | AE67: 845104 | AF67: =INDEX(ATS!$A:$P,MATCH('2) Order Form'!$V67,ATS!$O:$O,0),7) -> Active | AG67: 7048653025660
A68: 1 | B68: Helmets & Helmet Acc. | C68: =INDEX(ATS!$A:$P,MATCH('2) Order Form'!$V68,ATS!$O:$O,0),1) -> 845069 | D68: =INDEX(ATS!$A:$P,MATCH('2) Order Form'!$V68,ATS!$O:$O,0),2) -> Dissenter Helmet | E68: =INDEX(ATS!$A:$P,MATCH('2) Order Form'!$V68,ATS!$O:$O,0),4) -> DUSK-SM | F68: =INDEX(ATS!$A:$P,MATCH('2) Order Form'!$V68,ATS!$O:$O,0),5) -> Dusk | G68: =INDEX(ATS!$A:$P,MATCH('2) Order Form'!$V68,ATS!$O:$O,0),6) -> SM | H68: 1 | I68: 0 | J68: =IFERROR(VLOOKUP(V68,ATS!$O:$P,2,FALSE),0) -> 48 | K68: =IF(J68=99999,"OPEN",IF(J68>50,"50+",IF(J68<=0,"0",J68))) -> 48 | L68: =IFERROR(VLOOKUP(V68,ATS!$O:$Q,3,FALSE),0) -> 48 | M68: =IF(L68=99999,"OPEN",IF(L68>50,"50+",IF(L68<=0,"0",L68))) -> 48 | N68: 0% | O68: =IF(N68<>0,N68,$P$5) -> 0% | P68: =VLOOKUP($C68,Prices!$A$3:$T$1996,MATCH('2) Order Form'!P$8,Prices!$A$2:$T$2,0),FALSE) -> 70.00 | Q68: =VLOOKUP($C68,Prices!$A$3:$T$1996,MATCH('2) Order Form'!Q$8,Prices!$A$2:$T$2,0),FALSE) -> 139.00 | R68: =I68*P68 -> 0 | S68: =R68*O68 -> 0 | T68: =R68-S68 -> 0 | V68: 7048652895806 | X68: *** EOL *** | Y68: =I68*Q68 -> 0 | Z68: 0 | AA68: 4 | AB68: 1 | AC68: 1 | AD68: 845069Dusk | AE68: 845069 | AF68: =INDEX(ATS!$A:$P,MATCH('2) Order Form'!$V68,ATS!$O:$O,0),7) -> Stock | AG68: 7048653025677
A69: 1 | B69: Helmets & Helmet Acc. | C69: =INDEX(ATS!$A:$P,MATCH('2) Order Form'!$V69,ATS!$O:$O,0),1) -> 845069 | D69: =INDEX(ATS!$A:$P,MATCH('2) Order Form'!$V69,ATS!$O:$O,0),2) -> Dissenter Helmet | E69: =INDEX(ATS!$A:$P,MATCH('2) Order Form'!$V69,ATS!$O:$O,0),4) -> DUSK-ML | F69: =INDEX(ATS!$A:$P,MATCH('2) Order Form'!$V69,ATS!$O:$O,0),5) -> Dusk | G69: =INDEX(ATS!$A:$P,MATCH('2) Order Form'!$V69,ATS!$O:$O,0),6) -> ML | H69: 1 | I69: 0 | J69: =IFERROR(VLOOKUP(V69,ATS!$O:$P,2,FALSE),0) -> 49 | K69: =IF(J69=99999,"OPEN",IF(J69>50,"50+",IF(J69<=0,"0",J69))) -> 49 | L69: =IFERROR(VLOOKUP(V69,ATS!$O:$Q,3,FALSE),0) -> 49 | M69: =IF(L69=99999,"OPEN",IF(L69>50,"50+",IF(L69<=0,"0",L69))) -> 49 | N69: 0% | O69: =IF(N69<>0,N69,$P$5) -> 0% | P69: =VLOOKUP($C69,Prices!$A$3:$T$1996,MATCH('2) Order Form'!P$8,Prices!$A$2:$T$2,0),FALSE) -> 70.00 | Q69: =VLOOKUP($C69,Prices!$A$3:$T$1996,MATCH('2) Order Form'!Q$8,Prices!$A$2:$T$2,0),FALSE) -> 139.00 | R69: =I69*P69 -> 0 | S69: =R69*O69 -> 0 | T69: =R69-S69 -> 0 | V69: 7048652895790 | X69: *** EOL *** | Y69: =I69*Q69 -> 0 | Z69: 0 | AA69: 4 | AB69: 0 | AC69: 0 | AD69: 845069Dusk | AE69: 845069 | AF69: =INDEX(ATS!$A:$P,MATCH('2) Order Form'!$V69,ATS!$O:$O,0),7) -> Stock | AG69: 7048653025684
A70: 1 | B70: Helmets & Helmet Acc. | C70: =INDEX(ATS!$A:$P,MATCH('2) Order Form'!$V70,ATS!$O:$O,0),1) -> 845069 | D70: =INDEX(ATS!$A:$P,MATCH('2) Order Form'!$V70,ATS!$O:$O,0),2) -> Dissenter Helmet | E70: =INDEX(ATS!$A:$P,MATCH('2) Order Form'!$V70,ATS!$O:$O,0),4) -> DUSK-LXL | F70: =INDEX(ATS!$A:$P,MATCH('2) Order Form'!$V70,ATS!$O:$O,0),5) -> Dusk | G70: =INDEX(ATS!$A:$P,MATCH('2) Order Form'!$V70,ATS!$O:$O,0),6) -> LXL | H70: 1 | I70: 0 | J70: =IFERROR(VLOOKUP(V70,ATS!$O:$P,2,FALSE),0) -> 49 | K70: 49 | L70: =IFERROR(VLOOKUP(V70,ATS!$O:$Q,3,FALSE),0) -> 49 | M70: 49 | N70: 0% | O70: 0% | P70: =VLOOKUP($C70,Prices!$A$3:$T$1996,MATCH('2) Order Form'!P$8,Prices!$A$2:$T$2,0),FALSE) -> 70.00 | Q70: =VLOOKUP($C70,Prices!$A$3:$T$1996,MATCH('2) Order Form'!Q$8,Prices!$A$2:$T$2,0),FALSE) -> 139.00 | R70: 0 | S70: 0 | T70: 0 | V70: 7048652895783 | X70: *** EOL *** | Y70: =I70*Q70 -> 0 | Z70: 0 | AA70: 4 | AB70: 0 | AC70: 0 | AD70: 845069Dusk | AE70: 845069 | AF70: =INDEX(ATS!$A:$P,MATCH('2) Order Form'!$V70,ATS!$O:$O,0),7) -> Stock | AG70: 7048653025691
A71: 1 | B71: Helmets & Helmet Acc. | C71: =INDEX(ATS!$A:$P,MATCH('2) Order Form'!$V71,ATS!$O:$O,0),1) -> 845069 | D71: =INDEX(ATS!$A:$P,MATCH('2) Order Form'!$V71,ATS!$O:$O,0),2) -> Dissenter Helmet | E71: =INDEX(ATS!$A:$P,MATCH('2) Order Form'!$V71,ATS!$O:$O,0),4) -> MBL21-SM | F71: =INDEX(ATS!$A:$P,MATCH('2) Order Form'!$V71,ATS!$O:$O,0),5) -> Matte Black | G71: =INDEX(ATS!$A:$P,MATCH('2) Order Form'!$V71,ATS!$O:$O,0),6) -> SM | H71: 1 | I71: 0 | J71: =IFERROR(VLOOKUP(V71,ATS!$O:$P,2,FALSE),0) -> 33 | K71: 33 | L71: =IFERROR(VLOOKUP(V71,ATS!$O:$Q,3,FALSE),0) -> 33 | M71: 33 | N71: 0% | O71: 0% | P71: =VLOOKUP($C71,Prices!$A$3:$T$1996,MATCH('2) Order Form'!P$8,Prices!$A$2:$T$2,0),FALSE) -> 70.00 | Q71: =VLOOKUP($C71,Prices!$A$3:$T$1996,MATCH('2) Order Form'!Q$8,Prices!$A$2:$T$2,0),FALSE) -> 139.00 | R71: 0 | S71: 0 | T71: 0 | V71: 7048652666413 | X71: *** EOL *** | Y71: 0 | Z71: 0 | AA71: 4 | AB71: 0 | AC71: 1 | AD71: 845069Matte Black | AE71: 845069 | AF71: =INDEX(ATS!$A:$P,MATCH('2) Order Form'!$V71,ATS!$O:$O,0),7) -> Stock | AG71: 7048652272966
A72: 1 | B72: Helmets & Helmet Acc. | C72: =INDEX(ATS!$A:$P,MATCH('2) Order Form'!$V72,ATS!$O:$O,0),1) -> 845069 | D72: =INDEX(ATS!$A:$P,MATCH('2) Order Form'!$V72,ATS!$O:$O,0),2) -> Dissenter Helmet | E72: =INDEX(ATS!$A:$P,MATCH('2) Order Form'!$V72,ATS!$O:$O,0),4) -> MBL21-ML | F72: =INDEX(ATS!$A:$P,MATCH('2) Order Form'!$V72,ATS!$O:$O,0),5) -> Matte Black | G72: =INDEX(ATS!$A:$P,MATCH('2) Order Form'!$V72,ATS!$O:$O,0),6) -> ML | H72: 1 | I72: 0 | J72: =IFERROR(VLOOKUP(V72,ATS!$O:$P,2,FALSE),0) -> 171 | K72: =IF(J72=99999,"OPEN",IF(J72>50,"50+",IF(J72<=0,"0",J72))) -> 50+ | L72: =IFERROR(VLOOKUP(V72,ATS!$O:$Q,3,FALSE),0) -> 171 | M72: =IF(L72=99999,"OPEN",IF(L72>50,"50+",IF(L72<=0,"0",L72))) -> 50+ | N72: 0% | O72: =IF(N72<>0,N72,$P$5) -> 0% | P72: =VLOOKUP($C72,Prices!$A$3:$T$1996,MATCH('2) Order Form'!P$8,Prices!$A$2:$T$2,0),FALSE) -> 70.00 | Q72: =VLOOKUP($C72,Prices!$A$3:$T$1996,MATCH('2) Order Form'!Q$8,Prices!$A$2:$T$2,0),FALSE) -> 139.00 | R72: =I72*P72 -> 0 | S72: =R72*O72 -> 0 | T72: =R72-S72 -> 0 | V72: 7048652666406 | X72: *** EOL *** | Y72: =I72*Q72 -> 0 | Z72: 0 | AA72: 4 | AB72: 0 | AC72: 0 | AD72: 845069Matte Black | AE72: 845069 | AF72: =INDEX(ATS!$A:$P,MATCH('2) Order Form'!$V72,ATS!$O:$O,0),7) -> Stock | AG72: 7048652272959
A73: 1 | B73: Helmets & Helmet Acc. | C73: =INDEX(ATS!$A:$P,MATCH('2) Order Form'!$V73,ATS!$O:$O,0),1) -> 845069 | D73: =INDEX(ATS!$A:$P,MATCH('2) Order Form'!$V73,ATS!$O:$O,0),2) -> Dissenter Helmet | E73: =INDEX(ATS!$A:$P,MATCH('2) Order Form'!$V73,ATS!$O:$O,0),4) -> MBL21-LXL | F73: =INDEX(ATS!$A:$P,MATCH('2) Order Form'!$V73,ATS!$O:$O,0),5) -> Matte Black | G73: =INDEX(ATS!$A:$P,MATCH('2) Order Form'!$V73,ATS!$O:$O,0),6) -> LXL | H73: 1 | I73: 0 | J73: =IFERROR(VLOOKUP(V73,ATS!$O:$P,2,FALSE),0) -> 102 | K73: 50+ | L73: =IFERROR(VLOOKUP(V73,ATS!$O:$Q,3,FALSE),0) -> 102 | M73: 50+ | N73: 0% | O73: 0% | P73: =VLOOKUP($C73,Prices!$A$3:$T$1996,MATCH('2) Order Form'!P$8,Prices!$A$2:$T$2,0),FALSE) -> 70.00 | Q73: =VLOOKUP($C73,Prices!$A$3:$T$1996,MATCH('2) Order Form'!Q$8,Prices!$A$2:$T$2,0),FALSE) -> 139.00 | R73: 0 | S73: 0 | T73: 0 | V73: 7048652666390 | X73: *** EOL *** | Y73: 0 | Z73: 0 | AA73: 4 | AB73: 0 | AC73: 0 | AD73: 845069Matte Black | AE73: 845069 | AF73: =INDEX(ATS!$A:$P,MATCH('2) Order Form'!$V73,ATS!$O:$O,0),7) -> Stock | AG73: 7048652272942
A74: 1 | B74: Helmets & Helmet Acc. | C74: =INDEX(ATS!$A:$P,MATCH('2) Order Form'!$V74,ATS!$O:$O,0),1) -> 845069 | D74: =INDEX(ATS!$A:$P,MATCH('2) Order Form'!$V74,ATS!$O:$O,0),2) -> Dissenter Helmet | E74: =INDEX(ATS!$A:$P,MATCH('2) Order Form'!$V74,ATS!$O:$O,0),4) -> MWH21-SM | F74: =INDEX(ATS!$A:$P,MATCH('2) Order Form'!$V74,ATS!$O:$O,0),5) -> Matte White | G74: =INDEX(ATS!$A:$P,MATCH('2) Order Form'!$V74,ATS!$O:$O,0),6) -> SM | H74: 1 | I74: 0 | J74: =IFERROR(VLOOKUP(V74,ATS!$O:$P,2,FALSE),0) -> 55 | K74: 50+ | L74: =IFERROR(VLOOKUP(V74,ATS!$O:$Q,3,FALSE),0) -> 55 | M74: 50+ | N74: 0% | O74: 0% | P74: =VLOOKUP($C74,Prices!$A$3:$T$1996,MATCH('2) Order Form'!P$8,Prices!$A$2:$T$2,0),FALSE) -> 70.00 | Q74: =VLOOKUP($C74,Prices!$A$3:$T$1996,MATCH('2) Order Form'!Q$8,Prices!$A$2:$T$2,0),FALSE) -> 139.00 | R74: 0 | S74: 0 | T74: 0 | V74: 7048652666444 | X74: =IF(ISNA(VLOOKUP(V74,$AG$9:$AG$1000,1,FALSE)),"*** EOL ***","") -> *** EOL *** | Y74: 0 | Z74: 0 | AA74: 4 | AB74: 0 | AC74: 1 | AD74: 845069Matte White | AE74: 845069 | AF74: =INDEX(ATS!$A:$P,MATCH('2) Order Form'!$V74,ATS!$O:$O,0),7) -> Stock | AG74: 7048652273086
A75: 1 | B75: Helmets & Helmet Acc. | C75: =INDEX(ATS!$A:$P,MATCH('2) Order Form'!$V75,ATS!$O:$O,0),1) -> 845069 | D75: =INDEX(ATS!$A:$P,MATCH('2) Order Form'!$V75,ATS!$O:$O,0),2) -> Dissenter Helmet | E75: =INDEX(ATS!$A:$P,MATCH('2) Order Form'!$V75,ATS!$O:$O,0),4) -> MWH21-ML | F75: =INDEX(ATS!$A:$P,MATCH('2) Order Form'!$V75,ATS!$O:$O,0),5) -> Matte White | G75: =INDEX(ATS!$A:$P,MATCH('2) Order Form'!$V75,ATS!$O:$O,0),6) -> ML | H75: 1 | I75: 0 | J75: =IFERROR(VLOOKUP(V75,ATS!$O:$P,2,FALSE),0) -> 36 | K75: 36 | L75: =IFERROR(VLOOKUP(V75,ATS!$O:$Q,3,FALSE),0) -> 36 | M75: 36 | N75: 0% | O75: 0% | P75: =VLOOKUP($C75,Prices!$A$3:$T$1996,MATCH('2) Order Form'!P$8,Prices!$A$2:$T$2,0),FALSE) -> 70.00 | Q75: =VLOOKUP($C75,Prices!$A$3:$T$1996,MATCH('2) Order Form'!Q$8,Prices!$A$2:$T$2,0),FALSE) -> 139.00 | R75: 0 | S75: 0 | T75: 0 | V75: 7048652666437 | X75: *** EOL *** | Y75: 0 | Z75: 0 | AA75: 4 | AB75: 0 | AC75: 0 | AD75: 845069Matte White | AE75: 845069 | AF75: =INDEX(ATS!$A:$P,MATCH('2) Order Form'!$V75,ATS!$O:$O,0),7) -> Stock | AG75: 7048652273079
A76: 1 | B76: Helmets & Helmet Acc. | C76: =INDEX(ATS!$A:$P,MATCH('2) Order Form'!$V76,ATS!$O:$O,0),1) -> 845069 | D76: =INDEX(ATS!$A:$P,MATCH('2) Order Form'!$V76,ATS!$O:$O,0),2) -> Dissenter Helmet | E76: =INDEX(ATS!$A:$P,MATCH('2) Order Form'!$V76,ATS!$O:$O,0),4) -> MWH21-LXL | F76: =INDEX(ATS!$A:$P,MATCH('2) Order Form'!$V76,ATS!$O:$O,0),5) -> Matte White | G76: =INDEX(ATS!$A:$P,MATCH('2) Order Form'!$V76,ATS!$O:$O,0),6) -> LXL | H76: 1 | I76: 0 | J76: =IFERROR(VLOOKUP(V76,ATS!$O:$P,2,FALSE),0) -> 87 | K76: 50+ | L76: =IFERROR(VLOOKUP(V76,ATS!$O:$Q,3,FALSE),0) -> 87 | M76: 50+ | N76: 0% | O76: 0% | P76: =VLOOKUP($C76,Prices!$A$3:$T$1996,MATCH('2) Order Form'!P$8,Prices!$A$2:$T$2,0),FALSE) -> 70.00 | Q76: =VLOOKUP($C76,Prices!$A$3:$T$1996,MATCH('2) Order Form'!Q$8,Prices!$A$2:$T$2,0),FALSE) -> 139.00 | R76: 0 | S76: 0 | T76: 0 | V76: 7048652666420 | X76: *** EOL *** | Y76: 0 | Z76: 0 | AA76: 4 | AB76: 0 | AC76: 0 | AD76: 845069Matte White | AE76: 845069 | AF76: =INDEX(ATS!$A:$P,MATCH('2) Order Form'!$V76,ATS!$O:$O,0),7) -> Stock | AG76: 7048652273062
A77: 1 | B77: Helmets & Helmet Acc. | C77: =INDEX(ATS!$A:$P,MATCH('2) Order Form'!$V77,ATS!$O:$O,0),1) -> 845069 | D77: =INDEX(ATS!$A:$P,MATCH('2) Order Form'!$V77,ATS!$O:$O,0),2) -> Dissenter Helmet | E77: =INDEX(ATS!$A:$P,MATCH('2) Order Form'!$V77,ATS!$O:$O,0),4) -> SEAME-SM | F77: =INDEX(ATS!$A:$P,MATCH('2) Order Form'!$V77,ATS!$O:$O,0),5) -> Sea Metallic | G77: =INDEX(ATS!$A:$P,MATCH('2) Order Form'!$V77,ATS!$O:$O,0),6) -> SM | H77: 1 | I77: 0 | J77: =IFERROR(VLOOKUP(V77,ATS!$O:$P,2,FALSE),0) -> 46 | K77: 46 | L77: =IFERROR(VLOOKUP(V77,ATS!$O:$Q,3,FALSE),0) -> 46 | M77: 46 | N77: 0% | O77: 0% | P77: =VLOOKUP($C77,Prices!$A$3:$T$1996,MATCH('2) Order Form'!P$8,Prices!$A$2:$T$2,0),FALSE) -> 70.00 | Q77: =VLOOKUP($C77,Prices!$A$3:$T$1996,MATCH('2) Order Form'!Q$8,Prices!$A$2:$T$2,0),FALSE) -> 139.00 | R77: 0 | S77: 0 | T77: 0 | V77: 7048652903198 | X77: *** EOL *** | Y77: =I77*Q77 -> 0 | Z77: 0 | AA77: 4 | AB77: =IF(C77=OFFSET(C77,-1,0),0,1) -> 0 | AC77: =IF(F77=OFFSET(F77,-1,0),0,1) -> 1 | AD77: =CONCATENATE(C77,F77) -> 845069Sea Metallic | AE77: =IFERROR(IF(B77="EYEWEAR",CONCATENATE(C77,"-",G77),C77),C77) -> 845069 | AF77: =INDEX(ATS!$A:$P,MATCH('2) Order Form'!$V77,ATS!$O:$O,0),7) -> Stock | AG77: 7048653024991
A78: 1 | B78: Helmets & Helmet Acc. | C78: =INDEX(ATS!$A:$P,MATCH('2) Order Form'!$V78,ATS!$O:$O,0),1) -> 845069 | D78: =INDEX(ATS!$A:$P,MATCH('2) Order Form'!$V78,ATS!$O:$O,0),2) -> Dissenter Helmet | E78: =INDEX(ATS!$A:$P,MATCH('2) Order Form'!$V78,ATS!$O:$O,0),4) -> SEAME-ML | F78: =INDEX(ATS!$A:$P,MATCH('2) Order Form'!$V78,ATS!$O:$O,0),5) -> Sea Metallic | G78: =INDEX(ATS!$A:$P,MATCH('2) Order Form'!$V78,ATS!$O:$O,0),6) -> ML | H78: 1 | I78: 0 | J78: =IFERROR(VLOOKUP(V78,ATS!$O:$P,2,FALSE),0) -> 46 | K78: 46 | L78: =IFERROR(VLOOKUP(V78,ATS!$O:$Q,3,FALSE),0) -> 46 | M78: 46 | N78: 0% | O78: 0% | P78: =VLOOKUP($C78,Prices!$A$3:$T$1996,MATCH('2) Order Form'!P$8,Prices!$A$2:$T$2,0),FALSE) -> 70.00 | Q78: =VLOOKUP($C78,Prices!$A$3:$T$1996,MATCH('2) Order Form'!Q$8,Prices!$A$2:$T$2,0),FALSE) -> 139.00 | R78: 0 | S78: 0 | T78: 0 | V78: 7048652903181 | X78: *** EOL *** | Y78: 0 | Z78: 0 | AA78: 4 | AB78: 0 | AC78: 0 | AD78: 845069Sea Metallic | AE78: 845069 | AF78: =INDEX(ATS!$A:$P,MATCH('2) Order Form'!$V78,ATS!$O:$O,0),7) -> Stock | AG78: 7048653025004
A79: 1 | B79: Helmets & Helmet Acc. | C79: =INDEX(ATS!$A:$P,MATCH('2) Order Form'!$V79,ATS!$O:$O,0),1) -> 845069 | D79: =INDEX(ATS!$A:$P,MATCH('2) Order Form'!$V79,ATS!$O:$O,0),2) -> Dissenter Helmet | E79: =INDEX(ATS!$A:$P,MATCH('2) Order Form'!$V79,ATS!$O:$O,0),4) -> SEAME-LXL | F79: =INDEX(ATS!$A:$P,MATCH('2) Order Form'!$V79,ATS!$O:$O,0),5) -> Sea Metallic | G79: =INDEX(ATS!$A:$P,MATCH('2) Order Form'!$V79,ATS!$O:$O,0),6) -> LXL | H79: 1 | I79: 0 | J79: =IFERROR(VLOOKUP(V79,ATS!$O:$P,2,FALSE),0) -> 45 | K79: 45 | L79: =IFERROR(VLOOKUP(V79,ATS!$O:$Q,3,FALSE),0) -> 45 | M79: 45 | N79: 0% | O79: 0% | P79: =VLOOKUP($C79,Prices!$A$3:$T$1996,MATCH('2) Order Form'!P$8,Prices!$A$2:$T$2,0),FALSE) -> 70.00 | Q79: =VLOOKUP($C79,Prices!$A$3:$T$1996,MATCH('2) Order Form'!Q$8,Prices!$A$2:$T$2,0),FALSE) -> 139.00 | R79: 0 | S79: 0 | T79: 0 | V79: 7048652903174 | X79: *** EOL *** | Y79: 0 | Z79: 0 | AA79: 4 | AB79: 0 | AC79: 0 | AD79: 845069Sea Metallic | AE79: 845069 | AF79: =INDEX(ATS!$A:$P,MATCH('2) Order Form'!$V79,ATS!$O:$O,0),7) -> Stock | AG79: 7048653025011
A80: 1 | B80: Helmets & Helmet Acc. | C80: =INDEX(ATS!$A:$P,MATCH('2) Order Form'!$V80,ATS!$O:$O,0),1) -> 845069 | D80: =INDEX(ATS!$A:$P,MATCH('2) Order Form'!$V80,ATS!$O:$O,0),2) -> Dissenter Helmet | E80: =INDEX(ATS!$A:$P,MATCH('2) Order Form'!$V80,ATS!$O:$O,0),4) -> WOLND-SM | F80: =INDEX(ATS!$A:$P,MATCH('2) Order Form'!$V80,ATS!$O:$O,0),5) -> Woodland | G80: =INDEX(ATS!$A:$P,MATCH('2) Order Form'!$V80,ATS!$O:$O,0),6) -> SM | H80: 1 | I80: 0 | J80: =IFERROR(VLOOKUP(V80,ATS!$O:$P,2,FALSE),0) -> 46 | K80: =IF(J80=99999,"OPEN",IF(J80>50,"50+",IF(J80<=0,"0",J80))) -> 46 | L80: =IFERROR(VLOOKUP(V80,ATS!$O:$Q,3,FALSE),0) -> 46 | M80: =IF(L80=99999,"OPEN",IF(L80>50,"50+",IF(L80<=0,"0",L80))) -> 46 | N80: 0% | O80: =IF(N80<>0,N80,$P$5) -> 0% | P80: =VLOOKUP($C80,Prices!$A$3:$T$1996,MATCH('2) Order Form'!P$8,Prices!$A$2:$T$2,0),FALSE) -> 70.00 | Q80: =VLOOKUP($C80,Prices!$A$3:$T$1996,MATCH('2) Order Form'!Q$8,Prices!$A$2:$T$2,0),FALSE) -> 139.00 | R80: =I80*P80 -> 0 | S80: =R80*O80 -> 0 | T80: =R80-S80 -> 0 | V80: 7048652895837 | X80: *** EOL *** | Y80: 0 | Z80: 0 | AA80: 4 | AB80: 0 | AC80: 1 | AD80: 845069Woodland | AE80: 845069 | AF80: =INDEX(ATS!$A:$P,MATCH('2) Order Form'!$V80,ATS!$O:$O,0),7) -> Stock | AG80: 7048652893710
A81: 1 | B81: Helmets & Helmet Acc. | C81: =INDEX(ATS!$A:$P,MATCH('2) Order Form'!$V81,ATS!$O:$O,0),1) -> 845069 | D81: =INDEX(ATS!$A:$P,MATCH('2) Order Form'!$V81,ATS!$O:$O,0),2) -> Dissenter Helmet | E81: =INDEX(ATS!$A:$P,MATCH('2) Order Form'!$V81,ATS!$O:$O,0),4) -> WOLND-ML | F81: =INDEX(ATS!$A:$P,MATCH('2) Order Form'!$V81,ATS!$O:$O,0),5) -> Woodland | G81: =INDEX(ATS!$A:$P,MATCH('2) Order Form'!$V81,ATS!$O:$O,0),6) -> ML | H81: 1 | I81: 0 | J81: =IFERROR(VLOOKUP(V81,ATS!$O:$P,2,FALSE),0) -> 43 | K81: 43 | L81: =IFERROR(VLOOKUP(V81,ATS!$O:$Q,3,FALSE),0) -> 43 | M81: 43 | N81: 0% | O81: 0% | P81: =VLOOKUP($C81,Prices!$A$3:$T$1996,MATCH('2) Order Form'!P$8,Prices!$A$2:$T$2,0),FALSE) -> 70.00 | Q81: =VLOOKUP($C81,Prices!$A$3:$T$1996,MATCH('2) Order Form'!Q$8,Prices!$A$2:$T$2,0),FALSE) -> 139.00 | R81: 0 | S81: 0 | T81: 0 | V81: 7048652895820 | X81: *** EOL *** | Y81: 0 | Z81: 0 | AA81: 4 | AB81: 0 | AC81: 0 | AD81: 845069Woodland | AE81: 845069 | AF81: =INDEX(ATS!$A:$P,MATCH('2) Order Form'!$V81,ATS!$O:$O,0),7) -> Stock | AG81: 7048652893703
A82: 1 | B82: Helmets & Helmet Acc. | C82: =INDEX(ATS!$A:$P,MATCH('2) Order Form'!$V82,ATS!$O:$O,0),1) -> 845069 | D82: =INDEX(ATS!$A:$P,MATCH('2) Order Form'!$V82,ATS!$O:$O,0),2) -> Dissenter Helmet | E82: =INDEX(ATS!$A:$P,MATCH('2) Order Form'!$V82,ATS!$O:$O,0),4) -> WOLND-LXL | F82: =INDEX(ATS!$A:$P,MATCH('2) Order Form'!$V82,ATS!$O:$O,0),5) -> Woodland | G82: =INDEX(ATS!$A:$P,MATCH('2) Order Form'!$V82,ATS!$O:$O,0),6) -> LXL | H82: 1 | I82: 0 | J82: =IFERROR(VLOOKUP(V82,ATS!$O:$P,2,FALSE),0) -> 41 | K82: 41 | L82: =IFERROR(VLOOKUP(V82,ATS!$O:$Q,3,FALSE),0) -> 41 | M82: 41 | N82: 0% | O82: 0% | P82: =VLOOKUP($C82,Prices!$A$3:$T$1996,MATCH('2) Order Form'!P$8,Prices!$A$2:$T$2,0),FALSE) -> 70.00 | Q82: =VLOOKUP($C82,Prices!$A$3:$T$1996,MATCH('2) Order Form'!Q$8,Prices!$A$2:$T$2,0),FALSE) -> 139.00 | R82: 0 | S82: 0 | T82: 0 | V82: 7048652895813 | X82: *** EOL *** | Y82: 0 | Z82: 0 | AA82: 4 | AB82: 0 | AC82: 0 | AD82: 845069Woodland | AE82: 845069 | AF82: =INDEX(ATS!$A:$P,MATCH('2) Order Form'!$V82,ATS!$O:$O,0),7) -> Stock | AG82: 7048652893697
A83: 1 | B83: Helmets & Helmet Acc. | C83: =INDEX(ATS!$A:$P,MATCH('2) Order Form'!$V83,ATS!$O:$O,0),1) -> 845070 | D83: =INDEX(ATS!$A:$P,MATCH('2) Order Form'!$V83,ATS!$O:$O,0),2) -> Dissenter Mips Helmet | E83: =INDEX(ATS!$A:$P,MATCH('2) Order Form'!$V83,ATS!$O:$O,0),4) -> DUSK-SM | F83: =INDEX(ATS!$A:$P,MATCH('2) Order Form'!$V83,ATS!$O:$O,0),5) -> Dusk | G83: =INDEX(ATS!$A:$P,MATCH('2) Order Form'!$V83,ATS!$O:$O,0),6) -> SM | H83: 1 | I83: 0 | J83: =IFERROR(VLOOKUP(V83,ATS!$O:$P,2,FALSE),0) -> 57 | K83: =IF(J83=99999,"OPEN",IF(J83>50,"50+",IF(J83<=0,"0",J83))) -> 50+ | L83: =IFERROR(VLOOKUP(V83,ATS!$O:$Q,3,FALSE),0) -> 57 | M83: =IF(L83=99999,"OPEN",IF(L83>50,"50+",IF(L83<=0,"0",L83))) -> 50+ | N83: 0% | O83: =IF(N83<>0,N83,$P$5) -> 0% | P83: =VLOOKUP($C83,Prices!$A$3:$T$1996,MATCH('2) Order Form'!P$8,Prices!$A$2:$T$2,0),FALSE) -> 85.00 | Q83: =VLOOKUP($C83,Prices!$A$3:$T$1996,MATCH('2) Order Form'!Q$8,Prices!$A$2:$T$2,0),FALSE) -> 169.00 | R83: =I83*P83 -> 0 | S83: =R83*O83 -> 0 | T83: =R83-S83 -> 0 | V83: 7048652893659 | X83: *** EOL *** | Y83: 0 | Z83: 0 | AA83: 5 | AB83: 1 | AC83: 1 | AD83: 845070Dusk | AE83: 845070 | AF83: =INDEX(ATS!$A:$P,MATCH('2) Order Form'!$V83,ATS!$O:$O,0),7) -> Stock | AG83: 7048652540935
A84: 1 | B84: Helmets & Helmet Acc. | C84: =INDEX(ATS!$A:$P,MATCH('2) Order Form'!$V84,ATS!$O:$O,0),1) -> 845070 | D84: =INDEX(ATS!$A:$P,MATCH('2) Order Form'!$V84,ATS!$O:$O,0),2) -> Dissenter Mips Helmet | E84: =INDEX(ATS!$A:$P,MATCH('2) Order Form'!$V84,ATS!$O:$O,0),4) -> DUSK-ML | F84: =INDEX(ATS!$A:$P,MATCH('2) Order Form'!$V84,ATS!$O:$O,0),5) -> Dusk | G84: =INDEX(ATS!$A:$P,MATCH('2) Order Form'!$V84,ATS!$O:$O,0),6) -> ML | H84: 1 | I84: 0 | J84: =IFERROR(VLOOKUP(V84,ATS!$O:$P,2,FALSE),0) -> 108 | K84: 50+ | L84: =IFERROR(VLOOKUP(V84,ATS!$O:$Q,3,FALSE),0) -> 108 | M84: 50+ | N84: 0% | O84: 0% | P84: =VLOOKUP($C84,Prices!$A$3:$T$1996,MATCH('2) Order Form'!P$8,Prices!$A$2:$T$2,0),FALSE) -> 85.00 | Q84: =VLOOKUP($C84,Prices!$A$3:$T$1996,MATCH('2) Order Form'!Q$8,Prices!$A$2:$T$2,0),FALSE) -> 169.00 | R84: 0 | S84: 0 | T84: 0 | V84: 7048652893642 | X84: *** EOL *** | Y84: 0 | Z84: 0 | AA84: 5 | AB84: 0 | AC84: 0 | AD84: 845070Dusk | AE84: 845070 | AF84: =INDEX(ATS!$A:$P,MATCH('2) Order Form'!$V84,ATS!$O:$O,0),7) -> Stock | AG84: 7048653018471
A85: 1 | B85: Helmets & Helmet Acc. | C85: =INDEX(ATS!$A:$P,MATCH('2) Order Form'!$V85,ATS!$O:$O,0),1) -> 845070 | D85: =INDEX(ATS!$A:$P,MATCH('2) Order Form'!$V85,ATS!$O:$O,0),2) -> Dissenter Mips Helmet | E85: =INDEX(ATS!$A:$P,MATCH('2) Order Form'!$V85,ATS!$O:$O,0),4) -> DUSK-LXL | F85: =INDEX(ATS!$A:$P,MATCH('2) Order Form'!$V85,ATS!$O:$O,0),5) -> Dusk | G85: =INDEX(ATS!$A:$P,MATCH('2) Order Form'!$V85,ATS!$O:$O,0),6) -> LXL | H85: 1 | I85: 0 | J85: =IFERROR(VLOOKUP(V85,ATS!$O:$P,2,FALSE),0) -> 92 | K85: 50+ | L85: =IFERROR(VLOOKUP(V85,ATS!$O:$Q,3,FALSE),0) -> 92 | M85: 50+ | N85: 0% | O85: 0% | P85: =VLOOKUP($C85,Prices!$A$3:$T$1996,MATCH('2) Order Form'!P$8,Prices!$A$2:$T$2,0),FALSE) -> 85.00 | Q85: =VLOOKUP($C85,Prices!$A$3:$T$1996,MATCH('2) Order Form'!Q$8,Prices!$A$2:$T$2,0),FALSE) -> 169.00 | R85: 0 | S85: 0 | T85: 0 | V85: 7048652893635 | X85: *** EOL *** | Y85: 0 | Z85: 0 | AA85: 5 | AB85: 0 | AC85: 0 | AD85: 845070Dusk | AE85: 845070 | AF85: =INDEX(ATS!$A:$P,MATCH('2) Order Form'!$V85,ATS!$O:$O,0),7) -> Stock | AG85: 7048652540973
A86: 1 | B86: Helmets & Helmet Acc. | C86: =INDEX(ATS!$A:$P,MATCH('2) Order Form'!$V86,ATS!$O:$O,0),1) -> 845070 | D86: =INDEX(ATS!$A:$P,MATCH('2) Order Form'!$V86,ATS!$O:$O,0),2) -> Dissenter Mips Helmet | E86: =INDEX(ATS!$A:$P,MATCH('2) Order Form'!$V86,ATS!$O:$O,0),4) -> MBLCK-SM | F86: =INDEX(ATS!$A:$P,MATCH('2) Order Form'!$V86,ATS!$O:$O,0),5) -> Matte Black | G86: =INDEX(ATS!$A:$P,MATCH('2) Order Form'!$V86,ATS!$O:$O,0),6) -> SM | H86: 1 | I86: 0 | J86: =IFERROR(VLOOKUP(V86,ATS!$O:$P,2,FALSE),0) -> 301 | K86: 50+ | L86: =IFERROR(VLOOKUP(V86,ATS!$O:$Q,3,FALSE),0) -> 301 | M86: 50+ | N86: 0% | O86: 0% | P86: =VLOOKUP($C86,Prices!$A$3:$T$1996,MATCH('2) Order Form'!P$8,Prices!$A$2:$T$2,0),FALSE) -> 85.00 | Q86: =VLOOKUP($C86,Prices!$A$3:$T$1996,MATCH('2) Order Form'!Q$8,Prices!$A$2:$T$2,0),FALSE) -> 169.00 | R86: 0 | S86: 0 | T86: 0 | V86: 7048652272966 | Y86: 0 | Z86: 0 | AA86: 5 | AB86: 0 | AC86: 1 | AD86: 845070Matte Black | AE86: 845070 | AF86: =INDEX(ATS!$A:$P,MATCH('2) Order Form'!$V86,ATS!$O:$O,0),7) -> Active | AG86: 7048653018464
A87: 1 | B87: Helmets & Helmet Acc. | C87: =INDEX(ATS!$A:$P,MATCH('2) Order Form'!$V87,ATS!$O:$O,0),1) -> 845070 | D87: =INDEX(ATS!$A:$P,MATCH('2) Order Form'!$V87,ATS!$O:$O,0),2) -> Dissenter Mips Helmet | E87: =INDEX(ATS!$A:$P,MATCH('2) Order Form'!$V87,ATS!$O:$O,0),4) -> MBLCK-ML | F87: =INDEX(ATS!$A:$P,MATCH('2) Order Form'!$V87,ATS!$O:$O,0),5) -> Matte Black | G87: =INDEX(ATS!$A:$P,MATCH('2) Order Form'!$V87,ATS!$O:$O,0),6) -> ML | H87: 1 | I87: 0 | J87: =IFERROR(VLOOKUP(V87,ATS!$O:$P,2,FALSE),0) -> 812 | K87: 50+ | L87: =IFERROR(VLOOKUP(V87,ATS!$O:$Q,3,FALSE),0) -> 812 | M87: 50+ | N87: 0% | O87: 0% | P87: =VLOOKUP($C87,Prices!$A$3:$T$1996,MATCH('2) Order Form'!P$8,Prices!$A$2:$T$2,0),FALSE) -> 85.00 | Q87: =VLOOKUP($C87,Prices!$A$3:$T$1996,MATCH('2) Order Form'!Q$8,Prices!$A$2:$T$2,0),FALSE) -> 169.00 | R87: 0 | S87: 0 | T87: 0 | V87: 7048652272959 | Y87: 0 | Z87: 0 | AA87: 5 | AB87: 0 | AC87: 0 | AD87: 845070Matte Black | AE87: 845070 | AF87: =INDEX(ATS!$A:$P,MATCH('2) Order Form'!$V87,ATS!$O:$O,0),7) -> Active | AG87: 7048653018457
A88: 1 | B88: Helmets & Helmet Acc. | C88: =INDEX(ATS!$A:$P,MATCH('2) Order Form'!$V88,ATS!$O:$O,0),1) -> 845070 | D88: =INDEX(ATS!$A:$P,MATCH('2) Order Form'!$V88,ATS!$O:$O,0),2) -> Dissenter Mips Helmet | E88: =INDEX(ATS!$A:$P,MATCH('2) Order Form'!$V88,ATS!$O:$O,0),4) -> MBLCK-LXL | F88: =INDEX(ATS!$A:$P,MATCH('2) Order Form'!$V88,ATS!$O:$O,0),5) -> Matte Black | G88: =INDEX(ATS!$A:$P,MATCH('2) Order Form'!$V88,ATS!$O:$O,0),6) -> LXL | H88: 1 | I88: 0 | J88: =IFERROR(VLOOKUP(V88,ATS!$O:$P,2,FALSE),0) -> 333 | K88: 50+ | L88: =IFERROR(VLOOKUP(V88,ATS!$O:$Q,3,FALSE),0) -> 333 | M88: 50+ | N88: 0% | O88: 0% | P88: =VLOOKUP($C88,Prices!$A$3:$T$1996,MATCH('2) Order Form'!P$8,Prices!$A$2:$T$2,0),FALSE) -> 85.00 | Q88: =VLOOKUP($C88,Prices!$A$3:$T$1996,MATCH('2) Order Form'!Q$8,Prices!$A$2:$T$2,0),FALSE) -> 169.00 | R88: 0 | S88: 0 | T88: 0 | V88: 7048652272942 | Y88: 0 | Z88: 0 | AA88: 5 | AB88: 0 | AC88: 0 | AD88: 845070Matte Black | AE88: 845070 | AF88: =INDEX(ATS!$A:$P,MATCH('2) Order Form'!$V88,ATS!$O:$O,0),7) -> Active | AG88: 7048652902948
A89: 1 | B89: Helmets & Helmet Acc. | C89: =INDEX(ATS!$A:$P,MATCH('2) Order Form'!$V89,ATS!$O:$O,0),1) -> 845070 | D89: =INDEX(ATS!$A:$P,MATCH('2) Order Form'!$V89,ATS!$O:$O,0),2) -> Dissenter Mips Helmet | E89: =INDEX(ATS!$A:$P,MATCH('2) Order Form'!$V89,ATS!$O:$O,0),4) -> MWHTE-SM | F89: =INDEX(ATS!$A:$P,MATCH('2) Order Form'!$V89,ATS!$O:$O,0),5) -> Matte White | G89: =INDEX(ATS!$A:$P,MATCH('2) Order Form'!$V89,ATS!$O:$O,0),6) -> SM | H89: 1 | I89: 0 | J89: =IFERROR(VLOOKUP(V89,ATS!$O:$P,2,FALSE),0) -> 141 | K89: 50+ | L89: =IFERROR(VLOOKUP(V89,ATS!$O:$Q,3,FALSE),0) -> 141 | M89: 50+ | N89: 0% | O89: 0% | P89: =VLOOKUP($C89,Prices!$A$3:$T$1996,MATCH('2) Order Form'!P$8,Prices!$A$2:$T$2,0),FALSE) -> 85.00 | Q89: =VLOOKUP($C89,Prices!$A$3:$T$1996,MATCH('2) Order Form'!Q$8,Prices!$A$2:$T$2,0),FALSE) -> 169.00 | R89: 0 | S89: 0 | T89: 0 | V89: 7048652273086 | Y89: 0 | Z89: 0 | AA89: 5 | AB89: 0 | AC89: 1 | AD89: 845070Matte White | AE89: 845070 | AF89: =INDEX(ATS!$A:$P,MATCH('2) Order Form'!$V89,ATS!$O:$O,0),7) -> Active | AG89: 7048652902917
A90: 1 | B90: Helmets & Helmet Acc. | C90: =INDEX(ATS!$A:$P,MATCH('2) Order Form'!$V90,ATS!$O:$O,0),1) -> 845070 | D90: =INDEX(ATS!$A:$P,MATCH('2) Order Form'!$V90,ATS!$O:$O,0),2) -> Dissenter Mips Helmet | E90: =INDEX(ATS!$A:$P,MATCH('2) Order Form'!$V90,ATS!$O:$O,0),4) -> MWHTE-ML | F90: =INDEX(ATS!$A:$P,MATCH('2) Order Form'!$V90,ATS!$O:$O,0),5) -> Matte White | G90: =INDEX(ATS!$A:$P,MATCH('2) Order Form'!$V90,ATS!$O:$O,0),6) -> ML | H90: 1 | I90: 0 | J90: =IFERROR(VLOOKUP(V90,ATS!$O:$P,2,FALSE),0) -> 348 | K90: 50+ | L90: =IFERROR(VLOOKUP(V90,ATS!$O:$Q,3,FALSE),0) -> 348 | M90: 50+ | N90: 0% | O90: 0% | P90: =VLOOKUP($C90,Prices!$A$3:$T$1996,MATCH('2) Order Form'!P$8,Prices!$A$2:$T$2,0),FALSE) -> 85.00 | Q90: =VLOOKUP($C90,Prices!$A$3:$T$1996,MATCH('2) Order Form'!Q$8,Prices!$A$2:$T$2,0),FALSE) -> 169.00 | R90: 0 | S90: 0 | T90: 0 | V90: 7048652273079 | Y90: 0 | Z90: 0 | AA90: 5 | AB90: 0 | AC90: 0 | AD90: 845070Matte White | AE90: 845070 | AF90: =INDEX(ATS!$A:$P,MATCH('2) Order Form'!$V90,ATS!$O:$O,0),7) -> Active | AG90: 7048652540980
A91: 1 | B91: Helmets & Helmet Acc. | C91: =INDEX(ATS!$A:$P,MATCH('2) Order Form'!$V91,ATS!$O:$O,0),1) -> 845070 | D91: =INDEX(ATS!$A:$P,MATCH('2) Order Form'!$V91,ATS!$O:$O,0),2) -> Dissenter Mips Helmet | E91: =INDEX(ATS!$A:$P,MATCH('2) Order Form'!$V91,ATS!$O:$O,0),4) -> MWHTE-LXL | F91: =INDEX(ATS!$A:$P,MATCH('2) Order Form'!$V91,ATS!$O:$O,0),5) -> Matte White | G91: =INDEX(ATS!$A:$P,MATCH('2) Order Form'!$V91,ATS!$O:$O,0),6) -> LXL | H91: 1 | I91: 0 | J91: =IFERROR(VLOOKUP(V91,ATS!$O:$P,2,FALSE),0) -> 175 | K91: 50+ | L91: =IFERROR(VLOOKUP(V91,ATS!$O:$Q,3,FALSE),0) -> 175 | M91: 50+ | N91: 0% | O91: 0% | P91: =VLOOKUP($C91,Prices!$A$3:$T$1996,MATCH('2) Order Form'!P$8,Prices!$A$2:$T$2,0),FALSE) -> 85.00 | Q91: =VLOOKUP($C91,Prices!$A$3:$T$1996,MATCH('2) Order Form'!Q$8,Prices!$A$2:$T$2,0),FALSE) -> 169.00 | R91: 0 | S91: 0 | T91: 0 | V91: 7048652273062 | Y91: 0 | Z91: 0 | AA91: 5 | AB91: 0 | AC91: 0 | AD91: 845070Matte White | AE91: 845070 | AF91: =INDEX(ATS!$A:$P,MATCH('2) Order Form'!$V91,ATS!$O:$O,0),7) -> Active | AG91: 7048653018501
A92: 1 | B92: Helmets & Helmet Acc. | C92: =INDEX(ATS!$A:$P,MATCH('2) Order Form'!$V92,ATS!$O:$O,0),1) -> 845070 | D92: =INDEX(ATS!$A:$P,MATCH('2) Order Form'!$V92,ATS!$O:$O,0),2) -> Dissenter Mips Helmet | E92: =INDEX(ATS!$A:$P,MATCH('2) Order Form'!$V92,ATS!$O:$O,0),4) -> SEAME-SM | F92: =INDEX(ATS!$A:$P,MATCH('2) Order Form'!$V92,ATS!$O:$O,0),5) -> Sea Metallic | G92: =INDEX(ATS!$A:$P,MATCH('2) Order Form'!$V92,ATS!$O:$O,0),6) -> SM | H92: 1 | I92: 0 | J92: =IFERROR(VLOOKUP(V92,ATS!$O:$P,2,FALSE),0) -> 12 | K92: 12 | L92: =IFERROR(VLOOKUP(V92,ATS!$O:$Q,3,FALSE),0) -> 12 | M92: 12 | N92: 0% | O92: 0% | P92: =VLOOKUP($C92,Prices!$A$3:$T$1996,MATCH('2) Order Form'!P$8,Prices!$A$2:$T$2,0),FALSE) -> 85.00 | Q92: =VLOOKUP($C92,Prices!$A$3:$T$1996,MATCH('2) Order Form'!Q$8,Prices!$A$2:$T$2,0),FALSE) -> 169.00 | R92: 0 | S92: 0 | T92: 0 | V92: 7048652893680 | X92: *** EOL *** | Y92: 0 | Z92: 0 | AA92: 5 | AB92: 0 | AC92: 1 | AD92: 845070Sea Metallic | AE92: 845070 | AF92: =INDEX(ATS!$A:$P,MATCH('2) Order Form'!$V92,ATS!$O:$O,0),7) -> Stock | AG92: 7048652541024
A93: 1 | B93: Helmets & Helmet Acc. | C93: =INDEX(ATS!$A:$P,MATCH('2) Order Form'!$V93,ATS!$O:$O,0),1) -> 845070 | D93: =INDEX(ATS!$A:$P,MATCH('2) Order Form'!$V93,ATS!$O:$O,0),2) -> Dissenter Mips Helmet | E93: =INDEX(ATS!$A:$P,MATCH('2) Order Form'!$V93,ATS!$O:$O,0),4) -> SEAME-ML | F93: =INDEX(ATS!$A:$P,MATCH('2) Order Form'!$V93,ATS!$O:$O,0),5) -> Sea Metallic | G93: =INDEX(ATS!$A:$P,MATCH('2) Order Form'!$V93,ATS!$O:$O,0),6) -> ML | H93: 1 | I93: 0 | J93: =IFERROR(VLOOKUP(V93,ATS!$O:$P,2,FALSE),0) -> 16 | K93: 16 | L93: =IFERROR(VLOOKUP(V93,ATS!$O:$Q,3,FALSE),0) -> 16 | M93: 16 | N93: 0% | O93: 0% | P93: =VLOOKUP($C93,Prices!$A$3:$T$1996,MATCH('2) Order Form'!P$8,Prices!$A$2:$T$2,0),FALSE) -> 85.00 | Q93: =VLOOKUP($C93,Prices!$A$3:$T$1996,MATCH('2) Order Form'!Q$8,Prices!$A$2:$T$2,0),FALSE) -> 169.00 | R93: 0 | S93: 0 | T93: 0 | V93: 7048652893673 | X93: *** EOL *** | Y93: 0 | Z93: 0 | AA93: 5 | AB93: 0 | AC93: 0 | AD93: 845070Sea Metallic | AE93: 845070 | AF93: =INDEX(ATS!$A:$P,MATCH('2) Order Form'!$V93,ATS!$O:$O,0),7) -> Stock | AG93: 7048653018495
A94: 1 | B94: Helmets & Helmet Acc. | C94: =INDEX(ATS!$A:$P,MATCH('2) Order Form'!$V94,ATS!$O:$O,0),1) -> 845070 | D94: =INDEX(ATS!$A:$P,MATCH('2) Order Form'!$V94,ATS!$O:$O,0),2) -> Dissenter Mips Helmet | E94: =INDEX(ATS!$A:$P,MATCH('2) Order Form'!$V94,ATS!$O:$O,0),4) -> SEAME-LXL | F94: =INDEX(ATS!$A:$P,MATCH('2) Order Form'!$V94,ATS!$O:$O,0),5) -> Sea Metallic | G94: =INDEX(ATS!$A:$P,MATCH('2) Order Form'!$V94,ATS!$O:$O,0),6) -> LXL | H94: 1 | I94: 0 | J94: =IFERROR(VLOOKUP(V94,ATS!$O:$P,2,FALSE),0) -> 16 | K94: 16 | L94: =IFERROR(VLOOKUP(V94,ATS!$O:$Q,3,FALSE),0) -> 16 | M94: 16 | N94: 0% | O94: 0% | P94: =VLOOKUP($C94,Prices!$A$3:$T$1996,MATCH('2) Order Form'!P$8,Prices!$A$2:$T$2,0),FALSE) -> 85.00 | Q94: =VLOOKUP($C94,Prices!$A$3:$T$1996,MATCH('2) Order Form'!Q$8,Prices!$A$2:$T$2,0),FALSE) -> 169.00 | R94: 0 | S94: 0 | T94: 0 | V94: 7048652893666 | X94: *** EOL *** | Y94: 0 | Z94: 0 | AA94: 5 | AB94: 0 | AC94: 0 | AD94: 845070Sea Metallic | AE94: 845070 | AF94: =INDEX(ATS!$A:$P,MATCH('2) Order Form'!$V94,ATS!$O:$O,0),7) -> Stock | AG94: 7048653018488
A95: 1 | B95: Helmets & Helmet Acc. | C95: =INDEX(ATS!$A:$P,MATCH('2) Order Form'!$V95,ATS!$O:$O,0),1) -> 845070 | D95: =INDEX(ATS!$A:$P,MATCH('2) Order Form'!$V95,ATS!$O:$O,0),2) -> Dissenter Mips Helmet | E95: =INDEX(ATS!$A:$P,MATCH('2) Order Form'!$V95,ATS!$O:$O,0),4) -> WOLND-SM | F95: =INDEX(ATS!$A:$P,MATCH('2) Order Form'!$V95,ATS!$O:$O,0),5) -> Woodland | G95: =INDEX(ATS!$A:$P,MATCH('2) Order Form'!$V95,ATS!$O:$O,0),6) -> SM | H95: 1 | I95: 0 | J95: =IFERROR(VLOOKUP(V95,ATS!$O:$P,2,FALSE),0) -> 16 | K95: 16 | L95: =IFERROR(VLOOKUP(V95,ATS!$O:$Q,3,FALSE),0) -> 16 | M95: 16 | N95: 0% | O95: 0% | P95: =VLOOKUP($C95,Prices!$A$3:$T$1996,MATCH('2) Order Form'!P$8,Prices!$A$2:$T$2,0),FALSE) -> 85.00 | Q95: =VLOOKUP($C95,Prices!$A$3:$T$1996,MATCH('2) Order Form'!Q$8,Prices!$A$2:$T$2,0),FALSE) -> 169.00 | R95: 0 | S95: 0 | T95: 0 | V95: 7048652893710 | Y95: 0 | Z95: 0 | AA95: 5 | AB95: 0 | AC95: 1 | AD95: 845070Woodland | AE95: 845070 | AF95: =INDEX(ATS!$A:$P,MATCH('2) Order Form'!$V95,ATS!$O:$O,0),7) -> Active | AG95: 7048652903006
A96: 1 | B96: Helmets & Helmet Acc. | C96: =INDEX(ATS!$A:$P,MATCH('2) Order Form'!$V96,ATS!$O:$O,0),1) -> 845070 | D96: =INDEX(ATS!$A:$P,MATCH('2) Order Form'!$V96,ATS!$O:$O,0),2) -> Dissenter Mips Helmet | E96: =INDEX(ATS!$A:$P,MATCH('2) Order Form'!$V96,ATS!$O:$O,0),4) -> WOLND-ML | F96: =INDEX(ATS!$A:$P,MATCH('2) Order Form'!$V96,ATS!$O:$O,0),5) -> Woodland | G96: =INDEX(ATS!$A:$P,MATCH('2) Order Form'!$V96,ATS!$O:$O,0),6) -> ML | H96: 1 | I96: 0 | J96: =IFERROR(VLOOKUP(V96,ATS!$O:$P,2,FALSE),0) -> 31 | K96: 31 | L96: =IFERROR(VLOOKUP(V96,ATS!$O:$Q,3,FALSE),0) -> 31 | M96: 31 | N96: 0% | O96: 0% | P96: =VLOOKUP($C96,Prices!$A$3:$T$1996,MATCH('2) Order Form'!P$8,Prices!$A$2:$T$2,0),FALSE) -> 85.00 | Q96: =VLOOKUP($C96,Prices!$A$3:$T$1996,MATCH('2) Order Form'!Q$8,Prices!$A$2:$T$2,0),FALSE) -> 169.00 | R96: 0 | S96: 0 | T96: 0 | V96: 7048652893703 | Y96: 0 | Z96: 0 | AA96: 5 | AB96: 0 | AC96: 0 | AD96: 845070Woodland | AE96: 845070 | AF96: =INDEX(ATS!$A:$P,MATCH('2) Order Form'!$V96,ATS!$O:$O,0),7) -> Active | AG96: 7048652902979
A97: 1 | B97: Helmets & Helmet Acc. | C97: =INDEX(ATS!$A:$P,MATCH('2) Order Form'!$V97,ATS!$O:$O,0),1) -> 845070 | D97: =INDEX(ATS!$A:$P,MATCH('2) Order Form'!$V97,ATS!$O:$O,0),2) -> Dissenter Mips Helmet | E97: =INDEX(ATS!$A:$P,MATCH('2) Order Form'!$V97,ATS!$O:$O,0),4) -> WOLND-LXL | F97: =INDEX(ATS!$A:$P,MATCH('2) Order Form'!$V97,ATS!$O:$O,0),5) -> Woodland | G97: =INDEX(ATS!$A:$P,MATCH('2) Order Form'!$V97,ATS!$O:$O,0),6) -> LXL | H97: 1 | I97: 0 | J97: =IFERROR(VLOOKUP(V97,ATS!$O:$P,2,FALSE),0) -> 7 | K97: 7 | L97: =IFERROR(VLOOKUP(V97,ATS!$O:$Q,3,FALSE),0) -> 7 | M97: 7 | N97: 0% | O97: 0% | P97: =VLOOKUP($C97,Prices!$A$3:$T$1996,MATCH('2) Order Form'!P$8,Prices!$A$2:$T$2,0),FALSE) -> 85.00 | Q97: =VLOOKUP($C97,Prices!$A$3:$T$1996,MATCH('2) Order Form'!Q$8,Prices!$A$2:$T$2,0),FALSE) -> 169.00 | R97: 0 | S97: 0 | T97: 0 | V97: 7048652893697 | Y97: 0 | Z97: 0 | AA97: 5 | AB97: 0 | AC97: 0 | AD97: 845070Woodland | AE97: 845070 | AF97: =INDEX(ATS!$A:$P,MATCH('2) Order Form'!$V97,ATS!$O:$O,0),7) -> Active | AG97: 7048653025028
A98: 1 | B98: Helmets & Helmet Acc. | C98: =INDEX(ATS!$A:$P,MATCH('2) Order Form'!$V98,ATS!$O:$O,0),1) -> 845105 | D98: =INDEX(ATS!$A:$P,MATCH('2) Order Form'!$V98,ATS!$O:$O,0),2) -> Ripper Helmet | E98: =INDEX(ATS!$A:$P,MATCH('2) Order Form'!$V98,ATS!$O:$O,0),4) -> DUSK-53/61 | F98: =INDEX(ATS!$A:$P,MATCH('2) Order Form'!$V98,ATS!$O:$O,0),5) -> Dusk | G98: =INDEX(ATS!$A:$P,MATCH('2) Order Form'!$V98,ATS!$O:$O,0),6) -> 53/61 | H98: 1 | I98: 0 | J98: =IFERROR(VLOOKUP(V98,ATS!$O:$P,2,FALSE),0) -> 56 | K98: =IF(J98=99999,"OPEN",IF(J98>50,"50+",IF(J98<=0,"0",J98))) -> 50+ | L98: =IFERROR(VLOOKUP(V98,ATS!$O:$Q,3,FALSE),0) -> 56 | M98: =IF(L98=99999,"OPEN",IF(L98>50,"50+",IF(L98<=0,"0",L98))) -> 50+ | N98: 0% | O98: =IF(N98<>0,N98,$P$5) -> 0% | P98: =VLOOKUP($C98,Prices!$A$3:$T$1996,MATCH('2) Order Form'!P$8,Prices!$A$2:$T$2,0),FALSE) -> 35.00 | Q98: =VLOOKUP($C98,Prices!$A$3:$T$1996,MATCH('2) Order Form'!Q$8,Prices!$A$2:$T$2,0),FALSE) -> 69.00 | R98: =I98*P98 -> 0 | S98: =R98*O98 -> 0 | T98: =R98-S98 -> 0 | V98: 7048652902894 | X98: *** EOL *** | Y98: =I98*Q98 -> 0 | Z98: =IF(A98=OFFSET(A98,-1,0),0,1) -> 0 | AA98: 6 | AB98: =IF(C98=OFFSET(C98,-1,0),0,1) -> 1 | AC98: =IF(F98=OFFSET(F98,-1,0),0,1) -> 1 | AD98: =CONCATENATE(C98,F98) -> 845105Dusk | AE98: =IFERROR(IF(B98="EYEWEAR",CONCATENATE(C98,"-",G98),C98),C98) -> 845105 | AF98: =INDEX(ATS!$A:$P,MATCH('2) Order Form'!$V98,ATS!$O:$O,0),7) -> Stock | AG98: 7048653025035
A99: 1 | B99: Helmets & Helmet Acc. | C99: =INDEX(ATS!$A:$P,MATCH('2) Order Form'!$V99,ATS!$O:$O,0),1) -> 845105 | D99: =INDEX(ATS!$A:$P,MATCH('2) Order Form'!$V99,ATS!$O:$O,0),2) -> Ripper Helmet | E99: =INDEX(ATS!$A:$P,MATCH('2) Order Form'!$V99,ATS!$O:$O,0),4) -> FLRM-53/61 | F99: =INDEX(ATS!$A:$P,MATCH('2) Order Form'!$V99,ATS!$O:$O,0),5) -> Flare Metallic | G99: =INDEX(ATS!$A:$P,MATCH('2) Order Form'!$V99,ATS!$O:$O,0),6) -> 53/61 | H99: 1 | I99: 0 | J99: =IFERROR(VLOOKUP(V99,ATS!$O:$P,2,FALSE),0) -> 48 | K99: 48 | L99: =IFERROR(VLOOKUP(V99,ATS!$O:$Q,3,FALSE),0) -> 48 | M99: 48 | N99: 0% | O99: 0% | P99: =VLOOKUP($C99,Prices!$A$3:$T$1996,MATCH('2) Order Form'!P$8,Prices!$A$2:$T$2,0),FALSE) -> 35.00 | Q99: =VLOOKUP($C99,Prices!$A$3:$T$1996,MATCH('2) Order Form'!Q$8,Prices!$A$2:$T$2,0),FALSE) -> 69.00 | R99: 0 | S99: 0 | T99: 0 | V99: 7048652902900 | X99: *** EOL *** | Y99: 0 | Z99: 0 | AA99: 6 | AB99: 0 | AC99: 1 | AD99: 845105Flare Metallic | AE99: 845105 | AF99: =INDEX(ATS!$A:$P,MATCH('2) Order Form'!$V99,ATS!$O:$O,0),7) -> Stock | AG99: 7048652893604
A100: 1 | B100: Helmets & Helmet Acc. | C100: =INDEX(ATS!$A:$P,MATCH('2) Order Form'!$V100,ATS!$O:$O,0),1) -> 845105 | D100: =INDEX(ATS!$A:$P,MATCH('2) Order Form'!$V100,ATS!$O:$O,0),2) -> Ripper Helmet | E100: =INDEX(ATS!$A:$P,MATCH('2) Order Form'!$V100,ATS!$O:$O,0),4) -> LAVA-53/61 | F100: =INDEX(ATS!$A:$P,MATCH('2) Order Form'!$V100,ATS!$O:$O,0),5) -> Lava | G100: =INDEX(ATS!$A:$P,MATCH('2) Order Form'!$V100,ATS!$O:$O,0),6) -> 53/61 | H100: 1 | I100: 0 | J100: =IFERROR(VLOOKUP(V100,ATS!$O:$P,2,FALSE),0) -> 434 | K100: 50+ | L100: =IFERROR(VLOOKUP(V100,ATS!$O:$Q,3,FALSE),0) -> 434 | M100: 50+ | N100: 0% | O100: 0% | P100: =VLOOKUP($C100,Prices!$A$3:$T$1996,MATCH('2) Order Form'!P$8,Prices!$A$2:$T$2,0),FALSE) -> 35.00 | Q100: =VLOOKUP($C100,Prices!$A$3:$T$1996,MATCH('2) Order Form'!Q$8,Prices!$A$2:$T$2,0),FALSE) -> 69.00 | R100: 0 | S100: 0 | T100: 0 | V100: 7048652902917 | Y100: 0 | Z100: 0 | AA100: 6 | AB100: 0 | AC100: 1 | AD100: 845105Lava | AE100: 845105 | AF100: =INDEX(ATS!$A:$P,MATCH('2) Order Form'!$V100,ATS!$O:$O,0),7) -> Active | AG100: 7048652893598
A101: 1 | B101: Helmets & Helmet Acc. | C101: =INDEX(ATS!$A:$P,MATCH('2) Order Form'!$V101,ATS!$O:$O,0),1) -> 845105 | D101: =INDEX(ATS!$A:$P,MATCH('2) Order Form'!$V101,ATS!$O:$O,0),2) -> Ripper Helmet | E101: =INDEX(ATS!$A:$P,MATCH('2) Order Form'!$V101,ATS!$O:$O,0),4) -> LIAM-53/61 | F101: =INDEX(ATS!$A:$P,MATCH('2) Order Form'!$V101,ATS!$O:$O,0),5) -> Lilac Metallic | G101: =INDEX(ATS!$A:$P,MATCH('2) Order Form'!$V101,ATS!$O:$O,0),6) -> 53/61 | H101: 1 | I101: 0 | J101: =IFERROR(VLOOKUP(V101,ATS!$O:$P,2,FALSE),0) -> 327 | K101: 50+ | L101: =IFERROR(VLOOKUP(V101,ATS!$O:$Q,3,FALSE),0) -> 327 | M101: =IF(L101=99999,"OPEN",IF(L101>50,"50+",IF(L101<=0,"0",L101))) -> 50+ | N101: 0% | O101: 0% | P101: =VLOOKUP($C101,Prices!$A$3:$T$1996,MATCH('2) Order Form'!P$8,Prices!$A$2:$T$2,0),FALSE) -> 35.00 | Q101: =VLOOKUP($C101,Prices!$A$3:$T$1996,MATCH('2) Order Form'!Q$8,Prices!$A$2:$T$2,0),FALSE) -> 69.00 | R101: 0 | S101: 0 | T101: 0 | V101: 7048652902924 | X101: *** EOL *** | Y101: 0 | Z101: 0 | AA101: 6 | AB101: 0 | AC101: 1 | AD101: 845105Lilac Metallic | AE101: 845105 | AF101: =INDEX(ATS!$A:$P,MATCH('2) Order Form'!$V101,ATS!$O:$O,0),7) -> Stock | AG101: 7048652893628
A102: 1 | B102: Helmets & Helmet Acc. | C102: =INDEX(ATS!$A:$P,MATCH('2) Order Form'!$V102,ATS!$O:$O,0),1) -> 845105 | D102: =INDEX(ATS!$A:$P,MATCH('2) Order Form'!$V102,ATS!$O:$O,0),2) -> Ripper Helmet | E102: =INDEX(ATS!$A:$P,MATCH('2) Order Form'!$V102,ATS!$O:$O,0),4) -> MBLK-53/61 | F102: =INDEX(ATS!$A:$P,MATCH('2) Order Form'!$V102,ATS!$O:$O,0),5) -> Matte Black | G102: =INDEX(ATS!$A:$P,MATCH('2) Order Form'!$V102,ATS!$O:$O,0),6) -> 53/61 | H102: 1 | I102: 0 | J102: =IFERROR(VLOOKUP(V102,ATS!$O:$P,2,FALSE),0) -> 639 | K102: =IF(J102=99999,"OPEN",IF(J102>50,"50+",IF(J102<=0,"0",J102))) -> 50+ | L102: =IFERROR(VLOOKUP(V102,ATS!$O:$Q,3,FALSE),0) -> 639 | M102: 50+ | N102: 0% | O102: =IF(N102<>0,N102,$P$5) -> 0% | P102: =VLOOKUP($C102,Prices!$A$3:$T$1996,MATCH('2) Order Form'!P$8,Prices!$A$2:$T$2,0),FALSE) -> 35.00 | Q102: =VLOOKUP($C102,Prices!$A$3:$T$1996,MATCH('2) Order Form'!Q$8,Prices!$A$2:$T$2,0),FALSE) -> 69.00 | R102: =I102*P102 -> 0 | S102: =R102*O102 -> 0 | T102: =R102-S102 -> 0 | V102: 7048652540935 | Y102: =I102*Q102 -> 0 | Z102: 0 | AA102: 6 | AB102: =IF(C102=OFFSET(C102,-1,0),0,1) -> 0 | AC102: =IF(F102=OFFSET(F102,-1,0),0,1) -> 1 | AD102: =CONCATENATE(C102,F102) -> 845105Matte Black | AE102: =IFERROR(IF(B102="EYEWEAR",CONCATENATE(C102,"-",G102),C102),C102) -> 845105 | AF102: =INDEX(ATS!$A:$P,MATCH('2) Order Form'!$V102,ATS!$O:$O,0),7) -> Active | AG102: 7048652893611
A103: 1 | B103: Helmets & Helmet Acc. | C103: =INDEX(ATS!$A:$P,MATCH('2) Order Form'!$V103,ATS!$O:$O,0),1) -> 845105 | D103: =INDEX(ATS!$A:$P,MATCH('2) Order Form'!$V103,ATS!$O:$O,0),2) -> Ripper Helmet | E103: =INDEX(ATS!$A:$P,MATCH('2) Order Form'!$V103,ATS!$O:$O,0),4) -> MWHT-53/61 | F103: =INDEX(ATS!$A:$P,MATCH('2) Order Form'!$V103,ATS!$O:$O,0),5) -> Matte White | G103: =INDEX(ATS!$A:$P,MATCH('2) Order Form'!$V103,ATS!$O:$O,0),6) -> 53/61 | H103: 1 | I103: 0 | J103: =IFERROR(VLOOKUP(V103,ATS!$O:$P,2,FALSE),0) -> 409 | K103: 50+ | L103: =IFERROR(VLOOKUP(V103,ATS!$O:$Q,3,FALSE),0) -> 409 | M103: 50+ | N103: 0% | O103: 0% | P103: =VLOOKUP($C103,Prices!$A$3:$T$1996,MATCH('2) Order Form'!P$8,Prices!$A$2:$T$2,0),FALSE) -> 35.00 | Q103: =VLOOKUP($C103,Prices!$A$3:$T$1996,MATCH('2) Order Form'!Q$8,Prices!$A$2:$T$2,0),FALSE) -> 69.00 | R103: 0 | S103: 0 | T103: 0 | V103: 7048652540973 | Y103: =I103*Q103 -> 0 | Z103: 0 | AA103: 6 | AB103: 0 | AC103: 1 | AD103: 845105Matte White | AE103: 845105 | AF103: =INDEX(ATS!$A:$P,MATCH('2) Order Form'!$V103,ATS!$O:$O,0),7) -> Active | AG103: 7048652540836
A104: 1 | B104: Helmets & Helmet Acc. | C104: =INDEX(ATS!$A:$P,MATCH('2) Order Form'!$V104,ATS!$O:$O,0),1) -> 845105 | D104: =INDEX(ATS!$A:$P,MATCH('2) Order Form'!$V104,ATS!$O:$O,0),2) -> Ripper Helmet | E104: =INDEX(ATS!$A:$P,MATCH('2) Order Form'!$V104,ATS!$O:$O,0),4) -> SAME-53/61 | F104: =INDEX(ATS!$A:$P,MATCH('2) Order Form'!$V104,ATS!$O:$O,0),5) -> Sea Metallic | G104: =INDEX(ATS!$A:$P,MATCH('2) Order Form'!$V104,ATS!$O:$O,0),6) -> 53/61 | H104: 1 | I104: 0 | J104: =IFERROR(VLOOKUP(V104,ATS!$O:$P,2,FALSE),0) -> 75 | K104: 50+ | L104: =IFERROR(VLOOKUP(V104,ATS!$O:$Q,3,FALSE),0) -> 75 | M104: 50+ | N104: 0% | O104: 0% | P104: =VLOOKUP($C104,Prices!$A$3:$T$1996,MATCH('2) Order Form'!P$8,Prices!$A$2:$T$2,0),FALSE) -> 35.00 | Q104: =VLOOKUP($C104,Prices!$A$3:$T$1996,MATCH('2) Order Form'!Q$8,Prices!$A$2:$T$2,0),FALSE) -> 69.00 | R104: 0 | S104: 0 | T104: 0 | V104: 7048652902931 | X104: *** EOL *** | Y104: =I104*Q104 -> 0 | Z104: 0 | AA104: 6 | AB104: 0 | AC104: 1 | AD104: 845105Sea Metallic | AE104: 845105 | AF104: =INDEX(ATS!$A:$P,MATCH('2) Order Form'!$V104,ATS!$O:$O,0),7) -> Stock | AG104: 7048653018297
A105: 1 | B105: Helmets & Helmet Acc. | C105: =INDEX(ATS!$A:$P,MATCH('2) Order Form'!$V105,ATS!$O:$O,0),1) -> 845105 | D105: =INDEX(ATS!$A:$P,MATCH('2) Order Form'!$V105,ATS!$O:$O,0),2) -> Ripper Helmet | E105: =INDEX(ATS!$A:$P,MATCH('2) Order Form'!$V105,ATS!$O:$O,0),4) -> WOLD-53/61 | F105: =INDEX(ATS!$A:$P,MATCH('2) Order Form'!$V105,ATS!$O:$O,0),5) -> Woodland | G105: =INDEX(ATS!$A:$P,MATCH('2) Order Form'!$V105,ATS!$O:$O,0),6) -> 53/61 | H105: 1 | I105: 0 | J105: =IFERROR(VLOOKUP(V105,ATS!$O:$P,2,FALSE),0) -> 3 | K105: 3 | L105: =IFERROR(VLOOKUP(V105,ATS!$O:$Q,3,FALSE),0) -> 3 | M105: 3 | N105: 0% | O105: 0% | P105: =VLOOKUP($C105,Prices!$A$3:$T$1996,MATCH('2) Order Form'!P$8,Prices!$A$2:$T$2,0),FALSE) -> 35.00 | Q105: =VLOOKUP($C105,Prices!$A$3:$T$1996,MATCH('2) Order Form'!Q$8,Prices!$A$2:$T$2,0),FALSE) -> 69.00 | R105: 0 | S105: 0 | T105: 0 | V105: 7048652902948 | Y105: =I105*Q105 -> 0 | Z105: 0 | AA105: 6 | AB105: 0 | AC105: 1 | AD105: 845105Woodland | AE105: 845105 | AF105: =INDEX(ATS!$A:$P,MATCH('2) Order Form'!$V105,ATS!$O:$O,0),7) -> Active | AG105: 7048652540874
A106: 1 | B106: Helmets & Helmet Acc. | C106: =INDEX(ATS!$A:$P,MATCH('2) Order Form'!$V106,ATS!$O:$O,0),1) -> 845106 | D106: =INDEX(ATS!$A:$P,MATCH('2) Order Form'!$V106,ATS!$O:$O,0),2) -> Ripper Mips Helmet | E106: =INDEX(ATS!$A:$P,MATCH('2) Order Form'!$V106,ATS!$O:$O,0),4) -> DUSK-53/61 | F106: =INDEX(ATS!$A:$P,MATCH('2) Order Form'!$V106,ATS!$O:$O,0),5) -> Dusk | G106: =INDEX(ATS!$A:$P,MATCH('2) Order Form'!$V106,ATS!$O:$O,0),6) -> 53/61 | H106: 1 | I106: 0 | J106: =IFERROR(VLOOKUP(V106,ATS!$O:$P,2,FALSE),0) -> 222 | K106: =IF(J106=99999,"OPEN",IF(J106>50,"50+",IF(J106<=0,"0",J106))) -> 50+ | L106: =IFERROR(VLOOKUP(V106,ATS!$O:$Q,3,FALSE),0) -> 222 | M106: =IF(L106=99999,"OPEN",IF(L106>50,"50+",IF(L106<=0,"0",L106))) -> 50+ | N106: 0% | O106: =IF(N106<>0,N106,$P$5) -> 0% | P106: =VLOOKUP($C106,Prices!$A$3:$T$1996,MATCH('2) Order Form'!P$8,Prices!$A$2:$T$2,0),FALSE) -> 50.00 | Q106: =VLOOKUP($C106,Prices!$A$3:$T$1996,MATCH('2) Order Form'!Q$8,Prices!$A$2:$T$2,0),FALSE) -> 99.00 | R106: =I106*P106 -> 0 | S106: =R106*O106 -> 0 | T106: =R106-S106 -> 0 | V106: 7048652902955 | X106: *** EOL *** | Y106: =I106*Q106 -> 0 | Z106: 0 | AA106: 7 | AB106: =IF(C106=OFFSET(C106,-1,0),0,1) -> 1 | AC106: =IF(F106=OFFSET(F106,-1,0),0,1) -> 1 | AD106: =CONCATENATE(C106,F106) -> 845106Dusk | AE106: =IFERROR(IF(B106="EYEWEAR",CONCATENATE(C106,"-",G106),C106),C106) -> 845106 | AF106: =INDEX(ATS!$A:$P,MATCH('2) Order Form'!$V106,ATS!$O:$O,0),7) -> Stock | AG106: 7048653018280
A107: 1 | B107: Helmets & Helmet Acc. | C107: =INDEX(ATS!$A:$P,MATCH('2) Order Form'!$V107,ATS!$O:$O,0),1) -> 845106 | D107: =INDEX(ATS!$A:$P,MATCH('2) Order Form'!$V107,ATS!$O:$O,0),2) -> Ripper Mips Helmet | E107: =INDEX(ATS!$A:$P,MATCH('2) Order Form'!$V107,ATS!$O:$O,0),4) -> FLRM-53/61 | F107: =INDEX(ATS!$A:$P,MATCH('2) Order Form'!$V107,ATS!$O:$O,0),5) -> Flare Metallic | G107: =INDEX(ATS!$A:$P,MATCH('2) Order Form'!$V107,ATS!$O:$O,0),6) -> 53/61 | H107: 1 | I107: 0 | J107: =IFERROR(VLOOKUP(V107,ATS!$O:$P,2,FALSE),0) -> 168 | K107: 50+ | L107: =IFERROR(VLOOKUP(V107,ATS!$O:$Q,3,FALSE),0) -> 168 | M107: 50+ | N107: 0% | O107: 0% | P107: =VLOOKUP($C107,Prices!$A$3:$T$1996,MATCH('2) Order Form'!P$8,Prices!$A$2:$T$2,0),FALSE) -> 50.00 | Q107: =VLOOKUP($C107,Prices!$A$3:$T$1996,MATCH('2) Order Form'!Q$8,Prices!$A$2:$T$2,0),FALSE) -> 99.00 | R107: 0 | S107: 0 | T107: 0 | V107: 7048652902962 | X107: *** EOL *** | Y107: =I107*Q107 -> 0 | Z107: 0 | AA107: 7 | AB107: 0 | AC107: 1 | AD107: 845106Flare Metallic | AE107: 845106 | AF107: =INDEX(ATS!$A:$P,MATCH('2) Order Form'!$V107,ATS!$O:$O,0),7) -> Stock | AG107: 7048652767769
A108: 1 | B108: Helmets & Helmet Acc. | C108: =INDEX(ATS!$A:$P,MATCH('2) Order Form'!$V108,ATS!$O:$O,0),1) -> 845106 | D108: =INDEX(ATS!$A:$P,MATCH('2) Order Form'!$V108,ATS!$O:$O,0),2) -> Ripper Mips Helmet | E108: =INDEX(ATS!$A:$P,MATCH('2) Order Form'!$V108,ATS!$O:$O,0),4) -> LAVA-53/61 | F108: =INDEX(ATS!$A:$P,MATCH('2) Order Form'!$V108,ATS!$O:$O,0),5) -> Lava | G108: =INDEX(ATS!$A:$P,MATCH('2) Order Form'!$V108,ATS!$O:$O,0),6) -> 53/61 | H108: 1 | I108: 0 | J108: =IFERROR(VLOOKUP(V108,ATS!$O:$P,2,FALSE),0) -> 436 | K108: 50+ | L108: =IFERROR(VLOOKUP(V108,ATS!$O:$Q,3,FALSE),0) -> 436 | M108: 50+ | N108: 0% | O108: 0% | P108: =VLOOKUP($C108,Prices!$A$3:$T$1996,MATCH('2) Order Form'!P$8,Prices!$A$2:$T$2,0),FALSE) -> 50.00 | Q108: =VLOOKUP($C108,Prices!$A$3:$T$1996,MATCH('2) Order Form'!Q$8,Prices!$A$2:$T$2,0),FALSE) -> 99.00 | R108: 0 | S108: 0 | T108: 0 | V108: 7048652902979 | Y108: 0 | Z108: 0 | AA108: 7 | AB108: 0 | AC108: 1 | AD108: 845106Lava | AE108: 845106 | AF108: =INDEX(ATS!$A:$P,MATCH('2) Order Form'!$V108,ATS!$O:$O,0),7) -> Active | AG108: 7048653018303
A109: 1 | B109: Helmets & Helmet Acc. | C109: =INDEX(ATS!$A:$P,MATCH('2) Order Form'!$V109,ATS!$O:$O,0),1) -> 845106 | D109: =INDEX(ATS!$A:$P,MATCH('2) Order Form'!$V109,ATS!$O:$O,0),2) -> Ripper Mips Helmet | E109: =INDEX(ATS!$A:$P,MATCH('2) Order Form'!$V109,ATS!$O:$O,0),4) -> LIAM-53/61 | F109: =INDEX(ATS!$A:$P,MATCH('2) Order Form'!$V109,ATS!$O:$O,0),5) -> Lilac Metallic | G109: =INDEX(ATS!$A:$P,MATCH('2) Order Form'!$V109,ATS!$O:$O,0),6) -> 53/61 | H109: 1 | I109: 0 | J109: =IFERROR(VLOOKUP(V109,ATS!$O:$P,2,FALSE),0) -> 154 | K109: 50+ | L109: =IFERROR(VLOOKUP(V109,ATS!$O:$Q,3,FALSE),0) -> 154 | M109: 50+ | N109: 0% | O109: 0% | P109: =VLOOKUP($C109,Prices!$A$3:$T$1996,MATCH('2) Order Form'!P$8,Prices!$A$2:$T$2,0),FALSE) -> 50.00 | Q109: =VLOOKUP($C109,Prices!$A$3:$T$1996,MATCH('2) Order Form'!Q$8,Prices!$A$2:$T$2,0),FALSE) -> 99.00 | R109: 0 | S109: 0 | T109: 0 | V109: 7048652902986 | X109: *** EOL *** | Y109: 0 | Z109: 0 | AA109: 7 | AB109: 0 | AC109: 1 | AD109: 845106Lilac Metallic | AE109: 845106 | AF109: =INDEX(ATS!$A:$P,MATCH('2) Order Form'!$V109,ATS!$O:$O,0),7) -> Stock | AG109: 7048652903044
A110: 1 | B110: Helmets & Helmet Acc. | C110: =INDEX(ATS!$A:$P,MATCH('2) Order Form'!$V110,ATS!$O:$O,0),1) -> 845106 | D110: =INDEX(ATS!$A:$P,MATCH('2) Order Form'!$V110,ATS!$O:$O,0),2) -> Ripper Mips Helmet | E110: =INDEX(ATS!$A:$P,MATCH('2) Order Form'!$V110,ATS!$O:$O,0),4) -> MBLK-53/61 | F110: =INDEX(ATS!$A:$P,MATCH('2) Order Form'!$V110,ATS!$O:$O,0),5) -> Matte Black | G110: =INDEX(ATS!$A:$P,MATCH('2) Order Form'!$V110,ATS!$O:$O,0),6) -> 53/61 | H110: 1 | I110: 0 | J110: =IFERROR(VLOOKUP(V110,ATS!$O:$P,2,FALSE),0) -> 2240 | K110: =IF(J110=99999,"OPEN",IF(J110>50,"50+",IF(J110<=0,"0",J110))) -> 50+ | L110: =IFERROR(VLOOKUP(V110,ATS!$O:$Q,3,FALSE),0) -> 2240 | M110: =IF(L110=99999,"OPEN",IF(L110>50,"50+",IF(L110<=0,"0",L110))) -> 50+ | N110: 0% | O110: =IF(N110<>0,N110,$P$5) -> 0% | P110: =VLOOKUP($C110,Prices!$A$3:$T$1996,MATCH('2) Order Form'!P$8,Prices!$A$2:$T$2,0),FALSE) -> 50.00 | Q110: =VLOOKUP($C110,Prices!$A$3:$T$1996,MATCH('2) Order Form'!Q$8,Prices!$A$2:$T$2,0),FALSE) -> 99.00 | R110: =I110*P110 -> 0 | S110: =R110*O110 -> 0 | T110: =R110-S110 -> 0 | V110: 7048652540980 | Y110: 0 | Z110: 0 | AA110: 7 | AB110: 0 | AC110: 1 | AD110: 845106Matte Black | AE110: 845106 | AF110: =INDEX(ATS!$A:$P,MATCH('2) Order Form'!$V110,ATS!$O:$O,0),7) -> Active | AG110: 7048652540881
A111: 1 | B111: Helmets & Helmet Acc. | C111: =INDEX(ATS!$A:$P,MATCH('2) Order Form'!$V111,ATS!$O:$O,0),1) -> 845106 | D111: =INDEX(ATS!$A:$P,MATCH('2) Order Form'!$V111,ATS!$O:$O,0),2) -> Ripper Mips Helmet | E111: =INDEX(ATS!$A:$P,MATCH('2) Order Form'!$V111,ATS!$O:$O,0),4) -> MWHT-53/61 | F111: =INDEX(ATS!$A:$P,MATCH('2) Order Form'!$V111,ATS!$O:$O,0),5) -> Matte White | G111: =INDEX(ATS!$A:$P,MATCH('2) Order Form'!$V111,ATS!$O:$O,0),6) -> 53/61 | H111: 1 | I111: 0 | J111: =IFERROR(VLOOKUP(V111,ATS!$O:$P,2,FALSE),0) -> 1484 | K111: 50+ | L111: =IFERROR(VLOOKUP(V111,ATS!$O:$Q,3,FALSE),0) -> 1484 | M111: 50+ | N111: 0% | O111: 0% | P111: =VLOOKUP($C111,Prices!$A$3:$T$1996,MATCH('2) Order Form'!P$8,Prices!$A$2:$T$2,0),FALSE) -> 50.00 | Q111: =VLOOKUP($C111,Prices!$A$3:$T$1996,MATCH('2) Order Form'!Q$8,Prices!$A$2:$T$2,0),FALSE) -> 99.00 | R111: 0 | S111: 0 | T111: 0 | V111: 7048652541024 | Y111: 0 | Z111: 0 | AA111: 7 | AB111: 0 | AC111: 1 | AD111: 845106Matte White | AE111: 845106 | AF111: =INDEX(ATS!$A:$P,MATCH('2) Order Form'!$V111,ATS!$O:$O,0),7) -> Active | AG111: 7048653018358
A112: 1 | B112: Helmets & Helmet Acc. | C112: =INDEX(ATS!$A:$P,MATCH('2) Order Form'!$V112,ATS!$O:$O,0),1) -> 845106 | D112: =INDEX(ATS!$A:$P,MATCH('2) Order Form'!$V112,ATS!$O:$O,0),2) -> Ripper Mips Helmet | E112: =INDEX(ATS!$A:$P,MATCH('2) Order Form'!$V112,ATS!$O:$O,0),4) -> SAME-53/61 | F112: =INDEX(ATS!$A:$P,MATCH('2) Order Form'!$V112,ATS!$O:$O,0),5) -> Sea Metallic | G112: =INDEX(ATS!$A:$P,MATCH('2) Order Form'!$V112,ATS!$O:$O,0),6) -> 53/61 | H112: 1 | I112: 0 | J112: =IFERROR(VLOOKUP(V112,ATS!$O:$P,2,FALSE),0) -> 47 | K112: =IF(J112=99999,"OPEN",IF(J112>50,"50+",IF(J112<=0,"0",J112))) -> 47 | L112: =IFERROR(VLOOKUP(V112,ATS!$O:$Q,3,FALSE),0) -> 47 | M112: =IF(L112=99999,"OPEN",IF(L112>50,"50+",IF(L112<=0,"0",L112))) -> 47 | N112: 0% | O112: =IF(N112<>0,N112,$P$5) -> 0% | P112: =VLOOKUP($C112,Prices!$A$3:$T$1996,MATCH('2) Order Form'!P$8,Prices!$A$2:$T$2,0),FALSE) -> 50.00 | Q112: =VLOOKUP($C112,Prices!$A$3:$T$1996,MATCH('2) Order Form'!Q$8,Prices!$A$2:$T$2,0),FALSE) -> 99.00 | R112: =I112*P112 -> 0 | S112: =R112*O112 -> 0 | T112: =R112-S112 -> 0 | V112: 7048652902993 | X112: *** EOL *** | Y112: =I112*Q112 -> 0 | Z112: 0 | AA112: 7 | AB112: =IF(C112=OFFSET(C112,-1,0),0,1) -> 0 | AC112: =IF(F112=OFFSET(F112,-1,0),0,1) -> 1 | AD112: =CONCATENATE(C112,F112) -> 845106Sea Metallic | AE112: =IFERROR(IF(B112="EYEWEAR",CONCATENATE(C112,"-",G112),C112),C112) -> 845106 | AF112: =INDEX(ATS!$A:$P,MATCH('2) Order Form'!$V112,ATS!$O:$O,0),7) -> Stock | AG112: 7048652540928
A113: 1 | B113: Helmets & Helmet Acc. | C113: =INDEX(ATS!$A:$P,MATCH('2) Order Form'!$V113,ATS!$O:$O,0),1) -> 845106 | D113: =INDEX(ATS!$A:$P,MATCH('2) Order Form'!$V113,ATS!$O:$O,0),2) -> Ripper Mips Helmet | E113: =INDEX(ATS!$A:$P,MATCH('2) Order Form'!$V113,ATS!$O:$O,0),4) -> WOLD-53/61 | F113: =INDEX(ATS!$A:$P,MATCH('2) Order Form'!$V113,ATS!$O:$O,0),5) -> Woodland | G113: =INDEX(ATS!$A:$P,MATCH('2) Order Form'!$V113,ATS!$O:$O,0),6) -> 53/61 | H113: 1 | I113: 0 | J113: =IFERROR(VLOOKUP(V113,ATS!$O:$P,2,FALSE),0) -> 83 | K113: 50+ | L113: =IFERROR(VLOOKUP(V113,ATS!$O:$Q,3,FALSE),0) -> 83 | M113: 50+ | N113: 0% | O113: 0% | P113: =VLOOKUP($C113,Prices!$A$3:$T$1996,MATCH('2) Order Form'!P$8,Prices!$A$2:$T$2,0),FALSE) -> 50.00 | Q113: =VLOOKUP($C113,Prices!$A$3:$T$1996,MATCH('2) Order Form'!Q$8,Prices!$A$2:$T$2,0),FALSE) -> 99.00 | R113: 0 | S113: 0 | T113: 0 | V113: 7048652903006 | Y113: 0 | Z113: 0 | AA113: 7 | AB113: 0 | AC113: 1 | AD113: 845106Woodland | AE113: 845106 | AF113: =INDEX(ATS!$A:$P,MATCH('2) Order Form'!$V113,ATS!$O:$O,0),7) -> Active | AG113: 7048653018341
A114: 1 | B114: Helmets & Helmet Acc. | C114: =INDEX(ATS!$A:$P,MATCH('2) Order Form'!$V114,ATS!$O:$O,0),1) -> 845074 | D114: =INDEX(ATS!$A:$P,MATCH('2) Order Form'!$V114,ATS!$O:$O,0),2) -> Dissenter Helmet Jr | E114: =INDEX(ATS!$A:$P,MATCH('2) Order Form'!$V114,ATS!$O:$O,0),4) -> DALIM-XSS | F114: =INDEX(ATS!$A:$P,MATCH('2) Order Form'!$V114,ATS!$O:$O,0),5) -> Dark Lilac Metallic | G114: =INDEX(ATS!$A:$P,MATCH('2) Order Form'!$V114,ATS!$O:$O,0),6) -> XSS | H114: 1 | I114: 0 | J114: =IFERROR(VLOOKUP(V114,ATS!$O:$P,2,FALSE),0) -> 98 | K114: =IF(J114=99999,"OPEN",IF(J114>50,"50+",IF(J114<=0,"0",J114))) -> 50+ | L114: =IFERROR(VLOOKUP(V114,ATS!$O:$Q,3,FALSE),0) -> 98 | M114: =IF(L114=99999,"OPEN",IF(L114>50,"50+",IF(L114<=0,"0",L114))) -> 50+ | N114: 0% | O114: =IF(N114<>0,N114,$P$5) -> 0% | P114: =VLOOKUP($C114,Prices!$A$3:$T$1996,MATCH('2) Order Form'!P$8,Prices!$A$2:$T$2,0),FALSE) -> 50.00 | Q114: =VLOOKUP($C114,Prices!$A$3:$T$1996,MATCH('2) Order Form'!Q$8,Prices!$A$2:$T$2,0),FALSE) -> 99.00 | R114: =I114*P114 -> 0 | S114: =R114*O114 -> 0 | T114: =R114-S114 -> 0 | V114: 7048652893581 | X114: *** EOL *** | Y114: =I114*Q114 -> 0 | Z114: 0 | AA114: 8 | AB114: =IF(C114=OFFSET(C114,-1,0),0,1) -> 1 | AC114: =IF(F114=OFFSET(F114,-1,0),0,1) -> 1 | AD114: =CONCATENATE(C114,F114) -> 845074Dark Lilac Metallic | AE114: =IFERROR(IF(B114="EYEWEAR",CONCATENATE(C114,"-",G114),C114),C114) -> 845074 | AF114: =INDEX(ATS!$A:$P,MATCH('2) Order Form'!$V114,ATS!$O:$O,0),7) -> Stock | AG114: 7048652767820
A115: 1 | B115: Helmets & Helmet Acc. | C115: =INDEX(ATS!$A:$P,MATCH('2) Order Form'!$V115,ATS!$O:$O,0),1) -> 845074 | D115: =INDEX(ATS!$A:$P,MATCH('2) Order Form'!$V115,ATS!$O:$O,0),2) -> Dissenter Helmet Jr | E115: =INDEX(ATS!$A:$P,MATCH('2) Order Form'!$V115,ATS!$O:$O,0),4) -> DALIM-SM | F115: =INDEX(ATS!$A:$P,MATCH('2) Order Form'!$V115,ATS!$O:$O,0),5) -> Dark Lilac Metallic | G115: =INDEX(ATS!$A:$P,MATCH('2) Order Form'!$V115,ATS!$O:$O,0),6) -> SM | H115: 1 | I115: 0 | J115: =IFERROR(VLOOKUP(V115,ATS!$O:$P,2,FALSE),0) -> 156 | K115: 50+ | L115: =IFERROR(VLOOKUP(V115,ATS!$O:$Q,3,FALSE),0) -> 156 | M115: 50+ | N115: 0% | O115: 0% | P115: =VLOOKUP($C115,Prices!$A$3:$T$1996,MATCH('2) Order Form'!P$8,Prices!$A$2:$T$2,0),FALSE) -> 50.00 | Q115: =VLOOKUP($C115,Prices!$A$3:$T$1996,MATCH('2) Order Form'!Q$8,Prices!$A$2:$T$2,0),FALSE) -> 99.00 | R115: 0 | S115: 0 | T115: 0 | V115: 7048652893574 | X115: *** EOL *** | Y115: 0 | Z115: 0 | AA115: 8 | AB115: 0 | AC115: 0 | AD115: 845074Dark Lilac Metallic | AE115: 845074 | AF115: =INDEX(ATS!$A:$P,MATCH('2) Order Form'!$V115,ATS!$O:$O,0),7) -> Stock | AG115: 7048653018365
A116: 1 | B116: Helmets & Helmet Acc. | C116: =INDEX(ATS!$A:$P,MATCH('2) Order Form'!$V116,ATS!$O:$O,0),1) -> 845074 | D116: =INDEX(ATS!$A:$P,MATCH('2) Order Form'!$V116,ATS!$O:$O,0),2) -> Dissenter Helmet Jr | E116: =INDEX(ATS!$A:$P,MATCH('2) Order Form'!$V116,ATS!$O:$O,0),4) -> SKBLM-XSS | F116: =INDEX(ATS!$A:$P,MATCH('2) Order Form'!$V116,ATS!$O:$O,0),5) -> Sky Blue Metallic | G116: =INDEX(ATS!$A:$P,MATCH('2) Order Form'!$V116,ATS!$O:$O,0),6) -> XSS | H116: 1 | I116: 0 | J116: =IFERROR(VLOOKUP(V116,ATS!$O:$P,2,FALSE),0) -> 61 | K116: 50+ | L116: =IFERROR(VLOOKUP(V116,ATS!$O:$Q,3,FALSE),0) -> 61 | M116: 50+ | N116: 0% | O116: 0% | P116: =VLOOKUP($C116,Prices!$A$3:$T$1996,MATCH('2) Order Form'!P$8,Prices!$A$2:$T$2,0),FALSE) -> 50.00 | Q116: =VLOOKUP($C116,Prices!$A$3:$T$1996,MATCH('2) Order Form'!Q$8,Prices!$A$2:$T$2,0),FALSE) -> 99.00 | R116: 0 | S116: 0 | T116: 0 | V116: 7048652893604 | Y116: 0 | Z116: 0 | AA116: 8 | AB116: 0 | AC116: 1 | AD116: 845074Sky Blue Metallic | AE116: 845074 | AF116: =INDEX(ATS!$A:$P,MATCH('2) Order Form'!$V116,ATS!$O:$O,0),7) -> Active | AG116: 7048652903082
A117: 1 | B117: Helmets & Helmet Acc. | C117: =INDEX(ATS!$A:$P,MATCH('2) Order Form'!$V117,ATS!$O:$O,0),1) -> 845074 | D117: =INDEX(ATS!$A:$P,MATCH('2) Order Form'!$V117,ATS!$O:$O,0),2) -> Dissenter Helmet Jr | E117: =INDEX(ATS!$A:$P,MATCH('2) Order Form'!$V117,ATS!$O:$O,0),4) -> SKBLM-SM | F117: =INDEX(ATS!$A:$P,MATCH('2) Order Form'!$V117,ATS!$O:$O,0),5) -> Sky Blue Metallic | G117: =INDEX(ATS!$A:$P,MATCH('2) Order Form'!$V117,ATS!$O:$O,0),6) -> SM | H117: 1 | I117: 0 | J117: =IFERROR(VLOOKUP(V117,ATS!$O:$P,2,FALSE),0) -> 82 | K117: 50+ | L117: =IFERROR(VLOOKUP(V117,ATS!$O:$Q,3,FALSE),0) -> 82 | M117: 50+ | N117: 0% | O117: 0% | P117: =VLOOKUP($C117,Prices!$A$3:$T$1996,MATCH('2) Order Form'!P$8,Prices!$A$2:$T$2,0),FALSE) -> 50.00 | Q117: =VLOOKUP($C117,Prices!$A$3:$T$1996,MATCH('2) Order Form'!Q$8,Prices!$A$2:$T$2,0),FALSE) -> 99.00 | R117: 0 | S117: 0 | T117: 0 | V117: 7048652893598 | Y117: 0 | Z117: 0 | AA117: 8 | AB117: 0 | AC117: 0 | AD117: 845074Sky Blue Metallic | AE117: 845074 | AF117: =INDEX(ATS!$A:$P,MATCH('2) Order Form'!$V117,ATS!$O:$O,0),7) -> Active | AG117: 7048653025714
A118: 1 | B118: Helmets & Helmet Acc. | C118: =INDEX(ATS!$A:$P,MATCH('2) Order Form'!$V118,ATS!$O:$O,0),1) -> 845074 | D118: =INDEX(ATS!$A:$P,MATCH('2) Order Form'!$V118,ATS!$O:$O,0),2) -> Dissenter Helmet Jr | E118: =INDEX(ATS!$A:$P,MATCH('2) Order Form'!$V118,ATS!$O:$O,0),4) -> WOLND-XSS | F118: =INDEX(ATS!$A:$P,MATCH('2) Order Form'!$V118,ATS!$O:$O,0),5) -> Woodland | G118: =INDEX(ATS!$A:$P,MATCH('2) Order Form'!$V118,ATS!$O:$O,0),6) -> XSS | H118: 1 | I118: 0 | J118: =IFERROR(VLOOKUP(V118,ATS!$O:$P,2,FALSE),0) -> 87 | K118: =IF(J118=99999,"OPEN",IF(J118>50,"50+",IF(J118<=0,"0",J118))) -> 50+ | L118: =IFERROR(VLOOKUP(V118,ATS!$O:$Q,3,FALSE),0) -> 87 | M118: =IF(L118=99999,"OPEN",IF(L118>50,"50+",IF(L118<=0,"0",L118))) -> 50+ | N118: 0% | O118: =IF(N118<>0,N118,$P$5) -> 0% | P118: =VLOOKUP($C118,Prices!$A$3:$T$1996,MATCH('2) Order Form'!P$8,Prices!$A$2:$T$2,0),FALSE) -> 50.00 | Q118: =VLOOKUP($C118,Prices!$A$3:$T$1996,MATCH('2) Order Form'!Q$8,Prices!$A$2:$T$2,0),FALSE) -> 99.00 | R118: =I118*P118 -> 0 | S118: =R118*O118 -> 0 | T118: =R118-S118 -> 0 | V118: 7048652893628 | Y118: =I118*Q118 -> 0 | Z118: 0 | AA118: 8 | AB118: 0 | AC118: 1 | AD118: 845074Woodland | AE118: 845074 | AF118: =INDEX(ATS!$A:$P,MATCH('2) Order Form'!$V118,ATS!$O:$O,0),7) -> Active | AG118: 7048653025707
A119: 1 | B119: Helmets & Helmet Acc. | C119: =INDEX(ATS!$A:$P,MATCH('2) Order Form'!$V119,ATS!$O:$O,0),1) -> 845074 | D119: =INDEX(ATS!$A:$P,MATCH('2) Order Form'!$V119,ATS!$O:$O,0),2) -> Dissenter Helmet Jr | E119: =INDEX(ATS!$A:$P,MATCH('2) Order Form'!$V119,ATS!$O:$O,0),4) -> WOLND-SM | F119: =INDEX(ATS!$A:$P,MATCH('2) Order Form'!$V119,ATS!$O:$O,0),5) -> Woodland | G119: =INDEX(ATS!$A:$P,MATCH('2) Order Form'!$V119,ATS!$O:$O,0),6) -> SM | H119: 1 | I119: 0 | J119: =IFERROR(VLOOKUP(V119,ATS!$O:$P,2,FALSE),0) -> 175 | K119: 50+ | L119: =IFERROR(VLOOKUP(V119,ATS!$O:$Q,3,FALSE),0) -> 175 | M119: 50+ | N119: 0% | O119: 0% | P119: =VLOOKUP($C119,Prices!$A$3:$T$1996,MATCH('2) Order Form'!P$8,Prices!$A$2:$T$2,0),FALSE) -> 50.00 | Q119: =VLOOKUP($C119,Prices!$A$3:$T$1996,MATCH('2) Order Form'!Q$8,Prices!$A$2:$T$2,0),FALSE) -> 99.00 | R119: 0 | S119: 0 | T119: 0 | V119: 7048652893611 | Y119: 0 | Z119: 0 | AA119: 8 | AB119: 0 | AC119: 0 | AD119: 845074Woodland | AE119: 845074 | AF119: =INDEX(ATS!$A:$P,MATCH('2) Order Form'!$V119,ATS!$O:$O,0),7) -> Active | AG119: 7048653025721
A120: 1 | B120: Helmets & Helmet Acc. | C120: =INDEX(ATS!$A:$P,MATCH('2) Order Form'!$V120,ATS!$O:$O,0),1) -> 845107 | D120: =INDEX(ATS!$A:$P,MATCH('2) Order Form'!$V120,ATS!$O:$O,0),2) -> Ripper Helmet Jr | E120: =INDEX(ATS!$A:$P,MATCH('2) Order Form'!$V120,ATS!$O:$O,0),4) -> BLTI-48/53 | F120: =INDEX(ATS!$A:$P,MATCH('2) Order Form'!$V120,ATS!$O:$O,0),5) -> Black Tie | G120: =INDEX(ATS!$A:$P,MATCH('2) Order Form'!$V120,ATS!$O:$O,0),6) -> 48/53 | H120: 1 | I120: 0 | J120: =IFERROR(VLOOKUP(V120,ATS!$O:$P,2,FALSE),0) -> 78 | K120: =IF(J120=99999,"OPEN",IF(J120>50,"50+",IF(J120<=0,"0",J120))) -> 50+ | L120: =IFERROR(VLOOKUP(V120,ATS!$O:$Q,3,FALSE),0) -> 78 | M120: =IF(L120=99999,"OPEN",IF(L120>50,"50+",IF(L120<=0,"0",L120))) -> 50+ | N120: 0% | O120: =IF(N120<>0,N120,$P$5) -> 0% | P120: =VLOOKUP($C120,Prices!$A$3:$T$1996,MATCH('2) Order Form'!P$8,Prices!$A$2:$T$2,0),FALSE) -> 30.00 | Q120: =VLOOKUP($C120,Prices!$A$3:$T$1996,MATCH('2) Order Form'!Q$8,Prices!$A$2:$T$2,0),FALSE) -> 59.00 | R120: =I120*P120 -> 0 | S120: =R120*O120 -> 0 | T120: =R120-S120 -> 0 | V120: 7048652903013 | X120: *** EOL *** | Y120: =I120*Q120 -> 0 | Z120: 0 | AA120: 9 | AB120: =IF(C120=OFFSET(C120,-1,0),0,1) -> 1 | AC120: =IF(F120=OFFSET(F120,-1,0),0,1) -> 1 | AD120: =CONCATENATE(C120,F120) -> 845107Black Tie | AE120: =IFERROR(IF(B120="EYEWEAR",CONCATENATE(C120,"-",G120),C120),C120) -> 845107 | AF120: =INDEX(ATS!$A:$P,MATCH('2) Order Form'!$V120,ATS!$O:$O,0),7) -> Stock | AG120: 7048653025738
A121: 1 | B121: Helmets & Helmet Acc. | C121: =INDEX(ATS!$A:$P,MATCH('2) Order Form'!$V121,ATS!$O:$O,0),1) -> 845107 | D121: =INDEX(ATS!$A:$P,MATCH('2) Order Form'!$V121,ATS!$O:$O,0),2) -> Ripper Helmet Jr | E121: =INDEX(ATS!$A:$P,MATCH('2) Order Form'!$V121,ATS!$O:$O,0),4) -> DLIM-48/53 | F121: =INDEX(ATS!$A:$P,MATCH('2) Order Form'!$V121,ATS!$O:$O,0),5) -> Dark Lilac Metallic | G121: =INDEX(ATS!$A:$P,MATCH('2) Order Form'!$V121,ATS!$O:$O,0),6) -> 48/53 | H121: 1 | I121: 0 | J121: =IFERROR(VLOOKUP(V121,ATS!$O:$P,2,FALSE),0) -> 275 | K121: 50+ | L121: =IFERROR(VLOOKUP(V121,ATS!$O:$Q,3,FALSE),0) -> 275 | M121: =IF(L121=99999,"OPEN",IF(L121>50,"50+",IF(L121<=0,"0",L121))) -> 50+ | N121: 0% | O121: =IF(N121<>0,N121,$P$5) -> 0% | P121: =VLOOKUP($C121,Prices!$A$3:$T$1996,MATCH('2) Order Form'!P$8,Prices!$A$2:$T$2,0),FALSE) -> 30.00 | Q121: =VLOOKUP($C121,Prices!$A$3:$T$1996,MATCH('2) Order Form'!Q$8,Prices!$A$2:$T$2,0),FALSE) -> 59.00 | R121: =I121*P121 -> 0 | S121: 0 | T121: 0 | V121: 7048652903020 | X121: *** EOL *** | Y121: =I121*Q121 -> 0 | Z121: 0 | AA121: 9 | AB121: 0 | AC121: 1 | AD121: 845107Dark Lilac Metallic | AE121: 845107 | AF121: =INDEX(ATS!$A:$P,MATCH('2) Order Form'!$V121,ATS!$O:$O,0),7) -> Stock | AG121: 7048653025516
A122: 1 | B122: Helmets & Helmet Acc. | C122: =INDEX(ATS!$A:$P,MATCH('2) Order Form'!$V122,ATS!$O:$O,0),1) -> 845107 | D122: =INDEX(ATS!$A:$P,MATCH('2) Order Form'!$V122,ATS!$O:$O,0),2) -> Ripper Helmet Jr | E122: =INDEX(ATS!$A:$P,MATCH('2) Order Form'!$V122,ATS!$O:$O,0),4) -> MBLK-48/53 | F122: =INDEX(ATS!$A:$P,MATCH('2) Order Form'!$V122,ATS!$O:$O,0),5) -> Matte Black | G122: =INDEX(ATS!$A:$P,MATCH('2) Order Form'!$V122,ATS!$O:$O,0),6) -> 48/53 | H122: 1 | I122: 0 | J122: =IFERROR(VLOOKUP(V122,ATS!$O:$P,2,FALSE),0) -> 1131 | K122: =IF(J122=99999,"OPEN",IF(J122>50,"50+",IF(J122<=0,"0",J122))) -> 50+ | L122: =IFERROR(VLOOKUP(V122,ATS!$O:$Q,3,FALSE),0) -> 1131 | M122: =IF(L122=99999,"OPEN",IF(L122>50,"50+",IF(L122<=0,"0",L122))) -> 50+ | N122: 0% | O122: =IF(N122<>0,N122,$P$5) -> 0% | P122: =VLOOKUP($C122,Prices!$A$3:$T$1996,MATCH('2) Order Form'!P$8,Prices!$A$2:$T$2,0),FALSE) -> 30.00 | Q122: =VLOOKUP($C122,Prices!$A$3:$T$1996,MATCH('2) Order Form'!Q$8,Prices!$A$2:$T$2,0),FALSE) -> 59.00 | R122: =I122*P122 -> 0 | S122: =R122*O122 -> 0 | T122: =R122-S122 -> 0 | V122: 7048652540836 | Y122: =I122*Q122 -> 0 | Z122: 0 | AA122: 9 | AB122: 0 | AC122: 1 | AD122: 845107Matte Black | AE122: 845107 | AF122: =INDEX(ATS!$A:$P,MATCH('2) Order Form'!$V122,ATS!$O:$O,0),7) -> Active | AG122: 7048653025509
A123: 1 | B123: Helmets & Helmet Acc. | C123: =INDEX(ATS!$A:$P,MATCH('2) Order Form'!$V123,ATS!$O:$O,0),1) -> 845107 | D123: =INDEX(ATS!$A:$P,MATCH('2) Order Form'!$V123,ATS!$O:$O,0),2) -> Ripper Helmet Jr | E123: =INDEX(ATS!$A:$P,MATCH('2) Order Form'!$V123,ATS!$O:$O,0),4) -> MFLU-48/53 | F123: =INDEX(ATS!$A:$P,MATCH('2) Order Form'!$V123,ATS!$O:$O,0),5) -> Matte Fluo | G123: =INDEX(ATS!$A:$P,MATCH('2) Order Form'!$V123,ATS!$O:$O,0),6) -> 48/53 | H123: 1 | I123: 0 | J123: =IFERROR(VLOOKUP(V123,ATS!$O:$P,2,FALSE),0) -> 282 | K123: 50+ | L123: =IFERROR(VLOOKUP(V123,ATS!$O:$Q,3,FALSE),0) -> 282 | M123: 50+ | N123: 0% | O123: 0% | P123: =VLOOKUP($C123,Prices!$A$3:$T$1996,MATCH('2) Order Form'!P$8,Prices!$A$2:$T$2,0),FALSE) -> 30.00 | Q123: =VLOOKUP($C123,Prices!$A$3:$T$1996,MATCH('2) Order Form'!Q$8,Prices!$A$2:$T$2,0),FALSE) -> 59.00 | R123: 0 | S123: 0 | T123: 0 | V123: 7048652767738 | X123: *** EOL *** | Y123: =I123*Q123 -> 0 | Z123: 0 | AA123: 9 | AB123: 0 | AC123: 1 | AD123: 845107Matte Fluo | AE123: 845107 | AF123: =INDEX(ATS!$A:$P,MATCH('2) Order Form'!$V123,ATS!$O:$O,0),7) -> Stock | AG123: 7048653025493
A124: 1 | B124: Helmets & Helmet Acc. | C124: =INDEX(ATS!$A:$P,MATCH('2) Order Form'!$V124,ATS!$O:$O,0),1) -> 845107 | D124: =INDEX(ATS!$A:$P,MATCH('2) Order Form'!$V124,ATS!$O:$O,0),2) -> Ripper Helmet Jr | E124: =INDEX(ATS!$A:$P,MATCH('2) Order Form'!$V124,ATS!$O:$O,0),4) -> MWHT-48/53 | F124: =INDEX(ATS!$A:$P,MATCH('2) Order Form'!$V124,ATS!$O:$O,0),5) -> Matte White | G124: =INDEX(ATS!$A:$P,MATCH('2) Order Form'!$V124,ATS!$O:$O,0),6) -> 48/53 | H124: 1 | I124: 0 | J124: =IFERROR(VLOOKUP(V124,ATS!$O:$P,2,FALSE),0) -> 511 | K124: 50+ | L124: =IFERROR(VLOOKUP(V124,ATS!$O:$Q,3,FALSE),0) -> 511 | M124: 50+ | N124: 0% | O124: 0% | P124: =VLOOKUP($C124,Prices!$A$3:$T$1996,MATCH('2) Order Form'!P$8,Prices!$A$2:$T$2,0),FALSE) -> 30.00 | Q124: =VLOOKUP($C124,Prices!$A$3:$T$1996,MATCH('2) Order Form'!Q$8,Prices!$A$2:$T$2,0),FALSE) -> 59.00 | R124: 0 | S124: 0 | T124: 0 | V124: 7048652540874 | Y124: =I124*Q124 -> 0 | Z124: 0 | AA124: =IF(C124=OFFSET(C124,-1,0),OFFSET(AA124,-1,0),OFFSET(AA124,-1,0)+1) -> 9 | AB124: 0 | AC124: 1 | AD124: 845107Matte White | AE124: 845107 | AF124: =INDEX(ATS!$A:$P,MATCH('2) Order Form'!$V124,ATS!$O:$O,0),7) -> Active | AG124: 7048652893031
A125: 1 | B125: Helmets & Helmet Acc. | C125: =INDEX(ATS!$A:$P,MATCH('2) Order Form'!$V125,ATS!$O:$O,0),1) -> 845107 | D125: =INDEX(ATS!$A:$P,MATCH('2) Order Form'!$V125,ATS!$O:$O,0),2) -> Ripper Helmet Jr | E125: =INDEX(ATS!$A:$P,MATCH('2) Order Form'!$V125,ATS!$O:$O,0),4) -> SBLM-48/53 | F125: =INDEX(ATS!$A:$P,MATCH('2) Order Form'!$V125,ATS!$O:$O,0),5) -> Sky Blue Metallic | G125: =INDEX(ATS!$A:$P,MATCH('2) Order Form'!$V125,ATS!$O:$O,0),6) -> 48/53 | H125: 1 | I125: 0 | J125: =IFERROR(VLOOKUP(V125,ATS!$O:$P,2,FALSE),0) -> 613 | K125: 50+ | L125: =IFERROR(VLOOKUP(V125,ATS!$O:$Q,3,FALSE),0) -> 613 | M125: 50+ | N125: 0% | O125: 0% | P125: =VLOOKUP($C125,Prices!$A$3:$T$1996,MATCH('2) Order Form'!P$8,Prices!$A$2:$T$2,0),FALSE) -> 30.00 | Q125: =VLOOKUP($C125,Prices!$A$3:$T$1996,MATCH('2) Order Form'!Q$8,Prices!$A$2:$T$2,0),FALSE) -> 59.00 | R125: 0 | S125: 0 | T125: 0 | V125: 7048652767769 | Y125: =I125*Q125 -> 0 | Z125: 0 | AA125: 9 | AB125: 0 | AC125: 1 | AD125: 845107Sky Blue Metallic | AE125: 845107 | AF125: =INDEX(ATS!$A:$P,MATCH('2) Order Form'!$V125,ATS!$O:$O,0),7) -> Active | AG125: 7048652893024
A126: 1 | B126: Helmets & Helmet Acc. | C126: =INDEX(ATS!$A:$P,MATCH('2) Order Form'!$V126,ATS!$O:$O,0),1) -> 845107 | D126: =INDEX(ATS!$A:$P,MATCH('2) Order Form'!$V126,ATS!$O:$O,0),2) -> Ripper Helmet Jr | E126: =INDEX(ATS!$A:$P,MATCH('2) Order Form'!$V126,ATS!$O:$O,0),4) -> SAME-48/53 | F126: =INDEX(ATS!$A:$P,MATCH('2) Order Form'!$V126,ATS!$O:$O,0),5) -> Sea Metallic | G126: =INDEX(ATS!$A:$P,MATCH('2) Order Form'!$V126,ATS!$O:$O,0),6) -> 48/53 | H126: 1 | I126: 0 | J126: =IFERROR(VLOOKUP(V126,ATS!$O:$P,2,FALSE),0) -> 63 | K126: 50+ | L126: =IFERROR(VLOOKUP(V126,ATS!$O:$Q,3,FALSE),0) -> 63 | M126: =IF(L126=99999,"OPEN",IF(L126>50,"50+",IF(L126<=0,"0",L126))) -> 50+ | N126: 0% | O126: =IF(N126<>0,N126,$P$5) -> 0% | P126: =VLOOKUP($C126,Prices!$A$3:$T$1996,MATCH('2) Order Form'!P$8,Prices!$A$2:$T$2,0),FALSE) -> 30.00 | Q126: =VLOOKUP($C126,Prices!$A$3:$T$1996,MATCH('2) Order Form'!Q$8,Prices!$A$2:$T$2,0),FALSE) -> 59.00 | R126: =I126*P126 -> 0 | S126: 0 | T126: 0 | V126: 7048652903037 | X126: *** EOL *** | Y126: =I126*Q126 -> 0 | Z126: 0 | AA126: 9 | AB126: =IF(C126=OFFSET(C126,-1,0),0,1) -> 0 | AC126: =IF(F126=OFFSET(F126,-1,0),0,1) -> 1 | AD126: =CONCATENATE(C126,F126) -> 845107Sea Metallic | AE126: =IFERROR(IF(B126="EYEWEAR",CONCATENATE(C126,"-",G126),C126),C126) -> 845107 | AF126: =INDEX(ATS!$A:$P,MATCH('2) Order Form'!$V126,ATS!$O:$O,0),7) -> Stock | AG126: 7048652893017
A127: 1 | B127: Helmets & Helmet Acc. | C127: =INDEX(ATS!$A:$P,MATCH('2) Order Form'!$V127,ATS!$O:$O,0),1) -> 845107 | D127: =INDEX(ATS!$A:$P,MATCH('2) Order Form'!$V127,ATS!$O:$O,0),2) -> Ripper Helmet Jr | E127: =INDEX(ATS!$A:$P,MATCH('2) Order Form'!$V127,ATS!$O:$O,0),4) -> WOLD-48/53 | F127: =INDEX(ATS!$A:$P,MATCH('2) Order Form'!$V127,ATS!$O:$O,0),5) -> Woodland | G127: =INDEX(ATS!$A:$P,MATCH('2) Order Form'!$V127,ATS!$O:$O,0),6) -> 48/53 | H127: 1 | I127: 0 | J127: =IFERROR(VLOOKUP(V127,ATS!$O:$P,2,FALSE),0) -> 79 | K127: 50+ | L127: =IFERROR(VLOOKUP(V127,ATS!$O:$Q,3,FALSE),0) -> 79 | M127: 50+ | N127: 0% | O127: 0% | P127: =VLOOKUP($C127,Prices!$A$3:$T$1996,MATCH('2) Order Form'!P$8,Prices!$A$2:$T$2,0),FALSE) -> 30.00 | Q127: =VLOOKUP($C127,Prices!$A$3:$T$1996,MATCH('2) Order Form'!Q$8,Prices!$A$2:$T$2,0),FALSE) -> 59.00 | R127: 0 | S127: 0 | T127: 0 | V127: 7048652903044 | Y127: 0 | Z127: 0 | AA127: 9 | AB127: 0 | AC127: 1 | AD127: 845107Woodland | AE127: 845107 | AF127: =INDEX(ATS!$A:$P,MATCH('2) Order Form'!$V127,ATS!$O:$O,0),7) -> Active | AG127: 7048652893185
A128: 1 | B128: Helmets & Helmet Acc. | C128: =INDEX(ATS!$A:$P,MATCH('2) Order Form'!$V128,ATS!$O:$O,0),1) -> 845108 | D128: =INDEX(ATS!$A:$P,MATCH('2) Order Form'!$V128,ATS!$O:$O,0),2) -> Ripper Mips Helmet Jr | E128: =INDEX(ATS!$A:$P,MATCH('2) Order Form'!$V128,ATS!$O:$O,0),4) -> BLTI-48/53 | F128: =INDEX(ATS!$A:$P,MATCH('2) Order Form'!$V128,ATS!$O:$O,0),5) -> Black Tie | G128: =INDEX(ATS!$A:$P,MATCH('2) Order Form'!$V128,ATS!$O:$O,0),6) -> 48/53 | H128: 1 | I128: 0 | J128: =IFERROR(VLOOKUP(V128,ATS!$O:$P,2,FALSE),0) -> 60 | K128: =IF(J128=99999,"OPEN",IF(J128>50,"50+",IF(J128<=0,"0",J128))) -> 50+ | L128: =IFERROR(VLOOKUP(V128,ATS!$O:$Q,3,FALSE),0) -> 60 | M128: =IF(L128=99999,"OPEN",IF(L128>50,"50+",IF(L128<=0,"0",L128))) -> 50+ | N128: 0% | O128: =IF(N128<>0,N128,$P$5) -> 0% | P128: =VLOOKUP($C128,Prices!$A$3:$T$1996,MATCH('2) Order Form'!P$8,Prices!$A$2:$T$2,0),FALSE) -> 45.00 | Q128: =VLOOKUP($C128,Prices!$A$3:$T$1996,MATCH('2) Order Form'!Q$8,Prices!$A$2:$T$2,0),FALSE) -> 89.00 | R128: =I128*P128 -> 0 | S128: =R128*O128 -> 0 | T128: =R128-S128 -> 0 | V128: 7048652903051 | X128: *** EOL *** | Y128: =I128*Q128 -> 0 | Z128: 0 | AA128: 10 | AB128: =IF(C128=OFFSET(C128,-1,0),0,1) -> 1 | AC128: =IF(F128=OFFSET(F128,-1,0),0,1) -> 1 | AD128: =CONCATENATE(C128,F128) -> 845108Black Tie | AE128: =IFERROR(IF(B128="EYEWEAR",CONCATENATE(C128,"-",G128),C128),C128) -> 845108 | AF128: =INDEX(ATS!$A:$P,MATCH('2) Order Form'!$V128,ATS!$O:$O,0),7) -> Stock | AG128: 7048652893178
A129: 1 | B129: Helmets & Helmet Acc. | C129: =INDEX(ATS!$A:$P,MATCH('2) Order Form'!$V129,ATS!$O:$O,0),1) -> 845108 | D129: =INDEX(ATS!$A:$P,MATCH('2) Order Form'!$V129,ATS!$O:$O,0),2) -> Ripper Mips Helmet Jr | E129: =INDEX(ATS!$A:$P,MATCH('2) Order Form'!$V129,ATS!$O:$O,0),4) -> DLIM-48/53 | F129: =INDEX(ATS!$A:$P,MATCH('2) Order Form'!$V129,ATS!$O:$O,0),5) -> Dark Lilac Metallic | G129: =INDEX(ATS!$A:$P,MATCH('2) Order Form'!$V129,ATS!$O:$O,0),6) -> 48/53 | H129: 1 | I129: 0 | J129: =IFERROR(VLOOKUP(V129,ATS!$O:$P,2,FALSE),0) -> 609 | K129: 50+ | L129: =IFERROR(VLOOKUP(V129,ATS!$O:$Q,3,FALSE),0) -> 609 | M129: 50+ | N129: 0% | O129: 0% | P129: =VLOOKUP($C129,Prices!$A$3:$T$1996,MATCH('2) Order Form'!P$8,Prices!$A$2:$T$2,0),FALSE) -> 45.00 | Q129: =VLOOKUP($C129,Prices!$A$3:$T$1996,MATCH('2) Order Form'!Q$8,Prices!$A$2:$T$2,0),FALSE) -> 89.00 | R129: 0 | S129: 0 | T129: 0 | V129: 7048652903068 | X129: *** EOL *** | Y129: 0 | Z129: 0 | AA129: 10 | AB129: 0 | AC129: 1 | AD129: 845108Dark Lilac Metallic | AE129: 845108 | AF129: =INDEX(ATS!$A:$P,MATCH('2) Order Form'!$V129,ATS!$O:$O,0),7) -> Stock | AG129: 7048652893161
A130: 1 | B130: Helmets & Helmet Acc. | C130: =INDEX(ATS!$A:$P,MATCH('2) Order Form'!$V130,ATS!$O:$O,0),1) -> 845108 | D130: =INDEX(ATS!$A:$P,MATCH('2) Order Form'!$V130,ATS!$O:$O,0),2) -> Ripper Mips Helmet Jr | E130: =INDEX(ATS!$A:$P,MATCH('2) Order Form'!$V130,ATS!$O:$O,0),4) -> MBLK-48/53 | F130: =INDEX(ATS!$A:$P,MATCH('2) Order Form'!$V130,ATS!$O:$O,0),5) -> Matte Black | G130: =INDEX(ATS!$A:$P,MATCH('2) Order Form'!$V130,ATS!$O:$O,0),6) -> 48/53 | H130: 1 | I130: 0 | J130: =IFERROR(VLOOKUP(V130,ATS!$O:$P,2,FALSE),0) -> 350 | K130: =IF(J130=99999,"OPEN",IF(J130>50,"50+",IF(J130<=0,"0",J130))) -> 50+ | L130: =IFERROR(VLOOKUP(V130,ATS!$O:$Q,3,FALSE),0) -> 350 | M130: 50+ | N130: 0% | O130: 0% | P130: =VLOOKUP($C130,Prices!$A$3:$T$1996,MATCH('2) Order Form'!P$8,Prices!$A$2:$T$2,0),FALSE) -> 45.00 | Q130: =VLOOKUP($C130,Prices!$A$3:$T$1996,MATCH('2) Order Form'!Q$8,Prices!$A$2:$T$2,0),FALSE) -> 89.00 | R130: 0 | S130: =R130*O130 -> 0 | T130: =R130-S130 -> 0 | V130: 7048652540881 | Y130: =I130*Q130 -> 0 | Z130: 0 | AA130: 10 | AB130: 0 | AC130: 1 | AD130: 845108Matte Black | AE130: 845108 | AF130: =INDEX(ATS!$A:$P,MATCH('2) Order Form'!$V130,ATS!$O:$O,0),7) -> Active | AG130: 7048653024632
A131: 1 | B131: Helmets & Helmet Acc. | C131: =INDEX(ATS!$A:$P,MATCH('2) Order Form'!$V131,ATS!$O:$O,0),1) -> 845108 | D131: =INDEX(ATS!$A:$P,MATCH('2) Order Form'!$V131,ATS!$O:$O,0),2) -> Ripper Mips Helmet Jr | E131: =INDEX(ATS!$A:$P,MATCH('2) Order Form'!$V131,ATS!$O:$O,0),4) -> MFLU-48/53 | F131: =INDEX(ATS!$A:$P,MATCH('2) Order Form'!$V131,ATS!$O:$O,0),5) -> Matte Fluo | G131: =INDEX(ATS!$A:$P,MATCH('2) Order Form'!$V131,ATS!$O:$O,0),6) -> 48/53 | H131: 1 | I131: 0 | J131: =IFERROR(VLOOKUP(V131,ATS!$O:$P,2,FALSE),0) -> 280 | K131: =IF(J131=99999,"OPEN",IF(J131>50,"50+",IF(J131<=0,"0",J131))) -> 50+ | L131: =IFERROR(VLOOKUP(V131,ATS!$O:$Q,3,FALSE),0) -> 280 | M131: =IF(L131=99999,"OPEN",IF(L131>50,"50+",IF(L131<=0,"0",L131))) -> 50+ | N131: 0% | O131: =IF(N131<>0,N131,$P$5) -> 0% | P131: =VLOOKUP($C131,Prices!$A$3:$T$1996,MATCH('2) Order Form'!P$8,Prices!$A$2:$T$2,0),FALSE) -> 45.00 | Q131: =VLOOKUP($C131,Prices!$A$3:$T$1996,MATCH('2) Order Form'!Q$8,Prices!$A$2:$T$2,0),FALSE) -> 89.00 | R131: =I131*P131 -> 0 | S131: =R131*O131 -> 0 | T131: =R131-S131 -> 0 | V131: 7048652767790 | X131: *** EOL *** | Y131: =I131*Q131 -> 0 | Z131: 0 | AA131: 10 | AB131: 0 | AC131: 1 | AD131: 845108Matte Fluo | AE131: 845108 | AF131: =INDEX(ATS!$A:$P,MATCH('2) Order Form'!$V131,ATS!$O:$O,0),7) -> Stock | AG131: 7048653024649
A132: 1 | B132: Helmets & Helmet Acc. | C132: =INDEX(ATS!$A:$P,MATCH('2) Order Form'!$V132,ATS!$O:$O,0),1) -> 845108 | D132: =INDEX(ATS!$A:$P,MATCH('2) Order Form'!$V132,ATS!$O:$O,0),2) -> Ripper Mips Helmet Jr | E132: =INDEX(ATS!$A:$P,MATCH('2) Order Form'!$V132,ATS!$O:$O,0),4) -> MWHT-48/53 | F132: =INDEX(ATS!$A:$P,MATCH('2) Order Form'!$V132,ATS!$O:$O,0),5) -> Matte White | G132: =INDEX(ATS!$A:$P,MATCH('2) Order Form'!$V132,ATS!$O:$O,0),6) -> 48/53 | H132: 1 | I132: 0 | J132: =IFERROR(VLOOKUP(V132,ATS!$O:$P,2,FALSE),0) -> 0 | K132: 0 | L132: =IFERROR(VLOOKUP(V132,ATS!$O:$Q,3,FALSE),0) -> 0 | M132: 0 | N132: 0% | O132: 0% | P132: =VLOOKUP($C132,Prices!$A$3:$T$1996,MATCH('2) Order Form'!P$8,Prices!$A$2:$T$2,0),FALSE) -> 45.00 | Q132: =VLOOKUP($C132,Prices!$A$3:$T$1996,MATCH('2) Order Form'!Q$8,Prices!$A$2:$T$2,0),FALSE) -> 89.00 | R132: 0 | S132: 0 | T132: 0 | V132: 7048652540928 | Y132: 0 | Z132: 0 | AA132: 10 | AB132: 0 | AC132: 1 | AD132: 845108Matte White | AE132: 845108 | AF132: =INDEX(ATS!$A:$P,MATCH('2) Order Form'!$V132,ATS!$O:$O,0),7) -> Active | AG132: 7048653024656
A133: 1 | B133: Helmets & Helmet Acc. | C133: =INDEX(ATS!$A:$P,MATCH('2) Order Form'!$V133,ATS!$O:$O,0),1) -> 845108 | D133: =INDEX(ATS!$A:$P,MATCH('2) Order Form'!$V133,ATS!$O:$O,0),2) -> Ripper Mips Helmet Jr | E133: =INDEX(ATS!$A:$P,MATCH('2) Order Form'!$V133,ATS!$O:$O,0),4) -> SBLM-48/53 | F133: =INDEX(ATS!$A:$P,MATCH('2) Order Form'!$V133,ATS!$O:$O,0),5) -> Sky Blue Metallic | G133: =INDEX(ATS!$A:$P,MATCH('2) Order Form'!$V133,ATS!$O:$O,0),6) -> 48/53 | H133: 1 | I133: 0 | J133: =IFERROR(VLOOKUP(V133,ATS!$O:$P,2,FALSE),0) -> 420 | K133: 50+ | L133: =IFERROR(VLOOKUP(V133,ATS!$O:$Q,3,FALSE),0) -> 420 | M133: 50+ | N133: 0% | O133: 0% | P133: =VLOOKUP($C133,Prices!$A$3:$T$1996,MATCH('2) Order Form'!P$8,Prices!$A$2:$T$2,0),FALSE) -> 45.00 | Q133: =VLOOKUP($C133,Prices!$A$3:$T$1996,MATCH('2) Order Form'!Q$8,Prices!$A$2:$T$2,0),FALSE) -> 89.00 | R133: 0 | S133: 0 | T133: 0 | V133: 7048652767820 | Y133: 0 | Z133: 0 | AA133: 10 | AB133: 0 | AC133: 1 | AD133: 845108Sky Blue Metallic | AE133: 845108 | AF133: =INDEX(ATS!$A:$P,MATCH('2) Order Form'!$V133,ATS!$O:$O,0),7) -> Active | AG133: 7048653024663
A134: 1 | B134: Helmets & Helmet Acc. | C134: =INDEX(ATS!$A:$P,MATCH('2) Order Form'!$V134,ATS!$O:$O,0),1) -> 845108 | D134: =INDEX(ATS!$A:$P,MATCH('2) Order Form'!$V134,ATS!$O:$O,0),2) -> Ripper Mips Helmet Jr | E134: =INDEX(ATS!$A:$P,MATCH('2) Order Form'!$V134,ATS!$O:$O,0),4) -> SAME-48/53 | F134: =INDEX(ATS!$A:$P,MATCH('2) Order Form'!$V134,ATS!$O:$O,0),5) -> Sea Metallic | G134: =INDEX(ATS!$A:$P,MATCH('2) Order Form'!$V134,ATS!$O:$O,0),6) -> 48/53 | H134: 1 | I134: 0 | J134: =IFERROR(VLOOKUP(V134,ATS!$O:$P,2,FALSE),0) -> 51 | K134: =IF(J134=99999,"OPEN",IF(J134>50,"50+",IF(J134<=0,"0",J134))) -> 50+ | L134: =IFERROR(VLOOKUP(V134,ATS!$O:$Q,3,FALSE),0) -> 51 | M134: =IF(L134=99999,"OPEN",IF(L134>50,"50+",IF(L134<=0,"0",L134))) -> 50+ | N134: 0% | O134: =IF(N134<>0,N134,$P$5) -> 0% | P134: =VLOOKUP($C134,Prices!$A$3:$T$1996,MATCH('2) Order Form'!P$8,Prices!$A$2:$T$2,0),FALSE) -> 45.00 | Q134: =VLOOKUP($C134,Prices!$A$3:$T$1996,MATCH('2) Order Form'!Q$8,Prices!$A$2:$T$2,0),FALSE) -> 89.00 | R134: =I134*P134 -> 0 | S134: =R134*O134 -> 0 | T134: =R134-S134 -> 0 | V134: 7048652903075 | X134: *** EOL *** | Y134: =I134*Q134 -> 0 | Z134: 0 | AA134: 10 | AB134: =IF(C134=OFFSET(C134,-1,0),0,1) -> 0 | AC134: =IF(F134=OFFSET(F134,-1,0),0,1) -> 1 | AD134: =CONCATENATE(C134,F134) -> 845108Sea Metallic | AE134: =IFERROR(IF(B134="EYEWEAR",CONCATENATE(C134,"-",G134),C134),C134) -> 845108 | AF134: =INDEX(ATS!$A:$P,MATCH('2) Order Form'!$V134,ATS!$O:$O,0),7) -> Stock | AG134: 7048653024670
A135: 1 | B135: Helmets & Helmet Acc. | C135: =INDEX(ATS!$A:$P,MATCH('2) Order Form'!$V135,ATS!$O:$O,0),1) -> 845108 | D135: =INDEX(ATS!$A:$P,MATCH('2) Order Form'!$V135,ATS!$O:$O,0),2) -> Ripper Mips Helmet Jr | E135: =INDEX(ATS!$A:$P,MATCH('2) Order Form'!$V135,ATS!$O:$O,0),4) -> WOLD-48/53 | F135: =INDEX(ATS!$A:$P,MATCH('2) Order Form'!$V135,ATS!$O:$O,0),5) -> Woodland | G135: =INDEX(ATS!$A:$P,MATCH('2) Order Form'!$V135,ATS!$O:$O,0),6) -> 48/53 | H135: 1 | I135: 0 | J135: =IFERROR(VLOOKUP(V135,ATS!$O:$P,2,FALSE),0) -> 73 | K135: 50+ | L135: =IFERROR(VLOOKUP(V135,ATS!$O:$Q,3,FALSE),0) -> 73 | M135: 50+ | N135: 0% | O135: 0% | P135: =VLOOKUP($C135,Prices!$A$3:$T$1996,MATCH('2) Order Form'!P$8,Prices!$A$2:$T$2,0),FALSE) -> 45.00 | Q135: =VLOOKUP($C135,Prices!$A$3:$T$1996,MATCH('2) Order Form'!Q$8,Prices!$A$2:$T$2,0),FALSE) -> 89.00 | R135: 0 | S135: 0 | T135: 0 | V135: 7048652903082 | Y135: 0 | Z135: 0 | AA135: 10 | AB135: 0 | AC135: 1 | AD135: 845108Woodland | AE135: 845108 | AF135: =INDEX(ATS!$A:$P,MATCH('2) Order Form'!$V135,ATS!$O:$O,0),7) -> Active | AG135: 7048653024687
A136: 1 | B136: Helmets & Helmet Acc. | C136: =INDEX(ATS!$A:$P,MATCH('2) Order Form'!$V136,ATS!$O:$O,0),1) -> 845146 | D136: =INDEX(ATS!$A:$P,MATCH('2) Order Form'!$V136,ATS!$O:$O,0),2) -> Falconer Aero 2Vi Mips Helmet | E136: =INDEX(ATS!$A:$P,MATCH('2) Order Form'!$V136,ATS!$O:$O,0),4) -> BRWHT-SM | F136: =INDEX(ATS!$A:$P,MATCH('2) Order Form'!$V136,ATS!$O:$O,0),5) -> Bronco White | G136: =INDEX(ATS!$A:$P,MATCH('2) Order Form'!$V136,ATS!$O:$O,0),6) -> SM | H136: 1 | I136: 0 | J136: =IFERROR(VLOOKUP(V136,ATS!$O:$P,2,FALSE),0) -> 5 | K136: =IF(J136=99999,"OPEN",IF(J136>50,"50+",IF(J136<=0,"0",J136))) -> 5 | L136: =IFERROR(VLOOKUP(V136,ATS!$O:$Q,3,FALSE),0) -> 5 | M136: =IF(L136=99999,"OPEN",IF(L136>50,"50+",IF(L136<=0,"0",L136))) -> 5 | N136: 0% | O136: =IF(N136<>0,N136,$P$5) -> 0% | P136: =VLOOKUP($C136,Prices!$A$3:$T$1996,MATCH('2) Order Form'!P$8,Prices!$A$2:$T$2,0),FALSE) -> 150.00 | Q136: =VLOOKUP($C136,Prices!$A$3:$T$1996,MATCH('2) Order Form'!Q$8,Prices!$A$2:$T$2,0),FALSE) -> 299.00 | R136: =I136*P136 -> 0 | S136: =R136*O136 -> 0 | T136: =R136-S136 -> 0 | V136: 7048652893031 | Y136: =I136*Q136 -> 0 | Z136: 0 | AA136: 11 | AB136: =IF(C136=OFFSET(C136,-1,0),0,1) -> 1 | AC136: =IF(F136=OFFSET(F136,-1,0),0,1) -> 1 | AD136: =CONCATENATE(C136,F136) -> 845146Bronco White | AE136: =IFERROR(IF(B136="EYEWEAR",CONCATENATE(C136,"-",G136),C136),C136) -> 845146 | AF136: =INDEX(ATS!$A:$P,MATCH('2) Order Form'!$V136,ATS!$O:$O,0),7) -> Active | AG136: 7048652893246
A137: 1 | B137: Helmets & Helmet Acc. | C137: =INDEX(ATS!$A:$P,MATCH('2) Order Form'!$V137,ATS!$O:$O,0),1) -> 845146 | D137: =INDEX(ATS!$A:$P,MATCH('2) Order Form'!$V137,ATS!$O:$O,0),2) -> Falconer Aero 2Vi Mips Helmet | E137: =INDEX(ATS!$A:$P,MATCH('2) Order Form'!$V137,ATS!$O:$O,0),4) -> BRWHT-ML | F137: =INDEX(ATS!$A:$P,MATCH('2) Order Form'!$V137,ATS!$O:$O,0),5) -> Bronco White | G137: =INDEX(ATS!$A:$P,MATCH('2) Order Form'!$V137,ATS!$O:$O,0),6) -> ML | H137: 1 | I137: 0 | J137: =IFERROR(VLOOKUP(V137,ATS!$O:$P,2,FALSE),0) -> 0 | K137: 0 | L137: =IFERROR(VLOOKUP(V137,ATS!$O:$Q,3,FALSE),0) -> 0 | M137: 0 | N137: 0% | O137: 0% | P137: =VLOOKUP($C137,Prices!$A$3:$T$1996,MATCH('2) Order Form'!P$8,Prices!$A$2:$T$2,0),FALSE) -> 150.00 | Q137: =VLOOKUP($C137,Prices!$A$3:$T$1996,MATCH('2) Order Form'!Q$8,Prices!$A$2:$T$2,0),FALSE) -> 299.00 | R137: 0 | S137: 0 | T137: 0 | V137: 7048652893024 | Y137: 0 | Z137: 0 | AA137: 11 | AB137: 0 | AC137: 0 | AD137: 845146Bronco White | AE137: 845146 | AF137: =INDEX(ATS!$A:$P,MATCH('2) Order Form'!$V137,ATS!$O:$O,0),7) -> Active | AG137: 7048652893239
A138: 1 | B138: Helmets & Helmet Acc. | C138: =INDEX(ATS!$A:$P,MATCH('2) Order Form'!$V138,ATS!$O:$O,0),1) -> 845146 | D138: =INDEX(ATS!$A:$P,MATCH('2) Order Form'!$V138,ATS!$O:$O,0),2) -> Falconer Aero 2Vi Mips Helmet | E138: =INDEX(ATS!$A:$P,MATCH('2) Order Form'!$V138,ATS!$O:$O,0),4) -> BRWHT-LXL | F138: =INDEX(ATS!$A:$P,MATCH('2) Order Form'!$V138,ATS!$O:$O,0),5) -> Bronco White | G138: =INDEX(ATS!$A:$P,MATCH('2) Order Form'!$V138,ATS!$O:$O,0),6) -> LXL | H138: 1 | I138: 0 | J138: =IFERROR(VLOOKUP(V138,ATS!$O:$P,2,FALSE),0) -> 18 | K138: 18 | L138: =IFERROR(VLOOKUP(V138,ATS!$O:$Q,3,FALSE),0) -> 18 | M138: 18 | N138: 0% | O138: 0% | P138: =VLOOKUP($C138,Prices!$A$3:$T$1996,MATCH('2) Order Form'!P$8,Prices!$A$2:$T$2,0),FALSE) -> 150.00 | Q138: =VLOOKUP($C138,Prices!$A$3:$T$1996,MATCH('2) Order Form'!Q$8,Prices!$A$2:$T$2,0),FALSE) -> 299.00 | R138: 0 | S138: 0 | T138: 0 | V138: 7048652893017 | X138: =IF(ISNA(VLOOKUP(V138,$AG$9:$AG$1000,1,FALSE)),"*** EOL ***","") ->  | Y138: 0 | Z138: 0 | AA138: 11 | AB138: 0 | AC138: 0 | AD138: 845146Bronco White | AE138: 845146 | AF138: =INDEX(ATS!$A:$P,MATCH('2) Order Form'!$V138,ATS!$O:$O,0),7) -> Active | AG138: 7048652893222
A139: 1 | B139: Helmets & Helmet Acc. | C139: =INDEX(ATS!$A:$P,MATCH('2) Order Form'!$V139,ATS!$O:$O,0),1) -> 845146 | D139: =INDEX(ATS!$A:$P,MATCH('2) Order Form'!$V139,ATS!$O:$O,0),2) -> Falconer Aero 2Vi Mips Helmet | E139: =INDEX(ATS!$A:$P,MATCH('2) Order Form'!$V139,ATS!$O:$O,0),4) -> DUSK-SM | F139: =INDEX(ATS!$A:$P,MATCH('2) Order Form'!$V139,ATS!$O:$O,0),5) -> Dusk | G139: =INDEX(ATS!$A:$P,MATCH('2) Order Form'!$V139,ATS!$O:$O,0),6) -> SM | H139: 1 | I139: 0 | J139: =IFERROR(VLOOKUP(V139,ATS!$O:$P,2,FALSE),0) -> 69 | K139: 50+ | L139: =IFERROR(VLOOKUP(V139,ATS!$O:$Q,3,FALSE),0) -> 69 | M139: 50+ | N139: 0% | O139: 0% | P139: =VLOOKUP($C139,Prices!$A$3:$T$1996,MATCH('2) Order Form'!P$8,Prices!$A$2:$T$2,0),FALSE) -> 150.00 | Q139: =VLOOKUP($C139,Prices!$A$3:$T$1996,MATCH('2) Order Form'!Q$8,Prices!$A$2:$T$2,0),FALSE) -> 299.00 | R139: 0 | S139: 0 | T139: 0 | V139: 7048652893062 | X139: *** EOL *** | Y139: 0 | Z139: 0 | AA139: 11 | AB139: 0 | AC139: 1 | AD139: 845146Dusk | AE139: 845146 | AF139: =INDEX(ATS!$A:$P,MATCH('2) Order Form'!$V139,ATS!$O:$O,0),7) -> Stock | AG139: 7048652893277
A140: 1 | B140: Helmets & Helmet Acc. | C140: =INDEX(ATS!$A:$P,MATCH('2) Order Form'!$V140,ATS!$O:$O,0),1) -> 845146 | D140: =INDEX(ATS!$A:$P,MATCH('2) Order Form'!$V140,ATS!$O:$O,0),2) -> Falconer Aero 2Vi Mips Helmet | E140: =INDEX(ATS!$A:$P,MATCH('2) Order Form'!$V140,ATS!$O:$O,0),4) -> DUSK-ML | F140: =INDEX(ATS!$A:$P,MATCH('2) Order Form'!$V140,ATS!$O:$O,0),5) -> Dusk | G140: =INDEX(ATS!$A:$P,MATCH('2) Order Form'!$V140,ATS!$O:$O,0),6) -> ML | H140: 1 | I140: 0 | J140: =IFERROR(VLOOKUP(V140,ATS!$O:$P,2,FALSE),0) -> 0 | K140: 0 | L140: =IFERROR(VLOOKUP(V140,ATS!$O:$Q,3,FALSE),0) -> 0 | M140: 0 | N140: 0% | O140: 0% | P140: =VLOOKUP($C140,Prices!$A$3:$T$1996,MATCH('2) Order Form'!P$8,Prices!$A$2:$T$2,0),FALSE) -> 150.00 | Q140: =VLOOKUP($C140,Prices!$A$3:$T$1996,MATCH('2) Order Form'!Q$8,Prices!$A$2:$T$2,0),FALSE) -> 299.00 | R140: 0 | S140: 0 | T140: 0 | V140: 7048652893055 | X140: *** EOL *** | Y140: 0 | Z140: 0 | AA140: 11 | AB140: 0 | AC140: 0 | AD140: 845146Dusk | AE140: 845146 | AF140: =INDEX(ATS!$A:$P,MATCH('2) Order Form'!$V140,ATS!$O:$O,0),7) -> Stock | AG140: 7048652893260
A141: 1 | B141: Helmets & Helmet Acc. | C141: =INDEX(ATS!$A:$P,MATCH('2) Order Form'!$V141,ATS!$O:$O,0),1) -> 845146 | D141: =INDEX(ATS!$A:$P,MATCH('2) Order Form'!$V141,ATS!$O:$O,0),2) -> Falconer Aero 2Vi Mips Helmet | E141: =INDEX(ATS!$A:$P,MATCH('2) Order Form'!$V141,ATS!$O:$O,0),4) -> DUSK-LXL | F141: =INDEX(ATS!$A:$P,MATCH('2) Order Form'!$V141,ATS!$O:$O,0),5) -> Dusk | G141: =INDEX(ATS!$A:$P,MATCH('2) Order Form'!$V141,ATS!$O:$O,0),6) -> LXL | H141: 1 | I141: 0 | J141: =IFERROR(VLOOKUP(V141,ATS!$O:$P,2,FALSE),0) -> 65 | K141: 50+ | L141: =IFERROR(VLOOKUP(V141,ATS!$O:$Q,3,FALSE),0) -> 65 | M141: 50+ | N141: 0% | O141: 0% | P141: =VLOOKUP($C141,Prices!$A$3:$T$1996,MATCH('2) Order Form'!P$8,Prices!$A$2:$T$2,0),FALSE) -> 150.00 | Q141: =VLOOKUP($C141,Prices!$A$3:$T$1996,MATCH('2) Order Form'!Q$8,Prices!$A$2:$T$2,0),FALSE) -> 299.00 | R141: 0 | S141: 0 | T141: 0 | V141: 7048652893048 | X141: *** EOL *** | Y141: 0 | Z141: 0 | AA141: 11 | AB141: 0 | AC141: 0 | AD141: 845146Dusk | AE141: 845146 | AF141: =INDEX(ATS!$A:$P,MATCH('2) Order Form'!$V141,ATS!$O:$O,0),7) -> Stock | AG141: 7048652893253
A142: 1 | B142: Helmets & Helmet Acc. | C142: =INDEX(ATS!$A:$P,MATCH('2) Order Form'!$V142,ATS!$O:$O,0),1) -> 845146 | D142: =INDEX(ATS!$A:$P,MATCH('2) Order Form'!$V142,ATS!$O:$O,0),2) -> Falconer Aero 2Vi Mips Helmet | E142: =INDEX(ATS!$A:$P,MATCH('2) Order Form'!$V142,ATS!$O:$O,0),4) -> LAVA-SM | F142: =INDEX(ATS!$A:$P,MATCH('2) Order Form'!$V142,ATS!$O:$O,0),5) -> Lava | G142: =INDEX(ATS!$A:$P,MATCH('2) Order Form'!$V142,ATS!$O:$O,0),6) -> SM | H142: 1 | I142: 0 | J142: =IFERROR(VLOOKUP(V142,ATS!$O:$P,2,FALSE),0) -> 70 | K142: 50+ | L142: =IFERROR(VLOOKUP(V142,ATS!$O:$Q,3,FALSE),0) -> 70 | M142: 50+ | N142: 0% | O142: 0% | P142: =VLOOKUP($C142,Prices!$A$3:$T$1996,MATCH('2) Order Form'!P$8,Prices!$A$2:$T$2,0),FALSE) -> 150.00 | Q142: =VLOOKUP($C142,Prices!$A$3:$T$1996,MATCH('2) Order Form'!Q$8,Prices!$A$2:$T$2,0),FALSE) -> 299.00 | R142: 0 | S142: 0 | T142: 0 | V142: 7048652893123 | Y142: 0 | Z142: 0 | AA142: 11 | AB142: 0 | AC142: 1 | AD142: 845146Lava | AE142: 845146 | AF142: =INDEX(ATS!$A:$P,MATCH('2) Order Form'!$V142,ATS!$O:$O,0),7) -> Active | AG142: 7048652893123
A143: 1 | B143: Helmets & Helmet Acc. | C143: =INDEX(ATS!$A:$P,MATCH('2) Order Form'!$V143,ATS!$O:$O,0),1) -> 845146 | D143: =INDEX(ATS!$A:$P,MATCH('2) Order Form'!$V143,ATS!$O:$O,0),2) -> Falconer Aero 2Vi Mips Helmet | E143: =INDEX(ATS!$A:$P,MATCH('2) Order Form'!$V143,ATS!$O:$O,0),4) -> LAVA-ML | F143: =INDEX(ATS!$A:$P,MATCH('2) Order Form'!$V143,ATS!$O:$O,0),5) -> Lava | G143: =INDEX(ATS!$A:$P,MATCH('2) Order Form'!$V143,ATS!$O:$O,0),6) -> ML | H143: 1 | I143: 0 | J143: =IFERROR(VLOOKUP(V143,ATS!$O:$P,2,FALSE),0) -> 0 | K143: 0 | L143: =IFERROR(VLOOKUP(V143,ATS!$O:$Q,3,FALSE),0) -> 0 | M143: 0 | N143: 0% | O143: 0% | P143: =VLOOKUP($C143,Prices!$A$3:$T$1996,MATCH('2) Order Form'!P$8,Prices!$A$2:$T$2,0),FALSE) -> 150.00 | Q143: =VLOOKUP($C143,Prices!$A$3:$T$1996,MATCH('2) Order Form'!Q$8,Prices!$A$2:$T$2,0),FALSE) -> 299.00 | R143: 0 | S143: 0 | T143: 0 | V143: 7048652893116 | Y143: 0 | Z143: 0 | AA143: 11 | AB143: 0 | AC143: 0 | AD143: 845146Lava | AE143: 845146 | AF143: =INDEX(ATS!$A:$P,MATCH('2) Order Form'!$V143,ATS!$O:$O,0),7) -> Active | AG143: 7048652893116
A144: 1 | B144: Helmets & Helmet Acc. | C144: =INDEX(ATS!$A:$P,MATCH('2) Order Form'!$V144,ATS!$O:$O,0),1) -> 845146 | D144: =INDEX(ATS!$A:$P,MATCH('2) Order Form'!$V144,ATS!$O:$O,0),2) -> Falconer Aero 2Vi Mips Helmet | E144: =INDEX(ATS!$A:$P,MATCH('2) Order Form'!$V144,ATS!$O:$O,0),4) -> LAVA-LXL | F144: =INDEX(ATS!$A:$P,MATCH('2) Order Form'!$V144,ATS!$O:$O,0),5) -> Lava | G144: =INDEX(ATS!$A:$P,MATCH('2) Order Form'!$V144,ATS!$O:$O,0),6) -> LXL | H144: 1 | I144: 0 | J144: =IFERROR(VLOOKUP(V144,ATS!$O:$P,2,FALSE),0) -> 17 | K144: 17 | L144: =IFERROR(VLOOKUP(V144,ATS!$O:$Q,3,FALSE),0) -> 17 | M144: 17 | N144: 0% | O144: 0% | P144: =VLOOKUP($C144,Prices!$A$3:$T$1996,MATCH('2) Order Form'!P$8,Prices!$A$2:$T$2,0),FALSE) -> 150.00 | Q144: =VLOOKUP($C144,Prices!$A$3:$T$1996,MATCH('2) Order Form'!Q$8,Prices!$A$2:$T$2,0),FALSE) -> 299.00 | R144: 0 | S144: 0 | T144: 0 | V144: 7048652893109 | Y144: 0 | Z144: 0 | AA144: 11 | AB144: 0 | AC144: 0 | AD144: 845146Lava | AE144: 845146 | AF144: =INDEX(ATS!$A:$P,MATCH('2) Order Form'!$V144,ATS!$O:$O,0),7) -> Active | AG144: 7048652893109
A145: 1 | B145: Helmets & Helmet Acc. | C145: =INDEX(ATS!$A:$P,MATCH('2) Order Form'!$V145,ATS!$O:$O,0),1) -> 845146 | D145: =INDEX(ATS!$A:$P,MATCH('2) Order Form'!$V145,ATS!$O:$O,0),2) -> Falconer Aero 2Vi Mips Helmet | E145: =INDEX(ATS!$A:$P,MATCH('2) Order Form'!$V145,ATS!$O:$O,0),4) -> LUSH-SM | F145: =INDEX(ATS!$A:$P,MATCH('2) Order Form'!$V145,ATS!$O:$O,0),5) -> Lush | G145: =INDEX(ATS!$A:$P,MATCH('2) Order Form'!$V145,ATS!$O:$O,0),6) -> SM | H145: 1 | I145: 0 | J145: =IFERROR(VLOOKUP(V145,ATS!$O:$P,2,FALSE),0) -> 30 | K145: 30 | L145: =IFERROR(VLOOKUP(V145,ATS!$O:$Q,3,FALSE),0) -> 30 | M145: 30 | N145: 0% | O145: 0% | P145: =VLOOKUP($C145,Prices!$A$3:$T$1996,MATCH('2) Order Form'!P$8,Prices!$A$2:$T$2,0),FALSE) -> 150.00 | Q145: =VLOOKUP($C145,Prices!$A$3:$T$1996,MATCH('2) Order Form'!Q$8,Prices!$A$2:$T$2,0),FALSE) -> 299.00 | R145: 0 | S145: 0 | T145: 0 | V145: 7048652893154 | X145: *** EOL *** | Y145: 0 | Z145: 0 | AA145: 11 | AB145: 0 | AC145: 1 | AD145: 845146Lush | AE145: 845146 | AF145: =INDEX(ATS!$A:$P,MATCH('2) Order Form'!$V145,ATS!$O:$O,0),7) -> Stock | AG145: 7048653024571
A146: 1 | B146: Helmets & Helmet Acc. | C146: =INDEX(ATS!$A:$P,MATCH('2) Order Form'!$V146,ATS!$O:$O,0),1) -> 845146 | D146: =INDEX(ATS!$A:$P,MATCH('2) Order Form'!$V146,ATS!$O:$O,0),2) -> Falconer Aero 2Vi Mips Helmet | E146: =INDEX(ATS!$A:$P,MATCH('2) Order Form'!$V146,ATS!$O:$O,0),4) -> LUSH-ML | F146: =INDEX(ATS!$A:$P,MATCH('2) Order Form'!$V146,ATS!$O:$O,0),5) -> Lush | G146: =INDEX(ATS!$A:$P,MATCH('2) Order Form'!$V146,ATS!$O:$O,0),6) -> ML | H146: 1 | I146: 0 | J146: =IFERROR(VLOOKUP(V146,ATS!$O:$P,2,FALSE),0) -> 0 | K146: 0 | L146: =IFERROR(VLOOKUP(V146,ATS!$O:$Q,3,FALSE),0) -> 0 | M146: 0 | N146: 0% | O146: 0% | P146: =VLOOKUP($C146,Prices!$A$3:$T$1996,MATCH('2) Order Form'!P$8,Prices!$A$2:$T$2,0),FALSE) -> 150.00 | Q146: =VLOOKUP($C146,Prices!$A$3:$T$1996,MATCH('2) Order Form'!Q$8,Prices!$A$2:$T$2,0),FALSE) -> 299.00 | R146: 0 | S146: 0 | T146: 0 | V146: 7048652893147 | X146: *** EOL *** | Y146: 0 | Z146: 0 | AA146: 11 | AB146: 0 | AC146: 0 | AD146: 845146Lush | AE146: 845146 | AF146: =INDEX(ATS!$A:$P,MATCH('2) Order Form'!$V146,ATS!$O:$O,0),7) -> Stock | AG146: 7048653024588
A147: 1 | B147: Helmets & Helmet Acc. | C147: =INDEX(ATS!$A:$P,MATCH('2) Order Form'!$V147,ATS!$O:$O,0),1) -> 845146 | D147: =INDEX(ATS!$A:$P,MATCH('2) Order Form'!$V147,ATS!$O:$O,0),2) -> Falconer Aero 2Vi Mips Helmet | E147: =INDEX(ATS!$A:$P,MATCH('2) Order Form'!$V147,ATS!$O:$O,0),4) -> LUSH-LXL | F147: =INDEX(ATS!$A:$P,MATCH('2) Order Form'!$V147,ATS!$O:$O,0),5) -> Lush | G147: =INDEX(ATS!$A:$P,MATCH('2) Order Form'!$V147,ATS!$O:$O,0),6) -> LXL | H147: 1 | I147: 0 | J147: =IFERROR(VLOOKUP(V147,ATS!$O:$P,2,FALSE),0) -> 0 | K147: 0 | L147: =IFERROR(VLOOKUP(V147,ATS!$O:$Q,3,FALSE),0) -> 0 | M147: 0 | N147: 0% | O147: 0% | P147: =VLOOKUP($C147,Prices!$A$3:$T$1996,MATCH('2) Order Form'!P$8,Prices!$A$2:$T$2,0),FALSE) -> 150.00 | Q147: =VLOOKUP($C147,Prices!$A$3:$T$1996,MATCH('2) Order Form'!Q$8,Prices!$A$2:$T$2,0),FALSE) -> 299.00 | R147: 0 | S147: 0 | T147: 0 | V147: 7048652893130 | X147: *** EOL *** | Y147: 0 | Z147: 0 | AA147: 11 | AB147: 0 | AC147: 0 | AD147: 845146Lush | AE147: 845146 | AF147: =INDEX(ATS!$A:$P,MATCH('2) Order Form'!$V147,ATS!$O:$O,0),7) -> Stock | AG147: 7048653024595
A148: 1 | B148: Helmets & Helmet Acc. | C148: =INDEX(ATS!$A:$P,MATCH('2) Order Form'!$V148,ATS!$O:$O,0),1) -> 845146 | D148: =INDEX(ATS!$A:$P,MATCH('2) Order Form'!$V148,ATS!$O:$O,0),2) -> Falconer Aero 2Vi Mips Helmet | E148: =INDEX(ATS!$A:$P,MATCH('2) Order Form'!$V148,ATS!$O:$O,0),4) -> MBLCK-SM | F148: =INDEX(ATS!$A:$P,MATCH('2) Order Form'!$V148,ATS!$O:$O,0),5) -> Matte Black | G148: =INDEX(ATS!$A:$P,MATCH('2) Order Form'!$V148,ATS!$O:$O,0),6) -> SM | H148: 1 | I148: 0 | J148: =IFERROR(VLOOKUP(V148,ATS!$O:$P,2,FALSE),0) -> 23 | K148: 23 | L148: =IFERROR(VLOOKUP(V148,ATS!$O:$Q,3,FALSE),0) -> 23 | M148: 23 | N148: 0% | O148: 0% | P148: =VLOOKUP($C148,Prices!$A$3:$T$1996,MATCH('2) Order Form'!P$8,Prices!$A$2:$T$2,0),FALSE) -> 150.00 | Q148: =VLOOKUP($C148,Prices!$A$3:$T$1996,MATCH('2) Order Form'!Q$8,Prices!$A$2:$T$2,0),FALSE) -> 299.00 | R148: 0 | S148: 0 | T148: 0 | V148: 7048652893185 | Y148: 0 | Z148: 0 | AA148: 11 | AB148: 0 | AC148: 1 | AD148: 845146Matte Black | AE148: 845146 | AF148: =INDEX(ATS!$A:$P,MATCH('2) Order Form'!$V148,ATS!$O:$O,0),7) -> Active | AG148: 7048652893307
A149: 1 | B149: Helmets & Helmet Acc. | C149: =INDEX(ATS!$A:$P,MATCH('2) Order Form'!$V149,ATS!$O:$O,0),1) -> 845146 | D149: =INDEX(ATS!$A:$P,MATCH('2) Order Form'!$V149,ATS!$O:$O,0),2) -> Falconer Aero 2Vi Mips Helmet | E149: =INDEX(ATS!$A:$P,MATCH('2) Order Form'!$V149,ATS!$O:$O,0),4) -> MBLCK-ML | F149: =INDEX(ATS!$A:$P,MATCH('2) Order Form'!$V149,ATS!$O:$O,0),5) -> Matte Black | G149: =INDEX(ATS!$A:$P,MATCH('2) Order Form'!$V149,ATS!$O:$O,0),6) -> ML | H149: 1 | I149: 0 | J149: =IFERROR(VLOOKUP(V149,ATS!$O:$P,2,FALSE),0) -> 0 | K149: 0 | L149: =IFERROR(VLOOKUP(V149,ATS!$O:$Q,3,FALSE),0) -> 0 | M149: 0 | N149: 0% | O149: 0% | P149: =VLOOKUP($C149,Prices!$A$3:$T$1996,MATCH('2) Order Form'!P$8,Prices!$A$2:$T$2,0),FALSE) -> 150.00 | Q149: =VLOOKUP($C149,Prices!$A$3:$T$1996,MATCH('2) Order Form'!Q$8,Prices!$A$2:$T$2,0),FALSE) -> 299.00 | R149: 0 | S149: 0 | T149: 0 | V149: 7048652893178 | Y149: 0 | Z149: 0 | AA149: 11 | AB149: 0 | AC149: 0 | AD149: 845146Matte Black | AE149: 845146 | AF149: =INDEX(ATS!$A:$P,MATCH('2) Order Form'!$V149,ATS!$O:$O,0),7) -> Active | AG149: 7048652893291
A150: 1 | B150: Helmets & Helmet Acc. | C150: =INDEX(ATS!$A:$P,MATCH('2) Order Form'!$V150,ATS!$O:$O,0),1) -> 845146 | D150: =INDEX(ATS!$A:$P,MATCH('2) Order Form'!$V150,ATS!$O:$O,0),2) -> Falconer Aero 2Vi Mips Helmet | E150: =INDEX(ATS!$A:$P,MATCH('2) Order Form'!$V150,ATS!$O:$O,0),4) -> MBLCK-LXL | F150: =INDEX(ATS!$A:$P,MATCH('2) Order Form'!$V150,ATS!$O:$O,0),5) -> Matte Black | G150: =INDEX(ATS!$A:$P,MATCH('2) Order Form'!$V150,ATS!$O:$O,0),6) -> LXL | H150: 1 | I150: 0 | J150: =IFERROR(VLOOKUP(V150,ATS!$O:$P,2,FALSE),0) -> 82 | K150: 50+ | L150: =IFERROR(VLOOKUP(V150,ATS!$O:$Q,3,FALSE),0) -> 82 | M150: 50+ | N150: 0% | O150: 0% | P150: =VLOOKUP($C150,Prices!$A$3:$T$1996,MATCH('2) Order Form'!P$8,Prices!$A$2:$T$2,0),FALSE) -> 150.00 | Q150: =VLOOKUP($C150,Prices!$A$3:$T$1996,MATCH('2) Order Form'!Q$8,Prices!$A$2:$T$2,0),FALSE) -> 299.00 | R150: 0 | S150: 0 | T150: 0 | V150: 7048652893161 | Y150: 0 | Z150: 0 | AA150: 11 | AB150: 0 | AC150: 0 | AD150: 845146Matte Black | AE150: 845146 | AF150: =INDEX(ATS!$A:$P,MATCH('2) Order Form'!$V150,ATS!$O:$O,0),7) -> Active | AG150: 7048652893284
A151: 1 | B151: Helmets & Helmet Acc. | C151: =INDEX(ATS!$A:$P,MATCH('2) Order Form'!$V151,ATS!$O:$O,0),1) -> 845146 | D151: =INDEX(ATS!$A:$P,MATCH('2) Order Form'!$V151,ATS!$O:$O,0),2) -> Falconer Aero 2Vi Mips Helmet | E151: =INDEX(ATS!$A:$P,MATCH('2) Order Form'!$V151,ATS!$O:$O,0),4) -> SAWHT-SM | F151: =INDEX(ATS!$A:$P,MATCH('2) Order Form'!$V151,ATS!$O:$O,0),5) -> Satin White | G151: =INDEX(ATS!$A:$P,MATCH('2) Order Form'!$V151,ATS!$O:$O,0),6) -> SM | H151: 1 | I151: 0 | J151: =IFERROR(VLOOKUP(V151,ATS!$O:$P,2,FALSE),0) -> 0 | K151: 0 | L151: =IFERROR(VLOOKUP(V151,ATS!$O:$Q,3,FALSE),0) -> 0 | M151: 0 | N151: 0% | O151: 0% | P151: =VLOOKUP($C151,Prices!$A$3:$T$1996,MATCH('2) Order Form'!P$8,Prices!$A$2:$T$2,0),FALSE) -> 150.00 | Q151: =VLOOKUP($C151,Prices!$A$3:$T$1996,MATCH('2) Order Form'!Q$8,Prices!$A$2:$T$2,0),FALSE) -> 299.00 | R151: 0 | S151: 0 | T151: 0 | V151: 7048652893246 | Y151: 0 | Z151: =IF(A151=OFFSET(A151,-1,0),0,1) -> 0 | AA151: =IF(C151=OFFSET(C151,-1,0),OFFSET(AA151,-1,0),OFFSET(AA151,-1,0)+1) -> 11 | AB151: 0 | AC151: 1 | AD151: 845146Satin White | AE151: 845146 | AF151: =INDEX(ATS!$A:$P,MATCH('2) Order Form'!$V151,ATS!$O:$O,0),7) -> Active | AG151: 7048652893390
A152: 1 | B152: Helmets & Helmet Acc. | C152: =INDEX(ATS!$A:$P,MATCH('2) Order Form'!$V152,ATS!$O:$O,0),1) -> 845146 | D152: =INDEX(ATS!$A:$P,MATCH('2) Order Form'!$V152,ATS!$O:$O,0),2) -> Falconer Aero 2Vi Mips Helmet | E152: =INDEX(ATS!$A:$P,MATCH('2) Order Form'!$V152,ATS!$O:$O,0),4) -> SAWHT-ML | F152: =INDEX(ATS!$A:$P,MATCH('2) Order Form'!$V152,ATS!$O:$O,0),5) -> Satin White | G152: =INDEX(ATS!$A:$P,MATCH('2) Order Form'!$V152,ATS!$O:$O,0),6) -> ML | H152: 1 | I152: 0 | J152: =IFERROR(VLOOKUP(V152,ATS!$O:$P,2,FALSE),0) -> 0 | K152: 0 | L152: =IFERROR(VLOOKUP(V152,ATS!$O:$Q,3,FALSE),0) -> 0 | M152: 0 | N152: 0% | O152: 0% | P152: =VLOOKUP($C152,Prices!$A$3:$T$1996,MATCH('2) Order Form'!P$8,Prices!$A$2:$T$2,0),FALSE) -> 150.00 | Q152: =VLOOKUP($C152,Prices!$A$3:$T$1996,MATCH('2) Order Form'!Q$8,Prices!$A$2:$T$2,0),FALSE) -> 299.00 | R152: 0 | S152: 0 | T152: 0 | V152: 7048652893239 | Y152: 0 | Z152: 0 | AA152: 11 | AB152: 0 | AC152: 0 | AD152: 845146Satin White | AE152: 845146 | AF152: =INDEX(ATS!$A:$P,MATCH('2) Order Form'!$V152,ATS!$O:$O,0),7) -> Active | AG152: 7048652893383
A153: 1 | B153: Helmets & Helmet Acc. | C153: =INDEX(ATS!$A:$P,MATCH('2) Order Form'!$V153,ATS!$O:$O,0),1) -> 845146 | D153: =INDEX(ATS!$A:$P,MATCH('2) Order Form'!$V153,ATS!$O:$O,0),2) -> Falconer Aero 2Vi Mips Helmet | E153: =INDEX(ATS!$A:$P,MATCH('2) Order Form'!$V153,ATS!$O:$O,0),4) -> SAWHT-LXL | F153: =INDEX(ATS!$A:$P,MATCH('2) Order Form'!$V153,ATS!$O:$O,0),5) -> Satin White | G153: =INDEX(ATS!$A:$P,MATCH('2) Order Form'!$V153,ATS!$O:$O,0),6) -> LXL | H153: 1 | I153: 0 | J153: =IFERROR(VLOOKUP(V153,ATS!$O:$P,2,FALSE),0) -> 15 | K153: 15 | L153: =IFERROR(VLOOKUP(V153,ATS!$O:$Q,3,FALSE),0) -> 15 | M153: 15 | N153: 0% | O153: 0% | P153: =VLOOKUP($C153,Prices!$A$3:$T$1996,MATCH('2) Order Form'!P$8,Prices!$A$2:$T$2,0),FALSE) -> 150.00 | Q153: =VLOOKUP($C153,Prices!$A$3:$T$1996,MATCH('2) Order Form'!Q$8,Prices!$A$2:$T$2,0),FALSE) -> 299.00 | R153: 0 | S153: 0 | T153: 0 | V153: 7048652893222 | Y153: 0 | Z153: 0 | AA153: 11 | AB153: 0 | AC153: 0 | AD153: 845146Satin White | AE153: 845146 | AF153: =INDEX(ATS!$A:$P,MATCH('2) Order Form'!$V153,ATS!$O:$O,0),7) -> Active | AG153: 7048652893376
A154: 1 | B154: Helmets & Helmet Acc. | C154: =INDEX(ATS!$A:$P,MATCH('2) Order Form'!$V154,ATS!$O:$O,0),1) -> 845146 | D154: =INDEX(ATS!$A:$P,MATCH('2) Order Form'!$V154,ATS!$O:$O,0),2) -> Falconer Aero 2Vi Mips Helmet | E154: =INDEX(ATS!$A:$P,MATCH('2) Order Form'!$V154,ATS!$O:$O,0),4) -> WOLND-SM | F154: =INDEX(ATS!$A:$P,MATCH('2) Order Form'!$V154,ATS!$O:$O,0),5) -> Woodland | G154: =INDEX(ATS!$A:$P,MATCH('2) Order Form'!$V154,ATS!$O:$O,0),6) -> SM | H154: 1 | I154: 0 | J154: =IFERROR(VLOOKUP(V154,ATS!$O:$P,2,FALSE),0) -> 35 | K154: 35 | L154: =IFERROR(VLOOKUP(V154,ATS!$O:$Q,3,FALSE),0) -> 35 | M154: 35 | N154: 0% | O154: 0% | P154: =VLOOKUP($C154,Prices!$A$3:$T$1996,MATCH('2) Order Form'!P$8,Prices!$A$2:$T$2,0),FALSE) -> 150.00 | Q154: =VLOOKUP($C154,Prices!$A$3:$T$1996,MATCH('2) Order Form'!Q$8,Prices!$A$2:$T$2,0),FALSE) -> 299.00 | R154: 0 | S154: 0 | T154: 0 | V154: 7048652893277 | Y154: 0 | Z154: 0 | AA154: 11 | AB154: 0 | AC154: 1 | AD154: 845146Woodland | AE154: 845146 | AF154: =INDEX(ATS!$A:$P,MATCH('2) Order Form'!$V154,ATS!$O:$O,0),7) -> Active | AG154: 7048653024601
A155: 1 | B155: Helmets & Helmet Acc. | C155: =INDEX(ATS!$A:$P,MATCH('2) Order Form'!$V155,ATS!$O:$O,0),1) -> 845146 | D155: =INDEX(ATS!$A:$P,MATCH('2) Order Form'!$V155,ATS!$O:$O,0),2) -> Falconer Aero 2Vi Mips Helmet | E155: =INDEX(ATS!$A:$P,MATCH('2) Order Form'!$V155,ATS!$O:$O,0),4) -> WOLND-ML | F155: =INDEX(ATS!$A:$P,MATCH('2) Order Form'!$V155,ATS!$O:$O,0),5) -> Woodland | G155: =INDEX(ATS!$A:$P,MATCH('2) Order Form'!$V155,ATS!$O:$O,0),6) -> ML | H155: 1 | I155: 0 | J155: =IFERROR(VLOOKUP(V155,ATS!$O:$P,2,FALSE),0) -> 20 | K155: 20 | L155: =IFERROR(VLOOKUP(V155,ATS!$O:$Q,3,FALSE),0) -> 20 | M155: 20 | N155: 0% | O155: 0% | P155: =VLOOKUP($C155,Prices!$A$3:$T$1996,MATCH('2) Order Form'!P$8,Prices!$A$2:$T$2,0),FALSE) -> 150.00 | Q155: =VLOOKUP($C155,Prices!$A$3:$T$1996,MATCH('2) Order Form'!Q$8,Prices!$A$2:$T$2,0),FALSE) -> 299.00 | R155: 0 | S155: 0 | T155: 0 | V155: 7048652893260 | Y155: 0 | Z155: 0 | AA155: 11 | AB155: 0 | AC155: 0 | AD155: 845146Woodland | AE155: 845146 | AF155: =INDEX(ATS!$A:$P,MATCH('2) Order Form'!$V155,ATS!$O:$O,0),7) -> Active | AG155: 7048653024618
A156: 1 | B156: Helmets & Helmet Acc. | C156: =INDEX(ATS!$A:$P,MATCH('2) Order Form'!$V156,ATS!$O:$O,0),1) -> 845146 | D156: =INDEX(ATS!$A:$P,MATCH('2) Order Form'!$V156,ATS!$O:$O,0),2) -> Falconer Aero 2Vi Mips Helmet | E156: =INDEX(ATS!$A:$P,MATCH('2) Order Form'!$V156,ATS!$O:$O,0),4) -> WOLND-LXL | F156: =INDEX(ATS!$A:$P,MATCH('2) Order Form'!$V156,ATS!$O:$O,0),5) -> Woodland | G156: =INDEX(ATS!$A:$P,MATCH('2) Order Form'!$V156,ATS!$O:$O,0),6) -> LXL | H156: 1 | I156: 0 | J156: =IFERROR(VLOOKUP(V156,ATS!$O:$P,2,FALSE),0) -> 53 | K156: 50+ | L156: =IFERROR(VLOOKUP(V156,ATS!$O:$Q,3,FALSE),0) -> 53 | M156: 50+ | N156: 0% | O156: 0% | P156: =VLOOKUP($C156,Prices!$A$3:$T$1996,MATCH('2) Order Form'!P$8,Prices!$A$2:$T$2,0),FALSE) -> 150.00 | Q156: =VLOOKUP($C156,Prices!$A$3:$T$1996,MATCH('2) Order Form'!Q$8,Prices!$A$2:$T$2,0),FALSE) -> 299.00 | R156: 0 | S156: 0 | T156: 0 | V156: 7048652893253 | Y156: 0 | Z156: 0 | AA156: 11 | AB156: 0 | AC156: 0 | AD156: 845146Woodland | AE156: 845146 | AF156: =INDEX(ATS!$A:$P,MATCH('2) Order Form'!$V156,ATS!$O:$O,0),7) -> Active | AG156: 7048653024625
A157: 1 | B157: Helmets & Helmet Acc. | C157: =INDEX(ATS!$A:$P,MATCH('2) Order Form'!$V157,ATS!$O:$O,0),1) -> 845145 | D157: =INDEX(ATS!$A:$P,MATCH('2) Order Form'!$V157,ATS!$O:$O,0),2) -> Falconer 2Vi Mips Helmet | E157: =INDEX(ATS!$A:$P,MATCH('2) Order Form'!$V157,ATS!$O:$O,0),4) -> BRWHT-SM | F157: =INDEX(ATS!$A:$P,MATCH('2) Order Form'!$V157,ATS!$O:$O,0),5) -> Bronco White | G157: =INDEX(ATS!$A:$P,MATCH('2) Order Form'!$V157,ATS!$O:$O,0),6) -> SM | H157: 1 | I157: 0 | J157: =IFERROR(VLOOKUP(V157,ATS!$O:$P,2,FALSE),0) -> 0 | K157: 0 | L157: =IFERROR(VLOOKUP(V157,ATS!$O:$Q,3,FALSE),0) -> 0 | M157: 0 | N157: 0% | O157: 0% | P157: =VLOOKUP($C157,Prices!$A$3:$T$1996,MATCH('2) Order Form'!P$8,Prices!$A$2:$T$2,0),FALSE) -> 125.00 | Q157: =VLOOKUP($C157,Prices!$A$3:$T$1996,MATCH('2) Order Form'!Q$8,Prices!$A$2:$T$2,0),FALSE) -> 249.00 | R157: 0 | S157: 0 | T157: 0 | V157: 7048652893307 | Y157: 0 | Z157: 0 | AA157: 12 | AB157: =IF(C157=OFFSET(C157,-1,0),0,1) -> 1 | AC157: =IF(F157=OFFSET(F157,-1,0),0,1) -> 1 | AD157: =CONCATENATE(C157,F157) -> 845145Bronco White | AE157: =IFERROR(IF(B157="EYEWEAR",CONCATENATE(C157,"-",G157),C157),C157) -> 845145 | AF157: =INDEX(ATS!$A:$P,MATCH('2) Order Form'!$V157,ATS!$O:$O,0),7) -> Active | AG157: 7048652893451
A158: 1 | B158: Helmets & Helmet Acc. | C158: =INDEX(ATS!$A:$P,MATCH('2) Order Form'!$V158,ATS!$O:$O,0),1) -> 845145 | D158: =INDEX(ATS!$A:$P,MATCH('2) Order Form'!$V158,ATS!$O:$O,0),2) -> Falconer 2Vi Mips Helmet | E158: =INDEX(ATS!$A:$P,MATCH('2) Order Form'!$V158,ATS!$O:$O,0),4) -> BRWHT-ML | F158: =INDEX(ATS!$A:$P,MATCH('2) Order Form'!$V158,ATS!$O:$O,0),5) -> Bronco White | G158: =INDEX(ATS!$A:$P,MATCH('2) Order Form'!$V158,ATS!$O:$O,0),6) -> ML | H158: 1 | I158: 0 | J158: =IFERROR(VLOOKUP(V158,ATS!$O:$P,2,FALSE),0) -> 0 | K158: 0 | L158: =IFERROR(VLOOKUP(V158,ATS!$O:$Q,3,FALSE),0) -> 0 | M158: 0 | N158: 0% | O158: 0% | P158: =VLOOKUP($C158,Prices!$A$3:$T$1996,MATCH('2) Order Form'!P$8,Prices!$A$2:$T$2,0),FALSE) -> 125.00 | Q158: =VLOOKUP($C158,Prices!$A$3:$T$1996,MATCH('2) Order Form'!Q$8,Prices!$A$2:$T$2,0),FALSE) -> 249.00 | R158: 0 | S158: 0 | T158: 0 | V158: 7048652893291 | Y158: 0 | Z158: 0 | AA158: 12 | AB158: 0 | AC158: 0 | AD158: 845145Bronco White | AE158: 845145 | AF158: =INDEX(ATS!$A:$P,MATCH('2) Order Form'!$V158,ATS!$O:$O,0),7) -> Active | AG158: 7048652893444
A159: 1 | B159: Helmets & Helmet Acc. | C159: =INDEX(ATS!$A:$P,MATCH('2) Order Form'!$V159,ATS!$O:$O,0),1) -> 845145 | D159: =INDEX(ATS!$A:$P,MATCH('2) Order Form'!$V159,ATS!$O:$O,0),2) -> Falconer 2Vi Mips Helmet | E159: =INDEX(ATS!$A:$P,MATCH('2) Order Form'!$V159,ATS!$O:$O,0),4) -> BRWHT-LXL | F159: =INDEX(ATS!$A:$P,MATCH('2) Order Form'!$V159,ATS!$O:$O,0),5) -> Bronco White | G159: =INDEX(ATS!$A:$P,MATCH('2) Order Form'!$V159,ATS!$O:$O,0),6) -> LXL | H159: 1 | I159: 0 | J159: =IFERROR(VLOOKUP(V159,ATS!$O:$P,2,FALSE),0) -> 0 | K159: 0 | L159: =IFERROR(VLOOKUP(V159,ATS!$O:$Q,3,FALSE),0) -> 0 | M159: 0 | N159: 0% | O159: 0% | P159: =VLOOKUP($C159,Prices!$A$3:$T$1996,MATCH('2) Order Form'!P$8,Prices!$A$2:$T$2,0),FALSE) -> 125.00 | Q159: =VLOOKUP($C159,Prices!$A$3:$T$1996,MATCH('2) Order Form'!Q$8,Prices!$A$2:$T$2,0),FALSE) -> 249.00 | R159: 0 | S159: 0 | T159: 0 | V159: 7048652893284 | Y159: 0 | Z159: 0 | AA159: 12 | AB159: 0 | AC159: 0 | AD159: 845145Bronco White | AE159: 845145 | AF159: =INDEX(ATS!$A:$P,MATCH('2) Order Form'!$V159,ATS!$O:$O,0),7) -> Active | AG159: 7048652893437
A160: 1 | B160: Helmets & Helmet Acc. | C160: =INDEX(ATS!$A:$P,MATCH('2) Order Form'!$V160,ATS!$O:$O,0),1) -> 845145 | D160: =INDEX(ATS!$A:$P,MATCH('2) Order Form'!$V160,ATS!$O:$O,0),2) -> Falconer 2Vi Mips Helmet | E160: =INDEX(ATS!$A:$P,MATCH('2) Order Form'!$V160,ATS!$O:$O,0),4) -> DUSK-SM | F160: =INDEX(ATS!$A:$P,MATCH('2) Order Form'!$V160,ATS!$O:$O,0),5) -> Dusk | G160: =INDEX(ATS!$A:$P,MATCH('2) Order Form'!$V160,ATS!$O:$O,0),6) -> SM | H160: 1 | I160: 0 | J160: =IFERROR(VLOOKUP(V160,ATS!$O:$P,2,FALSE),0) -> 25 | K160: 25 | L160: =IFERROR(VLOOKUP(V160,ATS!$O:$Q,3,FALSE),0) -> 25 | M160: 25 | N160: 0% | O160: 0% | P160: =VLOOKUP($C160,Prices!$A$3:$T$1996,MATCH('2) Order Form'!P$8,Prices!$A$2:$T$2,0),FALSE) -> 125.00 | Q160: =VLOOKUP($C160,Prices!$A$3:$T$1996,MATCH('2) Order Form'!Q$8,Prices!$A$2:$T$2,0),FALSE) -> 249.00 | R160: 0 | S160: 0 | T160: 0 | V160: 7048652893338 | X160: *** EOL *** | Y160: 0 | Z160: 0 | AA160: 12 | AB160: 0 | AC160: 1 | AD160: 845145Dusk | AE160: 845145 | AF160: =INDEX(ATS!$A:$P,MATCH('2) Order Form'!$V160,ATS!$O:$O,0),7) -> Stock | AG160: 7048652893482
A161: 1 | B161: Helmets & Helmet Acc. | C161: =INDEX(ATS!$A:$P,MATCH('2) Order Form'!$V161,ATS!$O:$O,0),1) -> 845145 | D161: =INDEX(ATS!$A:$P,MATCH('2) Order Form'!$V161,ATS!$O:$O,0),2) -> Falconer 2Vi Mips Helmet | E161: =INDEX(ATS!$A:$P,MATCH('2) Order Form'!$V161,ATS!$O:$O,0),4) -> DUSK-ML | F161: =INDEX(ATS!$A:$P,MATCH('2) Order Form'!$V161,ATS!$O:$O,0),5) -> Dusk | G161: =INDEX(ATS!$A:$P,MATCH('2) Order Form'!$V161,ATS!$O:$O,0),6) -> ML | H161: 1 | I161: 0 | J161: =IFERROR(VLOOKUP(V161,ATS!$O:$P,2,FALSE),0) -> 1 | K161: 1 | L161: =IFERROR(VLOOKUP(V161,ATS!$O:$Q,3,FALSE),0) -> 1 | M161: 1 | N161: 0% | O161: 0% | P161: =VLOOKUP($C161,Prices!$A$3:$T$1996,MATCH('2) Order Form'!P$8,Prices!$A$2:$T$2,0),FALSE) -> 125.00 | Q161: =VLOOKUP($C161,Prices!$A$3:$T$1996,MATCH('2) Order Form'!Q$8,Prices!$A$2:$T$2,0),FALSE) -> 249.00 | R161: 0 | S161: 0 | T161: 0 | V161: 7048652893321 | X161: *** EOL *** | Y161: 0 | Z161: 0 | AA161: 12 | AB161: 0 | AC161: 0 | AD161: 845145Dusk | AE161: 845145 | AF161: =INDEX(ATS!$A:$P,MATCH('2) Order Form'!$V161,ATS!$O:$O,0),7) -> Stock | AG161: 7048652893475
A162: 1 | B162: Helmets & Helmet Acc. | C162: =INDEX(ATS!$A:$P,MATCH('2) Order Form'!$V162,ATS!$O:$O,0),1) -> 845145 | D162: =INDEX(ATS!$A:$P,MATCH('2) Order Form'!$V162,ATS!$O:$O,0),2) -> Falconer 2Vi Mips Helmet | E162: =INDEX(ATS!$A:$P,MATCH('2) Order Form'!$V162,ATS!$O:$O,0),4) -> DUSK-LXL | F162: =INDEX(ATS!$A:$P,MATCH('2) Order Form'!$V162,ATS!$O:$O,0),5) -> Dusk | G162: =INDEX(ATS!$A:$P,MATCH('2) Order Form'!$V162,ATS!$O:$O,0),6) -> LXL | H162: 1 | I162: 0 | J162: =IFERROR(VLOOKUP(V162,ATS!$O:$P,2,FALSE),0) -> 47 | K162: 47 | L162: =IFERROR(VLOOKUP(V162,ATS!$O:$Q,3,FALSE),0) -> 47 | M162: 47 | N162: 0% | O162: 0% | P162: =VLOOKUP($C162,Prices!$A$3:$T$1996,MATCH('2) Order Form'!P$8,Prices!$A$2:$T$2,0),FALSE) -> 125.00 | Q162: =VLOOKUP($C162,Prices!$A$3:$T$1996,MATCH('2) Order Form'!Q$8,Prices!$A$2:$T$2,0),FALSE) -> 249.00 | R162: 0 | S162: 0 | T162: 0 | V162: 7048652893314 | X162: *** EOL *** | Y162: 0 | Z162: 0 | AA162: 12 | AB162: 0 | AC162: 0 | AD162: 845145Dusk | AE162: 845145 | AF162: =INDEX(ATS!$A:$P,MATCH('2) Order Form'!$V162,ATS!$O:$O,0),7) -> Stock | AG162: 7048652893468
A163: 1 | B163: Helmets & Helmet Acc. | C163: =INDEX(ATS!$A:$P,MATCH('2) Order Form'!$V163,ATS!$O:$O,0),1) -> 845145 | D163: =INDEX(ATS!$A:$P,MATCH('2) Order Form'!$V163,ATS!$O:$O,0),2) -> Falconer 2Vi Mips Helmet | E163: =INDEX(ATS!$A:$P,MATCH('2) Order Form'!$V163,ATS!$O:$O,0),4) -> LAVA-SM | F163: =INDEX(ATS!$A:$P,MATCH('2) Order Form'!$V163,ATS!$O:$O,0),5) -> Lava | G163: =INDEX(ATS!$A:$P,MATCH('2) Order Form'!$V163,ATS!$O:$O,0),6) -> SM | H163: 1 | I163: 0 | J163: =IFERROR(VLOOKUP(V163,ATS!$O:$P,2,FALSE),0) -> 54 | K163: 50+ | L163: =IFERROR(VLOOKUP(V163,ATS!$O:$Q,3,FALSE),0) -> 54 | M163: 50+ | N163: 0% | O163: 0% | P163: =VLOOKUP($C163,Prices!$A$3:$T$1996,MATCH('2) Order Form'!P$8,Prices!$A$2:$T$2,0),FALSE) -> 125.00 | Q163: =VLOOKUP($C163,Prices!$A$3:$T$1996,MATCH('2) Order Form'!Q$8,Prices!$A$2:$T$2,0),FALSE) -> 249.00 | R163: 0 | S163: 0 | T163: 0 | V163: 7048652895295 | Y163: 0 | Z163: 0 | AA163: 12 | AB163: 0 | AC163: 1 | AD163: 845145Lava | AE163: 845145 | AF163: =INDEX(ATS!$A:$P,MATCH('2) Order Form'!$V163,ATS!$O:$O,0),7) -> Active | AG163: 7048652895295
A164: 1 | B164: Helmets & Helmet Acc. | C164: =INDEX(ATS!$A:$P,MATCH('2) Order Form'!$V164,ATS!$O:$O,0),1) -> 845145 | D164: =INDEX(ATS!$A:$P,MATCH('2) Order Form'!$V164,ATS!$O:$O,0),2) -> Falconer 2Vi Mips Helmet | E164: =INDEX(ATS!$A:$P,MATCH('2) Order Form'!$V164,ATS!$O:$O,0),4) -> LAVA-ML | F164: =INDEX(ATS!$A:$P,MATCH('2) Order Form'!$V164,ATS!$O:$O,0),5) -> Lava | G164: =INDEX(ATS!$A:$P,MATCH('2) Order Form'!$V164,ATS!$O:$O,0),6) -> ML | H164: 1 | I164: 0 | J164: =IFERROR(VLOOKUP(V164,ATS!$O:$P,2,FALSE),0) -> 27 | K164: 27 | L164: =IFERROR(VLOOKUP(V164,ATS!$O:$Q,3,FALSE),0) -> 27 | M164: 27 | N164: 0% | O164: 0% | P164: =VLOOKUP($C164,Prices!$A$3:$T$1996,MATCH('2) Order Form'!P$8,Prices!$A$2:$T$2,0),FALSE) -> 125.00 | Q164: =VLOOKUP($C164,Prices!$A$3:$T$1996,MATCH('2) Order Form'!Q$8,Prices!$A$2:$T$2,0),FALSE) -> 249.00 | R164: 0 | S164: 0 | T164: 0 | V164: 7048652895288 | Y164: 0 | Z164: 0 | AA164: 12 | AB164: 0 | AC164: 0 | AD164: 845145Lava | AE164: 845145 | AF164: =INDEX(ATS!$A:$P,MATCH('2) Order Form'!$V164,ATS!$O:$O,0),7) -> Active | AG164: 7048652895288
A165: 1 | B165: Helmets & Helmet Acc. | C165: =INDEX(ATS!$A:$P,MATCH('2) Order Form'!$V165,ATS!$O:$O,0),1) -> 845145 | D165: =INDEX(ATS!$A:$P,MATCH('2) Order Form'!$V165,ATS!$O:$O,0),2) -> Falconer 2Vi Mips Helmet | E165: =INDEX(ATS!$A:$P,MATCH('2) Order Form'!$V165,ATS!$O:$O,0),4) -> LAVA-LXL | F165: =INDEX(ATS!$A:$P,MATCH('2) Order Form'!$V165,ATS!$O:$O,0),5) -> Lava | G165: =INDEX(ATS!$A:$P,MATCH('2) Order Form'!$V165,ATS!$O:$O,0),6) -> LXL | H165: 1 | I165: 0 | J165: =IFERROR(VLOOKUP(V165,ATS!$O:$P,2,FALSE),0) -> 39 | K165: 39 | L165: =IFERROR(VLOOKUP(V165,ATS!$O:$Q,3,FALSE),0) -> 39 | M165: 39 | N165: 0% | O165: 0% | P165: =VLOOKUP($C165,Prices!$A$3:$T$1996,MATCH('2) Order Form'!P$8,Prices!$A$2:$T$2,0),FALSE) -> 125.00 | Q165: =VLOOKUP($C165,Prices!$A$3:$T$1996,MATCH('2) Order Form'!Q$8,Prices!$A$2:$T$2,0),FALSE) -> 249.00 | R165: 0 | S165: 0 | T165: 0 | V165: 7048652895271 | Y165: 0 | Z165: 0 | AA165: 12 | AB165: 0 | AC165: 0 | AD165: 845145Lava | AE165: 845145 | AF165: =INDEX(ATS!$A:$P,MATCH('2) Order Form'!$V165,ATS!$O:$O,0),7) -> Active | AG165: 7048652895271
A166: 1 | B166: Helmets & Helmet Acc. | C166: =INDEX(ATS!$A:$P,MATCH('2) Order Form'!$V166,ATS!$O:$O,0),1) -> 845145 | D166: =INDEX(ATS!$A:$P,MATCH('2) Order Form'!$V166,ATS!$O:$O,0),2) -> Falconer 2Vi Mips Helmet | E166: =INDEX(ATS!$A:$P,MATCH('2) Order Form'!$V166,ATS!$O:$O,0),4) -> LUSH-SM | F166: =INDEX(ATS!$A:$P,MATCH('2) Order Form'!$V166,ATS!$O:$O,0),5) -> Lush | G166: =INDEX(ATS!$A:$P,MATCH('2) Order Form'!$V166,ATS!$O:$O,0),6) -> SM | H166: 1 | I166: 0 | J166: =IFERROR(VLOOKUP(V166,ATS!$O:$P,2,FALSE),0) -> 17 | K166: 17 | L166: =IFERROR(VLOOKUP(V166,ATS!$O:$Q,3,FALSE),0) -> 17 | M166: 17 | N166: 0% | O166: 0% | P166: =VLOOKUP($C166,Prices!$A$3:$T$1996,MATCH('2) Order Form'!P$8,Prices!$A$2:$T$2,0),FALSE) -> 125.00 | Q166: =VLOOKUP($C166,Prices!$A$3:$T$1996,MATCH('2) Order Form'!Q$8,Prices!$A$2:$T$2,0),FALSE) -> 249.00 | R166: 0 | S166: 0 | T166: 0 | V166: 7048652893369 | X166: *** EOL *** | Y166: 0 | Z166: 0 | AA166: 12 | AB166: 0 | AC166: 1 | AD166: 845145Lush | AE166: 845145 | AF166: =INDEX(ATS!$A:$P,MATCH('2) Order Form'!$V166,ATS!$O:$O,0),7) -> Stock | AG166: 7048653024915
A167: 1 | B167: Helmets & Helmet Acc. | C167: =INDEX(ATS!$A:$P,MATCH('2) Order Form'!$V167,ATS!$O:$O,0),1) -> 845145 | D167: =INDEX(ATS!$A:$P,MATCH('2) Order Form'!$V167,ATS!$O:$O,0),2) -> Falconer 2Vi Mips Helmet | E167: =INDEX(ATS!$A:$P,MATCH('2) Order Form'!$V167,ATS!$O:$O,0),4) -> LUSH-ML | F167: =INDEX(ATS!$A:$P,MATCH('2) Order Form'!$V167,ATS!$O:$O,0),5) -> Lush | G167: =INDEX(ATS!$A:$P,MATCH('2) Order Form'!$V167,ATS!$O:$O,0),6) -> ML | H167: 1 | I167: 0 | J167: =IFERROR(VLOOKUP(V167,ATS!$O:$P,2,FALSE),0) -> 8 | K167: 8 | L167: =IFERROR(VLOOKUP(V167,ATS!$O:$Q,3,FALSE),0) -> 8 | M167: 8 | N167: 0% | O167: 0% | P167: =VLOOKUP($C167,Prices!$A$3:$T$1996,MATCH('2) Order Form'!P$8,Prices!$A$2:$T$2,0),FALSE) -> 125.00 | Q167: =VLOOKUP($C167,Prices!$A$3:$T$1996,MATCH('2) Order Form'!Q$8,Prices!$A$2:$T$2,0),FALSE) -> 249.00 | R167: 0 | S167: 0 | T167: 0 | V167: 7048652893352 | X167: *** EOL *** | Y167: 0 | Z167: 0 | AA167: 12 | AB167: 0 | AC167: 0 | AD167: 845145Lush | AE167: 845145 | AF167: =INDEX(ATS!$A:$P,MATCH('2) Order Form'!$V167,ATS!$O:$O,0),7) -> Stock | AG167: 7048653024908
A168: 1 | B168: Helmets & Helmet Acc. | C168: =INDEX(ATS!$A:$P,MATCH('2) Order Form'!$V168,ATS!$O:$O,0),1) -> 845145 | D168: =INDEX(ATS!$A:$P,MATCH('2) Order Form'!$V168,ATS!$O:$O,0),2) -> Falconer 2Vi Mips Helmet | E168: =INDEX(ATS!$A:$P,MATCH('2) Order Form'!$V168,ATS!$O:$O,0),4) -> LUSH-LXL | F168: =INDEX(ATS!$A:$P,MATCH('2) Order Form'!$V168,ATS!$O:$O,0),5) -> Lush | G168: =INDEX(ATS!$A:$P,MATCH('2) Order Form'!$V168,ATS!$O:$O,0),6) -> LXL | H168: 1 | I168: 0 | J168: =IFERROR(VLOOKUP(V168,ATS!$O:$P,2,FALSE),0) -> 18 | K168: 18 | L168: =IFERROR(VLOOKUP(V168,ATS!$O:$Q,3,FALSE),0) -> 18 | M168: 18 | N168: 0% | O168: 0% | P168: =VLOOKUP($C168,Prices!$A$3:$T$1996,MATCH('2) Order Form'!P$8,Prices!$A$2:$T$2,0),FALSE) -> 125.00 | Q168: =VLOOKUP($C168,Prices!$A$3:$T$1996,MATCH('2) Order Form'!Q$8,Prices!$A$2:$T$2,0),FALSE) -> 249.00 | R168: 0 | S168: 0 | T168: 0 | V168: 7048652893345 | X168: *** EOL *** | Y168: 0 | Z168: 0 | AA168: 12 | AB168: 0 | AC168: 0 | AD168: 845145Lush | AE168: 845145 | AF168: =INDEX(ATS!$A:$P,MATCH('2) Order Form'!$V168,ATS!$O:$O,0),7) -> Stock | AG168: 7048653024939
A169: 1 | B169: Helmets & Helmet Acc. | C169: =INDEX(ATS!$A:$P,MATCH('2) Order Form'!$V169,ATS!$O:$O,0),1) -> 845145 | D169: =INDEX(ATS!$A:$P,MATCH('2) Order Form'!$V169,ATS!$O:$O,0),2) -> Falconer 2Vi Mips Helmet | E169: =INDEX(ATS!$A:$P,MATCH('2) Order Form'!$V169,ATS!$O:$O,0),4) -> MBLCK-SM | F169: =INDEX(ATS!$A:$P,MATCH('2) Order Form'!$V169,ATS!$O:$O,0),5) -> Matte Black | G169: =INDEX(ATS!$A:$P,MATCH('2) Order Form'!$V169,ATS!$O:$O,0),6) -> SM | H169: 1 | I169: 0 | J169: =IFERROR(VLOOKUP(V169,ATS!$O:$P,2,FALSE),0) -> 1 | K169: 1 | L169: =IFERROR(VLOOKUP(V169,ATS!$O:$Q,3,FALSE),0) -> 1 | M169: 1 | N169: 0% | O169: 0% | P169: =VLOOKUP($C169,Prices!$A$3:$T$1996,MATCH('2) Order Form'!P$8,Prices!$A$2:$T$2,0),FALSE) -> 125.00 | Q169: =VLOOKUP($C169,Prices!$A$3:$T$1996,MATCH('2) Order Form'!Q$8,Prices!$A$2:$T$2,0),FALSE) -> 249.00 | R169: 0 | S169: 0 | T169: 0 | V169: 7048652893390 | Y169: 0 | Z169: 0 | AA169: 12 | AB169: 0 | AC169: 1 | AD169: 845145Matte Black | AE169: 845145 | AF169: =INDEX(ATS!$A:$P,MATCH('2) Order Form'!$V169,ATS!$O:$O,0),7) -> Active | AG169: 7048653024922
A170: 1 | B170: Helmets & Helmet Acc. | C170: =INDEX(ATS!$A:$P,MATCH('2) Order Form'!$V170,ATS!$O:$O,0),1) -> 845145 | D170: =INDEX(ATS!$A:$P,MATCH('2) Order Form'!$V170,ATS!$O:$O,0),2) -> Falconer 2Vi Mips Helmet | E170: =INDEX(ATS!$A:$P,MATCH('2) Order Form'!$V170,ATS!$O:$O,0),4) -> MBLCK-ML | F170: =INDEX(ATS!$A:$P,MATCH('2) Order Form'!$V170,ATS!$O:$O,0),5) -> Matte Black | G170: =INDEX(ATS!$A:$P,MATCH('2) Order Form'!$V170,ATS!$O:$O,0),6) -> ML | H170: 1 | I170: 0 | J170: =IFERROR(VLOOKUP(V170,ATS!$O:$P,2,FALSE),0) -> 0 | K170: 0 | L170: =IFERROR(VLOOKUP(V170,ATS!$O:$Q,3,FALSE),0) -> 0 | M170: 0 | N170: 0% | O170: 0% | P170: =VLOOKUP($C170,Prices!$A$3:$T$1996,MATCH('2) Order Form'!P$8,Prices!$A$2:$T$2,0),FALSE) -> 125.00 | Q170: =VLOOKUP($C170,Prices!$A$3:$T$1996,MATCH('2) Order Form'!Q$8,Prices!$A$2:$T$2,0),FALSE) -> 249.00 | R170: 0 | S170: 0 | T170: 0 | V170: 7048652893383 | Y170: 0 | Z170: 0 | AA170: 12 | AB170: 0 | AC170: 0 | AD170: 845145Matte Black | AE170: 845145 | AF170: =INDEX(ATS!$A:$P,MATCH('2) Order Form'!$V170,ATS!$O:$O,0),7) -> Active | AG170: 7048653024953
A171: 1 | B171: Helmets & Helmet Acc. | C171: =INDEX(ATS!$A:$P,MATCH('2) Order Form'!$V171,ATS!$O:$O,0),1) -> 845145 | D171: =INDEX(ATS!$A:$P,MATCH('2) Order Form'!$V171,ATS!$O:$O,0),2) -> Falconer 2Vi Mips Helmet | E171: =INDEX(ATS!$A:$P,MATCH('2) Order Form'!$V171,ATS!$O:$O,0),4) -> MBLCK-LXL | F171: =INDEX(ATS!$A:$P,MATCH('2) Order Form'!$V171,ATS!$O:$O,0),5) -> Matte Black | G171: =INDEX(ATS!$A:$P,MATCH('2) Order Form'!$V171,ATS!$O:$O,0),6) -> LXL | H171: 1 | I171: 0 | J171: =IFERROR(VLOOKUP(V171,ATS!$O:$P,2,FALSE),0) -> 0 | K171: 0 | L171: =IFERROR(VLOOKUP(V171,ATS!$O:$Q,3,FALSE),0) -> 0 | M171: 0 | N171: 0% | O171: 0% | P171: =VLOOKUP($C171,Prices!$A$3:$T$1996,MATCH('2) Order Form'!P$8,Prices!$A$2:$T$2,0),FALSE) -> 125.00 | Q171: =VLOOKUP($C171,Prices!$A$3:$T$1996,MATCH('2) Order Form'!Q$8,Prices!$A$2:$T$2,0),FALSE) -> 249.00 | R171: 0 | S171: 0 | T171: 0 | V171: 7048652893376 | Y171: 0 | Z171: 0 | AA171: 12 | AB171: 0 | AC171: 0 | AD171: 845145Matte Black | AE171: 845145 | AF171: =INDEX(ATS!$A:$P,MATCH('2) Order Form'!$V171,ATS!$O:$O,0),7) -> Active | AG171: 7048653024946
A172: 1 | B172: Helmets & Helmet Acc. | C172: =INDEX(ATS!$A:$P,MATCH('2) Order Form'!$V172,ATS!$O:$O,0),1) -> 845145 | D172: =INDEX(ATS!$A:$P,MATCH('2) Order Form'!$V172,ATS!$O:$O,0),2) -> Falconer 2Vi Mips Helmet | E172: =INDEX(ATS!$A:$P,MATCH('2) Order Form'!$V172,ATS!$O:$O,0),4) -> SAWHT-SM | F172: =INDEX(ATS!$A:$P,MATCH('2) Order Form'!$V172,ATS!$O:$O,0),5) -> Satin White | G172: =INDEX(ATS!$A:$P,MATCH('2) Order Form'!$V172,ATS!$O:$O,0),6) -> SM | H172: 1 | I172: 0 | J172: =IFERROR(VLOOKUP(V172,ATS!$O:$P,2,FALSE),0) -> 0 | K172: 0 | L172: =IFERROR(VLOOKUP(V172,ATS!$O:$Q,3,FALSE),0) -> 0 | M172: 0 | N172: 0% | O172: 0% | P172: =VLOOKUP($C172,Prices!$A$3:$T$1996,MATCH('2) Order Form'!P$8,Prices!$A$2:$T$2,0),FALSE) -> 125.00 | Q172: =VLOOKUP($C172,Prices!$A$3:$T$1996,MATCH('2) Order Form'!Q$8,Prices!$A$2:$T$2,0),FALSE) -> 249.00 | R172: 0 | S172: 0 | T172: 0 | V172: 7048652893451 | Y172: =I172*Q172 -> 0 | Z172: =IF(A172=OFFSET(A172,-1,0),0,1) -> 0 | AA172: 12 | AB172: 0 | AC172: 1 | AD172: 845145Satin White | AE172: 845145 | AF172: =INDEX(ATS!$A:$P,MATCH('2) Order Form'!$V172,ATS!$O:$O,0),7) -> Active | AG172: 7048653025967
A173: 1 | B173: Helmets & Helmet Acc. | C173: =INDEX(ATS!$A:$P,MATCH('2) Order Form'!$V173,ATS!$O:$O,0),1) -> 845145 | D173: =INDEX(ATS!$A:$P,MATCH('2) Order Form'!$V173,ATS!$O:$O,0),2) -> Falconer 2Vi Mips Helmet | E173: =INDEX(ATS!$A:$P,MATCH('2) Order Form'!$V173,ATS!$O:$O,0),4) -> SAWHT-ML | F173: =INDEX(ATS!$A:$P,MATCH('2) Order Form'!$V173,ATS!$O:$O,0),5) -> Satin White | G173: =INDEX(ATS!$A:$P,MATCH('2) Order Form'!$V173,ATS!$O:$O,0),6) -> ML | H173: 1 | I173: 0 | J173: =IFERROR(VLOOKUP(V173,ATS!$O:$P,2,FALSE),0) -> 0 | K173: 0 | L173: =IFERROR(VLOOKUP(V173,ATS!$O:$Q,3,FALSE),0) -> 0 | M173: 0 | N173: 0% | O173: 0% | P173: =VLOOKUP($C173,Prices!$A$3:$T$1996,MATCH('2) Order Form'!P$8,Prices!$A$2:$T$2,0),FALSE) -> 125.00 | Q173: =VLOOKUP($C173,Prices!$A$3:$T$1996,MATCH('2) Order Form'!Q$8,Prices!$A$2:$T$2,0),FALSE) -> 249.00 | R173: 0 | S173: 0 | T173: 0 | V173: 7048652893444 | Y173: 0 | Z173: 0 | AA173: 12 | AB173: 0 | AC173: 0 | AD173: 845145Satin White | AE173: 845145 | AF173: =INDEX(ATS!$A:$P,MATCH('2) Order Form'!$V173,ATS!$O:$O,0),7) -> Active | AG173: 7048653025950
A174: 1 | B174: Helmets & Helmet Acc. | C174: =INDEX(ATS!$A:$P,MATCH('2) Order Form'!$V174,ATS!$O:$O,0),1) -> 845145 | D174: =INDEX(ATS!$A:$P,MATCH('2) Order Form'!$V174,ATS!$O:$O,0),2) -> Falconer 2Vi Mips Helmet | E174: =INDEX(ATS!$A:$P,MATCH('2) Order Form'!$V174,ATS!$O:$O,0),4) -> SAWHT-LXL | F174: =INDEX(ATS!$A:$P,MATCH('2) Order Form'!$V174,ATS!$O:$O,0),5) -> Satin White | G174: =INDEX(ATS!$A:$P,MATCH('2) Order Form'!$V174,ATS!$O:$O,0),6) -> LXL | H174: 1 | I174: 0 | J174: =IFERROR(VLOOKUP(V174,ATS!$O:$P,2,FALSE),0) -> 15 | K174: 15 | L174: =IFERROR(VLOOKUP(V174,ATS!$O:$Q,3,FALSE),0) -> 15 | M174: 15 | N174: 0% | O174: 0% | P174: =VLOOKUP($C174,Prices!$A$3:$T$1996,MATCH('2) Order Form'!P$8,Prices!$A$2:$T$2,0),FALSE) -> 125.00 | Q174: =VLOOKUP($C174,Prices!$A$3:$T$1996,MATCH('2) Order Form'!Q$8,Prices!$A$2:$T$2,0),FALSE) -> 249.00 | R174: 0 | S174: 0 | T174: 0 | V174: 7048652893437 | Y174: 0 | Z174: 0 | AA174: 12 | AB174: 0 | AC174: 0 | AD174: 845145Satin White | AE174: 845145 | AF174: =INDEX(ATS!$A:$P,MATCH('2) Order Form'!$V174,ATS!$O:$O,0),7) -> Active | AG174: 7048653025943
A175: 1 | B175: Helmets & Helmet Acc. | C175: =INDEX(ATS!$A:$P,MATCH('2) Order Form'!$V175,ATS!$O:$O,0),1) -> 845145 | D175: =INDEX(ATS!$A:$P,MATCH('2) Order Form'!$V175,ATS!$O:$O,0),2) -> Falconer 2Vi Mips Helmet | E175: =INDEX(ATS!$A:$P,MATCH('2) Order Form'!$V175,ATS!$O:$O,0),4) -> WOLND-SM | F175: =INDEX(ATS!$A:$P,MATCH('2) Order Form'!$V175,ATS!$O:$O,0),5) -> Woodland | G175: =INDEX(ATS!$A:$P,MATCH('2) Order Form'!$V175,ATS!$O:$O,0),6) -> SM | H175: 1 | I175: 0 | J175: =IFERROR(VLOOKUP(V175,ATS!$O:$P,2,FALSE),0) -> 10 | K175: =IF(J175=99999,"OPEN",IF(J175>50,"50+",IF(J175<=0,"0",J175))) -> 10 | L175: =IFERROR(VLOOKUP(V175,ATS!$O:$Q,3,FALSE),0) -> 10 | M175: =IF(L175=99999,"OPEN",IF(L175>50,"50+",IF(L175<=0,"0",L175))) -> 10 | N175: 0% | O175: =IF(N175<>0,N175,$P$5) -> 0% | P175: =VLOOKUP($C175,Prices!$A$3:$T$1996,MATCH('2) Order Form'!P$8,Prices!$A$2:$T$2,0),FALSE) -> 125.00 | Q175: =VLOOKUP($C175,Prices!$A$3:$T$1996,MATCH('2) Order Form'!Q$8,Prices!$A$2:$T$2,0),FALSE) -> 249.00 | R175: =I175*P175 -> 0 | S175: =R175*O175 -> 0 | T175: =R175-S175 -> 0 | V175: 7048652893482 | Y175: 0 | Z175: 0 | AA175: 12 | AB175: 0 | AC175: 1 | AD175: 845145Woodland | AE175: 845145 | AF175: =INDEX(ATS!$A:$P,MATCH('2) Order Form'!$V175,ATS!$O:$O,0),7) -> Active | AG175: 7048653025998
A176: 1 | B176: Helmets & Helmet Acc. | C176: =INDEX(ATS!$A:$P,MATCH('2) Order Form'!$V176,ATS!$O:$O,0),1) -> 845145 | D176: =INDEX(ATS!$A:$P,MATCH('2) Order Form'!$V176,ATS!$O:$O,0),2) -> Falconer 2Vi Mips Helmet | E176: =INDEX(ATS!$A:$P,MATCH('2) Order Form'!$V176,ATS!$O:$O,0),4) -> WOLND-ML | F176: =INDEX(ATS!$A:$P,MATCH('2) Order Form'!$V176,ATS!$O:$O,0),5) -> Woodland | G176: =INDEX(ATS!$A:$P,MATCH('2) Order Form'!$V176,ATS!$O:$O,0),6) -> ML | H176: 1 | I176: 0 | J176: =IFERROR(VLOOKUP(V176,ATS!$O:$P,2,FALSE),0) -> 69 | K176: 50+ | L176: =IFERROR(VLOOKUP(V176,ATS!$O:$Q,3,FALSE),0) -> 69 | M176: 50+ | N176: 0% | O176: 0% | P176: =VLOOKUP($C176,Prices!$A$3:$T$1996,MATCH('2) Order Form'!P$8,Prices!$A$2:$T$2,0),FALSE) -> 125.00 | Q176: =VLOOKUP($C176,Prices!$A$3:$T$1996,MATCH('2) Order Form'!Q$8,Prices!$A$2:$T$2,0),FALSE) -> 249.00 | R176: 0 | S176: 0 | T176: 0 | V176: 7048652893475 | Y176: 0 | Z176: 0 | AA176: 12 | AB176: 0 | AC176: 0 | AD176: 845145Woodland | AE176: 845145 | AF176: =INDEX(ATS!$A:$P,MATCH('2) Order Form'!$V176,ATS!$O:$O,0),7) -> Active | AG176: 7048653025981
A177: 1 | B177: Helmets & Helmet Acc. | C177: =INDEX(ATS!$A:$P,MATCH('2) Order Form'!$V177,ATS!$O:$O,0),1) -> 845145 | D177: =INDEX(ATS!$A:$P,MATCH('2) Order Form'!$V177,ATS!$O:$O,0),2) -> Falconer 2Vi Mips Helmet | E177: =INDEX(ATS!$A:$P,MATCH('2) Order Form'!$V177,ATS!$O:$O,0),4) -> WOLND-LXL | F177: =INDEX(ATS!$A:$P,MATCH('2) Order Form'!$V177,ATS!$O:$O,0),5) -> Woodland | G177: =INDEX(ATS!$A:$P,MATCH('2) Order Form'!$V177,ATS!$O:$O,0),6) -> LXL | H177: 1 | I177: 0 | J177: =IFERROR(VLOOKUP(V177,ATS!$O:$P,2,FALSE),0) -> 76 | K177: 50+ | L177: =IFERROR(VLOOKUP(V177,ATS!$O:$Q,3,FALSE),0) -> 76 | M177: 50+ | N177: 0% | O177: 0% | P177: =VLOOKUP($C177,Prices!$A$3:$T$1996,MATCH('2) Order Form'!P$8,Prices!$A$2:$T$2,0),FALSE) -> 125.00 | Q177: =VLOOKUP($C177,Prices!$A$3:$T$1996,MATCH('2) Order Form'!Q$8,Prices!$A$2:$T$2,0),FALSE) -> 249.00 | R177: 0 | S177: 0 | T177: 0 | V177: 7048652893468 | Y177: 0 | Z177: 0 | AA177: 12 | AB177: 0 | AC177: 0 | AD177: 845145Woodland | AE177: 845145 | AF177: =INDEX(ATS!$A:$P,MATCH('2) Order Form'!$V177,ATS!$O:$O,0),7) -> Active | AG177: 7048653025974
A178: 1 | B178: Helmets & Helmet Acc. | C178: =INDEX(ATS!$A:$P,MATCH('2) Order Form'!$V178,ATS!$O:$O,0),1) -> 845149 | D178: =INDEX(ATS!$A:$P,MATCH('2) Order Form'!$V178,ATS!$O:$O,0),2) -> Promuter Mips Helmet | E178: =INDEX(ATS!$A:$P,MATCH('2) Order Form'!$V178,ATS!$O:$O,0),4) -> LAVA-SM | F178: =INDEX(ATS!$A:$P,MATCH('2) Order Form'!$V178,ATS!$O:$O,0),5) -> Lava | G178: =INDEX(ATS!$A:$P,MATCH('2) Order Form'!$V178,ATS!$O:$O,0),6) -> SM | H178: 1 | I178: 0 | J178: =IFERROR(VLOOKUP(V178,ATS!$O:$P,2,FALSE),0) -> 81 | K178: =IF(J178=99999,"OPEN",IF(J178>50,"50+",IF(J178<=0,"0",J178))) -> 50+ | L178: =IFERROR(VLOOKUP(V178,ATS!$O:$Q,3,FALSE),0) -> 81 | M178: =IF(L178=99999,"OPEN",IF(L178>50,"50+",IF(L178<=0,"0",L178))) -> 50+ | N178: 0% | O178: =IF(N178<>0,N178,$P$5) -> 0% | P178: =VLOOKUP($C178,Prices!$A$3:$T$1996,MATCH('2) Order Form'!P$8,Prices!$A$2:$T$2,0),FALSE) -> 100.00 | Q178: =VLOOKUP($C178,Prices!$A$3:$T$1996,MATCH('2) Order Form'!Q$8,Prices!$A$2:$T$2,0),FALSE) -> 199.00 | R178: =I178*P178 -> 0 | S178: =R178*O178 -> 0 | T178: =R178-S178 -> 0 | V178: 7048652893895 | Y178: =I178*Q178 -> 0 | Z178: 0 | AA178: 13 | AB178: =IF(C178=OFFSET(C178,-1,0),0,1) -> 1 | AC178: =IF(F178=OFFSET(F178,-1,0),0,1) -> 1 | AD178: =CONCATENATE(C178,F178) -> 845149Lava | AE178: =IFERROR(IF(B178="EYEWEAR",CONCATENATE(C178,"-",G178),C178),C178) -> 845149 | AF178: =INDEX(ATS!$A:$P,MATCH('2) Order Form'!$V178,ATS!$O:$O,0),7) -> Active | AG178: 7048653026025
A179: 1 | B179: Helmets & Helmet Acc. | C179: =INDEX(ATS!$A:$P,MATCH('2) Order Form'!$V179,ATS!$O:$O,0),1) -> 845149 | D179: =INDEX(ATS!$A:$P,MATCH('2) Order Form'!$V179,ATS!$O:$O,0),2) -> Promuter Mips Helmet | E179: =INDEX(ATS!$A:$P,MATCH('2) Order Form'!$V179,ATS!$O:$O,0),4) -> LAVA-ML | F179: =INDEX(ATS!$A:$P,MATCH('2) Order Form'!$V179,ATS!$O:$O,0),5) -> Lava | G179: =INDEX(ATS!$A:$P,MATCH('2) Order Form'!$V179,ATS!$O:$O,0),6) -> ML | H179: 1 | I179: 0 | J179: =IFERROR(VLOOKUP(V179,ATS!$O:$P,2,FALSE),0) -> 102 | K179: 50+ | L179: =IFERROR(VLOOKUP(V179,ATS!$O:$Q,3,FALSE),0) -> 102 | M179: 50+ | N179: 0% | O179: 0% | P179: =VLOOKUP($C179,Prices!$A$3:$T$1996,MATCH('2) Order Form'!P$8,Prices!$A$2:$T$2,0),FALSE) -> 100.00 | Q179: =VLOOKUP($C179,Prices!$A$3:$T$1996,MATCH('2) Order Form'!Q$8,Prices!$A$2:$T$2,0),FALSE) -> 199.00 | R179: 0 | S179: 0 | T179: 0 | V179: 7048652893888 | Y179: =I179*Q179 -> 0 | Z179: 0 | AA179: =IF(C179=OFFSET(C179,-1,0),OFFSET(AA179,-1,0),OFFSET(AA179,-1,0)+1) -> 13 | AB179: 0 | AC179: 0 | AD179: 845149Lava | AE179: 845149 | AF179: =INDEX(ATS!$A:$P,MATCH('2) Order Form'!$V179,ATS!$O:$O,0),7) -> Active | AG179: 7048653026018
A180: 1 | B180: Helmets & Helmet Acc. | C180: =INDEX(ATS!$A:$P,MATCH('2) Order Form'!$V180,ATS!$O:$O,0),1) -> 845149 | D180: =INDEX(ATS!$A:$P,MATCH('2) Order Form'!$V180,ATS!$O:$O,0),2) -> Promuter Mips Helmet | E180: =INDEX(ATS!$A:$P,MATCH('2) Order Form'!$V180,ATS!$O:$O,0),4) -> LAVA-LXL | F180: =INDEX(ATS!$A:$P,MATCH('2) Order Form'!$V180,ATS!$O:$O,0),5) -> Lava | G180: =INDEX(ATS!$A:$P,MATCH('2) Order Form'!$V180,ATS!$O:$O,0),6) -> LXL | H180: 1 | I180: 0 | J180: =IFERROR(VLOOKUP(V180,ATS!$O:$P,2,FALSE),0) -> 76 | K180: 50+ | L180: =IFERROR(VLOOKUP(V180,ATS!$O:$Q,3,FALSE),0) -> 76 | M180: 50+ | N180: 0% | O180: 0% | P180: =VLOOKUP($C180,Prices!$A$3:$T$1996,MATCH('2) Order Form'!P$8,Prices!$A$2:$T$2,0),FALSE) -> 100.00 | Q180: =VLOOKUP($C180,Prices!$A$3:$T$1996,MATCH('2) Order Form'!Q$8,Prices!$A$2:$T$2,0),FALSE) -> 199.00 | R180: 0 | S180: 0 | T180: 0 | V180: 7048652893871 | Y180: 0 | Z180: 0 | AA180: 13 | AB180: 0 | AC180: 0 | AD180: 845149Lava | AE180: 845149 | AF180: =INDEX(ATS!$A:$P,MATCH('2) Order Form'!$V180,ATS!$O:$O,0),7) -> Active | AG180: 7048653026001
A181: 1 | B181: Helmets & Helmet Acc. | C181: =INDEX(ATS!$A:$P,MATCH('2) Order Form'!$V181,ATS!$O:$O,0),1) -> 845149 | D181: =INDEX(ATS!$A:$P,MATCH('2) Order Form'!$V181,ATS!$O:$O,0),2) -> Promuter Mips Helmet | E181: =INDEX(ATS!$A:$P,MATCH('2) Order Form'!$V181,ATS!$O:$O,0),4) -> MBLCK-SM | F181: =INDEX(ATS!$A:$P,MATCH('2) Order Form'!$V181,ATS!$O:$O,0),5) -> Matte Black | G181: =INDEX(ATS!$A:$P,MATCH('2) Order Form'!$V181,ATS!$O:$O,0),6) -> SM | H181: 1 | I181: 0 | J181: =IFERROR(VLOOKUP(V181,ATS!$O:$P,2,FALSE),0) -> 23 | K181: 23 | L181: =IFERROR(VLOOKUP(V181,ATS!$O:$Q,3,FALSE),0) -> 23 | M181: 23 | N181: 0% | O181: 0% | P181: =VLOOKUP($C181,Prices!$A$3:$T$1996,MATCH('2) Order Form'!P$8,Prices!$A$2:$T$2,0),FALSE) -> 100.00 | Q181: =VLOOKUP($C181,Prices!$A$3:$T$1996,MATCH('2) Order Form'!Q$8,Prices!$A$2:$T$2,0),FALSE) -> 199.00 | R181: 0 | S181: 0 | T181: 0 | V181: 7048652893925 | Y181: 0 | Z181: 0 | AA181: 13 | AB181: 0 | AC181: 1 | AD181: 845149Matte Black | AE181: 845149 | AF181: =INDEX(ATS!$A:$P,MATCH('2) Order Form'!$V181,ATS!$O:$O,0),7) -> Active | AG181: 7048653026056
A182: 1 | B182: Helmets & Helmet Acc. | C182: =INDEX(ATS!$A:$P,MATCH('2) Order Form'!$V182,ATS!$O:$O,0),1) -> 845149 | D182: =INDEX(ATS!$A:$P,MATCH('2) Order Form'!$V182,ATS!$O:$O,0),2) -> Promuter Mips Helmet | E182: =INDEX(ATS!$A:$P,MATCH('2) Order Form'!$V182,ATS!$O:$O,0),4) -> MBLCK-ML | F182: =INDEX(ATS!$A:$P,MATCH('2) Order Form'!$V182,ATS!$O:$O,0),5) -> Matte Black | G182: =INDEX(ATS!$A:$P,MATCH('2) Order Form'!$V182,ATS!$O:$O,0),6) -> ML | H182: 1 | I182: 0 | J182: =IFERROR(VLOOKUP(V182,ATS!$O:$P,2,FALSE),0) -> 113 | K182: 50+ | L182: =IFERROR(VLOOKUP(V182,ATS!$O:$Q,3,FALSE),0) -> 113 | M182: 50+ | N182: 0% | O182: 0% | P182: =VLOOKUP($C182,Prices!$A$3:$T$1996,MATCH('2) Order Form'!P$8,Prices!$A$2:$T$2,0),FALSE) -> 100.00 | Q182: =VLOOKUP($C182,Prices!$A$3:$T$1996,MATCH('2) Order Form'!Q$8,Prices!$A$2:$T$2,0),FALSE) -> 199.00 | R182: 0 | S182: 0 | T182: 0 | V182: 7048652893918 | Y182: 0 | Z182: 0 | AA182: 13 | AB182: 0 | AC182: 0 | AD182: 845149Matte Black | AE182: 845149 | AF182: =INDEX(ATS!$A:$P,MATCH('2) Order Form'!$V182,ATS!$O:$O,0),7) -> Active | AG182: 7048653026049
A183: 1 | B183: Helmets & Helmet Acc. | C183: =INDEX(ATS!$A:$P,MATCH('2) Order Form'!$V183,ATS!$O:$O,0),1) -> 845149 | D183: =INDEX(ATS!$A:$P,MATCH('2) Order Form'!$V183,ATS!$O:$O,0),2) -> Promuter Mips Helmet | E183: =INDEX(ATS!$A:$P,MATCH('2) Order Form'!$V183,ATS!$O:$O,0),4) -> MBLCK-LXL | F183: =INDEX(ATS!$A:$P,MATCH('2) Order Form'!$V183,ATS!$O:$O,0),5) -> Matte Black | G183: =INDEX(ATS!$A:$P,MATCH('2) Order Form'!$V183,ATS!$O:$O,0),6) -> LXL | H183: 1 | I183: 0 | J183: =IFERROR(VLOOKUP(V183,ATS!$O:$P,2,FALSE),0) -> 149 | K183: 50+ | L183: =IFERROR(VLOOKUP(V183,ATS!$O:$Q,3,FALSE),0) -> 149 | M183: 50+ | N183: 0% | O183: 0% | P183: =VLOOKUP($C183,Prices!$A$3:$T$1996,MATCH('2) Order Form'!P$8,Prices!$A$2:$T$2,0),FALSE) -> 100.00 | Q183: =VLOOKUP($C183,Prices!$A$3:$T$1996,MATCH('2) Order Form'!Q$8,Prices!$A$2:$T$2,0),FALSE) -> 199.00 | R183: 0 | S183: 0 | T183: 0 | V183: 7048652893901 | Y183: 0 | Z183: 0 | AA183: 13 | AB183: 0 | AC183: 0 | AD183: 845149Matte Black | AE183: 845149 | AF183: =INDEX(ATS!$A:$P,MATCH('2) Order Form'!$V183,ATS!$O:$O,0),7) -> Active | AG183: 7048653026032
A184: 1 | B184: Helmets & Helmet Acc. | C184: =INDEX(ATS!$A:$P,MATCH('2) Order Form'!$V184,ATS!$O:$O,0),1) -> 845149 | D184: =INDEX(ATS!$A:$P,MATCH('2) Order Form'!$V184,ATS!$O:$O,0),2) -> Promuter Mips Helmet | E184: =INDEX(ATS!$A:$P,MATCH('2) Order Form'!$V184,ATS!$O:$O,0),4) -> BRWHT-SM | F184: =INDEX(ATS!$A:$P,MATCH('2) Order Form'!$V184,ATS!$O:$O,0),5) -> Bronco White | G184: =INDEX(ATS!$A:$P,MATCH('2) Order Form'!$V184,ATS!$O:$O,0),6) -> SM | H184: 1 | I184: 0 | J184: =IFERROR(VLOOKUP(V184,ATS!$O:$P,2,FALSE),0) -> 0 | K184: 0 | L184: =IFERROR(VLOOKUP(V184,ATS!$O:$Q,3,FALSE),0) -> 0 | M184: 0 | N184: 0% | O184: 0% | P184: =VLOOKUP($C184,Prices!$A$3:$T$1996,MATCH('2) Order Form'!P$8,Prices!$A$2:$T$2,0),FALSE) -> 100.00 | Q184: =VLOOKUP($C184,Prices!$A$3:$T$1996,MATCH('2) Order Form'!Q$8,Prices!$A$2:$T$2,0),FALSE) -> 199.00 | R184: =I184*P184 -> 0 | S184: =R184*O184 -> 0 | T184: =R184-S184 -> 0 | V184: 7048652902887 | Y184: =I184*Q184 -> 0 | Z184: 0 | AA184: 13 | AB184: =IF(C184=OFFSET(C184,-1,0),0,1) -> 0 | AC184: =IF(F184=OFFSET(F184,-1,0),0,1) -> 1 | AD184: =CONCATENATE(C184,F184) -> 845149Bronco White | AE184: =IFERROR(IF(B184="EYEWEAR",CONCATENATE(C184,"-",G184),C184),C184) -> 845149 | AF184: =INDEX(ATS!$A:$P,MATCH('2) Order Form'!$V184,ATS!$O:$O,0),7) -> Active | AG184: 7048653026087
A185: 1 | B185: Helmets & Helmet Acc. | C185: =INDEX(ATS!$A:$P,MATCH('2) Order Form'!$V185,ATS!$O:$O,0),1) -> 845149 | D185: =INDEX(ATS!$A:$P,MATCH('2) Order Form'!$V185,ATS!$O:$O,0),2) -> Promuter Mips Helmet | E185: =INDEX(ATS!$A:$P,MATCH('2) Order Form'!$V185,ATS!$O:$O,0),4) -> BRWHT-ML | F185: =INDEX(ATS!$A:$P,MATCH('2) Order Form'!$V185,ATS!$O:$O,0),5) -> Bronco White | G185: =INDEX(ATS!$A:$P,MATCH('2) Order Form'!$V185,ATS!$O:$O,0),6) -> ML | H185: 1 | I185: 0 | J185: =IFERROR(VLOOKUP(V185,ATS!$O:$P,2,FALSE),0) -> 0 | K185: 0 | L185: =IFERROR(VLOOKUP(V185,ATS!$O:$Q,3,FALSE),0) -> 0 | M185: 0 | N185: 0% | O185: 0% | P185: =VLOOKUP($C185,Prices!$A$3:$T$1996,MATCH('2) Order Form'!P$8,Prices!$A$2:$T$2,0),FALSE) -> 100.00 | Q185: =VLOOKUP($C185,Prices!$A$3:$T$1996,MATCH('2) Order Form'!Q$8,Prices!$A$2:$T$2,0),FALSE) -> 199.00 | R185: 0 | S185: 0 | T185: 0 | V185: 7048652902870 | Y185: 0 | Z185: 0 | AA185: 13 | AB185: 0 | AC185: 0 | AD185: 845149Bronco White | AE185: 845149 | AF185: =INDEX(ATS!$A:$P,MATCH('2) Order Form'!$V185,ATS!$O:$O,0),7) -> Active | AG185: 7048653026070
A186: 1 | B186: Helmets & Helmet Acc. | C186: =INDEX(ATS!$A:$P,MATCH('2) Order Form'!$V186,ATS!$O:$O,0),1) -> 845149 | D186: =INDEX(ATS!$A:$P,MATCH('2) Order Form'!$V186,ATS!$O:$O,0),2) -> Promuter Mips Helmet | E186: =INDEX(ATS!$A:$P,MATCH('2) Order Form'!$V186,ATS!$O:$O,0),4) -> BRWHT-LXL | F186: =INDEX(ATS!$A:$P,MATCH('2) Order Form'!$V186,ATS!$O:$O,0),5) -> Bronco White | G186: =INDEX(ATS!$A:$P,MATCH('2) Order Form'!$V186,ATS!$O:$O,0),6) -> LXL | H186: 1 | I186: 0 | J186: =IFERROR(VLOOKUP(V186,ATS!$O:$P,2,FALSE),0) -> 1 | K186: 1 | L186: =IFERROR(VLOOKUP(V186,ATS!$O:$Q,3,FALSE),0) -> 1 | M186: 1 | N186: 0% | O186: 0% | P186: =VLOOKUP($C186,Prices!$A$3:$T$1996,MATCH('2) Order Form'!P$8,Prices!$A$2:$T$2,0),FALSE) -> 100.00 | Q186: =VLOOKUP($C186,Prices!$A$3:$T$1996,MATCH('2) Order Form'!Q$8,Prices!$A$2:$T$2,0),FALSE) -> 199.00 | R186: 0 | S186: 0 | T186: 0 | V186: 7048652902863 | Y186: 0 | Z186: 0 | AA186: 13 | AB186: 0 | AC186: 0 | AD186: 845149Bronco White | AE186: 845149 | AF186: =INDEX(ATS!$A:$P,MATCH('2) Order Form'!$V186,ATS!$O:$O,0),7) -> Active | AG186: 7048653026063
A187: 1 | B187: Helmets & Helmet Acc. | C187: =INDEX(ATS!$A:$P,MATCH('2) Order Form'!$V187,ATS!$O:$O,0),1) -> 845147 | D187: =INDEX(ATS!$A:$P,MATCH('2) Order Form'!$V187,ATS!$O:$O,0),2) -> Commuter Helmet | E187: =INDEX(ATS!$A:$P,MATCH('2) Order Form'!$V187,ATS!$O:$O,0),4) -> BRWHT-SM | F187: =INDEX(ATS!$A:$P,MATCH('2) Order Form'!$V187,ATS!$O:$O,0),5) -> Bronco White | G187: =INDEX(ATS!$A:$P,MATCH('2) Order Form'!$V187,ATS!$O:$O,0),6) -> SM | H187: 1 | I187: 0 | J187: =IFERROR(VLOOKUP(V187,ATS!$O:$P,2,FALSE),0) -> 51 | K187: 50+ | L187: =IFERROR(VLOOKUP(V187,ATS!$O:$Q,3,FALSE),0) -> 51 | M187: 50+ | N187: 0% | O187: 0% | P187: =VLOOKUP($C187,Prices!$A$3:$T$1996,MATCH('2) Order Form'!P$8,Prices!$A$2:$T$2,0),FALSE) -> 65.00 | Q187: =VLOOKUP($C187,Prices!$A$3:$T$1996,MATCH('2) Order Form'!Q$8,Prices!$A$2:$T$2,0),FALSE) -> 129.00 | R187: 0 | S187: 0 | T187: 0 | V187: 7048652894137 | Y187: 0 | Z187: 0 | AA187: 14 | AB187: 1 | AC187: 0 | AD187: 845147Bronco White | AE187: 845147 | AF187: =INDEX(ATS!$A:$P,MATCH('2) Order Form'!$V187,ATS!$O:$O,0),7) -> Active | AG187: 7048653026117
A188: 1 | B188: Helmets & Helmet Acc. | C188: =INDEX(ATS!$A:$P,MATCH('2) Order Form'!$V188,ATS!$O:$O,0),1) -> 845147 | D188: =INDEX(ATS!$A:$P,MATCH('2) Order Form'!$V188,ATS!$O:$O,0),2) -> Commuter Helmet | E188: =INDEX(ATS!$A:$P,MATCH('2) Order Form'!$V188,ATS!$O:$O,0),4) -> BRWHT-ML | F188: =INDEX(ATS!$A:$P,MATCH('2) Order Form'!$V188,ATS!$O:$O,0),5) -> Bronco White | G188: =INDEX(ATS!$A:$P,MATCH('2) Order Form'!$V188,ATS!$O:$O,0),6) -> ML | H188: 1 | I188: 0 | J188: =IFERROR(VLOOKUP(V188,ATS!$O:$P,2,FALSE),0) -> 92 | K188: 50+ | L188: =IFERROR(VLOOKUP(V188,ATS!$O:$Q,3,FALSE),0) -> 92 | M188: 50+ | N188: 0% | O188: 0% | P188: =VLOOKUP($C188,Prices!$A$3:$T$1996,MATCH('2) Order Form'!P$8,Prices!$A$2:$T$2,0),FALSE) -> 65.00 | Q188: =VLOOKUP($C188,Prices!$A$3:$T$1996,MATCH('2) Order Form'!Q$8,Prices!$A$2:$T$2,0),FALSE) -> 129.00 | R188: 0 | S188: 0 | T188: 0 | V188: 7048652894120 | Y188: 0 | Z188: 0 | AA188: 14 | AB188: 0 | AC188: 0 | AD188: 845147Bronco White | AE188: 845147 | AF188: =INDEX(ATS!$A:$P,MATCH('2) Order Form'!$V188,ATS!$O:$O,0),7) -> Active | AG188: 7048653026100
A189: 1 | B189: Helmets & Helmet Acc. | C189: =INDEX(ATS!$A:$P,MATCH('2) Order Form'!$V189,ATS!$O:$O,0),1) -> 845147 | D189: =INDEX(ATS!$A:$P,MATCH('2) Order Form'!$V189,ATS!$O:$O,0),2) -> Commuter Helmet | E189: =INDEX(ATS!$A:$P,MATCH('2) Order Form'!$V189,ATS!$O:$O,0),4) -> BRWHT-LXL | F189: =INDEX(ATS!$A:$P,MATCH('2) Order Form'!$V189,ATS!$O:$O,0),5) -> Bronco White | G189: =INDEX(ATS!$A:$P,MATCH('2) Order Form'!$V189,ATS!$O:$O,0),6) -> LXL | H189: 1 | I189: 0 | J189: =IFERROR(VLOOKUP(V189,ATS!$O:$P,2,FALSE),0) -> 66 | K189: 50+ | L189: =IFERROR(VLOOKUP(V189,ATS!$O:$Q,3,FALSE),0) -> 66 | M189: 50+ | N189: 0% | O189: 0% | P189: =VLOOKUP($C189,Prices!$A$3:$T$1996,MATCH('2) Order Form'!P$8,Prices!$A$2:$T$2,0),FALSE) -> 65.00 | Q189: =VLOOKUP($C189,Prices!$A$3:$T$1996,MATCH('2) Order Form'!Q$8,Prices!$A$2:$T$2,0),FALSE) -> 129.00 | R189: 0 | S189: 0 | T189: 0 | V189: 7048652894113 | Y189: 0 | Z189: 0 | AA189: 14 | AB189: 0 | AC189: 0 | AD189: 845147Bronco White | AE189: 845147 | AF189: =INDEX(ATS!$A:$P,MATCH('2) Order Form'!$V189,ATS!$O:$O,0),7) -> Active | AG189: 7048653026094
A190: 1 | B190: Helmets & Helmet Acc. | C190: =INDEX(ATS!$A:$P,MATCH('2) Order Form'!$V190,ATS!$O:$O,0),1) -> 845147 | D190: =INDEX(ATS!$A:$P,MATCH('2) Order Form'!$V190,ATS!$O:$O,0),2) -> Commuter Helmet | E190: =INDEX(ATS!$A:$P,MATCH('2) Order Form'!$V190,ATS!$O:$O,0),4) -> LAVA-SM | F190: =INDEX(ATS!$A:$P,MATCH('2) Order Form'!$V190,ATS!$O:$O,0),5) -> Lava | G190: =INDEX(ATS!$A:$P,MATCH('2) Order Form'!$V190,ATS!$O:$O,0),6) -> SM | H190: 1 | I190: 0 | J190: =IFERROR(VLOOKUP(V190,ATS!$O:$P,2,FALSE),0) -> 12 | K190: 12 | L190: =IFERROR(VLOOKUP(V190,ATS!$O:$Q,3,FALSE),0) -> 12 | M190: 12 | N190: 0% | O190: 0% | P190: =VLOOKUP($C190,Prices!$A$3:$T$1996,MATCH('2) Order Form'!P$8,Prices!$A$2:$T$2,0),FALSE) -> 65.00 | Q190: =VLOOKUP($C190,Prices!$A$3:$T$1996,MATCH('2) Order Form'!Q$8,Prices!$A$2:$T$2,0),FALSE) -> 129.00 | R190: 0 | S190: 0 | T190: 0 | V190: 7048652894168 | Y190: 0 | Z190: 0 | AA190: 14 | AB190: =IF(C190=OFFSET(C190,-1,0),0,1) -> 0 | AC190: =IF(F190=OFFSET(F190,-1,0),0,1) -> 1 | AD190: =CONCATENATE(C190,F190) -> 845147Lava | AE190: =IFERROR(IF(B190="EYEWEAR",CONCATENATE(C190,"-",G190),C190),C190) -> 845147 | AF190: =INDEX(ATS!$A:$P,MATCH('2) Order Form'!$V190,ATS!$O:$O,0),7) -> Active | AG190: 7048653023413
A191: 1 | B191: Helmets & Helmet Acc. | C191: =INDEX(ATS!$A:$P,MATCH('2) Order Form'!$V191,ATS!$O:$O,0),1) -> 845147 | D191: =INDEX(ATS!$A:$P,MATCH('2) Order Form'!$V191,ATS!$O:$O,0),2) -> Commuter Helmet | E191: =INDEX(ATS!$A:$P,MATCH('2) Order Form'!$V191,ATS!$O:$O,0),4) -> LAVA-ML | F191: =INDEX(ATS!$A:$P,MATCH('2) Order Form'!$V191,ATS!$O:$O,0),5) -> Lava | G191: =INDEX(ATS!$A:$P,MATCH('2) Order Form'!$V191,ATS!$O:$O,0),6) -> ML | H191: 1 | I191: 0 | J191: =IFERROR(VLOOKUP(V191,ATS!$O:$P,2,FALSE),0) -> 39 | K191: 39 | L191: =IFERROR(VLOOKUP(V191,ATS!$O:$Q,3,FALSE),0) -> 39 | M191: 39 | N191: 0% | O191: 0% | P191: =VLOOKUP($C191,Prices!$A$3:$T$1996,MATCH('2) Order Form'!P$8,Prices!$A$2:$T$2,0),FALSE) -> 65.00 | Q191: =VLOOKUP($C191,Prices!$A$3:$T$1996,MATCH('2) Order Form'!Q$8,Prices!$A$2:$T$2,0),FALSE) -> 129.00 | R191: 0 | S191: 0 | T191: 0 | V191: 7048652894151 | Y191: 0 | Z191: 0 | AA191: 14 | AB191: 0 | AC191: 0 | AD191: 845147Lava | AE191: 845147 | AF191: =INDEX(ATS!$A:$P,MATCH('2) Order Form'!$V191,ATS!$O:$O,0),7) -> Active | AG191: 7048653023420
A192: 1 | B192: Helmets & Helmet Acc. | C192: =INDEX(ATS!$A:$P,MATCH('2) Order Form'!$V192,ATS!$O:$O,0),1) -> 845147 | D192: =INDEX(ATS!$A:$P,MATCH('2) Order Form'!$V192,ATS!$O:$O,0),2) -> Commuter Helmet | E192: =INDEX(ATS!$A:$P,MATCH('2) Order Form'!$V192,ATS!$O:$O,0),4) -> LAVA-LXL | F192: =INDEX(ATS!$A:$P,MATCH('2) Order Form'!$V192,ATS!$O:$O,0),5) -> Lava | G192: =INDEX(ATS!$A:$P,MATCH('2) Order Form'!$V192,ATS!$O:$O,0),6) -> LXL | H192: 1 | I192: 0 | J192: =IFERROR(VLOOKUP(V192,ATS!$O:$P,2,FALSE),0) -> 36 | K192: 36 | L192: =IFERROR(VLOOKUP(V192,ATS!$O:$Q,3,FALSE),0) -> 36 | M192: 36 | N192: 0% | O192: 0% | P192: =VLOOKUP($C192,Prices!$A$3:$T$1996,MATCH('2) Order Form'!P$8,Prices!$A$2:$T$2,0),FALSE) -> 65.00 | Q192: =VLOOKUP($C192,Prices!$A$3:$T$1996,MATCH('2) Order Form'!Q$8,Prices!$A$2:$T$2,0),FALSE) -> 129.00 | R192: 0 | S192: 0 | T192: 0 | V192: 7048652894144 | Y192: 0 | Z192: 0 | AA192: 14 | AB192: 0 | AC192: 0 | AD192: 845147Lava | AE192: 845147 | AF192: =INDEX(ATS!$A:$P,MATCH('2) Order Form'!$V192,ATS!$O:$O,0),7) -> Active | AG192: 7048653023437
A193: 1 | B193: Helmets & Helmet Acc. | C193: =INDEX(ATS!$A:$P,MATCH('2) Order Form'!$V193,ATS!$O:$O,0),1) -> 845147 | D193: =INDEX(ATS!$A:$P,MATCH('2) Order Form'!$V193,ATS!$O:$O,0),2) -> Commuter Helmet | E193: =INDEX(ATS!$A:$P,MATCH('2) Order Form'!$V193,ATS!$O:$O,0),4) -> MBLCK-SM | F193: =INDEX(ATS!$A:$P,MATCH('2) Order Form'!$V193,ATS!$O:$O,0),5) -> Matte Black | G193: =INDEX(ATS!$A:$P,MATCH('2) Order Form'!$V193,ATS!$O:$O,0),6) -> SM | H193: 1 | I193: 0 | J193: =IFERROR(VLOOKUP(V193,ATS!$O:$P,2,FALSE),0) -> 79 | K193: 50+ | L193: =IFERROR(VLOOKUP(V193,ATS!$O:$Q,3,FALSE),0) -> 79 | M193: 50+ | N193: 0% | O193: 0% | P193: =VLOOKUP($C193,Prices!$A$3:$T$1996,MATCH('2) Order Form'!P$8,Prices!$A$2:$T$2,0),FALSE) -> 65.00 | Q193: =VLOOKUP($C193,Prices!$A$3:$T$1996,MATCH('2) Order Form'!Q$8,Prices!$A$2:$T$2,0),FALSE) -> 129.00 | R193: 0 | S193: 0 | T193: 0 | V193: 7048652894199 | Y193: 0 | Z193: 0 | AA193: 14 | AB193: 0 | AC193: 1 | AD193: 845147Matte Black | AE193: 845147 | AF193: =INDEX(ATS!$A:$P,MATCH('2) Order Form'!$V193,ATS!$O:$O,0),7) -> Active | AG193: 7048653023451
A194: 1 | B194: Helmets & Helmet Acc. | C194: =INDEX(ATS!$A:$P,MATCH('2) Order Form'!$V194,ATS!$O:$O,0),1) -> 845147 | D194: =INDEX(ATS!$A:$P,MATCH('2) Order Form'!$V194,ATS!$O:$O,0),2) -> Commuter Helmet | E194: =INDEX(ATS!$A:$P,MATCH('2) Order Form'!$V194,ATS!$O:$O,0),4) -> MBLCK-ML | F194: =INDEX(ATS!$A:$P,MATCH('2) Order Form'!$V194,ATS!$O:$O,0),5) -> Matte Black | G194: =INDEX(ATS!$A:$P,MATCH('2) Order Form'!$V194,ATS!$O:$O,0),6) -> ML | H194: 1 | I194: 0 | J194: =IFERROR(VLOOKUP(V194,ATS!$O:$P,2,FALSE),0) -> 338 | K194: 50+ | L194: =IFERROR(VLOOKUP(V194,ATS!$O:$Q,3,FALSE),0) -> 338 | M194: 50+ | N194: 0% | O194: 0% | P194: =VLOOKUP($C194,Prices!$A$3:$T$1996,MATCH('2) Order Form'!P$8,Prices!$A$2:$T$2,0),FALSE) -> 65.00 | Q194: =VLOOKUP($C194,Prices!$A$3:$T$1996,MATCH('2) Order Form'!Q$8,Prices!$A$2:$T$2,0),FALSE) -> 129.00 | R194: 0 | S194: 0 | T194: 0 | V194: 7048652894182 | Y194: 0 | Z194: 0 | AA194: 14 | AB194: 0 | AC194: 0 | AD194: 845147Matte Black | AE194: 845147 | AF194: =INDEX(ATS!$A:$P,MATCH('2) Order Form'!$V194,ATS!$O:$O,0),7) -> Active | AG194: 7048653023468
A195: 1 | B195: Helmets & Helmet Acc. | C195: =INDEX(ATS!$A:$P,MATCH('2) Order Form'!$V195,ATS!$O:$O,0),1) -> 845147 | D195: =INDEX(ATS!$A:$P,MATCH('2) Order Form'!$V195,ATS!$O:$O,0),2) -> Commuter Helmet | E195: =INDEX(ATS!$A:$P,MATCH('2) Order Form'!$V195,ATS!$O:$O,0),4) -> MBLCK-LXL | F195: =INDEX(ATS!$A:$P,MATCH('2) Order Form'!$V195,ATS!$O:$O,0),5) -> Matte Black | G195: =INDEX(ATS!$A:$P,MATCH('2) Order Form'!$V195,ATS!$O:$O,0),6) -> LXL | H195: 1 | I195: 0 | J195: =IFERROR(VLOOKUP(V195,ATS!$O:$P,2,FALSE),0) -> 293 | K195: 50+ | L195: =IFERROR(VLOOKUP(V195,ATS!$O:$Q,3,FALSE),0) -> 293 | M195: 50+ | N195: 0% | O195: 0% | P195: =VLOOKUP($C195,Prices!$A$3:$T$1996,MATCH('2) Order Form'!P$8,Prices!$A$2:$T$2,0),FALSE) -> 65.00 | Q195: =VLOOKUP($C195,Prices!$A$3:$T$1996,MATCH('2) Order Form'!Q$8,Prices!$A$2:$T$2,0),FALSE) -> 129.00 | R195: 0 | S195: 0 | T195: 0 | V195: 7048652894175 | Y195: 0 | Z195: 0 | AA195: 14 | AB195: 0 | AC195: 0 | AD195: 845147Matte Black | AE195: 845147 | AF195: =INDEX(ATS!$A:$P,MATCH('2) Order Form'!$V195,ATS!$O:$O,0),7) -> Active | AG195: 7048653023475
A196: 1 | B196: Helmets & Helmet Acc. | C196: =INDEX(ATS!$A:$P,MATCH('2) Order Form'!$V196,ATS!$O:$O,0),1) -> 845147 | D196: =INDEX(ATS!$A:$P,MATCH('2) Order Form'!$V196,ATS!$O:$O,0),2) -> Commuter Helmet | E196: =INDEX(ATS!$A:$P,MATCH('2) Order Form'!$V196,ATS!$O:$O,0),4) -> WOLND-SM | F196: =INDEX(ATS!$A:$P,MATCH('2) Order Form'!$V196,ATS!$O:$O,0),5) -> Woodland | G196: =INDEX(ATS!$A:$P,MATCH('2) Order Form'!$V196,ATS!$O:$O,0),6) -> SM | H196: 1 | I196: 0 | J196: =IFERROR(VLOOKUP(V196,ATS!$O:$P,2,FALSE),0) -> 0 | K196: 0 | L196: =IFERROR(VLOOKUP(V196,ATS!$O:$Q,3,FALSE),0) -> 0 | M196: 0 | N196: 0% | O196: 0% | P196: =VLOOKUP($C196,Prices!$A$3:$T$1996,MATCH('2) Order Form'!P$8,Prices!$A$2:$T$2,0),FALSE) -> 65.00 | Q196: =VLOOKUP($C196,Prices!$A$3:$T$1996,MATCH('2) Order Form'!Q$8,Prices!$A$2:$T$2,0),FALSE) -> 129.00 | R196: 0 | S196: 0 | T196: 0 | V196: 7048652894250 | Y196: 0 | Z196: =IF(A196=OFFSET(A196,-1,0),0,1) -> 0 | AA196: =IF(C196=OFFSET(C196,-1,0),OFFSET(AA196,-1,0),OFFSET(AA196,-1,0)+1) -> 14 | AB196: 0 | AC196: 1 | AD196: 845147Woodland | AE196: 845147 | AF196: =INDEX(ATS!$A:$P,MATCH('2) Order Form'!$V196,ATS!$O:$O,0),7) -> Active | AG196: 7048652555526
A197: 1 | B197: Helmets & Helmet Acc. | C197: =INDEX(ATS!$A:$P,MATCH('2) Order Form'!$V197,ATS!$O:$O,0),1) -> 845147 | D197: =INDEX(ATS!$A:$P,MATCH('2) Order Form'!$V197,ATS!$O:$O,0),2) -> Commuter Helmet | E197: =INDEX(ATS!$A:$P,MATCH('2) Order Form'!$V197,ATS!$O:$O,0),4) -> WOLND-ML | F197: =INDEX(ATS!$A:$P,MATCH('2) Order Form'!$V197,ATS!$O:$O,0),5) -> Woodland | G197: =INDEX(ATS!$A:$P,MATCH('2) Order Form'!$V197,ATS!$O:$O,0),6) -> ML | H197: 1 | I197: 0 | J197: =IFERROR(VLOOKUP(V197,ATS!$O:$P,2,FALSE),0) -> 41 | K197: 41 | L197: =IFERROR(VLOOKUP(V197,ATS!$O:$Q,3,FALSE),0) -> 41 | M197: 41 | N197: 0% | O197: 0% | P197: =VLOOKUP($C197,Prices!$A$3:$T$1996,MATCH('2) Order Form'!P$8,Prices!$A$2:$T$2,0),FALSE) -> 65.00 | Q197: =VLOOKUP($C197,Prices!$A$3:$T$1996,MATCH('2) Order Form'!Q$8,Prices!$A$2:$T$2,0),FALSE) -> 129.00 | R197: 0 | S197: 0 | T197: 0 | V197: 7048652894243 | Y197: 0 | Z197: 0 | AA197: 14 | AB197: 0 | AC197: 0 | AD197: 845147Woodland | AE197: 845147 | AF197: =INDEX(ATS!$A:$P,MATCH('2) Order Form'!$V197,ATS!$O:$O,0),7) -> Active | AG197: 7048652555519
A198: 1 | B198: Helmets & Helmet Acc. | C198: =INDEX(ATS!$A:$P,MATCH('2) Order Form'!$V198,ATS!$O:$O,0),1) -> 845147 | D198: =INDEX(ATS!$A:$P,MATCH('2) Order Form'!$V198,ATS!$O:$O,0),2) -> Commuter Helmet | E198: =INDEX(ATS!$A:$P,MATCH('2) Order Form'!$V198,ATS!$O:$O,0),4) -> WOLND-LXL | F198: =INDEX(ATS!$A:$P,MATCH('2) Order Form'!$V198,ATS!$O:$O,0),5) -> Woodland | G198: =INDEX(ATS!$A:$P,MATCH('2) Order Form'!$V198,ATS!$O:$O,0),6) -> LXL | H198: 1 | I198: 0 | J198: =IFERROR(VLOOKUP(V198,ATS!$O:$P,2,FALSE),0) -> 38 | K198: 38 | L198: =IFERROR(VLOOKUP(V198,ATS!$O:$Q,3,FALSE),0) -> 38 | M198: 38 | N198: 0% | O198: 0% | P198: =VLOOKUP($C198,Prices!$A$3:$T$1996,MATCH('2) Order Form'!P$8,Prices!$A$2:$T$2,0),FALSE) -> 65.00 | Q198: =VLOOKUP($C198,Prices!$A$3:$T$1996,MATCH('2) Order Form'!Q$8,Prices!$A$2:$T$2,0),FALSE) -> 129.00 | R198: 0 | S198: 0 | T198: 0 | V198: 7048652894236 | Y198: 0 | Z198: 0 | AA198: 14 | AB198: 0 | AC198: 0 | AD198: 845147Woodland | AE198: 845147 | AF198: =INDEX(ATS!$A:$P,MATCH('2) Order Form'!$V198,ATS!$O:$O,0),7) -> Active | AG198: 7048652555502
A199: 1 | B199: Helmets & Helmet Acc. | C199: =INDEX(ATS!$A:$P,MATCH('2) Order Form'!$V199,ATS!$O:$O,0),1) -> 845148 | D199: =INDEX(ATS!$A:$P,MATCH('2) Order Form'!$V199,ATS!$O:$O,0),2) -> Commuter Mips Helmet | E199: =INDEX(ATS!$A:$P,MATCH('2) Order Form'!$V199,ATS!$O:$O,0),4) -> BRWHT-SM | F199: =INDEX(ATS!$A:$P,MATCH('2) Order Form'!$V199,ATS!$O:$O,0),5) -> Bronco White | G199: =INDEX(ATS!$A:$P,MATCH('2) Order Form'!$V199,ATS!$O:$O,0),6) -> SM | H199: 1 | I199: 0 | J199: =IFERROR(VLOOKUP(V199,ATS!$O:$P,2,FALSE),0) -> 106 | K199: 50+ | L199: =IFERROR(VLOOKUP(V199,ATS!$O:$Q,3,FALSE),0) -> 106 | M199: 50+ | N199: 0% | O199: 0% | P199: =VLOOKUP($C199,Prices!$A$3:$T$1996,MATCH('2) Order Form'!P$8,Prices!$A$2:$T$2,0),FALSE) -> 80.00 | Q199: =VLOOKUP($C199,Prices!$A$3:$T$1996,MATCH('2) Order Form'!Q$8,Prices!$A$2:$T$2,0),FALSE) -> 159.00 | R199: 0 | S199: 0 | T199: 0 | V199: 7048652893987 | Y199: 0 | Z199: 0 | AA199: 15 | AB199: 1 | AC199: 1 | AD199: 845148Bronco White | AE199: 845148 | AF199: =INDEX(ATS!$A:$P,MATCH('2) Order Form'!$V199,ATS!$O:$O,0),7) -> Active | AG199: 7048653023499
A200: 1 | B200: Helmets & Helmet Acc. | C200: =INDEX(ATS!$A:$P,MATCH('2) Order Form'!$V200,ATS!$O:$O,0),1) -> 845148 | D200: =INDEX(ATS!$A:$P,MATCH('2) Order Form'!$V200,ATS!$O:$O,0),2) -> Commuter Mips Helmet | E200: =INDEX(ATS!$A:$P,MATCH('2) Order Form'!$V200,ATS!$O:$O,0),4) -> BRWHT-ML | F200: =INDEX(ATS!$A:$P,MATCH('2) Order Form'!$V200,ATS!$O:$O,0),5) -> Bronco White | G200: =INDEX(ATS!$A:$P,MATCH('2) Order Form'!$V200,ATS!$O:$O,0),6) -> ML | H200: 1 | I200: 0 | J200: =IFERROR(VLOOKUP(V200,ATS!$O:$P,2,FALSE),0) -> 366 | K200: 50+ | L200: =IFERROR(VLOOKUP(V200,ATS!$O:$Q,3,FALSE),0) -> 366 | M200: 50+ | N200: 0% | O200: 0% | P200: =VLOOKUP($C200,Prices!$A$3:$T$1996,MATCH('2) Order Form'!P$8,Prices!$A$2:$T$2,0),FALSE) -> 80.00 | Q200: =VLOOKUP($C200,Prices!$A$3:$T$1996,MATCH('2) Order Form'!Q$8,Prices!$A$2:$T$2,0),FALSE) -> 159.00 | R200: 0 | S200: 0 | T200: 0 | V200: 7048652893970 | Y200: 0 | Z200: 0 | AA200: 15 | AB200: 0 | AC200: 0 | AD200: 845148Bronco White | AE200: 845148 | AF200: =INDEX(ATS!$A:$P,MATCH('2) Order Form'!$V200,ATS!$O:$O,0),7) -> Active | AG200: 7048653023505
A201: 1 | B201: Helmets & Helmet Acc. | C201: =INDEX(ATS!$A:$P,MATCH('2) Order Form'!$V201,ATS!$O:$O,0),1) -> 845148 | D201: =INDEX(ATS!$A:$P,MATCH('2) Order Form'!$V201,ATS!$O:$O,0),2) -> Commuter Mips Helmet | E201: =INDEX(ATS!$A:$P,MATCH('2) Order Form'!$V201,ATS!$O:$O,0),4) -> BRWHT-LXL | F201: =INDEX(ATS!$A:$P,MATCH('2) Order Form'!$V201,ATS!$O:$O,0),5) -> Bronco White | G201: =INDEX(ATS!$A:$P,MATCH('2) Order Form'!$V201,ATS!$O:$O,0),6) -> LXL | H201: 1 | I201: 0 | J201: =IFERROR(VLOOKUP(V201,ATS!$O:$P,2,FALSE),0) -> 259 | K201: 50+ | L201: =IFERROR(VLOOKUP(V201,ATS!$O:$Q,3,FALSE),0) -> 259 | M201: 50+ | N201: 0% | O201: 0% | P201: =VLOOKUP($C201,Prices!$A$3:$T$1996,MATCH('2) Order Form'!P$8,Prices!$A$2:$T$2,0),FALSE) -> 80.00 | Q201: =VLOOKUP($C201,Prices!$A$3:$T$1996,MATCH('2) Order Form'!Q$8,Prices!$A$2:$T$2,0),FALSE) -> 159.00 | R201: 0 | S201: 0 | T201: 0 | V201: 7048652893963 | Y201: 0 | Z201: 0 | AA201: 15 | AB201: 0 | AC201: 0 | AD201: 845148Bronco White | AE201: 845148 | AF201: =INDEX(ATS!$A:$P,MATCH('2) Order Form'!$V201,ATS!$O:$O,0),7) -> Active | AG201: 7048653023512
A202: 1 | B202: Helmets & Helmet Acc. | C202: =INDEX(ATS!$A:$P,MATCH('2) Order Form'!$V202,ATS!$O:$O,0),1) -> 845148 | D202: =INDEX(ATS!$A:$P,MATCH('2) Order Form'!$V202,ATS!$O:$O,0),2) -> Commuter Mips Helmet | E202: =INDEX(ATS!$A:$P,MATCH('2) Order Form'!$V202,ATS!$O:$O,0),4) -> LAVA-SM | F202: =INDEX(ATS!$A:$P,MATCH('2) Order Form'!$V202,ATS!$O:$O,0),5) -> Lava | G202: =INDEX(ATS!$A:$P,MATCH('2) Order Form'!$V202,ATS!$O:$O,0),6) -> SM | H202: 1 | I202: 0 | J202: =IFERROR(VLOOKUP(V202,ATS!$O:$P,2,FALSE),0) -> 53 | K202: 50+ | L202: =IFERROR(VLOOKUP(V202,ATS!$O:$Q,3,FALSE),0) -> 53 | M202: 50+ | N202: 0% | O202: 0% | P202: =VLOOKUP($C202,Prices!$A$3:$T$1996,MATCH('2) Order Form'!P$8,Prices!$A$2:$T$2,0),FALSE) -> 80.00 | Q202: =VLOOKUP($C202,Prices!$A$3:$T$1996,MATCH('2) Order Form'!Q$8,Prices!$A$2:$T$2,0),FALSE) -> 159.00 | R202: 0 | S202: 0 | T202: 0 | V202: 7048652894014 | X202: =IF(ISNA(VLOOKUP(V202,$AG$9:$AG$1000,1,FALSE)),"*** EOL ***","") ->  | Y202: 0 | Z202: 0 | AA202: 15 | AB202: 0 | AC202: 1 | AD202: 845148Lava | AE202: 845148 | AF202: =INDEX(ATS!$A:$P,MATCH('2) Order Form'!$V202,ATS!$O:$O,0),7) -> Active | AG202: 7048652274502
... 684 more rows

Sheet ELASTIC
A1: EAN-code | B1: ORDER QTY | C1: Discount | F1: Control
A2: =SUM('2) Order Form'!V9) -> 7048652893505 | B2: =SUM('2) Order Form'!I9) -> 0 | C2: =G2*100 -> 0 | E2: Sum qty | F2: =SUM(B2:B2207) -> 0 | G2: =_xlfn.XLOOKUP(A2, '2) Order Form'!V:V, '2) Order Form'!O:O, FALSE) -> 0
A3: =SUM('2) Order Form'!V10) -> 7048652893499 | B3: =SUM('2) Order Form'!I10) -> 0 | C3: =G3*100 -> 0 | E3: Sum from order form | F3: ='2) Order Form'!S2:S2 -> 0 | G3: =_xlfn.XLOOKUP(A3, '2) Order Form'!V:V, '2) Order Form'!O:O, FALSE) -> 0
A4: =SUM('2) Order Form'!V11) -> 7048652893529 | B4: =SUM('2) Order Form'!I11) -> 0 | C4: 0 | E4: Deviation | F4: =F2-F3 -> 0 | G4: =_xlfn.XLOOKUP(A4, '2) Order Form'!V:V, '2) Order Form'!O:O, FALSE) -> 0
A5: =SUM('2) Order Form'!V12) -> 7048652893512 | B5: =SUM('2) Order Form'!I12) -> 0 | C5: 0 | G5: =_xlfn.XLOOKUP(A5, '2) Order Form'!V:V, '2) Order Form'!O:O, FALSE) -> 0
A6: =SUM('2) Order Form'!V13) -> 7048652273154 | B6: =SUM('2) Order Form'!I13) -> 0 | C6: 0 | G6: =_xlfn.XLOOKUP(A6, '2) Order Form'!V:V, '2) Order Form'!O:O, FALSE) -> 0
A7: =SUM('2) Order Form'!V14) -> 7048652273147 | B7: =SUM('2) Order Form'!I14) -> 0 | C7: 0 | G7: =_xlfn.XLOOKUP(A7, '2) Order Form'!V:V, '2) Order Form'!O:O, FALSE) -> 0
A8: =SUM('2) Order Form'!V15) -> 7048652893567 | B8: =SUM('2) Order Form'!I15) -> 0 | C8: 0 | G8: =_xlfn.XLOOKUP(A8, '2) Order Form'!V:V, '2) Order Form'!O:O, FALSE) -> 0
A9: =SUM('2) Order Form'!V16) -> 7048652893550 | B9: =SUM('2) Order Form'!I16) -> 0 | C9: 0 | G9: =_xlfn.XLOOKUP(A9, '2) Order Form'!V:V, '2) Order Form'!O:O, FALSE) -> 0
A10: =SUM('2) Order Form'!V17) -> 7048652892850 | B10: =SUM('2) Order Form'!I17) -> 0 | C10: 0 | G10: =_xlfn.XLOOKUP(A10, '2) Order Form'!V:V, '2) Order Form'!O:O, FALSE) -> 0
A11: =SUM('2) Order Form'!V18) -> 7048652892843 | B11: =SUM('2) Order Form'!I18) -> 0 | C11: 0 | G11: =_xlfn.XLOOKUP(A11, '2) Order Form'!V:V, '2) Order Form'!O:O, FALSE) -> 0
A12: =SUM('2) Order Form'!V19) -> 7048652892836 | B12: =SUM('2) Order Form'!I19) -> 0 | C12: 0 | G12: =_xlfn.XLOOKUP(A12, '2) Order Form'!V:V, '2) Order Form'!O:O, FALSE) -> 0
A13: =SUM('2) Order Form'!V20) -> 7048652895592 | B13: =SUM('2) Order Form'!I20) -> 0 | C13: 0 | G13: =_xlfn.XLOOKUP(A13, '2) Order Form'!V:V, '2) Order Form'!O:O, FALSE) -> 0
A14: =SUM('2) Order Form'!V21) -> 7048652895585 | B14: =SUM('2) Order Form'!I21) -> 0 | C14: 0 | G14: =_xlfn.XLOOKUP(A14, '2) Order Form'!V:V, '2) Order Form'!O:O, FALSE) -> 0
A15: =SUM('2) Order Form'!V22) -> 7048652895578 | B15: =SUM('2) Order Form'!I22) -> 0 | C15: 0 | G15: =_xlfn.XLOOKUP(A15, '2) Order Form'!V:V, '2) Order Form'!O:O, FALSE) -> 0
A16: =SUM('2) Order Form'!V23) -> 7048652892911 | B16: =SUM('2) Order Form'!I23) -> 0 | C16: 0 | G16: =_xlfn.XLOOKUP(A16, '2) Order Form'!V:V, '2) Order Form'!O:O, FALSE) -> 0
A17: =SUM('2) Order Form'!V24) -> 7048652892904 | B17: =SUM('2) Order Form'!I24) -> 0 | C17: 0 | G17: =_xlfn.XLOOKUP(A17, '2) Order Form'!V:V, '2) Order Form'!O:O, FALSE) -> 0
A18: =SUM('2) Order Form'!V25) -> 7048652892898 | B18: =SUM('2) Order Form'!I25) -> 0 | C18: 0 | G18: =_xlfn.XLOOKUP(A18, '2) Order Form'!V:V, '2) Order Form'!O:O, FALSE) -> 0
A19: =SUM('2) Order Form'!V26) -> 7048652892942 | B19: =SUM('2) Order Form'!I26) -> 0 | C19: 0 | G19: =_xlfn.XLOOKUP(A19, '2) Order Form'!V:V, '2) Order Form'!O:O, FALSE) -> 0
A20: =SUM('2) Order Form'!V27) -> 7048652892935 | B20: =SUM('2) Order Form'!I27) -> 0 | C20: 0 | G20: =_xlfn.XLOOKUP(A20, '2) Order Form'!V:V, '2) Order Form'!O:O, FALSE) -> 0
A21: =SUM('2) Order Form'!V28) -> 7048652892928 | B21: =SUM('2) Order Form'!I28) -> 0 | C21: 0 | G21: =_xlfn.XLOOKUP(A21, '2) Order Form'!V:V, '2) Order Form'!O:O, FALSE) -> 0
A22: =SUM('2) Order Form'!V29) -> 7048652893000 | B22: =SUM('2) Order Form'!I29) -> 0 | C22: 0 | G22: =_xlfn.XLOOKUP(A22, '2) Order Form'!V:V, '2) Order Form'!O:O, FALSE) -> 0
A23: =SUM('2) Order Form'!V30) -> 7048652892997 | B23: =SUM('2) Order Form'!I30) -> 0 | C23: 0 | G23: =_xlfn.XLOOKUP(A23, '2) Order Form'!V:V, '2) Order Form'!O:O, FALSE) -> 0
A24: =SUM('2) Order Form'!V31) -> 7048652892980 | B24: =SUM('2) Order Form'!I31) -> 0 | C24: 0 | G24: =_xlfn.XLOOKUP(A24, '2) Order Form'!V:V, '2) Order Form'!O:O, FALSE) -> 0
A25: =SUM('2) Order Form'!V32) -> 7048652892676 | B25: =SUM('2) Order Form'!I32) -> 0 | C25: 0 | G25: =_xlfn.XLOOKUP(A25, '2) Order Form'!V:V, '2) Order Form'!O:O, FALSE) -> 0
A26: =SUM('2) Order Form'!V33) -> 7048652892669 | B26: =SUM('2) Order Form'!I33) -> 0 | C26: 0 | G26: =_xlfn.XLOOKUP(A26, '2) Order Form'!V:V, '2) Order Form'!O:O, FALSE) -> 0
A27: =SUM('2) Order Form'!V34) -> 7048652892652 | B27: =SUM('2) Order Form'!I34) -> 0 | C27: 0 | G27: =_xlfn.XLOOKUP(A27, '2) Order Form'!V:V, '2) Order Form'!O:O, FALSE) -> 0
A28: =SUM('2) Order Form'!V35) -> 7048652892706 | B28: =SUM('2) Order Form'!I35) -> 0 | C28: 0 | G28: =_xlfn.XLOOKUP(A28, '2) Order Form'!V:V, '2) Order Form'!O:O, FALSE) -> 0
A29: =SUM('2) Order Form'!V36) -> 7048652892690 | B29: =SUM('2) Order Form'!I36) -> 0 | C29: 0 | G29: =_xlfn.XLOOKUP(A29, '2) Order Form'!V:V, '2) Order Form'!O:O, FALSE) -> 0
A30: =SUM('2) Order Form'!V37) -> 7048652892683 | B30: =SUM('2) Order Form'!I37) -> 0 | C30: 0 | G30: =_xlfn.XLOOKUP(A30, '2) Order Form'!V:V, '2) Order Form'!O:O, FALSE) -> 0
A31: =SUM('2) Order Form'!V38) -> 7048652540225 | B31: =SUM('2) Order Form'!I38) -> 0 | C31: 0 | G31: =_xlfn.XLOOKUP(A31, '2) Order Form'!V:V, '2) Order Form'!O:O, FALSE) -> 0
A32: =SUM('2) Order Form'!V39) -> 7048652540218 | B32: =SUM('2) Order Form'!I39) -> 0 | C32: 0 | G32: =_xlfn.XLOOKUP(A32, '2) Order Form'!V:V, '2) Order Form'!O:O, FALSE) -> 0
A33: =SUM('2) Order Form'!V40) -> 7048652540201 | B33: =SUM('2) Order Form'!I40) -> 0 | C33: 0 | G33: =_xlfn.XLOOKUP(A33, '2) Order Form'!V:V, '2) Order Form'!O:O, FALSE) -> 0
A34: =SUM('2) Order Form'!V41) -> 7048652540348 | B34: =SUM('2) Order Form'!I41) -> 0 | C34: 0 | G34: =_xlfn.XLOOKUP(A34, '2) Order Form'!V:V, '2) Order Form'!O:O, FALSE) -> 0
A35: =SUM('2) Order Form'!V42) -> 7048652540331 | B35: =SUM('2) Order Form'!I42) -> 0 | C35: 0 | G35: =_xlfn.XLOOKUP(A35, '2) Order Form'!V:V, '2) Order Form'!O:O, FALSE) -> 0
A36: =SUM('2) Order Form'!V43) -> 7048652540324 | B36: =SUM('2) Order Form'!I43) -> 0 | C36: 0 | G36: =_xlfn.XLOOKUP(A36, '2) Order Form'!V:V, '2) Order Form'!O:O, FALSE) -> 0
A37: =SUM('2) Order Form'!V44) -> 7048652892768 | B37: =SUM('2) Order Form'!I44) -> 0 | C37: 0 | G37: =_xlfn.XLOOKUP(A37, '2) Order Form'!V:V, '2) Order Form'!O:O, FALSE) -> 0
A38: =SUM('2) Order Form'!V45) -> 7048652892751 | B38: =SUM('2) Order Form'!I45) -> 0 | C38: 0 | G38: =_xlfn.XLOOKUP(A38, '2) Order Form'!V:V, '2) Order Form'!O:O, FALSE) -> 0
A39: =SUM('2) Order Form'!V46) -> 7048652892744 | B39: =SUM('2) Order Form'!I46) -> 0 | C39: 0 | G39: =_xlfn.XLOOKUP(A39, '2) Order Form'!V:V, '2) Order Form'!O:O, FALSE) -> 0
A40: =SUM('2) Order Form'!V47) -> 7048652892829 | B40: =SUM('2) Order Form'!I47) -> 0 | C40: 0 | G40: =_xlfn.XLOOKUP(A40, '2) Order Form'!V:V, '2) Order Form'!O:O, FALSE) -> 0
A41: =SUM('2) Order Form'!V48) -> 7048652892812 | B41: =SUM('2) Order Form'!I48) -> 0 | C41: 0 | G41: =_xlfn.XLOOKUP(A41, '2) Order Form'!V:V, '2) Order Form'!O:O, FALSE) -> 0
A42: =SUM('2) Order Form'!V49) -> 7048652892805 | B42: =SUM('2) Order Form'!I49) -> 0 | C42: 0 | G42: =_xlfn.XLOOKUP(A42, '2) Order Form'!V:V, '2) Order Form'!O:O, FALSE) -> 0
A43: =SUM('2) Order Form'!V50) -> 7048652892492 | B43: =SUM('2) Order Form'!I50) -> 0 | C43: 0 | G43: =_xlfn.XLOOKUP(A43, '2) Order Form'!V:V, '2) Order Form'!O:O, FALSE) -> 0
A44: =SUM('2) Order Form'!V51) -> 7048652892485 | B44: =SUM('2) Order Form'!I51) -> 0 | C44: 0 | G44: =_xlfn.XLOOKUP(A44, '2) Order Form'!V:V, '2) Order Form'!O:O, FALSE) -> 0
A45: =SUM('2) Order Form'!V52) -> 7048652892478 | B45: =SUM('2) Order Form'!I52) -> 0 | C45: 0 | G45: =_xlfn.XLOOKUP(A45, '2) Order Form'!V:V, '2) Order Form'!O:O, FALSE) -> 0
A46: =SUM('2) Order Form'!V53) -> 7048652892522 | B46: =SUM('2) Order Form'!I53) -> 0 | C46: 0 | G46: =_xlfn.XLOOKUP(A46, '2) Order Form'!V:V, '2) Order Form'!O:O, FALSE) -> 0
A47: =SUM('2) Order Form'!V54) -> 7048652892515 | B47: =SUM('2) Order Form'!I54) -> 0 | C47: 0 | G47: =_xlfn.XLOOKUP(A47, '2) Order Form'!V:V, '2) Order Form'!O:O, FALSE) -> 0
A48: =SUM('2) Order Form'!V55) -> 7048652892508 | B48: =SUM('2) Order Form'!I55) -> 0 | C48: 0 | G48: =_xlfn.XLOOKUP(A48, '2) Order Form'!V:V, '2) Order Form'!O:O, FALSE) -> 0
A49: =SUM('2) Order Form'!V56) -> 7048652540409 | B49: =SUM('2) Order Form'!I56) -> 0 | C49: 0 | G49: =_xlfn.XLOOKUP(A49, '2) Order Form'!V:V, '2) Order Form'!O:O, FALSE) -> 0
A50: =SUM('2) Order Form'!V57) -> 7048652540393 | B50: =SUM('2) Order Form'!I57) -> 0 | C50: 0 | G50: =_xlfn.XLOOKUP(A50, '2) Order Form'!V:V, '2) Order Form'!O:O, FALSE) -> 0
A51: =SUM('2) Order Form'!V58) -> 7048652540386 | B51: =SUM('2) Order Form'!I58) -> 0 | C51: 0 | G51: =_xlfn.XLOOKUP(A51, '2) Order Form'!V:V, '2) Order Form'!O:O, FALSE) -> 0
A52: =SUM('2) Order Form'!V59) -> 7048652540522 | B52: =SUM('2) Order Form'!I59) -> 0 | C52: 0 | G52: =_xlfn.XLOOKUP(A52, '2) Order Form'!V:V, '2) Order Form'!O:O, FALSE) -> 0
A53: =SUM('2) Order Form'!V60) -> 7048652540515 | B53: =SUM('2) Order Form'!I60) -> 0 | C53: 0 | G53: =_xlfn.XLOOKUP(A53, '2) Order Form'!V:V, '2) Order Form'!O:O, FALSE) -> 0
A54: =SUM('2) Order Form'!V61) -> 7048652540508 | B54: =SUM('2) Order Form'!I61) -> 0 | C54: 0 | G54: =_xlfn.XLOOKUP(A54, '2) Order Form'!V:V, '2) Order Form'!O:O, FALSE) -> 0
A55: =SUM('2) Order Form'!V62) -> 7048652892584 | B55: =SUM('2) Order Form'!I62) -> 0 | C55: 0 | G55: =_xlfn.XLOOKUP(A55, '2) Order Form'!V:V, '2) Order Form'!O:O, FALSE) -> 0
A56: =SUM('2) Order Form'!V63) -> 7048652892577 | B56: =SUM('2) Order Form'!I63) -> 0 | C56: 0 | G56: =_xlfn.XLOOKUP(A56, '2) Order Form'!V:V, '2) Order Form'!O:O, FALSE) -> 0
A57: =SUM('2) Order Form'!V64) -> 7048652892560 | B57: =SUM('2) Order Form'!I64) -> 0 | C57: 0 | G57: =_xlfn.XLOOKUP(A57, '2) Order Form'!V:V, '2) Order Form'!O:O, FALSE) -> 0
A58: =SUM('2) Order Form'!V65) -> 7048652892645 | B58: =SUM('2) Order Form'!I65) -> 0 | C58: 0 | G58: =_xlfn.XLOOKUP(A58, '2) Order Form'!V:V, '2) Order Form'!O:O, FALSE) -> 0
A59: =SUM('2) Order Form'!V66) -> 7048652892638 | B59: =SUM('2) Order Form'!I66) -> 0 | C59: 0 | G59: =_xlfn.XLOOKUP(A59, '2) Order Form'!V:V, '2) Order Form'!O:O, FALSE) -> 0
A60: =SUM('2) Order Form'!V67) -> 7048652892621 | B60: =SUM('2) Order Form'!I67) -> 0 | C60: 0 | G60: =_xlfn.XLOOKUP(A60, '2) Order Form'!V:V, '2) Order Form'!O:O, FALSE) -> 0
A61: =SUM('2) Order Form'!V68) -> 7048652895806 | B61: =SUM('2) Order Form'!I68) -> 0 | C61: 0 | G61: =_xlfn.XLOOKUP(A61, '2) Order Form'!V:V, '2) Order Form'!O:O, FALSE) -> 0
A62: =SUM('2) Order Form'!V69) -> 7048652895790 | B62: =SUM('2) Order Form'!I69) -> 0 | C62: 0 | G62: =_xlfn.XLOOKUP(A62, '2) Order Form'!V:V, '2) Order Form'!O:O, FALSE) -> 0
A63: =SUM('2) Order Form'!V70) -> 7048652895783 | B63: =SUM('2) Order Form'!I70) -> 0 | C63: 0 | G63: =_xlfn.XLOOKUP(A63, '2) Order Form'!V:V, '2) Order Form'!O:O, FALSE) -> 0
A64: =SUM('2) Order Form'!V71) -> 7048652666413 | B64: =SUM('2) Order Form'!I71) -> 0 | C64: 0 | G64: =_xlfn.XLOOKUP(A64, '2) Order Form'!V:V, '2) Order Form'!O:O, FALSE) -> 0
A65: =SUM('2) Order Form'!V72) -> 7048652666406 | B65: =SUM('2) Order Form'!I72) -> 0 | C65: 0 | G65: =_xlfn.XLOOKUP(A65, '2) Order Form'!V:V, '2) Order Form'!O:O, FALSE) -> 0
A66: =SUM('2) Order Form'!V73) -> 7048652666390 | B66: =SUM('2) Order Form'!I73) -> 0 | C66: 0 | G66: =_xlfn.XLOOKUP(A66, '2) Order Form'!V:V, '2) Order Form'!O:O, FALSE) -> 0
A67: =SUM('2) Order Form'!V74) -> 7048652666444 | B67: =SUM('2) Order Form'!I74) -> 0 | C67: =G67*100 -> 0 | G67: =_xlfn.XLOOKUP(A67, '2) Order Form'!V:V, '2) Order Form'!O:O, FALSE) -> 0
A68: =SUM('2) Order Form'!V75) -> 7048652666437 | B68: =SUM('2) Order Form'!I75) -> 0 | C68: 0 | G68: =_xlfn.XLOOKUP(A68, '2) Order Form'!V:V, '2) Order Form'!O:O, FALSE) -> 0
A69: =SUM('2) Order Form'!V76) -> 7048652666420 | B69: =SUM('2) Order Form'!I76) -> 0 | C69: 0 | G69: =_xlfn.XLOOKUP(A69, '2) Order Form'!V:V, '2) Order Form'!O:O, FALSE) -> 0
A70: =SUM('2) Order Form'!V77) -> 7048652903198 | B70: =SUM('2) Order Form'!I77) -> 0 | C70: 0 | G70: =_xlfn.XLOOKUP(A70, '2) Order Form'!V:V, '2) Order Form'!O:O, FALSE) -> 0
A71: =SUM('2) Order Form'!V78) -> 7048652903181 | B71: =SUM('2) Order Form'!I78) -> 0 | C71: 0 | G71: =_xlfn.XLOOKUP(A71, '2) Order Form'!V:V, '2) Order Form'!O:O, FALSE) -> 0
A72: =SUM('2) Order Form'!V79) -> 7048652903174 | B72: =SUM('2) Order Form'!I79) -> 0 | C72: 0 | G72: =_xlfn.XLOOKUP(A72, '2) Order Form'!V:V, '2) Order Form'!O:O, FALSE) -> 0
A73: =SUM('2) Order Form'!V80) -> 7048652895837 | B73: =SUM('2) Order Form'!I80) -> 0 | C73: 0 | G73: =_xlfn.XLOOKUP(A73, '2) Order Form'!V:V, '2) Order Form'!O:O, FALSE) -> 0
A74: =SUM('2) Order Form'!V81) -> 7048652895820 | B74: =SUM('2) Order Form'!I81) -> 0 | C74: 0 | G74: =_xlfn.XLOOKUP(A74, '2) Order Form'!V:V, '2) Order Form'!O:O, FALSE) -> 0
A75: =SUM('2) Order Form'!V82) -> 7048652895813 | B75: =SUM('2) Order Form'!I82) -> 0 | C75: 0 | G75: =_xlfn.XLOOKUP(A75, '2) Order Form'!V:V, '2) Order Form'!O:O, FALSE) -> 0
A76: =SUM('2) Order Form'!V83) -> 7048652893659 | B76: =SUM('2) Order Form'!I83) -> 0 | C76: 0 | G76: =_xlfn.XLOOKUP(A76, '2) Order Form'!V:V, '2) Order Form'!O:O, FALSE) -> 0
A77: =SUM('2) Order Form'!V84) -> 7048652893642 | B77: =SUM('2) Order Form'!I84) -> 0 | C77: 0 | G77: =_xlfn.XLOOKUP(A77, '2) Order Form'!V:V, '2) Order Form'!O:O, FALSE) -> 0
A78: =SUM('2) Order Form'!V85) -> 7048652893635 | B78: =SUM('2) Order Form'!I85) -> 0 | C78: 0 | G78: =_xlfn.XLOOKUP(A78, '2) Order Form'!V:V, '2) Order Form'!O:O, FALSE) -> 0
A79: =SUM('2) Order Form'!V86) -> 7048652272966 | B79: =SUM('2) Order Form'!I86) -> 0 | C79: 0 | G79: =_xlfn.XLOOKUP(A79, '2) Order Form'!V:V, '2) Order Form'!O:O, FALSE) -> 0
A80: =SUM('2) Order Form'!V87) -> 7048652272959 | B80: =SUM('2) Order Form'!I87) -> 0 | C80: 0 | G80: =_xlfn.XLOOKUP(A80, '2) Order Form'!V:V, '2) Order Form'!O:O, FALSE) -> 0
A81: =SUM('2) Order Form'!V88) -> 7048652272942 | B81: =SUM('2) Order Form'!I88) -> 0 | C81: 0 | G81: =_xlfn.XLOOKUP(A81, '2) Order Form'!V:V, '2) Order Form'!O:O, FALSE) -> 0
A82: =SUM('2) Order Form'!V89) -> 7048652273086 | B82: =SUM('2) Order Form'!I89) -> 0 | C82: 0 | G82: =_xlfn.XLOOKUP(A82, '2) Order Form'!V:V, '2) Order Form'!O:O, FALSE) -> 0
A83: =SUM('2) Order Form'!V90) -> 7048652273079 | B83: =SUM('2) Order Form'!I90) -> 0 | C83: 0 | G83: =_xlfn.XLOOKUP(A83, '2) Order Form'!V:V, '2) Order Form'!O:O, FALSE) -> 0
A84: =SUM('2) Order Form'!V91) -> 7048652273062 | B84: =SUM('2) Order Form'!I91) -> 0 | C84: 0 | G84: =_xlfn.XLOOKUP(A84, '2) Order Form'!V:V, '2) Order Form'!O:O, FALSE) -> 0
A85: =SUM('2) Order Form'!V92) -> 7048652893680 | B85: =SUM('2) Order Form'!I92) -> 0 | C85: 0 | G85: =_xlfn.XLOOKUP(A85, '2) Order Form'!V:V, '2) Order Form'!O:O, FALSE) -> 0
A86: =SUM('2) Order Form'!V93) -> 7048652893673 | B86: =SUM('2) Order Form'!I93) -> 0 | C86: 0 | G86: =_xlfn.XLOOKUP(A86, '2) Order Form'!V:V, '2) Order Form'!O:O, FALSE) -> 0
A87: =SUM('2) Order Form'!V94) -> 7048652893666 | B87: =SUM('2) Order Form'!I94) -> 0 | C87: 0 | G87: =_xlfn.XLOOKUP(A87, '2) Order Form'!V:V, '2) Order Form'!O:O, FALSE) -> 0
A88: =SUM('2) Order Form'!V95) -> 7048652893710 | B88: =SUM('2) Order Form'!I95) -> 0 | C88: 0 | G88: =_xlfn.XLOOKUP(A88, '2) Order Form'!V:V, '2) Order Form'!O:O, FALSE) -> 0
A89: =SUM('2) Order Form'!V96) -> 7048652893703 | B89: =SUM('2) Order Form'!I96) -> 0 | C89: 0 | G89: =_xlfn.XLOOKUP(A89, '2) Order Form'!V:V, '2) Order Form'!O:O, FALSE) -> 0
A90: =SUM('2) Order Form'!V97) -> 7048652893697 | B90: =SUM('2) Order Form'!I97) -> 0 | C90: 0 | G90: =_xlfn.XLOOKUP(A90, '2) Order Form'!V:V, '2) Order Form'!O:O, FALSE) -> 0
A91: =SUM('2) Order Form'!V98) -> 7048652902894 | B91: =SUM('2) Order Form'!I98) -> 0 | C91: 0 | G91: =_xlfn.XLOOKUP(A91, '2) Order Form'!V:V, '2) Order Form'!O:O, FALSE) -> 0
A92: =SUM('2) Order Form'!V99) -> 7048652902900 | B92: =SUM('2) Order Form'!I99) -> 0 | C92: 0 | G92: =_xlfn.XLOOKUP(A92, '2) Order Form'!V:V, '2) Order Form'!O:O, FALSE) -> 0
A93: =SUM('2) Order Form'!V100) -> 7048652902917 | B93: =SUM('2) Order Form'!I100) -> 0 | C93: 0 | G93: =_xlfn.XLOOKUP(A93, '2) Order Form'!V:V, '2) Order Form'!O:O, FALSE) -> 0
A94: =SUM('2) Order Form'!V101) -> 7048652902924 | B94: =SUM('2) Order Form'!I101) -> 0 | C94: 0 | G94: =_xlfn.XLOOKUP(A94, '2) Order Form'!V:V, '2) Order Form'!O:O, FALSE) -> 0
A95: =SUM('2) Order Form'!V102) -> 7048652540935 | B95: =SUM('2) Order Form'!I102) -> 0 | C95: 0 | G95: =_xlfn.XLOOKUP(A95, '2) Order Form'!V:V, '2) Order Form'!O:O, FALSE) -> 0
A96: =SUM('2) Order Form'!V103) -> 7048652540973 | B96: =SUM('2) Order Form'!I103) -> 0 | C96: 0 | G96: =_xlfn.XLOOKUP(A96, '2) Order Form'!V:V, '2) Order Form'!O:O, FALSE) -> 0
A97: =SUM('2) Order Form'!V104) -> 7048652902931 | B97: =SUM('2) Order Form'!I104) -> 0 | C97: 0 | G97: =_xlfn.XLOOKUP(A97, '2) Order Form'!V:V, '2) Order Form'!O:O, FALSE) -> 0
A98: =SUM('2) Order Form'!V105) -> 7048652902948 | B98: =SUM('2) Order Form'!I105) -> 0 | C98: 0 | G98: =_xlfn.XLOOKUP(A98, '2) Order Form'!V:V, '2) Order Form'!O:O, FALSE) -> 0
A99: =SUM('2) Order Form'!V106) -> 7048652902955 | B99: =SUM('2) Order Form'!I106) -> 0 | C99: 0 | G99: =_xlfn.XLOOKUP(A99, '2) Order Form'!V:V, '2) Order Form'!O:O, FALSE) -> 0
A100: =SUM('2) Order Form'!V107) -> 7048652902962 | B100: =SUM('2) Order Form'!I107) -> 0 | C100: 0 | G100: =_xlfn.XLOOKUP(A100, '2) Order Form'!V:V, '2) Order Form'!O:O, FALSE) -> 0
A101: =SUM('2) Order Form'!V108) -> 7048652902979 | B101: =SUM('2) Order Form'!I108) -> 0 | C101: 0 | G101: =_xlfn.XLOOKUP(A101, '2) Order Form'!V:V, '2) Order Form'!O:O, FALSE) -> 0
A102: =SUM('2) Order Form'!V109) -> 7048652902986 | B102: =SUM('2) Order Form'!I109) -> 0 | C102: 0 | G102: =_xlfn.XLOOKUP(A102, '2) Order Form'!V:V, '2) Order Form'!O:O, FALSE) -> 0
A103: =SUM('2) Order Form'!V110) -> 7048652540980 | B103: =SUM('2) Order Form'!I110) -> 0 | C103: 0 | G103: =_xlfn.XLOOKUP(A103, '2) Order Form'!V:V, '2) Order Form'!O:O, FALSE) -> 0
A104: =SUM('2) Order Form'!V111) -> 7048652541024 | B104: =SUM('2) Order Form'!I111) -> 0 | C104: 0 | G104: =_xlfn.XLOOKUP(A104, '2) Order Form'!V:V, '2) Order Form'!O:O, FALSE) -> 0
A105: =SUM('2) Order Form'!V112) -> 7048652902993 | B105: =SUM('2) Order Form'!I112) -> 0 | C105: 0 | G105: =_xlfn.XLOOKUP(A105, '2) Order Form'!V:V, '2) Order Form'!O:O, FALSE) -> 0
A106: =SUM('2) Order Form'!V113) -> 7048652903006 | B106: =SUM('2) Order Form'!I113) -> 0 | C106: 0 | G106: =_xlfn.XLOOKUP(A106, '2) Order Form'!V:V, '2) Order Form'!O:O, FALSE) -> 0
A107: =SUM('2) Order Form'!V114) -> 7048652893581 | B107: =SUM('2) Order Form'!I114) -> 0 | C107: 0 | G107: =_xlfn.XLOOKUP(A107, '2) Order Form'!V:V, '2) Order Form'!O:O, FALSE) -> 0
A108: =SUM('2) Order Form'!V115) -> 7048652893574 | B108: =SUM('2) Order Form'!I115) -> 0 | C108: 0 | G108: =_xlfn.XLOOKUP(A108, '2) Order Form'!V:V, '2) Order Form'!O:O, FALSE) -> 0
A109: =SUM('2) Order Form'!V116) -> 7048652893604 | B109: =SUM('2) Order Form'!I116) -> 0 | C109: 0 | G109: =_xlfn.XLOOKUP(A109, '2) Order Form'!V:V, '2) Order Form'!O:O, FALSE) -> 0
A110: =SUM('2) Order Form'!V117) -> 7048652893598 | B110: =SUM('2) Order Form'!I117) -> 0 | C110: 0 | G110: =_xlfn.XLOOKUP(A110, '2) Order Form'!V:V, '2) Order Form'!O:O, FALSE) -> 0
A111: =SUM('2) Order Form'!V118) -> 7048652893628 | B111: =SUM('2) Order Form'!I118) -> 0 | C111: 0 | G111: =_xlfn.XLOOKUP(A111, '2) Order Form'!V:V, '2) Order Form'!O:O, FALSE) -> 0
A112: =SUM('2) Order Form'!V119) -> 7048652893611 | B112: =SUM('2) Order Form'!I119) -> 0 | C112: 0 | G112: =_xlfn.XLOOKUP(A112, '2) Order Form'!V:V, '2) Order Form'!O:O, FALSE) -> 0
A113: =SUM('2) Order Form'!V120) -> 7048652903013 | B113: =SUM('2) Order Form'!I120) -> 0 | C113: 0 | G113: =_xlfn.XLOOKUP(A113, '2) Order Form'!V:V, '2) Order Form'!O:O, FALSE) -> 0
A114: =SUM('2) Order Form'!V121) -> 7048652903020 | B114: =SUM('2) Order Form'!I121) -> 0 | C114: 0 | G114: =_xlfn.XLOOKUP(A114, '2) Order Form'!V:V, '2) Order Form'!O:O, FALSE) -> 0
A115: =SUM('2) Order Form'!V122) -> 7048652540836 | B115: =SUM('2) Order Form'!I122) -> 0 | C115: 0 | G115: =_xlfn.XLOOKUP(A115, '2) Order Form'!V:V, '2) Order Form'!O:O, FALSE) -> 0
A116: =SUM('2) Order Form'!V123) -> 7048652767738 | B116: =SUM('2) Order Form'!I123) -> 0 | C116: 0 | G116: =_xlfn.XLOOKUP(A116, '2) Order Form'!V:V, '2) Order Form'!O:O, FALSE) -> 0
A117: =SUM('2) Order Form'!V124) -> 7048652540874 | B117: =SUM('2) Order Form'!I124) -> 0 | C117: 0 | G117: =_xlfn.XLOOKUP(A117, '2) Order Form'!V:V, '2) Order Form'!O:O, FALSE) -> 0
A118: =SUM('2) Order Form'!V125) -> 7048652767769 | B118: =SUM('2) Order Form'!I125) -> 0 | C118: 0 | G118: =_xlfn.XLOOKUP(A118, '2) Order Form'!V:V, '2) Order Form'!O:O, FALSE) -> 0
A119: =SUM('2) Order Form'!V126) -> 7048652903037 | B119: =SUM('2) Order Form'!I126) -> 0 | C119: 0 | G119: =_xlfn.XLOOKUP(A119, '2) Order Form'!V:V, '2) Order Form'!O:O, FALSE) -> 0
A120: =SUM('2) Order Form'!V127) -> 7048652903044 | B120: =SUM('2) Order Form'!I127) -> 0 | C120: 0 | G120: =_xlfn.XLOOKUP(A120, '2) Order Form'!V:V, '2) Order Form'!O:O, FALSE) -> 0
A121: =SUM('2) Order Form'!V128) -> 7048652903051 | B121: =SUM('2) Order Form'!I128) -> 0 | C121: 0 | G121: =_xlfn.XLOOKUP(A121, '2) Order Form'!V:V, '2) Order Form'!O:O, FALSE) -> 0
A122: =SUM('2) Order Form'!V129) -> 7048652903068 | B122: =SUM('2) Order Form'!I129) -> 0 | C122: 0 | G122: =_xlfn.XLOOKUP(A122, '2) Order Form'!V:V, '2) Order Form'!O:O, FALSE) -> 0
A123: =SUM('2) Order Form'!V130) -> 7048652540881 | B123: =SUM('2) Order Form'!I130) -> 0 | C123: 0 | G123: =_xlfn.XLOOKUP(A123, '2) Order Form'!V:V, '2) Order Form'!O:O, FALSE) -> 0
A124: =SUM('2) Order Form'!V131) -> 7048652767790 | B124: =SUM('2) Order Form'!I131) -> 0 | C124: 0 | G124: =_xlfn.XLOOKUP(A124, '2) Order Form'!V:V, '2) Order Form'!O:O, FALSE) -> 0
A125: =SUM('2) Order Form'!V132) -> 7048652540928 | B125: =SUM('2) Order Form'!I132) -> 0 | C125: 0 | G125: =_xlfn.XLOOKUP(A125, '2) Order Form'!V:V, '2) Order Form'!O:O, FALSE) -> 0
A126: =SUM('2) Order Form'!V133) -> 7048652767820 | B126: =SUM('2) Order Form'!I133) -> 0 | C126: 0 | G126: =_xlfn.XLOOKUP(A126, '2) Order Form'!V:V, '2) Order Form'!O:O, FALSE) -> 0
A127: =SUM('2) Order Form'!V134) -> 7048652903075 | B127: =SUM('2) Order Form'!I134) -> 0 | C127: 0 | G127: =_xlfn.XLOOKUP(A127, '2) Order Form'!V:V, '2) Order Form'!O:O, FALSE) -> 0
A128: =SUM('2) Order Form'!V135) -> 7048652903082 | B128: =SUM('2) Order Form'!I135) -> 0 | C128: 0 | G128: =_xlfn.XLOOKUP(A128, '2) Order Form'!V:V, '2) Order Form'!O:O, FALSE) -> 0
A129: =SUM('2) Order Form'!V136) -> 7048652893031 | B129: =SUM('2) Order Form'!I136) -> 0 | C129: 0 | G129: =_xlfn.XLOOKUP(A129, '2) Order Form'!V:V, '2) Order Form'!O:O, FALSE) -> 0
A130: =SUM('2) Order Form'!V137) -> 7048652893024 | B130: =SUM('2) Order Form'!I137) -> 0 | C130: 0 | G130: =_xlfn.XLOOKUP(A130, '2) Order Form'!V:V, '2) Order Form'!O:O, FALSE) -> 0
A131: =SUM('2) Order Form'!V138) -> 7048652893017 | B131: =SUM('2) Order Form'!I138) -> 0 | C131: =G131*100 -> 0 | G131: =_xlfn.XLOOKUP(A131, '2) Order Form'!V:V, '2) Order Form'!O:O, FALSE) -> 0
A132: =SUM('2) Order Form'!V139) -> 7048652893062 | B132: =SUM('2) Order Form'!I139) -> 0 | C132: 0 | G132: =_xlfn.XLOOKUP(A132, '2) Order Form'!V:V, '2) Order Form'!O:O, FALSE) -> 0
A133: =SUM('2) Order Form'!V140) -> 7048652893055 | B133: =SUM('2) Order Form'!I140) -> 0 | C133: 0 | G133: =_xlfn.XLOOKUP(A133, '2) Order Form'!V:V, '2) Order Form'!O:O, FALSE) -> 0
A134: =SUM('2) Order Form'!V141) -> 7048652893048 | B134: =SUM('2) Order Form'!I141) -> 0 | C134: 0 | G134: =_xlfn.XLOOKUP(A134, '2) Order Form'!V:V, '2) Order Form'!O:O, FALSE) -> 0
A135: =SUM('2) Order Form'!V142) -> 7048652893123 | B135: =SUM('2) Order Form'!I142) -> 0 | C135: 0 | G135: =_xlfn.XLOOKUP(A135, '2) Order Form'!V:V, '2) Order Form'!O:O, FALSE) -> 0
A136: =SUM('2) Order Form'!V143) -> 7048652893116 | B136: =SUM('2) Order Form'!I143) -> 0 | C136: 0 | G136: =_xlfn.XLOOKUP(A136, '2) Order Form'!V:V, '2) Order Form'!O:O, FALSE) -> 0
A137: =SUM('2) Order Form'!V144) -> 7048652893109 | B137: =SUM('2) Order Form'!I144) -> 0 | C137: 0 | G137: =_xlfn.XLOOKUP(A137, '2) Order Form'!V:V, '2) Order Form'!O:O, FALSE) -> 0
A138: =SUM('2) Order Form'!V145) -> 7048652893154 | B138: =SUM('2) Order Form'!I145) -> 0 | C138: 0 | G138: =_xlfn.XLOOKUP(A138, '2) Order Form'!V:V, '2) Order Form'!O:O, FALSE) -> 0
A139: =SUM('2) Order Form'!V146) -> 7048652893147 | B139: =SUM('2) Order Form'!I146) -> 0 | C139: 0 | G139: =_xlfn.XLOOKUP(A139, '2) Order Form'!V:V, '2) Order Form'!O:O, FALSE) -> 0
A140: =SUM('2) Order Form'!V147) -> 7048652893130 | B140: =SUM('2) Order Form'!I147) -> 0 | C140: 0 | G140: =_xlfn.XLOOKUP(A140, '2) Order Form'!V:V, '2) Order Form'!O:O, FALSE) -> 0
A141: =SUM('2) Order Form'!V148) -> 7048652893185 | B141: =SUM('2) Order Form'!I148) -> 0 | C141: 0 | G141: =_xlfn.XLOOKUP(A141, '2) Order Form'!V:V, '2) Order Form'!O:O, FALSE) -> 0
A142: =SUM('2) Order Form'!V149) -> 7048652893178 | B142: =SUM('2) Order Form'!I149) -> 0 | C142: 0 | G142: =_xlfn.XLOOKUP(A142, '2) Order Form'!V:V, '2) Order Form'!O:O, FALSE) -> 0
A143: =SUM('2) Order Form'!V150) -> 7048652893161 | B143: =SUM('2) Order Form'!I150) -> 0 | C143: 0 | G143: =_xlfn.XLOOKUP(A143, '2) Order Form'!V:V, '2) Order Form'!O:O, FALSE) -> 0
A144: =SUM('2) Order Form'!V151) -> 7048652893246 | B144: =SUM('2) Order Form'!I151) -> 0 | C144: 0 | G144: =_xlfn.XLOOKUP(A144, '2) Order Form'!V:V, '2) Order Form'!O:O, FALSE) -> 0
A145: =SUM('2) Order Form'!V152) -> 7048652893239 | B145: =SUM('2) Order Form'!I152) -> 0 | C145: 0 | G145: =_xlfn.XLOOKUP(A145, '2) Order Form'!V:V, '2) Order Form'!O:O, FALSE) -> 0
A146: =SUM('2) Order Form'!V153) -> 7048652893222 | B146: =SUM('2) Order Form'!I153) -> 0 | C146: 0 | G146: =_xlfn.XLOOKUP(A146, '2) Order Form'!V:V, '2) Order Form'!O:O, FALSE) -> 0
A147: =SUM('2) Order Form'!V154) -> 7048652893277 | B147: =SUM('2) Order Form'!I154) -> 0 | C147: 0 | G147: =_xlfn.XLOOKUP(A147, '2) Order Form'!V:V, '2) Order Form'!O:O, FALSE) -> 0
A148: =SUM('2) Order Form'!V155) -> 7048652893260 | B148: =SUM('2) Order Form'!I155) -> 0 | C148: 0 | G148: =_xlfn.XLOOKUP(A148, '2) Order Form'!V:V, '2) Order Form'!O:O, FALSE) -> 0
A149: =SUM('2) Order Form'!V156) -> 7048652893253 | B149: =SUM('2) Order Form'!I156) -> 0 | C149: 0 | G149: =_xlfn.XLOOKUP(A149, '2) Order Form'!V:V, '2) Order Form'!O:O, FALSE) -> 0
A150: =SUM('2) Order Form'!V157) -> 7048652893307 | B150: =SUM('2) Order Form'!I157) -> 0 | C150: 0 | G150: =_xlfn.XLOOKUP(A150, '2) Order Form'!V:V, '2) Order Form'!O:O, FALSE) -> 0
A151: =SUM('2) Order Form'!V158) -> 7048652893291 | B151: =SUM('2) Order Form'!I158) -> 0 | C151: 0 | G151: =_xlfn.XLOOKUP(A151, '2) Order Form'!V:V, '2) Order Form'!O:O, FALSE) -> 0
A152: =SUM('2) Order Form'!V159) -> 7048652893284 | B152: =SUM('2) Order Form'!I159) -> 0 | C152: 0 | G152: =_xlfn.XLOOKUP(A152, '2) Order Form'!V:V, '2) Order Form'!O:O, FALSE) -> 0
A153: =SUM('2) Order Form'!V160) -> 7048652893338 | B153: =SUM('2) Order Form'!I160) -> 0 | C153: 0 | G153: =_xlfn.XLOOKUP(A153, '2) Order Form'!V:V, '2) Order Form'!O:O, FALSE) -> 0
A154: =SUM('2) Order Form'!V161) -> 7048652893321 | B154: =SUM('2) Order Form'!I161) -> 0 | C154: 0 | G154: =_xlfn.XLOOKUP(A154, '2) Order Form'!V:V, '2) Order Form'!O:O, FALSE) -> 0
A155: =SUM('2) Order Form'!V162) -> 7048652893314 | B155: =SUM('2) Order Form'!I162) -> 0 | C155: 0 | G155: =_xlfn.XLOOKUP(A155, '2) Order Form'!V:V, '2) Order Form'!O:O, FALSE) -> 0
A156: =SUM('2) Order Form'!V163) -> 7048652895295 | B156: =SUM('2) Order Form'!I163) -> 0 | C156: 0 | G156: =_xlfn.XLOOKUP(A156, '2) Order Form'!V:V, '2) Order Form'!O:O, FALSE) -> 0
A157: =SUM('2) Order Form'!V164) -> 7048652895288 | B157: =SUM('2) Order Form'!I164) -> 0 | C157: 0 | G157: =_xlfn.XLOOKUP(A157, '2) Order Form'!V:V, '2) Order Form'!O:O, FALSE) -> 0
A158: =SUM('2) Order Form'!V165) -> 7048652895271 | B158: =SUM('2) Order Form'!I165) -> 0 | C158: 0 | G158: =_xlfn.XLOOKUP(A158, '2) Order Form'!V:V, '2) Order Form'!O:O, FALSE) -> 0
A159: =SUM('2) Order Form'!V166) -> 7048652893369 | B159: =SUM('2) Order Form'!I166) -> 0 | C159: 0 | G159: =_xlfn.XLOOKUP(A159, '2) Order Form'!V:V, '2) Order Form'!O:O, FALSE) -> 0
A160: =SUM('2) Order Form'!V167) -> 7048652893352 | B160: =SUM('2) Order Form'!I167) -> 0 | C160: 0 | G160: =_xlfn.XLOOKUP(A160, '2) Order Form'!V:V, '2) Order Form'!O:O, FALSE) -> 0
A161: =SUM('2) Order Form'!V168) -> 7048652893345 | B161: =SUM('2) Order Form'!I168) -> 0 | C161: 0 | G161: =_xlfn.XLOOKUP(A161, '2) Order Form'!V:V, '2) Order Form'!O:O, FALSE) -> 0
A162: =SUM('2) Order Form'!V169) -> 7048652893390 | B162: =SUM('2) Order Form'!I169) -> 0 | C162: 0 | G162: =_xlfn.XLOOKUP(A162, '2) Order Form'!V:V, '2) Order Form'!O:O, FALSE) -> 0
A163: =SUM('2) Order Form'!V170) -> 7048652893383 | B163: =SUM('2) Order Form'!I170) -> 0 | C163: 0 | G163: =_xlfn.XLOOKUP(A163, '2) Order Form'!V:V, '2) Order Form'!O:O, FALSE) -> 0
A164: =SUM('2) Order Form'!V171) -> 7048652893376 | B164: =SUM('2) Order Form'!I171) -> 0 | C164: 0 | G164: =_xlfn.XLOOKUP(A164, '2) Order Form'!V:V, '2) Order Form'!O:O, FALSE) -> 0
A165: =SUM('2) Order Form'!V172) -> 7048652893451 | B165: =SUM('2) Order Form'!I172) -> 0 | C165: 0 | G165: =_xlfn.XLOOKUP(A165, '2) Order Form'!V:V, '2) Order Form'!O:O, FALSE) -> 0
A166: =SUM('2) Order Form'!V173) -> 7048652893444 | B166: =SUM('2) Order Form'!I173) -> 0 | C166: 0 | G166: =_xlfn.XLOOKUP(A166, '2) Order Form'!V:V, '2) Order Form'!O:O, FALSE) -> 0
A167: =SUM('2) Order Form'!V174) -> 7048652893437 | B167: =SUM('2) Order Form'!I174) -> 0 | C167: 0 | G167: =_xlfn.XLOOKUP(A167, '2) Order Form'!V:V, '2) Order Form'!O:O, FALSE) -> 0
A168: =SUM('2) Order Form'!V175) -> 7048652893482 | B168: =SUM('2) Order Form'!I175) -> 0 | C168: 0 | G168: =_xlfn.XLOOKUP(A168, '2) Order Form'!V:V, '2) Order Form'!O:O, FALSE) -> 0
A169: =SUM('2) Order Form'!V176) -> 7048652893475 | B169: =SUM('2) Order Form'!I176) -> 0 | C169: 0 | G169: =_xlfn.XLOOKUP(A169, '2) Order Form'!V:V, '2) Order Form'!O:O, FALSE) -> 0
A170: =SUM('2) Order Form'!V177) -> 7048652893468 | B170: =SUM('2) Order Form'!I177) -> 0 | C170: 0 | G170: =_xlfn.XLOOKUP(A170, '2) Order Form'!V:V, '2) Order Form'!O:O, FALSE) -> 0
A171: =SUM('2) Order Form'!V178) -> 7048652893895 | B171: =SUM('2) Order Form'!I178) -> 0 | C171: 0 | G171: =_xlfn.XLOOKUP(A171, '2) Order Form'!V:V, '2) Order Form'!O:O, FALSE) -> 0
A172: =SUM('2) Order Form'!V179) -> 7048652893888 | B172: =SUM('2) Order Form'!I179) -> 0 | C172: 0 | G172: =_xlfn.XLOOKUP(A172, '2) Order Form'!V:V, '2) Order Form'!O:O, FALSE) -> 0
A173: =SUM('2) Order Form'!V180) -> 7048652893871 | B173: =SUM('2) Order Form'!I180) -> 0 | C173: 0 | G173: =_xlfn.XLOOKUP(A173, '2) Order Form'!V:V, '2) Order Form'!O:O, FALSE) -> 0
A174: =SUM('2) Order Form'!V181) -> 7048652893925 | B174: =SUM('2) Order Form'!I181) -> 0 | C174: 0 | G174: =_xlfn.XLOOKUP(A174, '2) Order Form'!V:V, '2) Order Form'!O:O, FALSE) -> 0
A175: =SUM('2) Order Form'!V182) -> 7048652893918 | B175: =SUM('2) Order Form'!I182) -> 0 | C175: 0 | G175: =_xlfn.XLOOKUP(A175, '2) Order Form'!V:V, '2) Order Form'!O:O, FALSE) -> 0
A176: =SUM('2) Order Form'!V183) -> 7048652893901 | B176: =SUM('2) Order Form'!I183) -> 0 | C176: 0 | G176: =_xlfn.XLOOKUP(A176, '2) Order Form'!V:V, '2) Order Form'!O:O, FALSE) -> 0
A177: =SUM('2) Order Form'!V184) -> 7048652902887 | B177: =SUM('2) Order Form'!I184) -> 0 | C177: 0 | G177: =_xlfn.XLOOKUP(A177, '2) Order Form'!V:V, '2) Order Form'!O:O, FALSE) -> 0
A178: =SUM('2) Order Form'!V185) -> 7048652902870 | B178: =SUM('2) Order Form'!I185) -> 0 | C178: 0 | G178: =_xlfn.XLOOKUP(A178, '2) Order Form'!V:V, '2) Order Form'!O:O, FALSE) -> 0
A179: =SUM('2) Order Form'!V186) -> 7048652902863 | B179: =SUM('2) Order Form'!I186) -> 0 | C179: 0 | G179: =_xlfn.XLOOKUP(A179, '2) Order Form'!V:V, '2) Order Form'!O:O, FALSE) -> 0
A180: =SUM('2) Order Form'!V187) -> 7048652894137 | B180: =SUM('2) Order Form'!I187) -> 0 | C180: 0 | G180: =_xlfn.XLOOKUP(A180, '2) Order Form'!V:V, '2) Order Form'!O:O, FALSE) -> 0
A181: =SUM('2) Order Form'!V188) -> 7048652894120 | B181: =SUM('2) Order Form'!I188) -> 0 | C181: 0 | G181: =_xlfn.XLOOKUP(A181, '2) Order Form'!V:V, '2) Order Form'!O:O, FALSE) -> 0
A182: =SUM('2) Order Form'!V189) -> 7048652894113 | B182: =SUM('2) Order Form'!I189) -> 0 | C182: 0 | G182: =_xlfn.XLOOKUP(A182, '2) Order Form'!V:V, '2) Order Form'!O:O, FALSE) -> 0
A183: =SUM('2) Order Form'!V190) -> 7048652894168 | B183: =SUM('2) Order Form'!I190) -> 0 | C183: 0 | G183: =_xlfn.XLOOKUP(A183, '2) Order Form'!V:V, '2) Order Form'!O:O, FALSE) -> 0
A184: =SUM('2) Order Form'!V191) -> 7048652894151 | B184: =SUM('2) Order Form'!I191) -> 0 | C184: 0 | G184: =_xlfn.XLOOKUP(A184, '2) Order Form'!V:V, '2) Order Form'!O:O, FALSE) -> 0
A185: =SUM('2) Order Form'!V192) -> 7048652894144 | B185: =SUM('2) Order Form'!I192) -> 0 | C185: 0 | G185: =_xlfn.XLOOKUP(A185, '2) Order Form'!V:V, '2) Order Form'!O:O, FALSE) -> 0
A186: =SUM('2) Order Form'!V193) -> 7048652894199 | B186: =SUM('2) Order Form'!I193) -> 0 | C186: 0 | G186: =_xlfn.XLOOKUP(A186, '2) Order Form'!V:V, '2) Order Form'!O:O, FALSE) -> 0
A187: =SUM('2) Order Form'!V194) -> 7048652894182 | B187: =SUM('2) Order Form'!I194) -> 0 | C187: 0 | G187: =_xlfn.XLOOKUP(A187, '2) Order Form'!V:V, '2) Order Form'!O:O, FALSE) -> 0
A188: =SUM('2) Order Form'!V195) -> 7048652894175 | B188: =SUM('2) Order Form'!I195) -> 0 | C188: 0 | G188: =_xlfn.XLOOKUP(A188, '2) Order Form'!V:V, '2) Order Form'!O:O, FALSE) -> 0
A189: =SUM('2) Order Form'!V196) -> 7048652894250 | B189: =SUM('2) Order Form'!I196) -> 0 | C189: 0 | G189: =_xlfn.XLOOKUP(A189, '2) Order Form'!V:V, '2) Order Form'!O:O, FALSE) -> 0
A190: =SUM('2) Order Form'!V197) -> 7048652894243 | B190: =SUM('2) Order Form'!I197) -> 0 | C190: 0 | G190: =_xlfn.XLOOKUP(A190, '2) Order Form'!V:V, '2) Order Form'!O:O, FALSE) -> 0
A191: =SUM('2) Order Form'!V198) -> 7048652894236 | B191: =SUM('2) Order Form'!I198) -> 0 | C191: 0 | G191: =_xlfn.XLOOKUP(A191, '2) Order Form'!V:V, '2) Order Form'!O:O, FALSE) -> 0
A192: =SUM('2) Order Form'!V199) -> 7048652893987 | B192: =SUM('2) Order Form'!I199) -> 0 | C192: 0 | G192: =_xlfn.XLOOKUP(A192, '2) Order Form'!V:V, '2) Order Form'!O:O, FALSE) -> 0
A193: =SUM('2) Order Form'!V200) -> 7048652893970 | B193: =SUM('2) Order Form'!I200) -> 0 | C193: 0 | G193: =_xlfn.XLOOKUP(A193, '2) Order Form'!V:V, '2) Order Form'!O:O, FALSE) -> 0
A194: =SUM('2) Order Form'!V201) -> 7048652893963 | B194: =SUM('2) Order Form'!I201) -> 0 | C194: 0 | G194: =_xlfn.XLOOKUP(A194, '2) Order Form'!V:V, '2) Order Form'!O:O, FALSE) -> 0
A195: =SUM('2) Order Form'!V202) -> 7048652894014 | B195: =SUM('2) Order Form'!I202) -> 0 | C195: =G195*100 -> 0 | G195: =_xlfn.XLOOKUP(A195, '2) Order Form'!V:V, '2) Order Form'!O:O, FALSE) -> 0
A196: =SUM('2) Order Form'!V203) -> 7048652894007 | B196: =SUM('2) Order Form'!I203) -> 0 | C196: 0 | G196: =_xlfn.XLOOKUP(A196, '2) Order Form'!V:V, '2) Order Form'!O:O, FALSE) -> 0
A197: =SUM('2) Order Form'!V204) -> 7048652893994 | B197: =SUM('2) Order Form'!I204) -> 0 | C197: 0 | G197: =_xlfn.XLOOKUP(A197, '2) Order Form'!V:V, '2) Order Form'!O:O, FALSE) -> 0
A198: =SUM('2) Order Form'!V205) -> 7048652894045 | B198: =SUM('2) Order Form'!I205) -> 0 | C198: 0 | G198: =_xlfn.XLOOKUP(A198, '2) Order Form'!V:V, '2) Order Form'!O:O, FALSE) -> 0
A199: =SUM('2) Order Form'!V206) -> 7048652894038 | B199: =SUM('2) Order Form'!I206) -> 0 | C199: 0 | G199: =_xlfn.XLOOKUP(A199, '2) Order Form'!V:V, '2) Order Form'!O:O, FALSE) -> 0
A200: =SUM('2) Order Form'!V207) -> 7048652894021 | B200: =SUM('2) Order Form'!I207) -> 0 | C200: 0 | G200: =_xlfn.XLOOKUP(A200, '2) Order Form'!V:V, '2) Order Form'!O:O, FALSE) -> 0
... 640 more rows

Sheet ATS (hidden)
A1: Item Availability weeks Excel | N1: IKKE GJØR NOEN ENDRINGER I DISSE KOLONNENE | S1: MANGLER - MÅ OPPDATERE EAN-FANEN
A2: SKIGUTANE\PETULR : 10.10.23 | B2: Item Variant Status "Active&Stock" | P2: =SUM(P4:P3960) -> 76033708 | Q2: =SUM(Q4:Q3960) -> 76035428 | V2: Filter HER! | AA2: Filter HER!
A3: No. | B3: Description | C3: Location Filter | D3: Variant Color | E3: Color Description | F3: Variant Size | G3: Variant Status | H3: Week 1 | I3: Week 2 | J3: Week 3 | K3: Week 4 | L3: Week 5 | N3: SKU | O3: =IFERROR(VLOOKUP(N3,EAN!$A:$B,2,FALSE),"") -> Cross-Reference No. | P3: W1 | Q3: W2 | S3: Med I order form? | U3: EAN fra Elastic | V3: Sjekk mot Order Form | AA3: Sjekk mot Elastic
A4: 18100 | B4: Net | H4: 202341 | I4: 202342 | J4: 202343 | K4: 202344 | L4: 202345 | N4: =CONCATENATE(A4,"-",D4) -> 18100- | O4: =IF(B4="NET","",IF(B4="","",IFERROR(VLOOKUP(N4,EAN!$A:$B,2,FALSE),"MANGLER - MÅ OPPDATERE EAN-FANEN"))) ->  | P4: =H4 -> 202341 | Q4: =L4 -> 202345 | S4: =IF(B4="NET","",IFERROR(VLOOKUP(O4,'2) Order Form'!$V$9:$V$905,1,FALSE),"Ikke med I order form")) ->  | U4: 7048652273154 | V4: =IFERROR(VLOOKUP(U4,'2) Order Form'!$V$9:$V$1767,1,FALSE),"Ikke med I order form") -> 7048652273154 | W4: =INDEX(ATS!$A:$P,MATCH(ATS!$U4,ATS!$O:$O,0),1) -> 845073 | X4: =INDEX(ATS!$A:$P,MATCH(ATS!$U4,ATS!$O:$O,0),2) -> Arbitrator Mips Helmet | Y4: =INDEX(ATS!$A:$P,MATCH(ATS!$U4,ATS!$O:$O,0),4) -> MBKNC-SM | AA4: =IFERROR(VLOOKUP('2) Order Form'!V9,$U$4:$U$2000,1,FALSE),"Ikke med i Elastic") -> 7048652893505 | AB4: =SUM('2) Order Form'!V9) -> 7048652893505 | AC4: =INDEX(ATS!$A:$P,MATCH(ATS!$AB4,ATS!$O:$O,0),1) -> 845073 | AD4: =INDEX(ATS!$A:$P,MATCH(ATS!$AB4,ATS!$O:$O,0),2) -> Arbitrator Mips Helmet | AE4: =INDEX(ATS!$A:$P,MATCH(ATS!$AB4,ATS!$O:$O,0),4) -> DUSK-SM
A5: 18100 | B5: Tower Kit 1 of 2 | C5: DBS | D5: BLACK-OS | E5: Black | F5: OS | G5: Active | H5: 0 | I5: 0 | J5: 0 | K5: 0 | L5: 0 | N5: 18100-BLACK-OS | O5: =IF(B5="NET","",IF(B5="","",IFERROR(VLOOKUP(N5,EAN!$A:$B,2,FALSE),"MANGLER - MÅ OPPDATERE EAN-FANEN"))) -> MANGLER - MÅ OPPDATERE EAN-FANEN | P5: =H5 -> 0 | Q5: =L5 -> 0 | S5: =IF(B5="NET","",IFERROR(VLOOKUP(O5,'2) Order Form'!$V$9:$V$905,1,FALSE),"Ikke med I order form")) -> Ikke med I order form | U5: 7048652273154 | V5: =IFERROR(VLOOKUP(U5,'2) Order Form'!$V$9:$V$1767,1,FALSE),"Ikke med I order form") -> 7048652273154 | W5: =INDEX(ATS!$A:$P,MATCH(ATS!$U5,ATS!$O:$O,0),1) -> 845073 | X5: =INDEX(ATS!$A:$P,MATCH(ATS!$U5,ATS!$O:$O,0),2) -> Arbitrator Mips Helmet | Y5: =INDEX(ATS!$A:$P,MATCH(ATS!$U5,ATS!$O:$O,0),4) -> MBKNC-SM | AA5: =IFERROR(VLOOKUP('2) Order Form'!V10,$U$4:$U$2000,1,FALSE),"Ikke med i Elastic") -> 7048652893499 | AB5: =SUM('2) Order Form'!V10) -> 7048652893499 | AC5: =INDEX(ATS!$A:$P,MATCH(ATS!$AB5,ATS!$O:$O,0),1) -> 845073 | AD5: =INDEX(ATS!$A:$P,MATCH(ATS!$AB5,ATS!$O:$O,0),2) -> Arbitrator Mips Helmet | AE5: =INDEX(ATS!$A:$P,MATCH(ATS!$AB5,ATS!$O:$O,0),4) -> DUSK-ML
A6: 18101 | B6: Net | H6: 202341 | I6: 202342 | J6: 202343 | K6: 202344 | L6: 202345 | N6: 18101- | O6: =IF(B6="NET","",IF(B6="","",IFERROR(VLOOKUP(N6,EAN!$A:$B,2,FALSE),"MANGLER - MÅ OPPDATERE EAN-FANEN"))) ->  | P6: 202341 | Q6: 202345 | S6: =IF(B6="NET","",IFERROR(VLOOKUP(O6,'2) Order Form'!$V$9:$V$905,1,FALSE),"Ikke med I order form")) ->  | U6: 7048652273154 | V6: =IFERROR(VLOOKUP(U6,'2) Order Form'!$V$9:$V$1767,1,FALSE),"Ikke med I order form") -> 7048652273154 | W6: =INDEX(ATS!$A:$P,MATCH(ATS!$U6,ATS!$O:$O,0),1) -> 845073 | X6: =INDEX(ATS!$A:$P,MATCH(ATS!$U6,ATS!$O:$O,0),2) -> Arbitrator Mips Helmet | Y6: =INDEX(ATS!$A:$P,MATCH(ATS!$U6,ATS!$O:$O,0),4) -> MBKNC-SM | AA6: =IFERROR(VLOOKUP('2) Order Form'!V11,$U$4:$U$2000,1,FALSE),"Ikke med i Elastic") -> 7048652893529 | AB6: =SUM('2) Order Form'!V11) -> 7048652893529 | AC6: =INDEX(ATS!$A:$P,MATCH(ATS!$AB6,ATS!$O:$O,0),1) -> 845073 | AD6: =INDEX(ATS!$A:$P,MATCH(ATS!$AB6,ATS!$O:$O,0),2) -> Arbitrator Mips Helmet | AE6: =INDEX(ATS!$A:$P,MATCH(ATS!$AB6,ATS!$O:$O,0),4) -> LAVA-SM
A7: 18101 | B7: Slatwall Helmet holder | C7: DBS | D7: BLACK-OS | E7: Black | F7: OS | G7: Active | H7: 0 | I7: 0 | J7: 0 | K7: 0 | L7: 0 | N7: 18101-BLACK-OS | O7: =IF(B7="NET","",IF(B7="","",IFERROR(VLOOKUP(N7,EAN!$A:$B,2,FALSE),"MANGLER - MÅ OPPDATERE EAN-FANEN"))) -> MANGLER - MÅ OPPDATERE EAN-FANEN | P7: 0 | Q7: 0 | S7: =IF(B7="NET","",IFERROR(VLOOKUP(O7,'2) Order Form'!$V$9:$V$905,1,FALSE),"Ikke med I order form")) -> Ikke med I order form | U7: 7048652273147 | V7: =IFERROR(VLOOKUP(U7,'2) Order Form'!$V$9:$V$1767,1,FALSE),"Ikke med I order form") -> 7048652273147 | W7: =INDEX(ATS!$A:$P,MATCH(ATS!$U7,ATS!$O:$O,0),1) -> 845073 | X7: =INDEX(ATS!$A:$P,MATCH(ATS!$U7,ATS!$O:$O,0),2) -> Arbitrator Mips Helmet | Y7: =INDEX(ATS!$A:$P,MATCH(ATS!$U7,ATS!$O:$O,0),4) -> MBKNC-ML | AA7: =IFERROR(VLOOKUP('2) Order Form'!V12,$U$4:$U$2000,1,FALSE),"Ikke med i Elastic") -> 7048652893512 | AB7: =SUM('2) Order Form'!V12) -> 7048652893512 | AC7: =INDEX(ATS!$A:$P,MATCH(ATS!$AB7,ATS!$O:$O,0),1) -> 845073 | AD7: =INDEX(ATS!$A:$P,MATCH(ATS!$AB7,ATS!$O:$O,0),2) -> Arbitrator Mips Helmet | AE7: =INDEX(ATS!$A:$P,MATCH(ATS!$AB7,ATS!$O:$O,0),4) -> LAVA-ML
A8: 18102 | B8: Net | H8: 202341 | I8: 202342 | J8: 202343 | K8: 202344 | L8: 202345 | N8: 18102- | O8: =IF(B8="NET","",IF(B8="","",IFERROR(VLOOKUP(N8,EAN!$A:$B,2,FALSE),"MANGLER - MÅ OPPDATERE EAN-FANEN"))) ->  | P8: 202341 | Q8: 202345 | S8: =IF(B8="NET","",IFERROR(VLOOKUP(O8,'2) Order Form'!$V$9:$V$905,1,FALSE),"Ikke med I order form")) ->  | U8: 7048652273147 | V8: =IFERROR(VLOOKUP(U8,'2) Order Form'!$V$9:$V$1767,1,FALSE),"Ikke med I order form") -> 7048652273147 | W8: =INDEX(ATS!$A:$P,MATCH(ATS!$U8,ATS!$O:$O,0),1) -> 845073 | X8: =INDEX(ATS!$A:$P,MATCH(ATS!$U8,ATS!$O:$O,0),2) -> Arbitrator Mips Helmet | Y8: =INDEX(ATS!$A:$P,MATCH(ATS!$U8,ATS!$O:$O,0),4) -> MBKNC-ML | AA8: =IFERROR(VLOOKUP('2) Order Form'!V13,$U$4:$U$2000,1,FALSE),"Ikke med i Elastic") -> 7048652273154 | AB8: =SUM('2) Order Form'!V13) -> 7048652273154 | AC8: =INDEX(ATS!$A:$P,MATCH(ATS!$AB8,ATS!$O:$O,0),1) -> 845073 | AD8: =INDEX(ATS!$A:$P,MATCH(ATS!$AB8,ATS!$O:$O,0),2) -> Arbitrator Mips Helmet | AE8: =INDEX(ATS!$A:$P,MATCH(ATS!$AB8,ATS!$O:$O,0),4) -> MBKNC-SM
A9: 18102 | B9: Slatwall goggle Holder | C9: DBS | D9: BLACK-OS | E9: Black | F9: OS | G9: Active | H9: 0 | I9: 0 | J9: 0 | K9: 0 | L9: 0 | N9: 18102-BLACK-OS | O9: =IF(B9="NET","",IF(B9="","",IFERROR(VLOOKUP(N9,EAN!$A:$B,2,FALSE),"MANGLER - MÅ OPPDATERE EAN-FANEN"))) -> MANGLER - MÅ OPPDATERE EAN-FANEN | P9: 0 | Q9: 0 | S9: =IF(B9="NET","",IFERROR(VLOOKUP(O9,'2) Order Form'!$V$9:$V$905,1,FALSE),"Ikke med I order form")) -> Ikke med I order form | U9: 7048652273147 | V9: =IFERROR(VLOOKUP(U9,'2) Order Form'!$V$9:$V$1767,1,FALSE),"Ikke med I order form") -> 7048652273147 | W9: =INDEX(ATS!$A:$P,MATCH(ATS!$U9,ATS!$O:$O,0),1) -> 845073 | X9: =INDEX(ATS!$A:$P,MATCH(ATS!$U9,ATS!$O:$O,0),2) -> Arbitrator Mips Helmet | Y9: =INDEX(ATS!$A:$P,MATCH(ATS!$U9,ATS!$O:$O,0),4) -> MBKNC-ML | AA9: =IFERROR(VLOOKUP('2) Order Form'!V14,$U$4:$U$2000,1,FALSE),"Ikke med i Elastic") -> 7048652273147 | AB9: =SUM('2) Order Form'!V14) -> 7048652273147 | AC9: =INDEX(ATS!$A:$P,MATCH(ATS!$AB9,ATS!$O:$O,0),1) -> 845073 | AD9: =INDEX(ATS!$A:$P,MATCH(ATS!$AB9,ATS!$O:$O,0),2) -> Arbitrator Mips Helmet | AE9: =INDEX(ATS!$A:$P,MATCH(ATS!$AB9,ATS!$O:$O,0),4) -> MBKNC-ML
A10: 18103 | B10: Net | H10: 202341 | I10: 202342 | J10: 202343 | K10: 202344 | L10: 202345 | N10: 18103- | O10: =IF(B10="NET","",IF(B10="","",IFERROR(VLOOKUP(N10,EAN!$A:$B,2,FALSE),"MANGLER - MÅ OPPDATERE EAN-FANEN"))) ->  | P10: 202341 | Q10: 202345 | S10: =IF(B10="NET","",IFERROR(VLOOKUP(O10,'2) Order Form'!$V$9:$V$905,1,FALSE),"Ikke med I order form")) ->  | U10: 7048652893505 | V10: =IFERROR(VLOOKUP(U10,'2) Order Form'!$V$9:$V$1767,1,FALSE),"Ikke med I order form") -> 7048652893505 | W10: =INDEX(ATS!$A:$P,MATCH(ATS!$U10,ATS!$O:$O,0),1) -> 845073 | X10: =INDEX(ATS!$A:$P,MATCH(ATS!$U10,ATS!$O:$O,0),2) -> Arbitrator Mips Helmet | Y10: =INDEX(ATS!$A:$P,MATCH(ATS!$U10,ATS!$O:$O,0),4) -> DUSK-SM | AA10: =IFERROR(VLOOKUP('2) Order Form'!V15,$U$4:$U$2000,1,FALSE),"Ikke med i Elastic") -> 7048652893567 | AB10: =SUM('2) Order Form'!V15) -> 7048652893567 | AC10: =INDEX(ATS!$A:$P,MATCH(ATS!$AB10,ATS!$O:$O,0),1) -> 845073 | AD10: =INDEX(ATS!$A:$P,MATCH(ATS!$AB10,ATS!$O:$O,0),2) -> Arbitrator Mips Helmet | AE10: =INDEX(ATS!$A:$P,MATCH(ATS!$AB10,ATS!$O:$O,0),4) -> WOLND-SM
A11: 18103 | B11: A-Frame Graphic Holder | C11: DBS | D11: BLACK-OS | E11: Black | F11: OS | G11: Active | H11: 0 | I11: 0 | J11: 0 | K11: 0 | L11: 0 | N11: 18103-BLACK-OS | O11: =IF(B11="NET","",IF(B11="","",IFERROR(VLOOKUP(N11,EAN!$A:$B,2,FALSE),"MANGLER - MÅ OPPDATERE EAN-FANEN"))) -> MANGLER - MÅ OPPDATERE EAN-FANEN | P11: 0 | Q11: 0 | S11: =IF(B11="NET","",IFERROR(VLOOKUP(O11,'2) Order Form'!$V$9:$V$905,1,FALSE),"Ikke med I order form")) -> Ikke med I order form | U11: 7048652893505 | V11: =IFERROR(VLOOKUP(U11,'2) Order Form'!$V$9:$V$1767,1,FALSE),"Ikke med I order form") -> 7048652893505 | W11: =INDEX(ATS!$A:$P,MATCH(ATS!$U11,ATS!$O:$O,0),1) -> 845073 | X11: =INDEX(ATS!$A:$P,MATCH(ATS!$U11,ATS!$O:$O,0),2) -> Arbitrator Mips Helmet | Y11: =INDEX(ATS!$A:$P,MATCH(ATS!$U11,ATS!$O:$O,0),4) -> DUSK-SM | AA11: =IFERROR(VLOOKUP('2) Order Form'!V16,$U$4:$U$2000,1,FALSE),"Ikke med i Elastic") -> 7048652893550 | AB11: =SUM('2) Order Form'!V16) -> 7048652893550 | AC11: =INDEX(ATS!$A:$P,MATCH(ATS!$AB11,ATS!$O:$O,0),1) -> 845073 | AD11: =INDEX(ATS!$A:$P,MATCH(ATS!$AB11,ATS!$O:$O,0),2) -> Arbitrator Mips Helmet | AE11: =INDEX(ATS!$A:$P,MATCH(ATS!$AB11,ATS!$O:$O,0),4) -> WOLND-ML
A12: 18104 | B12: Net | H12: 202341 | I12: 202342 | J12: 202343 | K12: 202344 | L12: 202345 | N12: 18104- | O12: =IF(B12="NET","",IF(B12="","",IFERROR(VLOOKUP(N12,EAN!$A:$B,2,FALSE),"MANGLER - MÅ OPPDATERE EAN-FANEN"))) ->  | P12: 202341 | Q12: 202345 | S12: =IF(B12="NET","",IFERROR(VLOOKUP(O12,'2) Order Form'!$V$9:$V$905,1,FALSE),"Ikke med I order form")) ->  | U12: 7048652893499 | V12: =IFERROR(VLOOKUP(U12,'2) Order Form'!$V$9:$V$1767,1,FALSE),"Ikke med I order form") -> 7048652893499 | W12: =INDEX(ATS!$A:$P,MATCH(ATS!$U12,ATS!$O:$O,0),1) -> 845073 | X12: =INDEX(ATS!$A:$P,MATCH(ATS!$U12,ATS!$O:$O,0),2) -> Arbitrator Mips Helmet | Y12: =INDEX(ATS!$A:$P,MATCH(ATS!$U12,ATS!$O:$O,0),4) -> DUSK-ML | AA12: =IFERROR(VLOOKUP('2) Order Form'!V17,$U$4:$U$2000,1,FALSE),"Ikke med i Elastic") -> 7048652892850 | AB12: =SUM('2) Order Form'!V17) -> 7048652892850 | AC12: =INDEX(ATS!$A:$P,MATCH(ATS!$AB12,ATS!$O:$O,0),1) -> 845144 | AD12: =INDEX(ATS!$A:$P,MATCH(ATS!$AB12,ATS!$O:$O,0),2) -> Bushwhacker 2Vi Mips Helmet | AE12: =INDEX(ATS!$A:$P,MATCH(ATS!$AB12,ATS!$O:$O,0),4) -> DUSK-SM
A13: 18104 | B13: Tower Kit 2 of 2 | C13: DBS | D13: BLACK-OS | E13: Black | F13: OS | G13: Active | H13: 0 | I13: 0 | J13: 0 | K13: 0 | L13: 0 | N13: 18104-BLACK-OS | O13: =IF(B13="NET","",IF(B13="","",IFERROR(VLOOKUP(N13,EAN!$A:$B,2,FALSE),"MANGLER - MÅ OPPDATERE EAN-FANEN"))) -> MANGLER - MÅ OPPDATERE EAN-FANEN | P13: 0 | Q13: 0 | S13: =IF(B13="NET","",IFERROR(VLOOKUP(O13,'2) Order Form'!$V$9:$V$905,1,FALSE),"Ikke med I order form")) -> Ikke med I order form | U13: 7048652893499 | V13: =IFERROR(VLOOKUP(U13,'2) Order Form'!$V$9:$V$1767,1,FALSE),"Ikke med I order form") -> 7048652893499 | W13: =INDEX(ATS!$A:$P,MATCH(ATS!$U13,ATS!$O:$O,0),1) -> 845073 | X13: =INDEX(ATS!$A:$P,MATCH(ATS!$U13,ATS!$O:$O,0),2) -> Arbitrator Mips Helmet | Y13: =INDEX(ATS!$A:$P,MATCH(ATS!$U13,ATS!$O:$O,0),4) -> DUSK-ML | AA13: =IFERROR(VLOOKUP('2) Order Form'!V18,$U$4:$U$2000,1,FALSE),"Ikke med i Elastic") -> 7048652892843 | AB13: =SUM('2) Order Form'!V18) -> 7048652892843 | AC13: =INDEX(ATS!$A:$P,MATCH(ATS!$AB13,ATS!$O:$O,0),1) -> 845144 | AD13: =INDEX(ATS!$A:$P,MATCH(ATS!$AB13,ATS!$O:$O,0),2) -> Bushwhacker 2Vi Mips Helmet | AE13: =INDEX(ATS!$A:$P,MATCH(ATS!$AB13,ATS!$O:$O,0),4) -> DUSK-ML
A14: 810050 | B14: Net | H14: 202341 | I14: 202342 | J14: 202343 | K14: 202344 | L14: 202345 | N14: 810050- | O14: =IF(B14="NET","",IF(B14="","",IFERROR(VLOOKUP(N14,EAN!$A:$B,2,FALSE),"MANGLER - MÅ OPPDATERE EAN-FANEN"))) ->  | P14: 202341 | Q14: 202345 | S14: =IF(B14="NET","",IFERROR(VLOOKUP(O14,'2) Order Form'!$V$9:$V$905,1,FALSE),"Ikke med I order form")) ->  | U14: 7048652893529 | V14: =IFERROR(VLOOKUP(U14,'2) Order Form'!$V$9:$V$1767,1,FALSE),"Ikke med I order form") -> 7048652893529 | W14: =INDEX(ATS!$A:$P,MATCH(ATS!$U14,ATS!$O:$O,0),1) -> 845073 | X14: =INDEX(ATS!$A:$P,MATCH(ATS!$U14,ATS!$O:$O,0),2) -> Arbitrator Mips Helmet | Y14: =INDEX(ATS!$A:$P,MATCH(ATS!$U14,ATS!$O:$O,0),4) -> LAVA-SM | AA14: =IFERROR(VLOOKUP('2) Order Form'!V19,$U$4:$U$2000,1,FALSE),"Ikke med i Elastic") -> 7048652892836 | AB14: =SUM('2) Order Form'!V19) -> 7048652892836 | AC14: =INDEX(ATS!$A:$P,MATCH(ATS!$AB14,ATS!$O:$O,0),1) -> 845144 | AD14: =INDEX(ATS!$A:$P,MATCH(ATS!$AB14,ATS!$O:$O,0),2) -> Bushwhacker 2Vi Mips Helmet | AE14: =INDEX(ATS!$A:$P,MATCH(ATS!$AB14,ATS!$O:$O,0),4) -> DUSK-LXL
A15: 810050 | B15: Rocker Visor | C15: DBS | D15: CLGRY-OS | E15: Charcoal Gray | F15: OS | G15: Stock | H15: 4 | I15: 4 | J15: 4 | K15: 4 | L15: 4 | N15: 810050-CLGRY-OS | O15: =IF(B15="NET","",IF(B15="","",IFERROR(VLOOKUP(N15,EAN!$A:$B,2,FALSE),"MANGLER - MÅ OPPDATERE EAN-FANEN"))) -> 7048652327482 | P15: 4 | Q15: 4 | S15: =IF(B15="NET","",IFERROR(VLOOKUP(O15,'2) Order Form'!$V$9:$V$905,1,FALSE),"Ikke med I order form")) -> Ikke med I order form | U15: 7048652893529 | V15: =IFERROR(VLOOKUP(U15,'2) Order Form'!$V$9:$V$1767,1,FALSE),"Ikke med I order form") -> 7048652893529 | W15: =INDEX(ATS!$A:$P,MATCH(ATS!$U15,ATS!$O:$O,0),1) -> 845073 | X15: =INDEX(ATS!$A:$P,MATCH(ATS!$U15,ATS!$O:$O,0),2) -> Arbitrator Mips Helmet | Y15: =INDEX(ATS!$A:$P,MATCH(ATS!$U15,ATS!$O:$O,0),4) -> LAVA-SM | AA15: =IFERROR(VLOOKUP('2) Order Form'!V20,$U$4:$U$2000,1,FALSE),"Ikke med i Elastic") -> 7048652895592 | AB15: =SUM('2) Order Form'!V20) -> 7048652895592 | AC15: =INDEX(ATS!$A:$P,MATCH(ATS!$AB15,ATS!$O:$O,0),1) -> 845144 | AD15: =INDEX(ATS!$A:$P,MATCH(ATS!$AB15,ATS!$O:$O,0),2) -> Bushwhacker 2Vi Mips Helmet | AE15: =INDEX(ATS!$A:$P,MATCH(ATS!$AB15,ATS!$O:$O,0),4) -> MBLCK-SM
A16: 810050 | B16: Rocker Visor | C16: DBS | D16: DPUMC-OS | E16: Deep Purple Metallic | F16: OS | G16: Stock | H16: 20 | I16: 20 | J16: 20 | K16: 20 | L16: 20 | N16: 810050-DPUMC-OS | O16: =IF(B16="NET","",IF(B16="","",IFERROR(VLOOKUP(N16,EAN!$A:$B,2,FALSE),"MANGLER - MÅ OPPDATERE EAN-FANEN"))) -> 7048652766120 | P16: 20 | Q16: 20 | S16: =IF(B16="NET","",IFERROR(VLOOKUP(O16,'2) Order Form'!$V$9:$V$905,1,FALSE),"Ikke med I order form")) -> Ikke med I order form | U16: 7048652893512 | V16: =IFERROR(VLOOKUP(U16,'2) Order Form'!$V$9:$V$1767,1,FALSE),"Ikke med I order form") -> 7048652893512 | W16: =INDEX(ATS!$A:$P,MATCH(ATS!$U16,ATS!$O:$O,0),1) -> 845073 | X16: =INDEX(ATS!$A:$P,MATCH(ATS!$U16,ATS!$O:$O,0),2) -> Arbitrator Mips Helmet | Y16: =INDEX(ATS!$A:$P,MATCH(ATS!$U16,ATS!$O:$O,0),4) -> LAVA-ML | AA16: =IFERROR(VLOOKUP('2) Order Form'!V21,$U$4:$U$2000,1,FALSE),"Ikke med i Elastic") -> 7048652895585 | AB16: =SUM('2) Order Form'!V21) -> 7048652895585 | AC16: =INDEX(ATS!$A:$P,MATCH(ATS!$AB16,ATS!$O:$O,0),1) -> 845144 | AD16: =INDEX(ATS!$A:$P,MATCH(ATS!$AB16,ATS!$O:$O,0),2) -> Bushwhacker 2Vi Mips Helmet | AE16: =INDEX(ATS!$A:$P,MATCH(ATS!$AB16,ATS!$O:$O,0),4) -> MBLCK-ML
A17: 810050 | B17: Rocker Visor | C17: DBS | D17: DTBLK-OS | E17: Dirt Black | F17: OS | G17: Active | H17: -27 | I17: -27 | J17: -27 | K17: -27 | L17: -27 | N17: 810050-DTBLK-OS | O17: =IF(B17="NET","",IF(B17="","",IFERROR(VLOOKUP(N17,EAN!$A:$B,2,FALSE),"MANGLER - MÅ OPPDATERE EAN-FANEN"))) -> 7048652328304 | P17: -27 | Q17: -27 | S17: =IF(B17="NET","",IFERROR(VLOOKUP(O17,'2) Order Form'!$V$9:$V$905,1,FALSE),"Ikke med I order form")) -> Ikke med I order form | U17: 7048652893512 | V17: =IFERROR(VLOOKUP(U17,'2) Order Form'!$V$9:$V$1767,1,FALSE),"Ikke med I order form") -> 7048652893512 | W17: =INDEX(ATS!$A:$P,MATCH(ATS!$U17,ATS!$O:$O,0),1) -> 845073 | X17: =INDEX(ATS!$A:$P,MATCH(ATS!$U17,ATS!$O:$O,0),2) -> Arbitrator Mips Helmet | Y17: =INDEX(ATS!$A:$P,MATCH(ATS!$U17,ATS!$O:$O,0),4) -> LAVA-ML | AA17: =IFERROR(VLOOKUP('2) Order Form'!V22,$U$4:$U$2000,1,FALSE),"Ikke med i Elastic") -> 7048652895578 | AB17: =SUM('2) Order Form'!V22) -> 7048652895578 | AC17: =INDEX(ATS!$A:$P,MATCH(ATS!$AB17,ATS!$O:$O,0),1) -> 845144 | AD17: =INDEX(ATS!$A:$P,MATCH(ATS!$AB17,ATS!$O:$O,0),2) -> Bushwhacker 2Vi Mips Helmet | AE17: =INDEX(ATS!$A:$P,MATCH(ATS!$AB17,ATS!$O:$O,0),4) -> MBLCK-LXL
A18: 810050 | B18: Rocker Visor | C18: DBS | D18: EHRED-OS | E18: Earth Red | F18: OS | G18: Stock | H18: 1 | I18: 1 | J18: 1 | K18: 1 | L18: 1 | N18: 810050-EHRED-OS | O18: =IF(B18="NET","",IF(B18="","",IFERROR(VLOOKUP(N18,EAN!$A:$B,2,FALSE),"MANGLER - MÅ OPPDATERE EAN-FANEN"))) -> 7048652327499 | P18: 1 | Q18: 1 | S18: =IF(B18="NET","",IFERROR(VLOOKUP(O18,'2) Order Form'!$V$9:$V$905,1,FALSE),"Ikke med I order form")) -> Ikke med I order form | U18: 7048652893567 | V18: =IFERROR(VLOOKUP(U18,'2) Order Form'!$V$9:$V$1767,1,FALSE),"Ikke med I order form") -> 7048652893567 | W18: =INDEX(ATS!$A:$P,MATCH(ATS!$U18,ATS!$O:$O,0),1) -> 845073 | X18: =INDEX(ATS!$A:$P,MATCH(ATS!$U18,ATS!$O:$O,0),2) -> Arbitrator Mips Helmet | Y18: =INDEX(ATS!$A:$P,MATCH(ATS!$U18,ATS!$O:$O,0),4) -> WOLND-SM | AA18: =IFERROR(VLOOKUP('2) Order Form'!V23,$U$4:$U$2000,1,FALSE),"Ikke med i Elastic") -> 7048652892911 | AB18: =SUM('2) Order Form'!V23) -> 7048652892911 | AC18: =INDEX(ATS!$A:$P,MATCH(ATS!$AB18,ATS!$O:$O,0),1) -> 845144 | AD18: =INDEX(ATS!$A:$P,MATCH(ATS!$AB18,ATS!$O:$O,0),2) -> Bushwhacker 2Vi Mips Helmet | AE18: =INDEX(ATS!$A:$P,MATCH(ATS!$AB18,ATS!$O:$O,0),4) -> MWHTE-SM
A19: 810050 | B19: Rocker Visor | C19: DBS | D19: GSWHT-OS | E19: Gloss White | F19: OS | G19: Active | H19: -48 | I19: -48 | J19: -48 | K19: -48 | L19: -48 | N19: 810050-GSWHT-OS | O19: =IF(B19="NET","",IF(B19="","",IFERROR(VLOOKUP(N19,EAN!$A:$B,2,FALSE),"MANGLER - MÅ OPPDATERE EAN-FANEN"))) -> 7048652327505 | P19: -48 | Q19: -48 | S19: =IF(B19="NET","",IFERROR(VLOOKUP(O19,'2) Order Form'!$V$9:$V$905,1,FALSE),"Ikke med I order form")) -> Ikke med I order form | U19: 7048652893567 | V19: =IFERROR(VLOOKUP(U19,'2) Order Form'!$V$9:$V$1767,1,FALSE),"Ikke med I order form") -> 7048652893567 | W19: =INDEX(ATS!$A:$P,MATCH(ATS!$U19,ATS!$O:$O,0),1) -> 845073 | X19: =INDEX(ATS!$A:$P,MATCH(ATS!$U19,ATS!$O:$O,0),2) -> Arbitrator Mips Helmet | Y19: =INDEX(ATS!$A:$P,MATCH(ATS!$U19,ATS!$O:$O,0),4) -> WOLND-SM | AA19: =IFERROR(VLOOKUP('2) Order Form'!V24,$U$4:$U$2000,1,FALSE),"Ikke med i Elastic") -> 7048652892904 | AB19: =SUM('2) Order Form'!V24) -> 7048652892904 | AC19: =INDEX(ATS!$A:$P,MATCH(ATS!$AB19,ATS!$O:$O,0),1) -> 845144 | AD19: =INDEX(ATS!$A:$P,MATCH(ATS!$AB19,ATS!$O:$O,0),2) -> Bushwhacker 2Vi Mips Helmet | AE19: =INDEX(ATS!$A:$P,MATCH(ATS!$AB19,ATS!$O:$O,0),4) -> MWHTE-ML
A20: 810050 | B20: Rocker Visor | C20: DBS | D20: MBUOE-OS | E20: Matte Burning Orange | F20: OS | G20: Stock | H20: 10 | I20: 10 | J20: 10 | K20: 10 | L20: 10 | N20: 810050-MBUOE-OS | O20: =IF(B20="NET","",IF(B20="","",IFERROR(VLOOKUP(N20,EAN!$A:$B,2,FALSE),"MANGLER - MÅ OPPDATERE EAN-FANEN"))) -> 7048652766137 | P20: 10 | Q20: 10 | S20: =IF(B20="NET","",IFERROR(VLOOKUP(O20,'2) Order Form'!$V$9:$V$905,1,FALSE),"Ikke med I order form")) -> Ikke med I order form | U20: 7048652893550 | V20: =IFERROR(VLOOKUP(U20,'2) Order Form'!$V$9:$V$1767,1,FALSE),"Ikke med I order form") -> 7048652893550 | W20: =INDEX(ATS!$A:$P,MATCH(ATS!$U20,ATS!$O:$O,0),1) -> 845073 | X20: =INDEX(ATS!$A:$P,MATCH(ATS!$U20,ATS!$O:$O,0),2) -> Arbitrator Mips Helmet | Y20: =INDEX(ATS!$A:$P,MATCH(ATS!$U20,ATS!$O:$O,0),4) -> WOLND-ML | AA20: =IFERROR(VLOOKUP('2) Order Form'!V25,$U$4:$U$2000,1,FALSE),"Ikke med i Elastic") -> 7048652892898 | AB20: =SUM('2) Order Form'!V25) -> 7048652892898 | AC20: =INDEX(ATS!$A:$P,MATCH(ATS!$AB20,ATS!$O:$O,0),1) -> 845144 | AD20: =INDEX(ATS!$A:$P,MATCH(ATS!$AB20,ATS!$O:$O,0),2) -> Bushwhacker 2Vi Mips Helmet | AE20: =INDEX(ATS!$A:$P,MATCH(ATS!$AB20,ATS!$O:$O,0),4) -> MWHTE-LXL
A21: 810050 | B21: Rocker Visor | C21: DBS | D21: MEAME-OS | E21: Matte Aquamarine | F21: OS | G21: Stock | H21: 10 | I21: 10 | J21: 10 | K21: 10 | L21: 10 | N21: 810050-MEAME-OS | O21: =IF(B21="NET","",IF(B21="","",IFERROR(VLOOKUP(N21,EAN!$A:$B,2,FALSE),"MANGLER - MÅ OPPDATERE EAN-FANEN"))) -> 7048652661487 | P21: 10 | Q21: 10 | S21: =IF(B21="NET","",IFERROR(VLOOKUP(O21,'2) Order Form'!$V$9:$V$905,1,FALSE),"Ikke med I order form")) -> Ikke med I order form | U21: 7048652893550 | V21: =IFERROR(VLOOKUP(U21,'2) Order Form'!$V$9:$V$1767,1,FALSE),"Ikke med I order form") -> 7048652893550 | W21: =INDEX(ATS!$A:$P,MATCH(ATS!$U21,ATS!$O:$O,0),1) -> 845073 | X21: =INDEX(ATS!$A:$P,MATCH(ATS!$U21,ATS!$O:$O,0),2) -> Arbitrator Mips Helmet | Y21: =INDEX(ATS!$A:$P,MATCH(ATS!$U21,ATS!$O:$O,0),4) -> WOLND-ML | AA21: =IFERROR(VLOOKUP('2) Order Form'!V26,$U$4:$U$2000,1,FALSE),"Ikke med i Elastic") -> 7048652892942 | AB21: =SUM('2) Order Form'!V26) -> 7048652892942 | AC21: =INDEX(ATS!$A:$P,MATCH(ATS!$AB21,ATS!$O:$O,0),1) -> 845144 | AD21: =INDEX(ATS!$A:$P,MATCH(ATS!$AB21,ATS!$O:$O,0),2) -> Bushwhacker 2Vi Mips Helmet | AE21: =INDEX(ATS!$A:$P,MATCH(ATS!$AB21,ATS!$O:$O,0),4) -> NANI-SM
A22: 810050 | B22: Rocker Visor | C22: DBS | D22: MFLUO-OS | E22: Matte Fluo | F22: OS | G22: Stock | H22: 17 | I22: 17 | J22: 17 | K22: 17 | L22: 17 | N22: 810050-MFLUO-OS | O22: =IF(B22="NET","",IF(B22="","",IFERROR(VLOOKUP(N22,EAN!$A:$B,2,FALSE),"MANGLER - MÅ OPPDATERE EAN-FANEN"))) -> 7048652766144 | P22: 17 | Q22: 17 | S22: =IF(B22="NET","",IFERROR(VLOOKUP(O22,'2) Order Form'!$V$9:$V$905,1,FALSE),"Ikke med I order form")) -> Ikke med I order form | U22: 7048652892850 | V22: =IFERROR(VLOOKUP(U22,'2) Order Form'!$V$9:$V$1767,1,FALSE),"Ikke med I order form") -> 7048652892850 | W22: =INDEX(ATS!$A:$P,MATCH(ATS!$U22,ATS!$O:$O,0),1) -> 845144 | X22: =INDEX(ATS!$A:$P,MATCH(ATS!$U22,ATS!$O:$O,0),2) -> Bushwhacker 2Vi Mips Helmet | Y22: =INDEX(ATS!$A:$P,MATCH(ATS!$U22,ATS!$O:$O,0),4) -> DUSK-SM | AA22: =IFERROR(VLOOKUP('2) Order Form'!V27,$U$4:$U$2000,1,FALSE),"Ikke med i Elastic") -> 7048652892935 | AB22: =SUM('2) Order Form'!V27) -> 7048652892935 | AC22: =INDEX(ATS!$A:$P,MATCH(ATS!$AB22,ATS!$O:$O,0),1) -> 845144 | AD22: =INDEX(ATS!$A:$P,MATCH(ATS!$AB22,ATS!$O:$O,0),2) -> Bushwhacker 2Vi Mips Helmet | AE22: =INDEX(ATS!$A:$P,MATCH(ATS!$AB22,ATS!$O:$O,0),4) -> NANI-ML
A23: 810050 | B23: Rocker Visor | C23: DBS | D23: MNBME-OS | E23: Matte Navy Blue Metallic | F23: OS | G23: Stock | H23: 24 | I23: 24 | J23: 24 | K23: 24 | L23: 24 | N23: 810050-MNBME-OS | O23: =IF(B23="NET","",IF(B23="","",IFERROR(VLOOKUP(N23,EAN!$A:$B,2,FALSE),"MANGLER - MÅ OPPDATERE EAN-FANEN"))) -> 7048652553843 | P23: 24 | Q23: 24 | S23: =IF(B23="NET","",IFERROR(VLOOKUP(O23,'2) Order Form'!$V$9:$V$905,1,FALSE),"Ikke med I order form")) -> Ikke med I order form | U23: 7048652892850 | V23: =IFERROR(VLOOKUP(U23,'2) Order Form'!$V$9:$V$1767,1,FALSE),"Ikke med I order form") -> 7048652892850 | W23: =INDEX(ATS!$A:$P,MATCH(ATS!$U23,ATS!$O:$O,0),1) -> 845144 | X23: =INDEX(ATS!$A:$P,MATCH(ATS!$U23,ATS!$O:$O,0),2) -> Bushwhacker 2Vi Mips Helmet | Y23: =INDEX(ATS!$A:$P,MATCH(ATS!$U23,ATS!$O:$O,0),4) -> DUSK-SM | AA23: =IFERROR(VLOOKUP('2) Order Form'!V28,$U$4:$U$2000,1,FALSE),"Ikke med i Elastic") -> 7048652892928 | AB23: =SUM('2) Order Form'!V28) -> 7048652892928 | AC23: =INDEX(ATS!$A:$P,MATCH(ATS!$AB23,ATS!$O:$O,0),1) -> 845144 | AD23: =INDEX(ATS!$A:$P,MATCH(ATS!$AB23,ATS!$O:$O,0),2) -> Bushwhacker 2Vi Mips Helmet | AE23: =INDEX(ATS!$A:$P,MATCH(ATS!$AB23,ATS!$O:$O,0),4) -> NANI-LXL
A24: 810050 | B24: Rocker Visor | C24: DBS | D24: MSGMC-OS | E24: Matte Slate Gray Metallic | F24: OS | G24: Stock | H24: 15 | I24: 15 | J24: 15 | K24: 15 | L24: 15 | N24: 810050-MSGMC-OS | O24: =IF(B24="NET","",IF(B24="","",IFERROR(VLOOKUP(N24,EAN!$A:$B,2,FALSE),"MANGLER - MÅ OPPDATERE EAN-FANEN"))) -> 7048652553850 | P24: 15 | Q24: 15 | S24: =IF(B24="NET","",IFERROR(VLOOKUP(O24,'2) Order Form'!$V$9:$V$905,1,FALSE),"Ikke med I order form")) -> Ikke med I order form | U24: 7048652892843 | V24: =IFERROR(VLOOKUP(U24,'2) Order Form'!$V$9:$V$1767,1,FALSE),"Ikke med I order form") -> 7048652892843 | W24: =INDEX(ATS!$A:$P,MATCH(ATS!$U24,ATS!$O:$O,0),1) -> 845144 | X24: =INDEX(ATS!$A:$P,MATCH(ATS!$U24,ATS!$O:$O,0),2) -> Bushwhacker 2Vi Mips Helmet | Y24: =INDEX(ATS!$A:$P,MATCH(ATS!$U24,ATS!$O:$O,0),4) -> DUSK-ML | AA24: =IFERROR(VLOOKUP('2) Order Form'!V29,$U$4:$U$2000,1,FALSE),"Ikke med i Elastic") -> 7048652893000 | AB24: =SUM('2) Order Form'!V29) -> 7048652893000 | AC24: =INDEX(ATS!$A:$P,MATCH(ATS!$AB24,ATS!$O:$O,0),1) -> 845144 | AD24: =INDEX(ATS!$A:$P,MATCH(ATS!$AB24,ATS!$O:$O,0),2) -> Bushwhacker 2Vi Mips Helmet | AE24: =INDEX(ATS!$A:$P,MATCH(ATS!$AB24,ATS!$O:$O,0),4) -> WOLND-SM
A25: 810051 | B25: Net | H25: 202341 | I25: 202342 | J25: 202343 | K25: 202344 | L25: 202345 | N25: 810051- | O25: =IF(B25="NET","",IF(B25="","",IFERROR(VLOOKUP(N25,EAN!$A:$B,2,FALSE),"MANGLER - MÅ OPPDATERE EAN-FANEN"))) ->  | P25: 202341 | Q25: 202345 | S25: =IF(B25="NET","",IFERROR(VLOOKUP(O25,'2) Order Form'!$V$9:$V$905,1,FALSE),"Ikke med I order form")) ->  | U25: 7048652892843 | V25: =IFERROR(VLOOKUP(U25,'2) Order Form'!$V$9:$V$1767,1,FALSE),"Ikke med I order form") -> 7048652892843 | W25: =INDEX(ATS!$A:$P,MATCH(ATS!$U25,ATS!$O:$O,0),1) -> 845144 | X25: =INDEX(ATS!$A:$P,MATCH(ATS!$U25,ATS!$O:$O,0),2) -> Bushwhacker 2Vi Mips Helmet | Y25: =INDEX(ATS!$A:$P,MATCH(ATS!$U25,ATS!$O:$O,0),4) -> DUSK-ML | AA25: =IFERROR(VLOOKUP('2) Order Form'!V30,$U$4:$U$2000,1,FALSE),"Ikke med i Elastic") -> 7048652892997 | AB25: =SUM('2) Order Form'!V30) -> 7048652892997 | AC25: =INDEX(ATS!$A:$P,MATCH(ATS!$AB25,ATS!$O:$O,0),1) -> 845144 | AD25: =INDEX(ATS!$A:$P,MATCH(ATS!$AB25,ATS!$O:$O,0),2) -> Bushwhacker 2Vi Mips Helmet | AE25: =INDEX(ATS!$A:$P,MATCH(ATS!$AB25,ATS!$O:$O,0),4) -> WOLND-ML
A26: 810051 | B26: Rocker/Wanderer Earpads | C26: DBS | D26: DTBLK-OS | E26: Dirt Black | F26: OS | G26: Active | H26: -494 | I26: -494 | J26: -494 | K26: -494 | L26: -494 | N26: 810051-DTBLK-OS | O26: =IF(B26="NET","",IF(B26="","",IFERROR(VLOOKUP(N26,EAN!$A:$B,2,FALSE),"MANGLER - MÅ OPPDATERE EAN-FANEN"))) -> 7048652327536 | P26: -494 | Q26: -494 | S26: =IF(B26="NET","",IFERROR(VLOOKUP(O26,'2) Order Form'!$V$9:$V$905,1,FALSE),"Ikke med I order form")) -> Ikke med I order form | U26: 7048652892836 | V26: =IFERROR(VLOOKUP(U26,'2) Order Form'!$V$9:$V$1767,1,FALSE),"Ikke med I order form") -> 7048652892836 | W26: =INDEX(ATS!$A:$P,MATCH(ATS!$U26,ATS!$O:$O,0),1) -> 845144 | X26: =INDEX(ATS!$A:$P,MATCH(ATS!$U26,ATS!$O:$O,0),2) -> Bushwhacker 2Vi Mips Helmet | Y26: =INDEX(ATS!$A:$P,MATCH(ATS!$U26,ATS!$O:$O,0),4) -> DUSK-LXL | AA26: =IFERROR(VLOOKUP('2) Order Form'!V31,$U$4:$U$2000,1,FALSE),"Ikke med i Elastic") -> 7048652892980 | AB26: =SUM('2) Order Form'!V31) -> 7048652892980 | AC26: =INDEX(ATS!$A:$P,MATCH(ATS!$AB26,ATS!$O:$O,0),1) -> 845144 | AD26: =INDEX(ATS!$A:$P,MATCH(ATS!$AB26,ATS!$O:$O,0),2) -> Bushwhacker 2Vi Mips Helmet | AE26: =INDEX(ATS!$A:$P,MATCH(ATS!$AB26,ATS!$O:$O,0),4) -> WOLND-LXL
A27: 810052 | B27: Net | H27: 202341 | I27: 202342 | J27: 202343 | K27: 202344 | L27: 202345 | N27: 810052- | O27: =IF(B27="NET","",IF(B27="","",IFERROR(VLOOKUP(N27,EAN!$A:$B,2,FALSE),"MANGLER - MÅ OPPDATERE EAN-FANEN"))) ->  | P27: 202341 | Q27: 202345 | S27: =IF(B27="NET","",IFERROR(VLOOKUP(O27,'2) Order Form'!$V$9:$V$905,1,FALSE),"Ikke med I order form")) ->  | U27: 7048652892836 | V27: =IFERROR(VLOOKUP(U27,'2) Order Form'!$V$9:$V$1767,1,FALSE),"Ikke med I order form") -> 7048652892836 | W27: =INDEX(ATS!$A:$P,MATCH(ATS!$U27,ATS!$O:$O,0),1) -> 845144 | X27: =INDEX(ATS!$A:$P,MATCH(ATS!$U27,ATS!$O:$O,0),2) -> Bushwhacker 2Vi Mips Helmet | Y27: =INDEX(ATS!$A:$P,MATCH(ATS!$U27,ATS!$O:$O,0),4) -> DUSK-LXL | AA27: =IFERROR(VLOOKUP('2) Order Form'!V32,$U$4:$U$2000,1,FALSE),"Ikke med i Elastic") -> 7048652892676 | AB27: =SUM('2) Order Form'!V32) -> 7048652892676 | AC27: =INDEX(ATS!$A:$P,MATCH(ATS!$AB27,ATS!$O:$O,0),1) -> 845103 | AD27: =INDEX(ATS!$A:$P,MATCH(ATS!$AB27,ATS!$O:$O,0),2) -> Trailblazer Helmet | AE27: =INDEX(ATS!$A:$P,MATCH(ATS!$AB27,ATS!$O:$O,0),4) -> DUSK-SM
A28: 810052 | B28: Bike Helmet Case | C28: DBS | D28: TEBLK-OS | E28: True Black | F28: OS | G28: Active | H28: 609 | I28: 609 | J28: 609 | K28: 609 | L28: 609 | N28: 810052-TEBLK-OS | O28: =IF(B28="NET","",IF(B28="","",IFERROR(VLOOKUP(N28,EAN!$A:$B,2,FALSE),"MANGLER - MÅ OPPDATERE EAN-FANEN"))) -> 7048652327543 | P28: 609 | Q28: 609 | S28: =IF(B28="NET","",IFERROR(VLOOKUP(O28,'2) Order Form'!$V$9:$V$905,1,FALSE),"Ikke med I order form")) -> 7048652327543 | U28: 7048652895592 | V28: =IFERROR(VLOOKUP(U28,'2) Order Form'!$V$9:$V$1767,1,FALSE),"Ikke med I order form") -> 7048652895592 | W28: =INDEX(ATS!$A:$P,MATCH(ATS!$U28,ATS!$O:$O,0),1) -> 845144 | X28: =INDEX(ATS!$A:$P,MATCH(ATS!$U28,ATS!$O:$O,0),2) -> Bushwhacker 2Vi Mips Helmet | Y28: =INDEX(ATS!$A:$P,MATCH(ATS!$U28,ATS!$O:$O,0),4) -> MBLCK-SM | AA28: =IFERROR(VLOOKUP('2) Order Form'!V33,$U$4:$U$2000,1,FALSE),"Ikke med i Elastic") -> 7048652892669 | AB28: =SUM('2) Order Form'!V33) -> 7048652892669 | AC28: =INDEX(ATS!$A:$P,MATCH(ATS!$AB28,ATS!$O:$O,0),1) -> 845103 | AD28: =INDEX(ATS!$A:$P,MATCH(ATS!$AB28,ATS!$O:$O,0),2) -> Trailblazer Helmet | AE28: =INDEX(ATS!$A:$P,MATCH(ATS!$AB28,ATS!$O:$O,0),4) -> DUSK-ML
A29: 810057 | B29: Net | H29: 202341 | I29: 202342 | J29: 202343 | K29: 202344 | L29: 202345 | N29: 810057- | O29: =IF(B29="NET","",IF(B29="","",IFERROR(VLOOKUP(N29,EAN!$A:$B,2,FALSE),"MANGLER - MÅ OPPDATERE EAN-FANEN"))) ->  | P29: 202341 | Q29: 202345 | S29: =IF(B29="NET","",IFERROR(VLOOKUP(O29,'2) Order Form'!$V$9:$V$905,1,FALSE),"Ikke med I order form")) ->  | U29: 7048652895592 | V29: =IFERROR(VLOOKUP(U29,'2) Order Form'!$V$9:$V$1767,1,FALSE),"Ikke med I order form") -> 7048652895592 | W29: =INDEX(ATS!$A:$P,MATCH(ATS!$U29,ATS!$O:$O,0),1) -> 845144 | X29: =INDEX(ATS!$A:$P,MATCH(ATS!$U29,ATS!$O:$O,0),2) -> Bushwhacker 2Vi Mips Helmet | Y29: =INDEX(ATS!$A:$P,MATCH(ATS!$U29,ATS!$O:$O,0),4) -> MBLCK-SM | AA29: =IFERROR(VLOOKUP('2) Order Form'!V34,$U$4:$U$2000,1,FALSE),"Ikke med i Elastic") -> 7048652892652 | AB29: =SUM('2) Order Form'!V34) -> 7048652892652 | AC29: =INDEX(ATS!$A:$P,MATCH(ATS!$AB29,ATS!$O:$O,0),1) -> 845103 | AD29: =INDEX(ATS!$A:$P,MATCH(ATS!$AB29,ATS!$O:$O,0),2) -> Trailblazer Helmet | AE29: =INDEX(ATS!$A:$P,MATCH(ATS!$AB29,ATS!$O:$O,0),4) -> DUSK-LXL
A30: 810057 | B30: Dissenter Visor (+Jr) | C30: DBS | D30: BRWHT-OS | E30: Bronco White | F30: OS | G30: Stock | H30: 8 | I30: 8 | J30: 8 | K30: 8 | L30: 8 | N30: 810057-BRWHT-OS | O30: =IF(B30="NET","",IF(B30="","",IFERROR(VLOOKUP(N30,EAN!$A:$B,2,FALSE),"MANGLER - MÅ OPPDATERE EAN-FANEN"))) -> 7048652766175 | P30: 8 | Q30: 8 | S30: =IF(B30="NET","",IFERROR(VLOOKUP(O30,'2) Order Form'!$V$9:$V$905,1,FALSE),"Ikke med I order form")) -> Ikke med I order form | U30: 7048652895585 | V30: =IFERROR(VLOOKUP(U30,'2) Order Form'!$V$9:$V$1767,1,FALSE),"Ikke med I order form") -> 7048652895585 | W30: =INDEX(ATS!$A:$P,MATCH(ATS!$U30,ATS!$O:$O,0),1) -> 845144 | X30: =INDEX(ATS!$A:$P,MATCH(ATS!$U30,ATS!$O:$O,0),2) -> Bushwhacker 2Vi Mips Helmet | Y30: =INDEX(ATS!$A:$P,MATCH(ATS!$U30,ATS!$O:$O,0),4) -> MBLCK-ML | AA30: =IFERROR(VLOOKUP('2) Order Form'!V35,$U$4:$U$2000,1,FALSE),"Ikke med i Elastic") -> 7048652892706 | AB30: =SUM('2) Order Form'!V35) -> 7048652892706 | AC30: =INDEX(ATS!$A:$P,MATCH(ATS!$AB30,ATS!$O:$O,0),1) -> 845103 | AD30: =INDEX(ATS!$A:$P,MATCH(ATS!$AB30,ATS!$O:$O,0),2) -> Trailblazer Helmet | AE30: =INDEX(ATS!$A:$P,MATCH(ATS!$AB30,ATS!$O:$O,0),4) -> LAVA-SM
A31: 810057 | B31: Dissenter Visor (+Jr) | C31: DBS | D31: DALIM-OS | E31: Dark Lilac Metallic | F31: OS | G31: Stock | H31: 4 | I31: 4 | J31: 4 | K31: 4 | L31: 4 | N31: 810057-DALIM-OS | O31: =IF(B31="NET","",IF(B31="","",IFERROR(VLOOKUP(N31,EAN!$A:$B,2,FALSE),"MANGLER - MÅ OPPDATERE EAN-FANEN"))) -> 7048652890894 | P31: 4 | Q31: 4 | S31: =IF(B31="NET","",IFERROR(VLOOKUP(O31,'2) Order Form'!$V$9:$V$905,1,FALSE),"Ikke med I order form")) -> Ikke med I order form | U31: 7048652895585 | V31: =IFERROR(VLOOKUP(U31,'2) Order Form'!$V$9:$V$1767,1,FALSE),"Ikke med I order form") -> 7048652895585 | W31: =INDEX(ATS!$A:$P,MATCH(ATS!$U31,ATS!$O:$O,0),1) -> 845144 | X31: =INDEX(ATS!$A:$P,MATCH(ATS!$U31,ATS!$O:$O,0),2) -> Bushwhacker 2Vi Mips Helmet | Y31: =INDEX(ATS!$A:$P,MATCH(ATS!$U31,ATS!$O:$O,0),4) -> MBLCK-ML | AA31: =IFERROR(VLOOKUP('2) Order Form'!V36,$U$4:$U$2000,1,FALSE),"Ikke med i Elastic") -> 7048652892690 | AB31: =SUM('2) Order Form'!V36) -> 7048652892690 | AC31: =INDEX(ATS!$A:$P,MATCH(ATS!$AB31,ATS!$O:$O,0),1) -> 845103 | AD31: =INDEX(ATS!$A:$P,MATCH(ATS!$AB31,ATS!$O:$O,0),2) -> Trailblazer Helmet | AE31: =INDEX(ATS!$A:$P,MATCH(ATS!$AB31,ATS!$O:$O,0),4) -> LAVA-ML
A32: 810057 | B32: Dissenter Visor (+Jr) | C32: DBS | D32: DUSK-OS | E32: Dusk | F32: OS | G32: Stock | H32: 5 | I32: 5 | J32: 5 | K32: 5 | L32: 5 | N32: 810057-DUSK-OS | O32: =IF(B32="NET","",IF(B32="","",IFERROR(VLOOKUP(N32,EAN!$A:$B,2,FALSE),"MANGLER - MÅ OPPDATERE EAN-FANEN"))) -> 7048652890900 | P32: 5 | Q32: 5 | S32: =IF(B32="NET","",IFERROR(VLOOKUP(O32,'2) Order Form'!$V$9:$V$905,1,FALSE),"Ikke med I order form")) -> Ikke med I order form | U32: 7048652895578 | V32: =IFERROR(VLOOKUP(U32,'2) Order Form'!$V$9:$V$1767,1,FALSE),"Ikke med I order form") -> 7048652895578 | W32: =INDEX(ATS!$A:$P,MATCH(ATS!$U32,ATS!$O:$O,0),1) -> 845144 | X32: =INDEX(ATS!$A:$P,MATCH(ATS!$U32,ATS!$O:$O,0),2) -> Bushwhacker 2Vi Mips Helmet | Y32: =INDEX(ATS!$A:$P,MATCH(ATS!$U32,ATS!$O:$O,0),4) -> MBLCK-LXL | AA32: =IFERROR(VLOOKUP('2) Order Form'!V37,$U$4:$U$2000,1,FALSE),"Ikke med i Elastic") -> 7048652892683 | AB32: =SUM('2) Order Form'!V37) -> 7048652892683 | AC32: =INDEX(ATS!$A:$P,MATCH(ATS!$AB32,ATS!$O:$O,0),1) -> 845103 | AD32: =INDEX(ATS!$A:$P,MATCH(ATS!$AB32,ATS!$O:$O,0),2) -> Trailblazer Helmet | AE32: =INDEX(ATS!$A:$P,MATCH(ATS!$AB32,ATS!$O:$O,0),4) -> LAVA-LXL
A33: 810057 | B33: Dissenter Visor (+Jr) | C33: DBS | D33: GLBLM-OS | E33: Glacier Blue Metallic | F33: OS | G33: Stock | H33: 8 | I33: 8 | J33: 8 | K33: 8 | L33: 8 | N33: 810057-GLBLM-OS | O33: =IF(B33="NET","",IF(B33="","",IFERROR(VLOOKUP(N33,EAN!$A:$B,2,FALSE),"MANGLER - MÅ OPPDATERE EAN-FANEN"))) -> 7048652766182 | P33: 8 | Q33: 8 | S33: =IF(B33="NET","",IFERROR(VLOOKUP(O33,'2) Order Form'!$V$9:$V$905,1,FALSE),"Ikke med I order form")) -> Ikke med I order form | U33: 7048652895578 | V33: =IFERROR(VLOOKUP(U33,'2) Order Form'!$V$9:$V$1767,1,FALSE),"Ikke med I order form") -> 7048652895578 | W33: =INDEX(ATS!$A:$P,MATCH(ATS!$U33,ATS!$O:$O,0),1) -> 845144 | X33: =INDEX(ATS!$A:$P,MATCH(ATS!$U33,ATS!$O:$O,0),2) -> Bushwhacker 2Vi Mips Helmet | Y33: =INDEX(ATS!$A:$P,MATCH(ATS!$U33,ATS!$O:$O,0),4) -> MBLCK-LXL | AA33: =IFERROR(VLOOKUP('2) Order Form'!V38,$U$4:$U$2000,1,FALSE),"Ikke med i Elastic") -> 7048652540225 | AB33: =SUM('2) Order Form'!V38) -> 7048652540225 | AC33: =INDEX(ATS!$A:$P,MATCH(ATS!$AB33,ATS!$O:$O,0),1) -> 845103 | AD33: =INDEX(ATS!$A:$P,MATCH(ATS!$AB33,ATS!$O:$O,0),2) -> Trailblazer Helmet | AE33: =INDEX(ATS!$A:$P,MATCH(ATS!$AB33,ATS!$O:$O,0),4) -> MBLCK-SM
A34: 810057 | B34: Dissenter Visor (+Jr) | C34: DBS | D34: MBLCK-OS | E34: Matte Black | F34: OS | G34: Active | H34: 34 | I34: 34 | J34: 34 | K34: 34 | L34: 34 | N34: 810057-MBLCK-OS | O34: =IF(B34="NET","",IF(B34="","",IFERROR(VLOOKUP(N34,EAN!$A:$B,2,FALSE),"MANGLER - MÅ OPPDATERE EAN-FANEN"))) -> 7048652327710 | P34: 34 | Q34: 34 | S34: =IF(B34="NET","",IFERROR(VLOOKUP(O34,'2) Order Form'!$V$9:$V$905,1,FALSE),"Ikke med I order form")) -> Ikke med I order form | U34: 7048652892911 | V34: =IFERROR(VLOOKUP(U34,'2) Order Form'!$V$9:$V$1767,1,FALSE),"Ikke med I order form") -> 7048652892911 | W34: =INDEX(ATS!$A:$P,MATCH(ATS!$U34,ATS!$O:$O,0),1) -> 845144 | X34: =INDEX(ATS!$A:$P,MATCH(ATS!$U34,ATS!$O:$O,0),2) -> Bushwhacker 2Vi Mips Helmet | Y34: =INDEX(ATS!$A:$P,MATCH(ATS!$U34,ATS!$O:$O,0),4) -> MWHTE-SM | AA34: =IFERROR(VLOOKUP('2) Order Form'!V39,$U$4:$U$2000,1,FALSE),"Ikke med i Elastic") -> 7048652540218 | AB34: =SUM('2) Order Form'!V39) -> 7048652540218 | AC34: =INDEX(ATS!$A:$P,MATCH(ATS!$AB34,ATS!$O:$O,0),1) -> 845103 | AD34: =INDEX(ATS!$A:$P,MATCH(ATS!$AB34,ATS!$O:$O,0),2) -> Trailblazer Helmet | AE34: =INDEX(ATS!$A:$P,MATCH(ATS!$AB34,ATS!$O:$O,0),4) -> MBLCK-ML
